Workbook

Sheet Rates
A1: Medicare Home Health- PPS Rates by HH Resource Group: Eff. 1/1/17 - Final | K1: Find County that a zip or city is in: | L1: http://www.naco.org/research/data/Pages/CitySearch.aspx
G2: =Main!$C$26 -> 0.5857 | H2: =Main!$C$27 -> 0.7168 | I2: =Main!$C$28 -> 0.8479 | J2: =Main!$C$29 -> 0.979 | K2: =Main!$C$30 -> 1.11 | L2: =Main!$C$31 -> 0.6896 | M2: =Main!$C$32 -> 0.803 | N2: =Main!$C$33 -> 0.9164 | O2: =Main!$C$34 -> 1.0298 | P2: =Main!$C$35 -> 1.1433 | Q2: =Main!$C$36 -> 0.746 | R2: =Main!$C$37 -> 0.863 | S2: =Main!$C$38 -> 0.98 | T2: =Main!$C$39 -> 1.097 | U2: =Main!$C$40 -> 1.214 | V2: =Main!$C$41 -> 0.6193 | W2: =Main!$C$42 -> 0.7526 | X2: =Main!$C$43 -> 0.886 | Y2: =Main!$C$44 -> 1.0193 | Z2: =Main!$C$45 -> 1.1526 | AA2: =Main!$C$46 -> 0.7232 | AB2: =Main!$C$47 -> 0.8389 | AC2: =Main!$C$48 -> 0.9545 | AD2: =Main!$C$49 -> 1.0702 | AE2: =Main!$C$50 -> 1.1858 | AF2: =Main!$C$51 -> 0.7796 | AG2: =Main!$C$52 -> 0.8988 | AH2: =Main!$C$53 -> 1.0181 | AI2: =Main!$C$54 -> 1.1373 | AJ2: =Main!$C$55 -> 1.2565 | AK2: =Main!$C$56 -> 0.6643 | AL2: =Main!$C$57 -> 0.8204 | AM2: =Main!$C$58 -> 0.9765 | AN2: =Main!$C$59 -> 1.1325 | AO2: =Main!$C$60 -> 1.2886 | AP2: =Main!$C$61 -> 0.7682 | AQ2: =Main!$C$62 -> 0.9066 | AR2: =Main!$C$63 -> 1.045 | AS2: =Main!$C$64 -> 1.1834 | AT2: =Main!$C$65 -> 1.3218 | AU2: =Main!$C$66 -> 0.8246 | AV2: =Main!$C$67 -> 0.9666 | AW2: =Main!$C$68 -> 1.1086 | AX2: =Main!$C$69 -> 1.2505 | AY2: =Main!$C$70 -> 1.3925 | AZ2: =Main!$C$71 -> 1.2411 | BA2: =Main!$C$72 -> 1.4125 | BB2: =Main!$C$73 -> 1.5838 | BC2: =Main!$C$74 -> 1.2567 | BD2: =Main!$C$75 -> 1.4388 | BE2: =Main!$C$76 -> 1.6209 | BF2: =Main!$C$77 -> 1.331 | BG2: =Main!$C$78 -> 1.5089 | BH2: =Main!$C$79 -> 1.6868 | BI2: =Main!$C$80 -> 1.2859 | BJ2: =Main!$C$81 -> 1.4769 | BK2: =Main!$C$82 -> 1.6679 | BL2: =Main!$C$83 -> 1.3014 | BM2: =Main!$C$84 -> 1.5032 | BN2: =Main!$C$85 -> 1.7049 | BO2: =Main!$C$86 -> 1.3757 | BP2: =Main!$C$87 -> 1.5733 | BQ2: =Main!$C$88 -> 1.7708 | BR2: =Main!$C$89 -> 1.4446 | BS2: =Main!$C$90 -> 1.6636 | BT2: =Main!$C$91 -> 1.8826 | BU2: =Main!$C$92 -> 1.4602 | BV2: =Main!$C$93 -> 1.6899 | BW2: =Main!$C$94 -> 1.9197 | BX2: =Main!$C$95 -> 1.5345 | BY2: =Main!$C$96 -> 1.7601 | BZ2: =Main!$C$97 -> 1.9856 | CA2: =Main!$C$98 -> 1.2523 | CB2: =Main!$C$99 -> 1.42 | CC2: =Main!$C$100 -> 1.5876 | CD2: =Main!$C$101 -> 1.2523 | CE2: =Main!$C$102 -> 1.4359 | CF2: =Main!$C$103 -> 1.6195 | CG2: =Main!$C$104 -> 1.3315 | CH2: =Main!$C$105 -> 1.5093 | CI2: =Main!$C$106 -> 1.687 | CJ2: =Main!$C$107 -> 1.3117 | CK2: =Main!$C$108 -> 1.4941 | CL2: =Main!$C$109 -> 1.6765 | CM2: =Main!$C$110 -> 1.3117 | CN2: =Main!$C$111 -> 1.51 | CO2: =Main!$C$112 -> 1.7083 | CP2: =Main!$C$113 -> 1.3909 | CQ2: =Main!$C$114 -> 1.5834 | CR2: =Main!$C$115 -> 1.7759 | CS2: =Main!$C$116 -> 1.5203 | CT2: =Main!$C$117 -> 1.7141 | CU2: =Main!$C$118 -> 1.9079 | CV2: =Main!$C$119 -> 1.5203 | CW2: =Main!$C$120 -> 1.73 | CX2: =Main!$C$121 -> 1.9398 | CY2: =Main!$C$122 -> 1.5995 | CZ2: =Main!$C$123 -> 1.8034 | DA2: =Main!$C$124 -> 2.0073 | DB2: =Main!$C$125 -> 0.4785 | DC2: =Main!$C$126 -> 0.6333 | DD2: =Main!$C$127 -> 0.788 | DE2: =Main!$C$128 -> 0.9428 | DF2: =Main!$C$129 -> 1.0976 | DG2: =Main!$C$130 -> 0.5578 | DH2: =Main!$C$131 -> 0.6967 | DI2: =Main!$C$132 -> 0.8356 | DJ2: =Main!$C$133 -> 0.9745 | DK2: =Main!$C$134 -> 1.1134 | DL2: =Main!$C$135 -> 0.6039 | DM2: =Main!$C$136 -> 0.7494 | DN2: =Main!$C$137 -> 0.8949 | DO2: =Main!$C$138 -> 1.0405 | DP2: =Main!$C$139 -> 1.186 | DQ2: =Main!$C$140 -> 0.4955 | DR2: =Main!$C$141 -> 0.6587 | DS2: =Main!$C$142 -> 0.822 | DT2: =Main!$C$143 -> 0.9852 | DU2: =Main!$C$144 -> 1.1485 | DV2: =Main!$C$145 -> 0.5748 | DW2: =Main!$C$146 -> 0.7222 | DX2: =Main!$C$147 -> 0.8695 | DY2: =Main!$C$148 -> 1.0169 | DZ2: =Main!$C$149 -> 1.1643 | EA2: =Main!$C$150 -> 0.6208 | EB2: =Main!$C$151 -> 0.7748 | EC2: =Main!$C$152 -> 0.9288 | ED2: =Main!$C$153 -> 1.0829 | EE2: =Main!$C$154 -> 1.2369 | EF2: =Main!$C$155 -> 0.614 | EG2: =Main!$C$156 -> 0.7953 | EH2: =Main!$C$157 -> 0.9765 | EI2: =Main!$C$158 -> 1.1578 | EJ2: =Main!$C$159 -> 1.3391 | EK2: =Main!$C$160 -> 0.6933 | EL2: =Main!$C$161 -> 0.8587 | EM2: =Main!$C$162 -> 1.0241 | EN2: =Main!$C$163 -> 1.1895 | EO2: =Main!$C$164 -> 1.3549 | EP2: =Main!$C$165 -> 0.7393 | EQ2: =Main!$C$166 -> 0.9114 | ER2: =Main!$C$167 -> 1.0834 | ES2: =Main!$C$168 -> 1.2554 | ET2: =Main!$C$169 -> 1.4275 | EU2: =Main!$C$170 -> 1.7552 | EV2: =Main!$C$171 -> 1.803 | EW2: =Main!$C$172 -> 1.8648 | EX2: =Main!$C$173 -> 1.8588 | EY2: =Main!$C$174 -> 1.9067 | EZ2: =Main!$C$175 -> 1.9684 | FA2: =Main!$C$176 -> 2.1016 | FB2: =Main!$C$177 -> 2.1495 | FC2: =Main!$C$178 -> 2.2112 | FD2: =Main!C6 -> 141.84 | FE2: =Main!C7 -> 155.05 | FF2: =Main!C8 -> 156.11 | FG2: =Main!C9 -> 168.52 | FH2: =Main!C10 -> 227.36 | FI2: =Main!C11 -> 64.23
G3: 1st & 2nd Episodes, 0-13 Therapy Visits | S3: =G3 -> 1st & 2nd Episodes, 0-13 Therapy Visits | AE3: =S3 -> 1st & 2nd Episodes, 0-13 Therapy Visits | AQ3: =AE3 -> 1st & 2nd Episodes, 0-13 Therapy Visits | AZ3: 1st & 2nd Episodes, 14-19 Therapy Visits | BL3: =AZ3 -> 1st & 2nd Episodes, 14-19 Therapy Visits | BX3: =BL3 -> 1st & 2nd Episodes, 14-19 Therapy Visits | CA3: 3rd + Episodes, 14-19 Therapy Visits | CO3: =CA3 -> 3rd + Episodes, 14-19 Therapy Visits | DB3: 3rd + Episodes, 0-13 Therapy Visits | DQ3: =DB3 -> 3rd + Episodes, 0-13 Therapy Visits | EH3: =DQ3 -> 3rd + Episodes, 0-13 Therapy Visits | EU3: All Episodes, 20+ Therapy Visits
A4: State | B4: Code | C4: Area | D4: CBSA | E4: Index | F4: Rate | G4: =Main!$B$26 -> C1F1S1 | H4: =Main!$B$27 -> C1F1S2 | I4: =Main!$B$28 -> C1F1S3 | J4: =Main!$B$29 -> C1F1S4 | K4: =Main!$B$30 -> C1F1S5 | L4: =Main!$B$31 -> C1F2S1 | M4: =Main!$B$32 -> C1F2S2 | N4: =Main!$B$33 -> C1F2S3 | O4: =Main!$B$34 -> C1F2S4 | P4: =Main!$B$35 -> C1F2S5 | Q4: =Main!$B$36 -> C1F3S1 | R4: =Main!$B$37 -> C1F3S2 | S4: =Main!$B$38 -> C1F3S3 | T4: =Main!$B$39 -> C1F3S4 | U4: =Main!$B$40 -> C1F3S5 | V4: =Main!$B$41 -> C2F1S1 | W4: =Main!$B$42 -> C2F1S2 | X4: =Main!$B$43 -> C2F1S3 | Y4: =Main!$B$44 -> C2F1S4 | Z4: =Main!$B$45 -> C2F1S5 | AA4: =Main!$B$46 -> C2F2S1 | AB4: =Main!$B$47 -> C2F2S2 | AC4: =Main!$B$48 -> C2F2S3 | AD4: =Main!$B$49 -> C2F2S4 | AE4: =Main!$B$50 -> C2F2S5 | AF4: =Main!$B$51 -> C2F3S1 | AG4: =Main!$B$52 -> C2F3S2 | AH4: =Main!$B$53 -> C2F3S3 | AI4: =Main!$B$54 -> C2F3S4 | AJ4: =Main!$B$55 -> C2F3S5 | AK4: =Main!$B$56 -> C3F1S1 | AL4: =Main!$B$57 -> C3F1S2 | AM4: =Main!$B$58 -> C3F1S3 | AN4: =Main!$B$59 -> C3F1S4 | AO4: =Main!$B$60 -> C3F1S5 | AP4: =Main!$B$61 -> C3F2S1 | AQ4: =Main!$B$62 -> C3F2S2 | AR4: =Main!$B$63 -> C3F2S3 | AS4: =Main!$B$64 -> C3F2S4 | AT4: =Main!$B$65 -> C3F2S5 | AU4: =Main!$B$66 -> C3F3S1 | AV4: =Main!$B$67 -> C3F3S2 | AW4: =Main!$B$68 -> C3F3S3 | AX4: =Main!$B$69 -> C3F3S4 | AY4: =Main!$B$70 -> C3F3S5 | AZ4: =Main!$B$71 -> C1F1S1 | BA4: =Main!$B$72 -> C1F1S2 | BB4: =Main!$B$73 -> C1F1S3 | BC4: =Main!$B$74 -> C1F2S1 | BD4: =Main!$B$75 -> C1F2S2 | BE4: =Main!$B$76 -> C1F2S3 | BF4: =Main!$B$77 -> C1F3S1 | BG4: =Main!$B$78 -> C1F3S2 | BH4: =Main!$B$79 -> C1F3S3 | BI4: =Main!$B$80 -> C2F1S1 | BJ4: =Main!$B$81 -> C2F1S2 | BK4: =Main!$B$82 -> C2F1S3 | BL4: =Main!$B$83 -> C2F2S1 | BM4: =Main!$B$84 -> C2F2S2 | BN4: =Main!$B$85 -> C2F2S3 | BO4: =Main!$B$86 -> C2F3S1 | BP4: =Main!$B$87 -> C2F3S2 | BQ4: =Main!$B$88 -> C2F3S3 | BR4: =Main!$B$89 -> C3F1S1 | BS4: =Main!$B$90 -> C3F1S2 | BT4: =Main!$B$91 -> C3F1S3 | BU4: =Main!$B$92 -> C3F2S1 | BV4: =Main!$B$93 -> C3F2S2 | BW4: =Main!$B$94 -> C3F2S3 | BX4: =Main!$B$95 -> C3F3S1 | BY4: =Main!$B$96 -> C3F3S2 | BZ4: =Main!$B$97 -> C3F3S3 | CA4: =Main!$B$98 -> C1F1S1 | CB4: =Main!$B$99 -> C1F1S2 | CC4: =Main!$B$100 -> C1F1S3 | CD4: =Main!$B$101 -> C1F2S1 | CE4: =Main!$B$102 -> C1F2S2 | CF4: =Main!$B$103 -> C1F2S3 | CG4: =Main!$B$104 -> C1F3S1 | CH4: =Main!$B$105 -> C1F3S2 | CI4: =Main!$B$106 -> C1F3S3 | CJ4: =Main!$B$107 -> C2F1S1 | CK4: =Main!$B$108 -> C2F1S2 | CL4: =Main!$B$109 -> C2F1S3 | CM4: =Main!$B$110 -> C2F2S1 | CN4: =Main!$B$111 -> C2F2S2 | CO4: =Main!$B$112 -> C2F2S3 | CP4: =Main!$B$113 -> C2F3S1 | CQ4: =Main!$B$114 -> C2F3S2 | CR4: =Main!$B$115 -> C2F3S3 | CS4: =Main!$B$116 -> C3F1S1 | CT4: =Main!$B$117 -> C3F1S2 | CU4: =Main!$B$118 -> C3F1S3 | CV4: =Main!$B$119 -> C3F2S1 | CW4: =Main!$B$120 -> C3F2S2 | CX4: =Main!$B$121 -> C3F2S3 | CY4: =Main!$B$122 -> C3F3S1 | CZ4: =Main!$B$123 -> C3F3S2 | DA4: =Main!$B$124 -> C3F3S3 | DB4: =Main!$B$125 -> C1F1S1 | DC4: =Main!$B$126 -> C1F1S2 | DD4: =Main!$B$127 -> C1F1S3 | DE4: =Main!$B$128 -> C1F1S4 | DF4: =Main!$B$129 -> C1F1S5 | DG4: =Main!$B$130 -> C1F2S1 | DH4: =Main!$B$131 -> C1F2S2 | DI4: =Main!$B$132 -> C1F2S3 | DJ4: =Main!$B$133 -> C1F2S4 | DK4: =Main!$B$134 -> C1F2S5 | DL4: =Main!$B$135 -> C1F3S1 | DM4: =Main!$B$136 -> C1F3S2 | DN4: =Main!$B$137 -> C1F3S3 | DO4: =Main!$B$138 -> C1F3S4 | DP4: =Main!$B$139 -> C1F3S5 | DQ4: =Main!$B$140 -> C2F1S1 | DR4: =Main!$B$141 -> C2F1S2 | DS4: =Main!$B$142 -> C2F1S3 | DT4: =Main!$B$143 -> C2F1S4 | DU4: =Main!$B$144 -> C2F1S5 | DV4: =Main!$B$145 -> C2F2S1 | DW4: =Main!$B$146 -> C2F2S2 | DX4: =Main!$B$147 -> C2F2S3 | DY4: =Main!$B$148 -> C2F2S4 | DZ4: =Main!$B$149 -> C2F2S5 | EA4: =Main!$B$150 -> C2F3S1 | EB4: =Main!$B$151 -> C2F3S2 | EC4: =Main!$B$152 -> C2F3S3 | ED4: =Main!$B$153 -> C2F3S4 | EE4: =Main!$B$154 -> C2F3S5 | EF4: =Main!$B$155 -> C3F1S1 | EG4: =Main!$B$156 -> C3F1S2 | EH4: =Main!$B$157 -> C3F1S3 | EI4: =Main!$B$158 -> C3F1S4 | EJ4: =Main!$B$159 -> C3F1S5 | EK4: =Main!$B$160 -> C3F2S1 | EL4: =Main!$B$161 -> C3F2S2 | EM4: =Main!$B$162 -> C3F2S3 | EN4: =Main!$B$163 -> C3F2S4 | EO4: =Main!$B$164 -> C3F2S5 | EP4: =Main!$B$165 -> C3F3S1 | EQ4: =Main!$B$166 -> C3F3S2 | ER4: =Main!$B$167 -> C3F3S3 | ES4: =Main!$B$168 -> C3F3S4 | ET4: =Main!$B$169 -> C3F3S5 | EU4: =Main!$B$170 -> C1F1S1 | EV4: =Main!$B$171 -> C1F2S1 | EW4: =Main!$B$172 -> C1F3S1 | EX4: =Main!$B$173 -> C2F1S1 | EY4: =Main!$B$174 -> C2F2S1 | EZ4: =Main!$B$175 -> C2F3S1 | FA4: =Main!$B$176 -> C3F1S1 | FB4: =Main!$B$177 -> C3F2S1 | FC4: =Main!$B$178 -> C3F3S1 | FD4: Nursing | FE4: PT | FF4: OT | FG4: ST | FH4: MSW | FI4: HHAide
A5: AK | B5: 2 | C5: Nonurban | D5: 2 | E5: 1.4366 | F5: =IF($D5<100,Main!$C$2*(1+Main!$C$3),Main!$C$2) -> 3079.6691 | G5: =G$2*$F5*Main!$C$4*$E5+Main!$C$5*G$2*$F5 -> 2422.243045 | H5: =H$2*$F5*Main!$C$4*$E5+Main!$C$5*H$2*$F5 -> 2964.425157 | I5: =I$2*$F5*Main!$C$4*$E5+Main!$C$5*I$2*$F5 -> 3506.607269 | J5: =J$2*$F5*Main!$C$4*$E5+Main!$C$5*J$2*$F5 -> 4048.789381 | K5: =K$2*$F5*Main!$C$4*$E5+Main!$C$5*K$2*$F5 -> 4590.55793 | L5: =L$2*$F5*Main!$C$4*$E5+Main!$C$5*L$2*$F5 -> 2851.935809 | M5: =M$2*$F5*Main!$C$4*$E5+Main!$C$5*M$2*$F5 -> 3320.917133 | N5: =N$2*$F5*Main!$C$4*$E5+Main!$C$5*N$2*$F5 -> 3789.898457 | O5: =O$2*$F5*Main!$C$4*$E5+Main!$C$5*O$2*$F5 -> 4258.87978 | P5: =P$2*$F5*Main!$C$4*$E5+Main!$C$5*P$2*$F5 -> 4728.274668 | Q5: =Q$2*$F5*Main!$C$4*$E5+Main!$C$5*Q$2*$F5 -> 3085.18578 | R5: =R$2*$F5*Main!$C$4*$E5+Main!$C$5*R$2*$F5 -> 3569.055399 | S5: =S$2*$F5*Main!$C$4*$E5+Main!$C$5*S$2*$F5 -> 4052.925019 | T5: =T$2*$F5*Main!$C$4*$E5+Main!$C$5*T$2*$F5 -> 4536.794639 | U5: =U$2*$F5*Main!$C$4*$E5+Main!$C$5*U$2*$F5 -> 5020.664258 | V5: =V$2*$F5*Main!$C$4*$E5+Main!$C$5*V$2*$F5 -> 2561.200474 | W5: =W$2*$F5*Main!$C$4*$E5+Main!$C$5*W$2*$F5 -> 3112.480989 | X5: =X$2*$F5*Main!$C$4*$E5+Main!$C$5*X$2*$F5 -> 3664.175068 | Y5: =Y$2*$F5*Main!$C$4*$E5+Main!$C$5*Y$2*$F5 -> 4215.455584 | Z5: =Z$2*$F5*Main!$C$4*$E5+Main!$C$5*Z$2*$F5 -> 4766.736099 | AA5: =AA$2*$F5*Main!$C$4*$E5+Main!$C$5*AA$2*$F5 -> 2990.893239 | AB5: =AB$2*$F5*Main!$C$4*$E5+Main!$C$5*AB$2*$F5 -> 3469.386529 | AC5: =AC$2*$F5*Main!$C$4*$E5+Main!$C$5*AC$2*$F5 -> 3947.466256 | AD5: =AD$2*$F5*Main!$C$4*$E5+Main!$C$5*AD$2*$F5 -> 4425.959546 | AE5: =AE$2*$F5*Main!$C$4*$E5+Main!$C$5*AE$2*$F5 -> 4904.039273 | AF5: =AF$2*$F5*Main!$C$4*$E5+Main!$C$5*AF$2*$F5 -> 3224.143209 | AG5: =AG$2*$F5*Main!$C$4*$E5+Main!$C$5*AG$2*$F5 -> 3717.111232 | AH5: =AH$2*$F5*Main!$C$4*$E5+Main!$C$5*AH$2*$F5 -> 4210.492818 | AI5: =AI$2*$F5*Main!$C$4*$E5+Main!$C$5*AI$2*$F5 -> 4703.460841 | AJ5: =AJ$2*$F5*Main!$C$4*$E5+Main!$C$5*AJ$2*$F5 -> 5196.428864 | AK5: =AK$2*$F5*Main!$C$4*$E5+Main!$C$5*AK$2*$F5 -> 2747.304174 | AL5: =AL$2*$F5*Main!$C$4*$E5+Main!$C$5*AL$2*$F5 -> 3392.87723 | AM5: =AM$2*$F5*Main!$C$4*$E5+Main!$C$5*AM$2*$F5 -> 4038.450287 | AN5: =AN$2*$F5*Main!$C$4*$E5+Main!$C$5*AN$2*$F5 -> 4683.60978 | AO5: =AO$2*$F5*Main!$C$4*$E5+Main!$C$5*AO$2*$F5 -> 5329.182836 | AP5: =AP$2*$F5*Main!$C$4*$E5+Main!$C$5*AP$2*$F5 -> 3176.996938 | AQ5: =AQ$2*$F5*Main!$C$4*$E5+Main!$C$5*AQ$2*$F5 -> 3749.369206 | AR5: =AR$2*$F5*Main!$C$4*$E5+Main!$C$5*AR$2*$F5 -> 4321.741474 | AS5: =AS$2*$F5*Main!$C$4*$E5+Main!$C$5*AS$2*$F5 -> 4894.113742 | AT5: =AT$2*$F5*Main!$C$4*$E5+Main!$C$5*AT$2*$F5 -> 5466.48601 | AU5: =AU$2*$F5*Main!$C$4*$E5+Main!$C$5*AU$2*$F5 -> 3410.246909 | AV5: =AV$2*$F5*Main!$C$4*$E5+Main!$C$5*AV$2*$F5 -> 3997.507473 | AW5: =AW$2*$F5*Main!$C$4*$E5+Main!$C$5*AW$2*$F5 -> 4584.768037 | AX5: =AX$2*$F5*Main!$C$4*$E5+Main!$C$5*AX$2*$F5 -> 5171.615037 | AY5: =AY$2*$F5*Main!$C$4*$E5+Main!$C$5*AY$2*$F5 -> 5758.875601 | AZ5: =AZ$2*$F5*Main!$C$4*$E5+Main!$C$5*AZ$2*$F5 -> 5132.740042 | BA5: =BA$2*$F5*Main!$C$4*$E5+Main!$C$5*BA$2*$F5 -> 5841.588357 | BB5: =BB$2*$F5*Main!$C$4*$E5+Main!$C$5*BB$2*$F5 -> 6550.023107 | BC5: =BC$2*$F5*Main!$C$4*$E5+Main!$C$5*BC$2*$F5 -> 5197.255991 | BD5: =BD$2*$F5*Main!$C$4*$E5+Main!$C$5*BD$2*$F5 -> 5950.35563 | BE5: =BE$2*$F5*Main!$C$4*$E5+Main!$C$5*BE$2*$F5 -> 6703.455269 | BF5: =BF$2*$F5*Main!$C$4*$E5+Main!$C$5*BF$2*$F5 -> 5504.533878 | BG5: =BG$2*$F5*Main!$C$4*$E5+Main!$C$5*BG$2*$F5 -> 6240.263838 | BH5: =BH$2*$F5*Main!$C$4*$E5+Main!$C$5*BH$2*$F5 -> 6975.993798 | BI5: =BI$2*$F5*Main!$C$4*$E5+Main!$C$5*BI$2*$F5 -> 5318.016614 | BJ5: =BJ$2*$F5*Main!$C$4*$E5+Main!$C$5*BJ$2*$F5 -> 6107.923429 | BK5: =BK$2*$F5*Main!$C$4*$E5+Main!$C$5*BK$2*$F5 -> 6897.830244 | BL5: =BL$2*$F5*Main!$C$4*$E5+Main!$C$5*BL$2*$F5 -> 5382.119 | BM5: =BM$2*$F5*Main!$C$4*$E5+Main!$C$5*BM$2*$F5 -> 6216.690703 | BN5: =BN$2*$F5*Main!$C$4*$E5+Main!$C$5*BN$2*$F5 -> 7050.848842 | BO5: =BO$2*$F5*Main!$C$4*$E5+Main!$C$5*BO$2*$F5 -> 5689.396886 | BP5: =BP$2*$F5*Main!$C$4*$E5+Main!$C$5*BP$2*$F5 -> 6506.598911 | BQ5: =BQ$2*$F5*Main!$C$4*$E5+Main!$C$5*BQ$2*$F5 -> 7323.387371 | BR5: =BR$2*$F5*Main!$C$4*$E5+Main!$C$5*BR$2*$F5 -> 5974.342329 | BS5: =BS$2*$F5*Main!$C$4*$E5+Main!$C$5*BS$2*$F5 -> 6880.047002 | BT5: =BT$2*$F5*Main!$C$4*$E5+Main!$C$5*BT$2*$F5 -> 7785.751674 | BU5: =BU$2*$F5*Main!$C$4*$E5+Main!$C$5*BU$2*$F5 -> 6038.858278 | BV5: =BV$2*$F5*Main!$C$4*$E5+Main!$C$5*BV$2*$F5 -> 6988.814275 | BW5: =BW$2*$F5*Main!$C$4*$E5+Main!$C$5*BW$2*$F5 -> 7939.183836 | BX5: =BX$2*$F5*Main!$C$4*$E5+Main!$C$5*BX$2*$F5 -> 6346.136165 | BY5: =BY$2*$F5*Main!$C$4*$E5+Main!$C$5*BY$2*$F5 -> 7279.136047 | BZ5: =BZ$2*$F5*Main!$C$4*$E5+Main!$C$5*BZ$2*$F5 -> 8211.722365 | CA5: =CA$2*$F5*Main!$C$4*$E5+Main!$C$5*CA$2*$F5 -> 5179.059185 | CB5: =CB$2*$F5*Main!$C$4*$E5+Main!$C$5*CB$2*$F5 -> 5872.60564 | CC5: =CC$2*$F5*Main!$C$4*$E5+Main!$C$5*CC$2*$F5 -> 6565.738531 | CD5: =CD$2*$F5*Main!$C$4*$E5+Main!$C$5*CD$2*$F5 -> 5179.059185 | CE5: =CE$2*$F5*Main!$C$4*$E5+Main!$C$5*CE$2*$F5 -> 5938.36228 | CF5: =CF$2*$F5*Main!$C$4*$E5+Main!$C$5*CF$2*$F5 -> 6697.665376 | CG5: =CG$2*$F5*Main!$C$4*$E5+Main!$C$5*CG$2*$F5 -> 5506.601697 | CH5: =CH$2*$F5*Main!$C$4*$E5+Main!$C$5*CH$2*$F5 -> 6241.918093 | CI5: =CI$2*$F5*Main!$C$4*$E5+Main!$C$5*CI$2*$F5 -> 6976.820926 | CJ5: =CJ$2*$F5*Main!$C$4*$E5+Main!$C$5*CJ$2*$F5 -> 5424.716069 | CK5: =CK$2*$F5*Main!$C$4*$E5+Main!$C$5*CK$2*$F5 -> 6179.056399 | CL5: =CL$2*$F5*Main!$C$4*$E5+Main!$C$5*CL$2*$F5 -> 6933.396729 | CM5: =CM$2*$F5*Main!$C$4*$E5+Main!$C$5*CM$2*$F5 -> 5424.716069 | CN5: =CN$2*$F5*Main!$C$4*$E5+Main!$C$5*CN$2*$F5 -> 6244.81304 | CO5: =CO$2*$F5*Main!$C$4*$E5+Main!$C$5*CO$2*$F5 -> 7064.91001 | CP5: =CP$2*$F5*Main!$C$4*$E5+Main!$C$5*CP$2*$F5 -> 5752.258581 | CQ5: =CQ$2*$F5*Main!$C$4*$E5+Main!$C$5*CQ$2*$F5 -> 6548.368852 | CR5: =CR$2*$F5*Main!$C$4*$E5+Main!$C$5*CR$2*$F5 -> 7344.479124 | CS5: =CS$2*$F5*Main!$C$4*$E5+Main!$C$5*CS$2*$F5 -> 6287.410109 | CT5: =CT$2*$F5*Main!$C$4*$E5+Main!$C$5*CT$2*$F5 -> 7088.896709 | CU5: =CU$2*$F5*Main!$C$4*$E5+Main!$C$5*CU$2*$F5 -> 7890.38331 | CV5: =CV$2*$F5*Main!$C$4*$E5+Main!$C$5*CV$2*$F5 -> 6287.410109 | CW5: =CW$2*$F5*Main!$C$4*$E5+Main!$C$5*CW$2*$F5 -> 7154.65335 | CX5: =CX$2*$F5*Main!$C$4*$E5+Main!$C$5*CX$2*$F5 -> 8022.310155 | CY5: =CY$2*$F5*Main!$C$4*$E5+Main!$C$5*CY$2*$F5 -> 6614.95262 | CZ5: =CZ$2*$F5*Main!$C$4*$E5+Main!$C$5*CZ$2*$F5 -> 7458.209163 | DA5: =DA$2*$F5*Main!$C$4*$E5+Main!$C$5*DA$2*$F5 -> 8301.465705 | DB5: =DB$2*$F5*Main!$C$4*$E5+Main!$C$5*DB$2*$F5 -> 1978.902675 | DC5: =DC$2*$F5*Main!$C$4*$E5+Main!$C$5*DC$2*$F5 -> 2619.099403 | DD5: =DD$2*$F5*Main!$C$4*$E5+Main!$C$5*DD$2*$F5 -> 3258.882566 | DE5: =DE$2*$F5*Main!$C$4*$E5+Main!$C$5*DE$2*$F5 -> 3899.079294 | DF5: =DF$2*$F5*Main!$C$4*$E5+Main!$C$5*DF$2*$F5 -> 4539.276021 | DG5: =DG$2*$F5*Main!$C$4*$E5+Main!$C$5*DG$2*$F5 -> 2306.858751 | DH5: =DH$2*$F5*Main!$C$4*$E5+Main!$C$5*DH$2*$F5 -> 2881.298838 | DI5: =DI$2*$F5*Main!$C$4*$E5+Main!$C$5*DI$2*$F5 -> 3455.738924 | DJ5: =DJ$2*$F5*Main!$C$4*$E5+Main!$C$5*DJ$2*$F5 -> 4030.179011 | DK5: =DK$2*$F5*Main!$C$4*$E5+Main!$C$5*DK$2*$F5 -> 4604.619098 | DL5: =DL$2*$F5*Main!$C$4*$E5+Main!$C$5*DL$2*$F5 -> 2497.511652 | DM5: =DM$2*$F5*Main!$C$4*$E5+Main!$C$5*DM$2*$F5 -> 3099.246948 | DN5: =DN$2*$F5*Main!$C$4*$E5+Main!$C$5*DN$2*$F5 -> 3700.982244 | DO5: =DO$2*$F5*Main!$C$4*$E5+Main!$C$5*DO$2*$F5 -> 4303.131104 | DP5: =DP$2*$F5*Main!$C$4*$E5+Main!$C$5*DP$2*$F5 -> 4904.866401 | DQ5: =DQ$2*$F5*Main!$C$4*$E5+Main!$C$5*DQ$2*$F5 -> 2049.208517 | DR5: =DR$2*$F5*Main!$C$4*$E5+Main!$C$5*DR$2*$F5 -> 2724.144602 | DS5: =DS$2*$F5*Main!$C$4*$E5+Main!$C$5*DS$2*$F5 -> 3399.494251 | DT5: =DT$2*$F5*Main!$C$4*$E5+Main!$C$5*DT$2*$F5 -> 4074.430335 | DU5: =DU$2*$F5*Main!$C$4*$E5+Main!$C$5*DU$2*$F5 -> 4749.779984 | DV5: =DV$2*$F5*Main!$C$4*$E5+Main!$C$5*DV$2*$F5 -> 2377.164593 | DW5: =DW$2*$F5*Main!$C$4*$E5+Main!$C$5*DW$2*$F5 -> 2986.757601 | DX5: =DX$2*$F5*Main!$C$4*$E5+Main!$C$5*DX$2*$F5 -> 3595.937045 | DY5: =DY$2*$F5*Main!$C$4*$E5+Main!$C$5*DY$2*$F5 -> 4205.530053 | DZ5: =DZ$2*$F5*Main!$C$4*$E5+Main!$C$5*DZ$2*$F5 -> 4815.123061 | EA5: =EA$2*$F5*Main!$C$4*$E5+Main!$C$5*EA$2*$F5 -> 2567.40393 | EB5: =EB$2*$F5*Main!$C$4*$E5+Main!$C$5*EB$2*$F5 -> 3204.292148 | EC5: =EC$2*$F5*Main!$C$4*$E5+Main!$C$5*EC$2*$F5 -> 3841.180365 | ED5: =ED$2*$F5*Main!$C$4*$E5+Main!$C$5*ED$2*$F5 -> 4478.482146 | EE5: =EE$2*$F5*Main!$C$4*$E5+Main!$C$5*EE$2*$F5 -> 5115.370363 | EF5: =EF$2*$F5*Main!$C$4*$E5+Main!$C$5*EF$2*$F5 -> 2539.281594 | EG5: =EG$2*$F5*Main!$C$4*$E5+Main!$C$5*EG$2*$F5 -> 3289.072722 | EH5: =EH$2*$F5*Main!$C$4*$E5+Main!$C$5*EH$2*$F5 -> 4038.450287 | EI5: =EI$2*$F5*Main!$C$4*$E5+Main!$C$5*EI$2*$F5 -> 4788.241415 | EJ5: =EJ$2*$F5*Main!$C$4*$E5+Main!$C$5*EJ$2*$F5 -> 5538.032544 | EK5: =EK$2*$F5*Main!$C$4*$E5+Main!$C$5*EK$2*$F5 -> 2867.237669 | EL5: =EL$2*$F5*Main!$C$4*$E5+Main!$C$5*EL$2*$F5 -> 3551.272157 | EM5: =EM$2*$F5*Main!$C$4*$E5+Main!$C$5*EM$2*$F5 -> 4235.306645 | EN5: =EN$2*$F5*Main!$C$4*$E5+Main!$C$5*EN$2*$F5 -> 4919.341133 | EO5: =EO$2*$F5*Main!$C$4*$E5+Main!$C$5*EO$2*$F5 -> 5603.375621 | EP5: =EP$2*$F5*Main!$C$4*$E5+Main!$C$5*EP$2*$F5 -> 3057.477007 | EQ5: =EQ$2*$F5*Main!$C$4*$E5+Main!$C$5*EQ$2*$F5 -> 3769.220268 | ER5: =ER$2*$F5*Main!$C$4*$E5+Main!$C$5*ER$2*$F5 -> 4480.549965 | ES5: =ES$2*$F5*Main!$C$4*$E5+Main!$C$5*ES$2*$F5 -> 5191.879662 | ET5: =ET$2*$F5*Main!$C$4*$E5+Main!$C$5*ET$2*$F5 -> 5903.622923 | EU5: =EU$2*$F5*Main!$C$4*$E5+Main!$C$5*EU$2*$F5 -> 7258.871422 | EV5: =EV$2*$F5*Main!$C$4*$E5+Main!$C$5*EV$2*$F5 -> 7456.554908 | EW5: =EW$2*$F5*Main!$C$4*$E5+Main!$C$5*EW$2*$F5 -> 7712.137322 | EX5: =EX$2*$F5*Main!$C$4*$E5+Main!$C$5*EX$2*$F5 -> 7687.323495 | EY5: =EY$2*$F5*Main!$C$4*$E5+Main!$C$5*EY$2*$F5 -> 7885.420545 | EZ5: =EZ$2*$F5*Main!$C$4*$E5+Main!$C$5*EZ$2*$F5 -> 8140.589395 | FA5: =FA$2*$F5*Main!$C$4*$E5+Main!$C$5*FA$2*$F5 -> 8691.456347 | FB5: =FB$2*$F5*Main!$C$4*$E5+Main!$C$5*FB$2*$F5 -> 8889.553396 | FC5: =FC$2*$F5*Main!$C$4*$E5+Main!$C$5*FC$2*$F5 -> 9144.722247 | FD5: =IF($D5<100,(FD$2*(1+Main!$C$3)*$E5*Main!$C$4)+(FD$2*(1+Main!$C$3)*Main!$C$5),(FD$2*$E5*Main!$C$4)+(FD$2*Main!$C$5)) -> 196.1888788 | FE5: =IF($D5<100,(FE$2*(1+Main!$C$3)*$E5*Main!$C$4)+(FE$2*(1+Main!$C$3)*Main!$C$5),(FE$2*$E5*Main!$C$4)+(FE$2*Main!$C$5)) -> 214.4605588 | FF5: =IF($D5<100,(FF$2*(1+Main!$C$3)*$E5*Main!$C$4)+(FF$2*(1+Main!$C$3)*Main!$C$5),(FF$2*$E5*Main!$C$4)+(FF$2*Main!$C$5)) -> 215.9267193 | FG5: =IF($D5<100,(FG$2*(1+Main!$C$3)*$E5*Main!$C$4)+(FG$2*(1+Main!$C$3)*Main!$C$5),(FG$2*$E5*Main!$C$4)+(FG$2*Main!$C$5)) -> 233.0918631 | FH5: =IF($D5<100,(FH$2*(1+Main!$C$3)*$E5*Main!$C$4)+(FH$2*(1+Main!$C$3)*Main!$C$5),(FH$2*$E5*Main!$C$4)+(FH$2*Main!$C$5)) -> 314.4776049 | FI5: =IF($D5<100,(FI$2*(1+Main!$C$3)*$E5*Main!$C$4)+(FI$2*(1+Main!$C$3)*Main!$C$5),(FI$2*$E5*Main!$C$4)+(FI$2*Main!$C$5)) -> 88.84102993
A6: AK | B6: 11260 | C6: (Anchorage, Anchorage Municipality, Matanuska-Susitna Borough) | D6: 11260 | E6: 1.3162 | F6: =IF($D6<100,Main!$C$2*(1+Main!$C$3),Main!$C$2) -> 2989.97 | G6: =G$2*$F6*Main!$C$4*$E6+Main!$C$5*G$2*$F6 -> 2186.103159 | H6: =H$2*$F6*Main!$C$4*$E6+Main!$C$5*H$2*$F6 -> 2675.428965 | I6: =I$2*$F6*Main!$C$4*$E6+Main!$C$5*I$2*$F6 -> 3164.75477 | J6: =J$2*$F6*Main!$C$4*$E6+Main!$C$5*J$2*$F6 -> 3654.080576 | K6: =K$2*$F6*Main!$C$4*$E6+Main!$C$5*K$2*$F6 -> 4143.033135 | L6: =L$2*$F6*Main!$C$4*$E6+Main!$C$5*L$2*$F6 -> 2573.905991 | M6: =M$2*$F6*Main!$C$4*$E6+Main!$C$5*M$2*$F6 -> 2997.167214 | N6: =N$2*$F6*Main!$C$4*$E6+Main!$C$5*N$2*$F6 -> 3420.428437 | O6: =O$2*$F6*Main!$C$4*$E6+Main!$C$5*O$2*$F6 -> 3843.68966 | P6: =P$2*$F6*Main!$C$4*$E6+Main!$C$5*P$2*$F6 -> 4267.324129 | Q6: =Q$2*$F6*Main!$C$4*$E6+Main!$C$5*Q$2*$F6 -> 2784.416863 | R6: =R$2*$F6*Main!$C$4*$E6+Main!$C$5*R$2*$F6 -> 3221.114951 | S6: =S$2*$F6*Main!$C$4*$E6+Main!$C$5*S$2*$F6 -> 3657.813038 | T6: =T$2*$F6*Main!$C$4*$E6+Main!$C$5*T$2*$F6 -> 4094.511125 | U6: =U$2*$F6*Main!$C$4*$E6+Main!$C$5*U$2*$F6 -> 4531.209212 | V6: =V$2*$F6*Main!$C$4*$E6+Main!$C$5*V$2*$F6 -> 2311.513892 | W6: =W$2*$F6*Main!$C$4*$E6+Main!$C$5*W$2*$F6 -> 2809.051115 | X6: =X$2*$F6*Main!$C$4*$E6+Main!$C$5*X$2*$F6 -> 3306.961583 | Y6: =Y$2*$F6*Main!$C$4*$E6+Main!$C$5*Y$2*$F6 -> 3804.498806 | Z6: =Z$2*$F6*Main!$C$4*$E6+Main!$C$5*Z$2*$F6 -> 4302.036028 | AA6: =AA$2*$F6*Main!$C$4*$E6+Main!$C$5*AA$2*$F6 -> 2699.316723 | AB6: =AB$2*$F6*Main!$C$4*$E6+Main!$C$5*AB$2*$F6 -> 3131.16261 | AC6: =AC$2*$F6*Main!$C$4*$E6+Main!$C$5*AC$2*$F6 -> 3562.63525 | AD6: =AD$2*$F6*Main!$C$4*$E6+Main!$C$5*AD$2*$F6 -> 3994.481136 | AE6: =AE$2*$F6*Main!$C$4*$E6+Main!$C$5*AE$2*$F6 -> 4425.953776 | AF6: =AF$2*$F6*Main!$C$4*$E6+Main!$C$5*AF$2*$F6 -> 2909.827596 | AG6: =AG$2*$F6*Main!$C$4*$E6+Main!$C$5*AG$2*$F6 -> 3354.7371 | AH6: =AH$2*$F6*Main!$C$4*$E6+Main!$C$5*AH$2*$F6 -> 3800.019851 | AI6: =AI$2*$F6*Main!$C$4*$E6+Main!$C$5*AI$2*$F6 -> 4244.929355 | AJ6: =AJ$2*$F6*Main!$C$4*$E6+Main!$C$5*AJ$2*$F6 -> 4689.838859 | AK6: =AK$2*$F6*Main!$C$4*$E6+Main!$C$5*AK$2*$F6 -> 2479.474695 | AL6: =AL$2*$F6*Main!$C$4*$E6+Main!$C$5*AL$2*$F6 -> 3062.112057 | AM6: =AM$2*$F6*Main!$C$4*$E6+Main!$C$5*AM$2*$F6 -> 3644.74942 | AN6: =AN$2*$F6*Main!$C$4*$E6+Main!$C$5*AN$2*$F6 -> 4227.013536 | AO6: =AO$2*$F6*Main!$C$4*$E6+Main!$C$5*AO$2*$F6 -> 4809.650898 | AP6: =AP$2*$F6*Main!$C$4*$E6+Main!$C$5*AP$2*$F6 -> 2867.277526 | AQ6: =AQ$2*$F6*Main!$C$4*$E6+Main!$C$5*AQ$2*$F6 -> 3383.850306 | AR6: =AR$2*$F6*Main!$C$4*$E6+Main!$C$5*AR$2*$F6 -> 3900.423086 | AS6: =AS$2*$F6*Main!$C$4*$E6+Main!$C$5*AS$2*$F6 -> 4416.995866 | AT6: =AT$2*$F6*Main!$C$4*$E6+Main!$C$5*AT$2*$F6 -> 4933.568646 | AU6: =AU$2*$F6*Main!$C$4*$E6+Main!$C$5*AU$2*$F6 -> 3077.788399 | AV6: =AV$2*$F6*Main!$C$4*$E6+Main!$C$5*AV$2*$F6 -> 3607.798043 | AW6: =AW$2*$F6*Main!$C$4*$E6+Main!$C$5*AW$2*$F6 -> 4137.807687 | AX6: =AX$2*$F6*Main!$C$4*$E6+Main!$C$5*AX$2*$F6 -> 4667.444085 | AY6: =AY$2*$F6*Main!$C$4*$E6+Main!$C$5*AY$2*$F6 -> 5197.45373 | AZ6: =AZ$2*$F6*Main!$C$4*$E6+Main!$C$5*AZ$2*$F6 -> 4632.35894 | BA6: =BA$2*$F6*Main!$C$4*$E6+Main!$C$5*BA$2*$F6 -> 5272.102975 | BB6: =BB$2*$F6*Main!$C$4*$E6+Main!$C$5*BB$2*$F6 -> 5911.473765 | BC6: =BC$2*$F6*Main!$C$4*$E6+Main!$C$5*BC$2*$F6 -> 4690.585352 | BD6: =BD$2*$F6*Main!$C$4*$E6+Main!$C$5*BD$2*$F6 -> 5370.266733 | BE6: =BE$2*$F6*Main!$C$4*$E6+Main!$C$5*BE$2*$F6 -> 6049.948115 | BF6: =BF$2*$F6*Main!$C$4*$E6+Main!$C$5*BF$2*$F6 -> 4967.907299 | BG6: =BG$2*$F6*Main!$C$4*$E6+Main!$C$5*BG$2*$F6 -> 5631.91234 | BH6: =BH$2*$F6*Main!$C$4*$E6+Main!$C$5*BH$2*$F6 -> 6295.91738 | BI6: =BI$2*$F6*Main!$C$4*$E6+Main!$C$5*BI$2*$F6 -> 4799.57325 | BJ6: =BJ$2*$F6*Main!$C$4*$E6+Main!$C$5*BJ$2*$F6 -> 5512.473546 | BK6: =BK$2*$F6*Main!$C$4*$E6+Main!$C$5*BK$2*$F6 -> 6225.373843 | BL6: =BL$2*$F6*Main!$C$4*$E6+Main!$C$5*BL$2*$F6 -> 4857.426416 | BM6: =BM$2*$F6*Main!$C$4*$E6+Main!$C$5*BM$2*$F6 -> 5610.637305 | BN6: =BN$2*$F6*Main!$C$4*$E6+Main!$C$5*BN$2*$F6 -> 6363.474947 | BO6: =BO$2*$F6*Main!$C$4*$E6+Main!$C$5*BO$2*$F6 -> 5134.748363 | BP6: =BP$2*$F6*Main!$C$4*$E6+Main!$C$5*BP$2*$F6 -> 5872.282911 | BQ6: =BQ$2*$F6*Main!$C$4*$E6+Main!$C$5*BQ$2*$F6 -> 6609.444212 | BR6: =BR$2*$F6*Main!$C$4*$E6+Main!$C$5*BR$2*$F6 -> 5391.915015 | BS6: =BS$2*$F6*Main!$C$4*$E6+Main!$C$5*BS$2*$F6 -> 6209.324255 | BT6: =BT$2*$F6*Main!$C$4*$E6+Main!$C$5*BT$2*$F6 -> 7026.733495 | BU6: =BU$2*$F6*Main!$C$4*$E6+Main!$C$5*BU$2*$F6 -> 5450.141426 | BV6: =BV$2*$F6*Main!$C$4*$E6+Main!$C$5*BV$2*$F6 -> 6307.488013 | BW6: =BW$2*$F6*Main!$C$4*$E6+Main!$C$5*BW$2*$F6 -> 7165.207846 | BX6: =BX$2*$F6*Main!$C$4*$E6+Main!$C$5*BX$2*$F6 -> 5727.463374 | BY6: =BY$2*$F6*Main!$C$4*$E6+Main!$C$5*BY$2*$F6 -> 6569.506865 | BZ6: =BZ$2*$F6*Main!$C$4*$E6+Main!$C$5*BZ$2*$F6 -> 7411.17711 | CA6: =CA$2*$F6*Main!$C$4*$E6+Main!$C$5*CA$2*$F6 -> 4674.162518 | CB6: =CB$2*$F6*Main!$C$4*$E6+Main!$C$5*CB$2*$F6 -> 5300.096443 | CC6: =CC$2*$F6*Main!$C$4*$E6+Main!$C$5*CC$2*$F6 -> 5925.657121 | CD6: =CD$2*$F6*Main!$C$4*$E6+Main!$C$5*CD$2*$F6 -> 4674.162518 | CE6: =CE$2*$F6*Main!$C$4*$E6+Main!$C$5*CE$2*$F6 -> 5359.442593 | CF6: =CF$2*$F6*Main!$C$4*$E6+Main!$C$5*CF$2*$F6 -> 6044.722668 | CG6: =CG$2*$F6*Main!$C$4*$E6+Main!$C$5*CG$2*$F6 -> 4969.77353 | CH6: =CH$2*$F6*Main!$C$4*$E6+Main!$C$5*CH$2*$F6 -> 5633.405324 | CI6: =CI$2*$F6*Main!$C$4*$E6+Main!$C$5*CI$2*$F6 -> 6296.663872 | CJ6: =CJ$2*$F6*Main!$C$4*$E6+Main!$C$5*CJ$2*$F6 -> 4895.870777 | CK6: =CK$2*$F6*Main!$C$4*$E6+Main!$C$5*CK$2*$F6 -> 5576.671898 | CL6: =CL$2*$F6*Main!$C$4*$E6+Main!$C$5*CL$2*$F6 -> 6257.473018 | CM6: =CM$2*$F6*Main!$C$4*$E6+Main!$C$5*CM$2*$F6 -> 4895.870777 | CN6: =CN$2*$F6*Main!$C$4*$E6+Main!$C$5*CN$2*$F6 -> 5636.018048 | CO6: =CO$2*$F6*Main!$C$4*$E6+Main!$C$5*CO$2*$F6 -> 6376.165319 | CP6: =CP$2*$F6*Main!$C$4*$E6+Main!$C$5*CP$2*$F6 -> 5191.48179 | CQ6: =CQ$2*$F6*Main!$C$4*$E6+Main!$C$5*CQ$2*$F6 -> 5909.98078 | CR6: =CR$2*$F6*Main!$C$4*$E6+Main!$C$5*CR$2*$F6 -> 6628.479769 | CS6: =CS$2*$F6*Main!$C$4*$E6+Main!$C$5*CS$2*$F6 -> 5674.46241 | CT6: =CT$2*$F6*Main!$C$4*$E6+Main!$C$5*CT$2*$F6 -> 6397.8136 | CU6: =CU$2*$F6*Main!$C$4*$E6+Main!$C$5*CU$2*$F6 -> 7121.164791 | CV6: =CV$2*$F6*Main!$C$4*$E6+Main!$C$5*CV$2*$F6 -> 5674.46241 | CW6: =CW$2*$F6*Main!$C$4*$E6+Main!$C$5*CW$2*$F6 -> 6457.15975 | CX6: =CX$2*$F6*Main!$C$4*$E6+Main!$C$5*CX$2*$F6 -> 7240.230337 | CY6: =CY$2*$F6*Main!$C$4*$E6+Main!$C$5*CY$2*$F6 -> 5970.073422 | CZ6: =CZ$2*$F6*Main!$C$4*$E6+Main!$C$5*CZ$2*$F6 -> 6731.122482 | DA6: =DA$2*$F6*Main!$C$4*$E6+Main!$C$5*DA$2*$F6 -> 7492.171542 | DB6: =DB$2*$F6*Main!$C$4*$E6+Main!$C$5*DB$2*$F6 -> 1785.983203 | DC6: =DC$2*$F6*Main!$C$4*$E6+Main!$C$5*DC$2*$F6 -> 2363.768364 | DD6: =DD$2*$F6*Main!$C$4*$E6+Main!$C$5*DD$2*$F6 -> 2941.180279 | DE6: =DE$2*$F6*Main!$C$4*$E6+Main!$C$5*DE$2*$F6 -> 3518.965441 | DF6: =DF$2*$F6*Main!$C$4*$E6+Main!$C$5*DF$2*$F6 -> 4096.750602 | DG6: =DG$2*$F6*Main!$C$4*$E6+Main!$C$5*DG$2*$F6 -> 2081.967462 | DH6: =DH$2*$F6*Main!$C$4*$E6+Main!$C$5*DH$2*$F6 -> 2600.406473 | DI6: =DI$2*$F6*Main!$C$4*$E6+Main!$C$5*DI$2*$F6 -> 3118.845484 | DJ6: =DJ$2*$F6*Main!$C$4*$E6+Main!$C$5*DJ$2*$F6 -> 3637.284495 | DK6: =DK$2*$F6*Main!$C$4*$E6+Main!$C$5*DK$2*$F6 -> 4155.723506 | DL6: =DL$2*$F6*Main!$C$4*$E6+Main!$C$5*DL$2*$F6 -> 2254.033973 | DM6: =DM$2*$F6*Main!$C$4*$E6+Main!$C$5*DM$2*$F6 -> 2797.107235 | DN6: =DN$2*$F6*Main!$C$4*$E6+Main!$C$5*DN$2*$F6 -> 3340.180497 | DO6: =DO$2*$F6*Main!$C$4*$E6+Main!$C$5*DO$2*$F6 -> 3883.627006 | DP6: =DP$2*$F6*Main!$C$4*$E6+Main!$C$5*DP$2*$F6 -> 4426.700268 | DQ6: =DQ$2*$F6*Main!$C$4*$E6+Main!$C$5*DQ$2*$F6 -> 1849.435061 | DR6: =DR$2*$F6*Main!$C$4*$E6+Main!$C$5*DR$2*$F6 -> 2458.572906 | DS6: =DS$2*$F6*Main!$C$4*$E6+Main!$C$5*DS$2*$F6 -> 3068.083997 | DT6: =DT$2*$F6*Main!$C$4*$E6+Main!$C$5*DT$2*$F6 -> 3677.221842 | DU6: =DU$2*$F6*Main!$C$4*$E6+Main!$C$5*DU$2*$F6 -> 4286.732933 | DV6: =DV$2*$F6*Main!$C$4*$E6+Main!$C$5*DV$2*$F6 -> 2145.419321 | DW6: =DW$2*$F6*Main!$C$4*$E6+Main!$C$5*DW$2*$F6 -> 2695.584261 | DX6: =DX$2*$F6*Main!$C$4*$E6+Main!$C$5*DX$2*$F6 -> 3245.375955 | DY6: =DY$2*$F6*Main!$C$4*$E6+Main!$C$5*DY$2*$F6 -> 3795.540896 | DZ6: =DZ$2*$F6*Main!$C$4*$E6+Main!$C$5*DZ$2*$F6 -> 4345.705837 | EA6: =EA$2*$F6*Main!$C$4*$E6+Main!$C$5*EA$2*$F6 -> 2317.112586 | EB6: =EB$2*$F6*Main!$C$4*$E6+Main!$C$5*EB$2*$F6 -> 2891.911777 | EC6: =EC$2*$F6*Main!$C$4*$E6+Main!$C$5*EC$2*$F6 -> 3466.710969 | ED6: =ED$2*$F6*Main!$C$4*$E6+Main!$C$5*ED$2*$F6 -> 4041.883407 | EE6: =EE$2*$F6*Main!$C$4*$E6+Main!$C$5*EE$2*$F6 -> 4616.682598 | EF6: =EF$2*$F6*Main!$C$4*$E6+Main!$C$5*EF$2*$F6 -> 2291.731842 | EG6: =EG$2*$F6*Main!$C$4*$E6+Main!$C$5*EG$2*$F6 -> 2968.427254 | EH6: =EH$2*$F6*Main!$C$4*$E6+Main!$C$5*EH$2*$F6 -> 3644.74942 | EI6: =EI$2*$F6*Main!$C$4*$E6+Main!$C$5*EI$2*$F6 -> 4321.444832 | EJ6: =EJ$2*$F6*Main!$C$4*$E6+Main!$C$5*EJ$2*$F6 -> 4998.140244 | EK6: =EK$2*$F6*Main!$C$4*$E6+Main!$C$5*EK$2*$F6 -> 2587.716101 | EL6: =EL$2*$F6*Main!$C$4*$E6+Main!$C$5*EL$2*$F6 -> 3205.065363 | EM6: =EM$2*$F6*Main!$C$4*$E6+Main!$C$5*EM$2*$F6 -> 3822.414625 | EN6: =EN$2*$F6*Main!$C$4*$E6+Main!$C$5*EN$2*$F6 -> 4439.763886 | EO6: =EO$2*$F6*Main!$C$4*$E6+Main!$C$5*EO$2*$F6 -> 5057.113148 | EP6: =EP$2*$F6*Main!$C$4*$E6+Main!$C$5*EP$2*$F6 -> 2759.409366 | EQ6: =EQ$2*$F6*Main!$C$4*$E6+Main!$C$5*EQ$2*$F6 -> 3401.766125 | ER6: =ER$2*$F6*Main!$C$4*$E6+Main!$C$5*ER$2*$F6 -> 4043.749638 | ES6: =ES$2*$F6*Main!$C$4*$E6+Main!$C$5*ES$2*$F6 -> 4685.733151 | ET6: =ET$2*$F6*Main!$C$4*$E6+Main!$C$5*ET$2*$F6 -> 5328.08991 | EU6: =EU$2*$F6*Main!$C$4*$E6+Main!$C$5*EU$2*$F6 -> 6551.2178 | EV6: =EV$2*$F6*Main!$C$4*$E6+Main!$C$5*EV$2*$F6 -> 6729.629497 | EW6: =EW$2*$F6*Main!$C$4*$E6+Main!$C$5*EW$2*$F6 -> 6960.295666 | EX6: =EX$2*$F6*Main!$C$4*$E6+Main!$C$5*EX$2*$F6 -> 6937.900893 | EY6: =EY$2*$F6*Main!$C$4*$E6+Main!$C$5*EY$2*$F6 -> 7116.685836 | EZ6: =EZ$2*$F6*Main!$C$4*$E6+Main!$C$5*EZ$2*$F6 -> 7346.978759 | FA6: =FA$2*$F6*Main!$C$4*$E6+Main!$C$5*FA$2*$F6 -> 7844.142735 | FB6: =FB$2*$F6*Main!$C$4*$E6+Main!$C$5*FB$2*$F6 -> 8022.927678 | FC6: =FC$2*$F6*Main!$C$4*$E6+Main!$C$5*FC$2*$F6 -> 8253.220601 | FD6: =IF($D6<100,(FD$2*(1+Main!$C$3)*$E6*Main!$C$4)+(FD$2*(1+Main!$C$3)*Main!$C$5),(FD$2*$E6*Main!$C$4)+(FD$2*Main!$C$5)) -> 177.0627967 | FE6: =IF($D6<100,(FE$2*(1+Main!$C$3)*$E6*Main!$C$4)+(FE$2*(1+Main!$C$3)*Main!$C$5),(FE$2*$E6*Main!$C$4)+(FE$2*Main!$C$5)) -> 193.5532052 | FF6: =IF($D6<100,(FF$2*(1+Main!$C$3)*$E6*Main!$C$4)+(FF$2*(1+Main!$C$3)*Main!$C$5),(FF$2*$E6*Main!$C$4)+(FF$2*Main!$C$5)) -> 194.8764326 | FG6: =IF($D6<100,(FG$2*(1+Main!$C$3)*$E6*Main!$C$4)+(FG$2*(1+Main!$C$3)*Main!$C$5),(FG$2*$E6*Main!$C$4)+(FG$2*Main!$C$5)) -> 210.3681789 | FH6: =IF($D6<100,(FH$2*(1+Main!$C$3)*$E6*Main!$C$4)+(FH$2*(1+Main!$C$3)*Main!$C$5),(FH$2*$E6*Main!$C$4)+(FH$2*Main!$C$5)) -> 283.8197791 | FI6: =IF($D6<100,(FI$2*(1+Main!$C$3)*$E6*Main!$C$4)+(FI$2*(1+Main!$C$3)*Main!$C$5),(FI$2*$E6*Main!$C$4)+(FI$2*Main!$C$5)) -> 80.18008624
A7: AK | B7: 21820 | C7: (Fairbanks, Fairbanks North Star Borough) | D7: 21820 | E7: 1.0667 | F7: =IF($D7<100,Main!$C$2*(1+Main!$C$3),Main!$C$2) -> 2989.97 | G7: =G$2*$F7*Main!$C$4*$E7+Main!$C$5*G$2*$F7 -> 1842.959599 | H7: =H$2*$F7*Main!$C$4*$E7+Main!$C$5*H$2*$F7 -> 2255.477959 | I7: =I$2*$F7*Main!$C$4*$E7+Main!$C$5*I$2*$F7 -> 2667.996319 | J7: =J$2*$F7*Main!$C$4*$E7+Main!$C$5*J$2*$F7 -> 3080.514679 | K7: =K$2*$F7*Main!$C$4*$E7+Main!$C$5*K$2*$F7 -> 3492.71838 | L7: =L$2*$F7*Main!$C$4*$E7+Main!$C$5*L$2*$F7 -> 2169.890626 | M7: =M$2*$F7*Main!$C$4*$E7+Main!$C$5*M$2*$F7 -> 2526.714287 | N7: =N$2*$F7*Main!$C$4*$E7+Main!$C$5*N$2*$F7 -> 2883.537949 | O7: =O$2*$F7*Main!$C$4*$E7+Main!$C$5*O$2*$F7 -> 3240.36161 | P7: =P$2*$F7*Main!$C$4*$E7+Main!$C$5*P$2*$F7 -> 3597.499931 | Q7: =Q$2*$F7*Main!$C$4*$E7+Main!$C$5*Q$2*$F7 -> 2347.358479 | R7: =R$2*$F7*Main!$C$4*$E7+Main!$C$5*R$2*$F7 -> 2715.509876 | S7: =S$2*$F7*Main!$C$4*$E7+Main!$C$5*S$2*$F7 -> 3083.661272 | T7: =T$2*$F7*Main!$C$4*$E7+Main!$C$5*T$2*$F7 -> 3451.812669 | U7: =U$2*$F7*Main!$C$4*$E7+Main!$C$5*U$2*$F7 -> 3819.964066 | V7: =V$2*$F7*Main!$C$4*$E7+Main!$C$5*V$2*$F7 -> 1948.685129 | W7: =W$2*$F7*Main!$C$4*$E7+Main!$C$5*W$2*$F7 -> 2368.125993 | X7: =X$2*$F7*Main!$C$4*$E7+Main!$C$5*X$2*$F7 -> 2787.881518 | Y7: =Y$2*$F7*Main!$C$4*$E7+Main!$C$5*Y$2*$F7 -> 3207.322383 | Z7: =Z$2*$F7*Main!$C$4*$E7+Main!$C$5*Z$2*$F7 -> 3626.763247 | AA7: =AA$2*$F7*Main!$C$4*$E7+Main!$C$5*AA$2*$F7 -> 2275.616155 | AB7: =AB$2*$F7*Main!$C$4*$E7+Main!$C$5*AB$2*$F7 -> 2639.676981 | AC7: =AC$2*$F7*Main!$C$4*$E7+Main!$C$5*AC$2*$F7 -> 3003.423147 | AD7: =AD$2*$F7*Main!$C$4*$E7+Main!$C$5*AD$2*$F7 -> 3367.483973 | AE7: =AE$2*$F7*Main!$C$4*$E7+Main!$C$5*AE$2*$F7 -> 3731.23014 | AF7: =AF$2*$F7*Main!$C$4*$E7+Main!$C$5*AF$2*$F7 -> 2453.084008 | AG7: =AG$2*$F7*Main!$C$4*$E7+Main!$C$5*AG$2*$F7 -> 2828.15791 | AH7: =AH$2*$F7*Main!$C$4*$E7+Main!$C$5*AH$2*$F7 -> 3203.546471 | AI7: =AI$2*$F7*Main!$C$4*$E7+Main!$C$5*AI$2*$F7 -> 3578.620373 | AJ7: =AJ$2*$F7*Main!$C$4*$E7+Main!$C$5*AJ$2*$F7 -> 3953.694274 | AK7: =AK$2*$F7*Main!$C$4*$E7+Main!$C$5*AK$2*$F7 -> 2090.28182 | AL7: =AL$2*$F7*Main!$C$4*$E7+Main!$C$5*AL$2*$F7 -> 2581.465008 | AM7: =AM$2*$F7*Main!$C$4*$E7+Main!$C$5*AM$2*$F7 -> 3072.648196 | AN7: =AN$2*$F7*Main!$C$4*$E7+Main!$C$5*AN$2*$F7 -> 3563.516725 | AO7: =AO$2*$F7*Main!$C$4*$E7+Main!$C$5*AO$2*$F7 -> 4054.699914 | AP7: =AP$2*$F7*Main!$C$4*$E7+Main!$C$5*AP$2*$F7 -> 2417.212846 | AQ7: =AQ$2*$F7*Main!$C$4*$E7+Main!$C$5*AQ$2*$F7 -> 2852.701336 | AR7: =AR$2*$F7*Main!$C$4*$E7+Main!$C$5*AR$2*$F7 -> 3288.189826 | AS7: =AS$2*$F7*Main!$C$4*$E7+Main!$C$5*AS$2*$F7 -> 3723.678316 | AT7: =AT$2*$F7*Main!$C$4*$E7+Main!$C$5*AT$2*$F7 -> 4159.166806 | AU7: =AU$2*$F7*Main!$C$4*$E7+Main!$C$5*AU$2*$F7 -> 2594.680699 | AV7: =AV$2*$F7*Main!$C$4*$E7+Main!$C$5*AV$2*$F7 -> 3041.496924 | AW7: =AW$2*$F7*Main!$C$4*$E7+Main!$C$5*AW$2*$F7 -> 3488.31315 | AX7: =AX$2*$F7*Main!$C$4*$E7+Main!$C$5*AX$2*$F7 -> 3934.814715 | AY7: =AY$2*$F7*Main!$C$4*$E7+Main!$C$5*AY$2*$F7 -> 4381.630941 | AZ7: =AZ$2*$F7*Main!$C$4*$E7+Main!$C$5*AZ$2*$F7 -> 3905.23674 | BA7: =BA$2*$F7*Main!$C$4*$E7+Main!$C$5*BA$2*$F7 -> 4444.562803 | BB7: =BB$2*$F7*Main!$C$4*$E7+Main!$C$5*BB$2*$F7 -> 4983.574207 | BC7: =BC$2*$F7*Main!$C$4*$E7+Main!$C$5*BC$2*$F7 -> 3954.323593 | BD7: =BD$2*$F7*Main!$C$4*$E7+Main!$C$5*BD$2*$F7 -> 4527.318203 | BE7: =BE$2*$F7*Main!$C$4*$E7+Main!$C$5*BE$2*$F7 -> 5100.312813 | BF7: =BF$2*$F7*Main!$C$4*$E7+Main!$C$5*BF$2*$F7 -> 4188.115463 | BG7: =BG$2*$F7*Main!$C$4*$E7+Main!$C$5*BG$2*$F7 -> 4747.894381 | BH7: =BH$2*$F7*Main!$C$4*$E7+Main!$C$5*BH$2*$F7 -> 5307.6733 | BI7: =BI$2*$F7*Main!$C$4*$E7+Main!$C$5*BI$2*$F7 -> 4046.204112 | BJ7: =BJ$2*$F7*Main!$C$4*$E7+Main!$C$5*BJ$2*$F7 -> 4647.203401 | BK7: =BK$2*$F7*Main!$C$4*$E7+Main!$C$5*BK$2*$F7 -> 5248.20269 | BL7: =BL$2*$F7*Main!$C$4*$E7+Main!$C$5*BL$2*$F7 -> 4094.976306 | BM7: =BM$2*$F7*Main!$C$4*$E7+Main!$C$5*BM$2*$F7 -> 4729.958801 | BN7: =BN$2*$F7*Main!$C$4*$E7+Main!$C$5*BN$2*$F7 -> 5364.626636 | BO7: =BO$2*$F7*Main!$C$4*$E7+Main!$C$5*BO$2*$F7 -> 4328.768176 | BP7: =BP$2*$F7*Main!$C$4*$E7+Main!$C$5*BP$2*$F7 -> 4950.534979 | BQ7: =BQ$2*$F7*Main!$C$4*$E7+Main!$C$5*BQ$2*$F7 -> 5571.987124 | BR7: =BR$2*$F7*Main!$C$4*$E7+Main!$C$5*BR$2*$F7 -> 4545.568443 | BS7: =BS$2*$F7*Main!$C$4*$E7+Main!$C$5*BS$2*$F7 -> 5234.672339 | BT7: =BT$2*$F7*Main!$C$4*$E7+Main!$C$5*BT$2*$F7 -> 5923.776236 | BU7: =BU$2*$F7*Main!$C$4*$E7+Main!$C$5*BU$2*$F7 -> 4594.655296 | BV7: =BV$2*$F7*Main!$C$4*$E7+Main!$C$5*BV$2*$F7 -> 5317.427739 | BW7: =BW$2*$F7*Main!$C$4*$E7+Main!$C$5*BW$2*$F7 -> 6040.514841 | BX7: =BX$2*$F7*Main!$C$4*$E7+Main!$C$5*BX$2*$F7 -> 4828.447166 | BY7: =BY$2*$F7*Main!$C$4*$E7+Main!$C$5*BY$2*$F7 -> 5538.318577 | BZ7: =BZ$2*$F7*Main!$C$4*$E7+Main!$C$5*BZ$2*$F7 -> 6247.875329 | CA7: =CA$2*$F7*Main!$C$4*$E7+Main!$C$5*CA$2*$F7 -> 3940.478583 | CB7: =CB$2*$F7*Main!$C$4*$E7+Main!$C$5*CB$2*$F7 -> 4468.162252 | CC7: =CC$2*$F7*Main!$C$4*$E7+Main!$C$5*CC$2*$F7 -> 4995.531261 | CD7: =CD$2*$F7*Main!$C$4*$E7+Main!$C$5*CD$2*$F7 -> 3940.478583 | CE7: =CE$2*$F7*Main!$C$4*$E7+Main!$C$5*CE$2*$F7 -> 4518.193083 | CF7: =CF$2*$F7*Main!$C$4*$E7+Main!$C$5*CF$2*$F7 -> 5095.907582 | CG7: =CG$2*$F7*Main!$C$4*$E7+Main!$C$5*CG$2*$F7 -> 4189.688759 | CH7: =CH$2*$F7*Main!$C$4*$E7+Main!$C$5*CH$2*$F7 -> 4749.153019 | CI7: =CI$2*$F7*Main!$C$4*$E7+Main!$C$5*CI$2*$F7 -> 5308.302619 | CJ7: =CJ$2*$F7*Main!$C$4*$E7+Main!$C$5*CJ$2*$F7 -> 4127.386215 | CK7: =CK$2*$F7*Main!$C$4*$E7+Main!$C$5*CK$2*$F7 -> 4701.324803 | CL7: =CL$2*$F7*Main!$C$4*$E7+Main!$C$5*CL$2*$F7 -> 5275.263391 | CM7: =CM$2*$F7*Main!$C$4*$E7+Main!$C$5*CM$2*$F7 -> 4127.386215 | CN7: =CN$2*$F7*Main!$C$4*$E7+Main!$C$5*CN$2*$F7 -> 4751.355634 | CO7: =CO$2*$F7*Main!$C$4*$E7+Main!$C$5*CO$2*$F7 -> 5375.325053 | CP7: =CP$2*$F7*Main!$C$4*$E7+Main!$C$5*CP$2*$F7 -> 4376.596392 | CQ7: =CQ$2*$F7*Main!$C$4*$E7+Main!$C$5*CQ$2*$F7 -> 4982.31557 | CR7: =CR$2*$F7*Main!$C$4*$E7+Main!$C$5*CR$2*$F7 -> 5588.034749 | CS7: =CS$2*$F7*Main!$C$4*$E7+Main!$C$5*CS$2*$F7 -> 4783.765543 | CT7: =CT$2*$F7*Main!$C$4*$E7+Main!$C$5*CT$2*$F7 -> 5393.575293 | CU7: =CU$2*$F7*Main!$C$4*$E7+Main!$C$5*CU$2*$F7 -> 6003.385042 | CV7: =CV$2*$F7*Main!$C$4*$E7+Main!$C$5*CV$2*$F7 -> 4783.765543 | CW7: =CW$2*$F7*Main!$C$4*$E7+Main!$C$5*CW$2*$F7 -> 5443.606124 | CX7: =CX$2*$F7*Main!$C$4*$E7+Main!$C$5*CX$2*$F7 -> 6103.761363 | CY7: =CY$2*$F7*Main!$C$4*$E7+Main!$C$5*CY$2*$F7 -> 5032.97572 | CZ7: =CZ$2*$F7*Main!$C$4*$E7+Main!$C$5*CZ$2*$F7 -> 5674.56606 | DA7: =DA$2*$F7*Main!$C$4*$E7+Main!$C$5*DA$2*$F7 -> 6316.1564 | DB7: =DB$2*$F7*Main!$C$4*$E7+Main!$C$5*DB$2*$F7 -> 1505.644815 | DC7: =DC$2*$F7*Main!$C$4*$E7+Main!$C$5*DC$2*$F7 -> 1992.737432 | DD7: =DD$2*$F7*Main!$C$4*$E7+Main!$C$5*DD$2*$F7 -> 2479.51539 | DE7: =DE$2*$F7*Main!$C$4*$E7+Main!$C$5*DE$2*$F7 -> 2966.608008 | DF7: =DF$2*$F7*Main!$C$4*$E7+Main!$C$5*DF$2*$F7 -> 3453.700625 | DG7: =DG$2*$F7*Main!$C$4*$E7+Main!$C$5*DG$2*$F7 -> 1755.169651 | DH7: =DH$2*$F7*Main!$C$4*$E7+Main!$C$5*DH$2*$F7 -> 2192.231437 | DI7: =DI$2*$F7*Main!$C$4*$E7+Main!$C$5*DI$2*$F7 -> 2629.293224 | DJ7: =DJ$2*$F7*Main!$C$4*$E7+Main!$C$5*DJ$2*$F7 -> 3066.35501 | DK7: =DK$2*$F7*Main!$C$4*$E7+Main!$C$5*DK$2*$F7 -> 3503.416797 | DL7: =DL$2*$F7*Main!$C$4*$E7+Main!$C$5*DL$2*$F7 -> 1900.227594 | DM7: =DM$2*$F7*Main!$C$4*$E7+Main!$C$5*DM$2*$F7 -> 2358.056895 | DN7: =DN$2*$F7*Main!$C$4*$E7+Main!$C$5*DN$2*$F7 -> 2815.886197 | DO7: =DO$2*$F7*Main!$C$4*$E7+Main!$C$5*DO$2*$F7 -> 3274.030157 | DP7: =DP$2*$F7*Main!$C$4*$E7+Main!$C$5*DP$2*$F7 -> 3731.859458 | DQ7: =DQ$2*$F7*Main!$C$4*$E7+Main!$C$5*DQ$2*$F7 -> 1559.136898 | DR7: =DR$2*$F7*Main!$C$4*$E7+Main!$C$5*DR$2*$F7 -> 2072.660898 | DS7: =DS$2*$F7*Main!$C$4*$E7+Main!$C$5*DS$2*$F7 -> 2586.499557 | DT7: =DT$2*$F7*Main!$C$4*$E7+Main!$C$5*DT$2*$F7 -> 3100.023557 | DU7: =DU$2*$F7*Main!$C$4*$E7+Main!$C$5*DU$2*$F7 -> 3613.862216 | DV7: =DV$2*$F7*Main!$C$4*$E7+Main!$C$5*DV$2*$F7 -> 1808.661734 | DW7: =DW$2*$F7*Main!$C$4*$E7+Main!$C$5*DW$2*$F7 -> 2272.469562 | DX7: =DX$2*$F7*Main!$C$4*$E7+Main!$C$5*DX$2*$F7 -> 2735.962731 | DY7: =DY$2*$F7*Main!$C$4*$E7+Main!$C$5*DY$2*$F7 -> 3199.770559 | DZ7: =DZ$2*$F7*Main!$C$4*$E7+Main!$C$5*DZ$2*$F7 -> 3663.578387 | EA7: =EA$2*$F7*Main!$C$4*$E7+Main!$C$5*EA$2*$F7 -> 1953.405018 | EB7: =EB$2*$F7*Main!$C$4*$E7+Main!$C$5*EB$2*$F7 -> 2437.980361 | EC7: =EC$2*$F7*Main!$C$4*$E7+Main!$C$5*EC$2*$F7 -> 2922.555704 | ED7: =ED$2*$F7*Main!$C$4*$E7+Main!$C$5*ED$2*$F7 -> 3407.445706 | EE7: =EE$2*$F7*Main!$C$4*$E7+Main!$C$5*EE$2*$F7 -> 3892.021049 | EF7: =EF$2*$F7*Main!$C$4*$E7+Main!$C$5*EF$2*$F7 -> 1932.008185 | EG7: =EG$2*$F7*Main!$C$4*$E7+Main!$C$5*EG$2*$F7 -> 2502.48552 | EH7: =EH$2*$F7*Main!$C$4*$E7+Main!$C$5*EH$2*$F7 -> 3072.648196 | EI7: =EI$2*$F7*Main!$C$4*$E7+Main!$C$5*EI$2*$F7 -> 3643.125532 | EJ7: =EJ$2*$F7*Main!$C$4*$E7+Main!$C$5*EJ$2*$F7 -> 4213.602867 | EK7: =EK$2*$F7*Main!$C$4*$E7+Main!$C$5*EK$2*$F7 -> 2181.533021 | EL7: =EL$2*$F7*Main!$C$4*$E7+Main!$C$5*EL$2*$F7 -> 2701.979525 | EM7: =EM$2*$F7*Main!$C$4*$E7+Main!$C$5*EM$2*$F7 -> 3222.42603 | EN7: =EN$2*$F7*Main!$C$4*$E7+Main!$C$5*EN$2*$F7 -> 3742.872534 | EO7: =EO$2*$F7*Main!$C$4*$E7+Main!$C$5*EO$2*$F7 -> 4263.319039 | EP7: =EP$2*$F7*Main!$C$4*$E7+Main!$C$5*EP$2*$F7 -> 2326.276305 | EQ7: =EQ$2*$F7*Main!$C$4*$E7+Main!$C$5*EQ$2*$F7 -> 2867.804983 | ER7: =ER$2*$F7*Main!$C$4*$E7+Main!$C$5*ER$2*$F7 -> 3409.019003 | ES7: =ES$2*$F7*Main!$C$4*$E7+Main!$C$5*ES$2*$F7 -> 3950.233022 | ET7: =ET$2*$F7*Main!$C$4*$E7+Main!$C$5*ET$2*$F7 -> 4491.7617 | EU7: =EU$2*$F7*Main!$C$4*$E7+Main!$C$5*EU$2*$F7 -> 5522.900271 | EV7: =EV$2*$F7*Main!$C$4*$E7+Main!$C$5*EV$2*$F7 -> 5673.307423 | EW7: =EW$2*$F7*Main!$C$4*$E7+Main!$C$5*EW$2*$F7 -> 5867.766878 | EX7: =EX$2*$F7*Main!$C$4*$E7+Main!$C$5*EX$2*$F7 -> 5848.887319 | EY7: =EY$2*$F7*Main!$C$4*$E7+Main!$C$5*EY$2*$F7 -> 5999.609131 | EZ7: =EZ$2*$F7*Main!$C$4*$E7+Main!$C$5*EZ$2*$F7 -> 6193.753927 | FA7: =FA$2*$F7*Main!$C$4*$E7+Main!$C$5*FA$2*$F7 -> 6612.880133 | FB7: =FB$2*$F7*Main!$C$4*$E7+Main!$C$5*FB$2*$F7 -> 6763.601944 | FC7: =FC$2*$F7*Main!$C$4*$E7+Main!$C$5*FC$2*$F7 -> 6957.74674 | FD7: =IF($D7<100,(FD$2*(1+Main!$C$3)*$E7*Main!$C$4)+(FD$2*(1+Main!$C$3)*Main!$C$5),(FD$2*$E7*Main!$C$4)+(FD$2*Main!$C$5)) -> 149.2699827 | FE7: =IF($D7<100,(FE$2*(1+Main!$C$3)*$E7*Main!$C$4)+(FE$2*(1+Main!$C$3)*Main!$C$5),(FE$2*$E7*Main!$C$4)+(FE$2*Main!$C$5)) -> 163.1719601 | FF7: =IF($D7<100,(FF$2*(1+Main!$C$3)*$E7*Main!$C$4)+(FF$2*(1+Main!$C$3)*Main!$C$5),(FF$2*$E7*Main!$C$4)+(FF$2*Main!$C$5)) -> 164.2874859 | FG7: =IF($D7<100,(FG$2*(1+Main!$C$3)*$E7*Main!$C$4)+(FG$2*(1+Main!$C$3)*Main!$C$5),(FG$2*$E7*Main!$C$4)+(FG$2*Main!$C$5)) -> 177.347557 | FH7: =IF($D7<100,(FH$2*(1+Main!$C$3)*$E7*Main!$C$4)+(FH$2*(1+Main!$C$3)*Main!$C$5),(FH$2*$E7*Main!$C$4)+(FH$2*Main!$C$5)) -> 239.2697636 | FI7: =IF($D7<100,(FI$2*(1+Main!$C$3)*$E7*Main!$C$4)+(FI$2*(1+Main!$C$3)*Main!$C$5),(FI$2*$E7*Main!$C$4)+(FI$2*Main!$C$5)) -> 67.59455013
A8: AL | B8: 1 | C8: Nonurban | D8: 1 | E8: 0.6873 | F8: =IF($D8<100,Main!$C$2*(1+Main!$C$3),Main!$C$2) -> 3079.6691 | G8: =G$2*$F8*Main!$C$4*$E8+Main!$C$5*G$2*$F8 -> 1360.796176 | H8: =H$2*$F8*Main!$C$4*$E8+Main!$C$5*H$2*$F8 -> 1665.389617 | I8: =I$2*$F8*Main!$C$4*$E8+Main!$C$5*I$2*$F8 -> 1969.983059 | J8: =J$2*$F8*Main!$C$4*$E8+Main!$C$5*J$2*$F8 -> 2274.5765 | K8: =K$2*$F8*Main!$C$4*$E8+Main!$C$5*K$2*$F8 -> 2578.937605 | L8: =L$2*$F8*Main!$C$4*$E8+Main!$C$5*L$2*$F8 -> 1602.194029 | M8: =M$2*$F8*Main!$C$4*$E8+Main!$C$5*M$2*$F8 -> 1865.663871 | N8: =N$2*$F8*Main!$C$4*$E8+Main!$C$5*N$2*$F8 -> 2129.133713 | O8: =O$2*$F8*Main!$C$4*$E8+Main!$C$5*O$2*$F8 -> 2392.603554 | P8: =P$2*$F8*Main!$C$4*$E8+Main!$C$5*P$2*$F8 -> 2656.305733 | Q8: =Q$2*$F8*Main!$C$4*$E8+Main!$C$5*Q$2*$F8 -> 1733.23194 | R8: =R$2*$F8*Main!$C$4*$E8+Main!$C$5*R$2*$F8 -> 2005.065904 | S8: =S$2*$F8*Main!$C$4*$E8+Main!$C$5*S$2*$F8 -> 2276.899867 | T8: =T$2*$F8*Main!$C$4*$E8+Main!$C$5*T$2*$F8 -> 2548.733831 | U8: =U$2*$F8*Main!$C$4*$E8+Main!$C$5*U$2*$F8 -> 2820.567795 | V8: =V$2*$F8*Main!$C$4*$E8+Main!$C$5*V$2*$F8 -> 1438.861314 | W8: =W$2*$F8*Main!$C$4*$E8+Main!$C$5*W$2*$F8 -> 1748.566163 | X8: =X$2*$F8*Main!$C$4*$E8+Main!$C$5*X$2*$F8 -> 2058.503349 | Y8: =Y$2*$F8*Main!$C$4*$E8+Main!$C$5*Y$2*$F8 -> 2368.208199 | Z8: =Z$2*$F8*Main!$C$4*$E8+Main!$C$5*Z$2*$F8 -> 2677.913048 | AA8: =AA$2*$F8*Main!$C$4*$E8+Main!$C$5*AA$2*$F8 -> 1680.259167 | AB8: =AB$2*$F8*Main!$C$4*$E8+Main!$C$5*AB$2*$F8 -> 1949.072754 | AC8: =AC$2*$F8*Main!$C$4*$E8+Main!$C$5*AC$2*$F8 -> 2217.654003 | AD8: =AD$2*$F8*Main!$C$4*$E8+Main!$C$5*AD$2*$F8 -> 2486.46759 | AE8: =AE$2*$F8*Main!$C$4*$E8+Main!$C$5*AE$2*$F8 -> 2755.048839 | AF8: =AF$2*$F8*Main!$C$4*$E8+Main!$C$5*AF$2*$F8 -> 1811.297078 | AG8: =AG$2*$F8*Main!$C$4*$E8+Main!$C$5*AG$2*$F8 -> 2088.24245 | AH8: =AH$2*$F8*Main!$C$4*$E8+Main!$C$5*AH$2*$F8 -> 2365.420158 | AI8: =AI$2*$F8*Main!$C$4*$E8+Main!$C$5*AI$2*$F8 -> 2642.36553 | AJ8: =AJ$2*$F8*Main!$C$4*$E8+Main!$C$5*AJ$2*$F8 -> 2919.310901 | AK8: =AK$2*$F8*Main!$C$4*$E8+Main!$C$5*AK$2*$F8 -> 1543.412839 | AL8: =AL$2*$F8*Main!$C$4*$E8+Main!$C$5*AL$2*$F8 -> 1906.09046 | AM8: =AM$2*$F8*Main!$C$4*$E8+Main!$C$5*AM$2*$F8 -> 2268.768082 | AN8: =AN$2*$F8*Main!$C$4*$E8+Main!$C$5*AN$2*$F8 -> 2631.213367 | AO8: =AO$2*$F8*Main!$C$4*$E8+Main!$C$5*AO$2*$F8 -> 2993.890989 | AP8: =AP$2*$F8*Main!$C$4*$E8+Main!$C$5*AP$2*$F8 -> 1784.810692 | AQ8: =AQ$2*$F8*Main!$C$4*$E8+Main!$C$5*AQ$2*$F8 -> 2106.364714 | AR8: =AR$2*$F8*Main!$C$4*$E8+Main!$C$5*AR$2*$F8 -> 2427.918736 | AS8: =AS$2*$F8*Main!$C$4*$E8+Main!$C$5*AS$2*$F8 -> 2749.472758 | AT8: =AT$2*$F8*Main!$C$4*$E8+Main!$C$5*AT$2*$F8 -> 3071.02678 | AU8: =AU$2*$F8*Main!$C$4*$E8+Main!$C$5*AU$2*$F8 -> 1915.848603 | AV8: =AV$2*$F8*Main!$C$4*$E8+Main!$C$5*AV$2*$F8 -> 2245.766747 | AW8: =AW$2*$F8*Main!$C$4*$E8+Main!$C$5*AW$2*$F8 -> 2575.684891 | AX8: =AX$2*$F8*Main!$C$4*$E8+Main!$C$5*AX$2*$F8 -> 2905.370698 | AY8: =AY$2*$F8*Main!$C$4*$E8+Main!$C$5*AY$2*$F8 -> 3235.288842 | AZ8: =AZ$2*$F8*Main!$C$4*$E8+Main!$C$5*AZ$2*$F8 -> 2883.531046 | BA8: =BA$2*$F8*Main!$C$4*$E8+Main!$C$5*BA$2*$F8 -> 3281.756186 | BB8: =BB$2*$F8*Main!$C$4*$E8+Main!$C$5*BB$2*$F8 -> 3679.74899 | BC8: =BC$2*$F8*Main!$C$4*$E8+Main!$C$5*BC$2*$F8 -> 2919.775575 | BD8: =BD$2*$F8*Main!$C$4*$E8+Main!$C$5*BD$2*$F8 -> 3342.860744 | BE8: =BE$2*$F8*Main!$C$4*$E8+Main!$C$5*BE$2*$F8 -> 3765.945913 | BF8: =BF$2*$F8*Main!$C$4*$E8+Main!$C$5*BF$2*$F8 -> 3092.401758 | BG8: =BG$2*$F8*Main!$C$4*$E8+Main!$C$5*BG$2*$F8 -> 3505.728785 | BH8: =BH$2*$F8*Main!$C$4*$E8+Main!$C$5*BH$2*$F8 -> 3919.055812 | BI8: =BI$2*$F8*Main!$C$4*$E8+Main!$C$5*BI$2*$F8 -> 2987.617897 | BJ8: =BJ$2*$F8*Main!$C$4*$E8+Main!$C$5*BJ$2*$F8 -> 3431.381035 | BK8: =BK$2*$F8*Main!$C$4*$E8+Main!$C$5*BK$2*$F8 -> 3875.144172 | BL8: =BL$2*$F8*Main!$C$4*$E8+Main!$C$5*BL$2*$F8 -> 3023.630089 | BM8: =BM$2*$F8*Main!$C$4*$E8+Main!$C$5*BM$2*$F8 -> 3492.485592 | BN8: =BN$2*$F8*Main!$C$4*$E8+Main!$C$5*BN$2*$F8 -> 3961.108759 | BO8: =BO$2*$F8*Main!$C$4*$E8+Main!$C$5*BO$2*$F8 -> 3196.256273 | BP8: =BP$2*$F8*Main!$C$4*$E8+Main!$C$5*BP$2*$F8 -> 3655.353634 | BQ8: =BQ$2*$F8*Main!$C$4*$E8+Main!$C$5*BQ$2*$F8 -> 4114.218658 | BR8: =BR$2*$F8*Main!$C$4*$E8+Main!$C$5*BR$2*$F8 -> 3356.336274 | BS8: =BS$2*$F8*Main!$C$4*$E8+Main!$C$5*BS$2*$F8 -> 3865.153693 | BT8: =BT$2*$F8*Main!$C$4*$E8+Main!$C$5*BT$2*$F8 -> 4373.971112 | BU8: =BU$2*$F8*Main!$C$4*$E8+Main!$C$5*BU$2*$F8 -> 3392.580802 | BV8: =BV$2*$F8*Main!$C$4*$E8+Main!$C$5*BV$2*$F8 -> 3926.258251 | BW8: =BW$2*$F8*Main!$C$4*$E8+Main!$C$5*BW$2*$F8 -> 4460.168036 | BX8: =BX$2*$F8*Main!$C$4*$E8+Main!$C$5*BX$2*$F8 -> 3565.206986 | BY8: =BY$2*$F8*Main!$C$4*$E8+Main!$C$5*BY$2*$F8 -> 4089.358629 | BZ8: =BZ$2*$F8*Main!$C$4*$E8+Main!$C$5*BZ$2*$F8 -> 4613.277935 | CA8: =CA$2*$F8*Main!$C$4*$E8+Main!$C$5*CA$2*$F8 -> 2909.552759 | CB8: =CB$2*$F8*Main!$C$4*$E8+Main!$C$5*CB$2*$F8 -> 3299.18144 | CC8: =CC$2*$F8*Main!$C$4*$E8+Main!$C$5*CC$2*$F8 -> 3688.577785 | CD8: =CD$2*$F8*Main!$C$4*$E8+Main!$C$5*CD$2*$F8 -> 2909.552759 | CE8: =CE$2*$F8*Main!$C$4*$E8+Main!$C$5*CE$2*$F8 -> 3336.122979 | CF8: =CF$2*$F8*Main!$C$4*$E8+Main!$C$5*CF$2*$F8 -> 3762.693199 | CG8: =CG$2*$F8*Main!$C$4*$E8+Main!$C$5*CG$2*$F8 -> 3093.563442 | CH8: =CH$2*$F8*Main!$C$4*$E8+Main!$C$5*CH$2*$F8 -> 3506.658132 | CI8: =CI$2*$F8*Main!$C$4*$E8+Main!$C$5*CI$2*$F8 -> 3919.520486 | CJ8: =CJ$2*$F8*Main!$C$4*$E8+Main!$C$5*CJ$2*$F8 -> 3047.560771 | CK8: =CK$2*$F8*Main!$C$4*$E8+Main!$C$5*CK$2*$F8 -> 3471.342951 | CL8: =CL$2*$F8*Main!$C$4*$E8+Main!$C$5*CL$2*$F8 -> 3895.12513 | CM8: =CM$2*$F8*Main!$C$4*$E8+Main!$C$5*CM$2*$F8 -> 3047.560771 | CN8: =CN$2*$F8*Main!$C$4*$E8+Main!$C$5*CN$2*$F8 -> 3508.284489 | CO8: =CO$2*$F8*Main!$C$4*$E8+Main!$C$5*CO$2*$F8 -> 3969.008207 | CP8: =CP$2*$F8*Main!$C$4*$E8+Main!$C$5*CP$2*$F8 -> 3231.571454 | CQ8: =CQ$2*$F8*Main!$C$4*$E8+Main!$C$5*CQ$2*$F8 -> 3678.819643 | CR8: =CR$2*$F8*Main!$C$4*$E8+Main!$C$5*CR$2*$F8 -> 4126.067831 | CS8: =CS$2*$F8*Main!$C$4*$E8+Main!$C$5*CS$2*$F8 -> 3532.215172 | CT8: =CT$2*$F8*Main!$C$4*$E8+Main!$C$5*CT$2*$F8 -> 3982.483737 | CU8: =CU$2*$F8*Main!$C$4*$E8+Main!$C$5*CU$2*$F8 -> 4432.752303 | CV8: =CV$2*$F8*Main!$C$4*$E8+Main!$C$5*CV$2*$F8 -> 3532.215172 | CW8: =CW$2*$F8*Main!$C$4*$E8+Main!$C$5*CW$2*$F8 -> 4019.425276 | CX8: =CX$2*$F8*Main!$C$4*$E8+Main!$C$5*CX$2*$F8 -> 4506.867717 | CY8: =CY$2*$F8*Main!$C$4*$E8+Main!$C$5*CY$2*$F8 -> 3716.225855 | CZ8: =CZ$2*$F8*Main!$C$4*$E8+Main!$C$5*CZ$2*$F8 -> 4189.960429 | DA8: =DA$2*$F8*Main!$C$4*$E8+Main!$C$5*DA$2*$F8 -> 4663.695004 | DB8: =DB$2*$F8*Main!$C$4*$E8+Main!$C$5*DB$2*$F8 -> 1111.731211 | DC8: =DC$2*$F8*Main!$C$4*$E8+Main!$C$5*DC$2*$F8 -> 1471.388455 | DD8: =DD$2*$F8*Main!$C$4*$E8+Main!$C$5*DD$2*$F8 -> 1830.813363 | DE8: =DE$2*$F8*Main!$C$4*$E8+Main!$C$5*DE$2*$F8 -> 2190.470607 | DF8: =DF$2*$F8*Main!$C$4*$E8+Main!$C$5*DF$2*$F8 -> 2550.127851 | DG8: =DG$2*$F8*Main!$C$4*$E8+Main!$C$5*DG$2*$F8 -> 1295.974231 | DH8: =DH$2*$F8*Main!$C$4*$E8+Main!$C$5*DH$2*$F8 -> 1618.689936 | DI8: =DI$2*$F8*Main!$C$4*$E8+Main!$C$5*DI$2*$F8 -> 1941.405642 | DJ8: =DJ$2*$F8*Main!$C$4*$E8+Main!$C$5*DJ$2*$F8 -> 2264.121348 | DK8: =DK$2*$F8*Main!$C$4*$E8+Main!$C$5*DK$2*$F8 -> 2586.837053 | DL8: =DL$2*$F8*Main!$C$4*$E8+Main!$C$5*DL$2*$F8 -> 1403.081459 | DM8: =DM$2*$F8*Main!$C$4*$E8+Main!$C$5*DM$2*$F8 -> 1741.131388 | DN8: =DN$2*$F8*Main!$C$4*$E8+Main!$C$5*DN$2*$F8 -> 2079.181318 | DO8: =DO$2*$F8*Main!$C$4*$E8+Main!$C$5*DO$2*$F8 -> 2417.463584 | DP8: =DP$2*$F8*Main!$C$4*$E8+Main!$C$5*DP$2*$F8 -> 2755.513513 | DQ8: =DQ$2*$F8*Main!$C$4*$E8+Main!$C$5*DQ$2*$F8 -> 1151.228453 | DR8: =DR$2*$F8*Main!$C$4*$E8+Main!$C$5*DR$2*$F8 -> 1530.401982 | DS8: =DS$2*$F8*Main!$C$4*$E8+Main!$C$5*DS$2*$F8 -> 1909.807848 | DT8: =DT$2*$F8*Main!$C$4*$E8+Main!$C$5*DT$2*$F8 -> 2288.981377 | DU8: =DU$2*$F8*Main!$C$4*$E8+Main!$C$5*DU$2*$F8 -> 2668.387242 | DV8: =DV$2*$F8*Main!$C$4*$E8+Main!$C$5*DV$2*$F8 -> 1335.471473 | DW8: =DW$2*$F8*Main!$C$4*$E8+Main!$C$5*DW$2*$F8 -> 1677.9358 | DX8: =DX$2*$F8*Main!$C$4*$E8+Main!$C$5*DX$2*$F8 -> 2020.16779 | DY8: =DY$2*$F8*Main!$C$4*$E8+Main!$C$5*DY$2*$F8 -> 2362.632117 | DZ8: =DZ$2*$F8*Main!$C$4*$E8+Main!$C$5*DZ$2*$F8 -> 2705.096444 | EA8: =EA$2*$F8*Main!$C$4*$E8+Main!$C$5*EA$2*$F8 -> 1442.346365 | EB8: =EB$2*$F8*Main!$C$4*$E8+Main!$C$5*EB$2*$F8 -> 1800.144915 | EC8: =EC$2*$F8*Main!$C$4*$E8+Main!$C$5*EC$2*$F8 -> 2157.943466 | ED8: =ED$2*$F8*Main!$C$4*$E8+Main!$C$5*ED$2*$F8 -> 2515.974353 | EE8: =EE$2*$F8*Main!$C$4*$E8+Main!$C$5*EE$2*$F8 -> 2873.772904 | EF8: =EF$2*$F8*Main!$C$4*$E8+Main!$C$5*EF$2*$F8 -> 1426.547468 | EG8: =EG$2*$F8*Main!$C$4*$E8+Main!$C$5*EG$2*$F8 -> 1847.773943 | EH8: =EH$2*$F8*Main!$C$4*$E8+Main!$C$5*EH$2*$F8 -> 2268.768082 | EI8: =EI$2*$F8*Main!$C$4*$E8+Main!$C$5*EI$2*$F8 -> 2689.994557 | EJ8: =EJ$2*$F8*Main!$C$4*$E8+Main!$C$5*EJ$2*$F8 -> 3111.221033 | EK8: =EK$2*$F8*Main!$C$4*$E8+Main!$C$5*EK$2*$F8 -> 1610.790488 | EL8: =EL$2*$F8*Main!$C$4*$E8+Main!$C$5*EL$2*$F8 -> 1995.075424 | EM8: =EM$2*$F8*Main!$C$4*$E8+Main!$C$5*EM$2*$F8 -> 2379.360361 | EN8: =EN$2*$F8*Main!$C$4*$E8+Main!$C$5*EN$2*$F8 -> 2763.645298 | EO8: =EO$2*$F8*Main!$C$4*$E8+Main!$C$5*EO$2*$F8 -> 3147.930235 | EP8: =EP$2*$F8*Main!$C$4*$E8+Main!$C$5*EP$2*$F8 -> 1717.665379 | EQ8: =EQ$2*$F8*Main!$C$4*$E8+Main!$C$5*EQ$2*$F8 -> 2117.516877 | ER8: =ER$2*$F8*Main!$C$4*$E8+Main!$C$5*ER$2*$F8 -> 2517.136037 | ES8: =ES$2*$F8*Main!$C$4*$E8+Main!$C$5*ES$2*$F8 -> 2916.755197 | ET8: =ET$2*$F8*Main!$C$4*$E8+Main!$C$5*ET$2*$F8 -> 3316.606694 | EU8: =EU$2*$F8*Main!$C$4*$E8+Main!$C$5*EU$2*$F8 -> 4077.97413 | EV8: =EV$2*$F8*Main!$C$4*$E8+Main!$C$5*EV$2*$F8 -> 4189.031082 | EW8: =EW$2*$F8*Main!$C$4*$E8+Main!$C$5*EW$2*$F8 -> 4332.615176 | EX8: =EX$2*$F8*Main!$C$4*$E8+Main!$C$5*EX$2*$F8 -> 4318.674973 | EY8: =EY$2*$F8*Main!$C$4*$E8+Main!$C$5*EY$2*$F8 -> 4429.964262 | EZ8: =EZ$2*$F8*Main!$C$4*$E8+Main!$C$5*EZ$2*$F8 -> 4573.316019 | FA8: =FA$2*$F8*Main!$C$4*$E8+Main!$C$5*FA$2*$F8 -> 4882.788532 | FB8: =FB$2*$F8*Main!$C$4*$E8+Main!$C$5*FB$2*$F8 -> 4994.077821 | FC8: =FC$2*$F8*Main!$C$4*$E8+Main!$C$5*FC$2*$F8 -> 5137.429578 | FD8: =IF($D8<100,(FD$2*(1+Main!$C$3)*$E8*Main!$C$4)+(FD$2*(1+Main!$C$3)*Main!$C$5),(FD$2*$E8*Main!$C$4)+(FD$2*Main!$C$5)) -> 110.2172949 | FE8: =IF($D8<100,(FE$2*(1+Main!$C$3)*$E8*Main!$C$4)+(FE$2*(1+Main!$C$3)*Main!$C$5),(FE$2*$E8*Main!$C$4)+(FE$2*Main!$C$5)) -> 120.4821741 | FF8: =IF($D8<100,(FF$2*(1+Main!$C$3)*$E8*Main!$C$4)+(FF$2*(1+Main!$C$3)*Main!$C$5),(FF$2*$E8*Main!$C$4)+(FF$2*Main!$C$5)) -> 121.305851 | FG8: =IF($D8<100,(FG$2*(1+Main!$C$3)*$E8*Main!$C$4)+(FG$2*(1+Main!$C$3)*Main!$C$5),(FG$2*$E8*Main!$C$4)+(FG$2*Main!$C$5)) -> 130.9490873 | FH8: =IF($D8<100,(FH$2*(1+Main!$C$3)*$E8*Main!$C$4)+(FH$2*(1+Main!$C$3)*Main!$C$5),(FH$2*$E8*Main!$C$4)+(FH$2*Main!$C$5)) -> 176.6709262 | FI8: =IF($D8<100,(FI$2*(1+Main!$C$3)*$E8*Main!$C$4)+(FI$2*(1+Main!$C$3)*Main!$C$5),(FI$2*$E8*Main!$C$4)+(FI$2*Main!$C$5)) -> 49.91015829
A9: AL | B9: 11500 | C9: (Anniston-Oxford-Jacksonville, Calhoun County) | D9: 11500 | E9: 0.7259 | F9: =IF($D9<100,Main!$C$2*(1+Main!$C$3),Main!$C$2) -> 2989.97 | G9: =G$2*$F9*Main!$C$4*$E9+Main!$C$5*G$2*$F9 -> 1374.248876 | H9: =H$2*$F9*Main!$C$4*$E9+Main!$C$5*H$2*$F9 -> 1681.853499 | I9: =I$2*$F9*Main!$C$4*$E9+Main!$C$5*I$2*$F9 -> 1989.458123 | J9: =J$2*$F9*Main!$C$4*$E9+Main!$C$5*J$2*$F9 -> 2297.062746 | K9: =K$2*$F9*Main!$C$4*$E9+Main!$C$5*K$2*$F9 -> 2604.432735 | L9: =L$2*$F9*Main!$C$4*$E9+Main!$C$5*L$2*$F9 -> 1618.033166 | M9: =M$2*$F9*Main!$C$4*$E9+Main!$C$5*M$2*$F9 -> 1884.107645 | N9: =N$2*$F9*Main!$C$4*$E9+Main!$C$5*N$2*$F9 -> 2150.182125 | O9: =O$2*$F9*Main!$C$4*$E9+Main!$C$5*O$2*$F9 -> 2416.256604 | P9: =P$2*$F9*Main!$C$4*$E9+Main!$C$5*P$2*$F9 -> 2682.565717 | Q9: =Q$2*$F9*Main!$C$4*$E9+Main!$C$5*Q$2*$F9 -> 1750.366505 | R9: =R$2*$F9*Main!$C$4*$E9+Main!$C$5*R$2*$F9 -> 2024.887793 | S9: =S$2*$F9*Main!$C$4*$E9+Main!$C$5*S$2*$F9 -> 2299.409081 | T9: =T$2*$F9*Main!$C$4*$E9+Main!$C$5*T$2*$F9 -> 2573.93037 | U9: =U$2*$F9*Main!$C$4*$E9+Main!$C$5*U$2*$F9 -> 2848.451658 | V9: =V$2*$F9*Main!$C$4*$E9+Main!$C$5*V$2*$F9 -> 1453.085759 | W9: =W$2*$F9*Main!$C$4*$E9+Main!$C$5*W$2*$F9 -> 1765.852321 | X9: =X$2*$F9*Main!$C$4*$E9+Main!$C$5*X$2*$F9 -> 2078.853516 | Y9: =Y$2*$F9*Main!$C$4*$E9+Main!$C$5*Y$2*$F9 -> 2391.620078 | Z9: =Z$2*$F9*Main!$C$4*$E9+Main!$C$5*Z$2*$F9 -> 2704.38664 | AA9: =AA$2*$F9*Main!$C$4*$E9+Main!$C$5*AA$2*$F9 -> 1696.870049 | AB9: =AB$2*$F9*Main!$C$4*$E9+Main!$C$5*AB$2*$F9 -> 1968.3411 | AC9: =AC$2*$F9*Main!$C$4*$E9+Main!$C$5*AC$2*$F9 -> 2239.577519 | AD9: =AD$2*$F9*Main!$C$4*$E9+Main!$C$5*AD$2*$F9 -> 2511.04857 | AE9: =AE$2*$F9*Main!$C$4*$E9+Main!$C$5*AE$2*$F9 -> 2782.284988 | AF9: =AF$2*$F9*Main!$C$4*$E9+Main!$C$5*AF$2*$F9 -> 1829.203388 | AG9: =AG$2*$F9*Main!$C$4*$E9+Main!$C$5*AG$2*$F9 -> 2108.886615 | AH9: =AH$2*$F9*Main!$C$4*$E9+Main!$C$5*AH$2*$F9 -> 2388.804475 | AI9: =AI$2*$F9*Main!$C$4*$E9+Main!$C$5*AI$2*$F9 -> 2668.487702 | AJ9: =AJ$2*$F9*Main!$C$4*$E9+Main!$C$5*AJ$2*$F9 -> 2948.170929 | AK9: =AK$2*$F9*Main!$C$4*$E9+Main!$C$5*AK$2*$F9 -> 1558.67087 | AL9: =AL$2*$F9*Main!$C$4*$E9+Main!$C$5*AL$2*$F9 -> 1924.933888 | AM9: =AM$2*$F9*Main!$C$4*$E9+Main!$C$5*AM$2*$F9 -> 2291.196906 | AN9: =AN$2*$F9*Main!$C$4*$E9+Main!$C$5*AN$2*$F9 -> 2657.22529 | AO9: =AO$2*$F9*Main!$C$4*$E9+Main!$C$5*AO$2*$F9 -> 3023.488308 | AP9: =AP$2*$F9*Main!$C$4*$E9+Main!$C$5*AP$2*$F9 -> 1802.455159 | AQ9: =AQ$2*$F9*Main!$C$4*$E9+Main!$C$5*AQ$2*$F9 -> 2127.188034 | AR9: =AR$2*$F9*Main!$C$4*$E9+Main!$C$5*AR$2*$F9 -> 2451.920908 | AS9: =AS$2*$F9*Main!$C$4*$E9+Main!$C$5*AS$2*$F9 -> 2776.653783 | AT9: =AT$2*$F9*Main!$C$4*$E9+Main!$C$5*AT$2*$F9 -> 3101.386657 | AU9: =AU$2*$F9*Main!$C$4*$E9+Main!$C$5*AU$2*$F9 -> 1934.788498 | AV9: =AV$2*$F9*Main!$C$4*$E9+Main!$C$5*AV$2*$F9 -> 2267.968182 | AW9: =AW$2*$F9*Main!$C$4*$E9+Main!$C$5*AW$2*$F9 -> 2601.147865 | AX9: =AX$2*$F9*Main!$C$4*$E9+Main!$C$5*AX$2*$F9 -> 2934.092915 | AY9: =AY$2*$F9*Main!$C$4*$E9+Main!$C$5*AY$2*$F9 -> 3267.272598 | AZ9: =AZ$2*$F9*Main!$C$4*$E9+Main!$C$5*AZ$2*$F9 -> 2912.037358 | BA9: =BA$2*$F9*Main!$C$4*$E9+Main!$C$5*BA$2*$F9 -> 3314.199314 | BB9: =BB$2*$F9*Main!$C$4*$E9+Main!$C$5*BB$2*$F9 -> 3716.126636 | BC9: =BC$2*$F9*Main!$C$4*$E9+Main!$C$5*BC$2*$F9 -> 2948.640196 | BD9: =BD$2*$F9*Main!$C$4*$E9+Main!$C$5*BD$2*$F9 -> 3375.907945 | BE9: =BE$2*$F9*Main!$C$4*$E9+Main!$C$5*BE$2*$F9 -> 3803.175694 | BF9: =BF$2*$F9*Main!$C$4*$E9+Main!$C$5*BF$2*$F9 -> 3122.972946 | BG9: =BG$2*$F9*Main!$C$4*$E9+Main!$C$5*BG$2*$F9 -> 3540.386085 | BH9: =BH$2*$F9*Main!$C$4*$E9+Main!$C$5*BH$2*$F9 -> 3957.799223 | BI9: =BI$2*$F9*Main!$C$4*$E9+Main!$C$5*BI$2*$F9 -> 3017.153202 | BJ9: =BJ$2*$F9*Main!$C$4*$E9+Main!$C$5*BJ$2*$F9 -> 3465.303339 | BK9: =BK$2*$F9*Main!$C$4*$E9+Main!$C$5*BK$2*$F9 -> 3913.453476 | BL9: =BL$2*$F9*Main!$C$4*$E9+Main!$C$5*BL$2*$F9 -> 3053.521407 | BM9: =BM$2*$F9*Main!$C$4*$E9+Main!$C$5*BM$2*$F9 -> 3527.01197 | BN9: =BN$2*$F9*Main!$C$4*$E9+Main!$C$5*BN$2*$F9 -> 4000.267901 | BO9: =BO$2*$F9*Main!$C$4*$E9+Main!$C$5*BO$2*$F9 -> 3227.854156 | BP9: =BP$2*$F9*Main!$C$4*$E9+Main!$C$5*BP$2*$F9 -> 3691.49011 | BQ9: =BQ$2*$F9*Main!$C$4*$E9+Main!$C$5*BQ$2*$F9 -> 4154.89143 | BR9: =BR$2*$F9*Main!$C$4*$E9+Main!$C$5*BR$2*$F9 -> 3389.516693 | BS9: =BS$2*$F9*Main!$C$4*$E9+Main!$C$5*BS$2*$F9 -> 3903.364232 | BT9: =BT$2*$F9*Main!$C$4*$E9+Main!$C$5*BT$2*$F9 -> 4417.211772 | BU9: =BU$2*$F9*Main!$C$4*$E9+Main!$C$5*BU$2*$F9 -> 3426.119531 | BV9: =BV$2*$F9*Main!$C$4*$E9+Main!$C$5*BV$2*$F9 -> 3965.072864 | BW9: =BW$2*$F9*Main!$C$4*$E9+Main!$C$5*BW$2*$F9 -> 4504.26083 | BX9: =BX$2*$F9*Main!$C$4*$E9+Main!$C$5*BX$2*$F9 -> 3600.452281 | BY9: =BY$2*$F9*Main!$C$4*$E9+Main!$C$5*BY$2*$F9 -> 4129.785637 | BZ9: =BZ$2*$F9*Main!$C$4*$E9+Main!$C$5*BZ$2*$F9 -> 4658.884359 | CA9: =CA$2*$F9*Main!$C$4*$E9+Main!$C$5*CA$2*$F9 -> 2938.316319 | CB9: =CB$2*$F9*Main!$C$4*$E9+Main!$C$5*CB$2*$F9 -> 3331.796832 | CC9: =CC$2*$F9*Main!$C$4*$E9+Main!$C$5*CC$2*$F9 -> 3725.042712 | CD9: =CD$2*$F9*Main!$C$4*$E9+Main!$C$5*CD$2*$F9 -> 2938.316319 | CE9: =CE$2*$F9*Main!$C$4*$E9+Main!$C$5*CE$2*$F9 -> 3369.103571 | CF9: =CF$2*$F9*Main!$C$4*$E9+Main!$C$5*CF$2*$F9 -> 3799.890824 | CG9: =CG$2*$F9*Main!$C$4*$E9+Main!$C$5*CG$2*$F9 -> 3124.146114 | CH9: =CH$2*$F9*Main!$C$4*$E9+Main!$C$5*CH$2*$F9 -> 3541.324619 | CI9: =CI$2*$F9*Main!$C$4*$E9+Main!$C$5*CI$2*$F9 -> 3958.26849 | CJ9: =CJ$2*$F9*Main!$C$4*$E9+Main!$C$5*CJ$2*$F9 -> 3077.688665 | CK9: =CK$2*$F9*Main!$C$4*$E9+Main!$C$5*CK$2*$F9 -> 3505.660315 | CL9: =CL$2*$F9*Main!$C$4*$E9+Main!$C$5*CL$2*$F9 -> 3933.631964 | CM9: =CM$2*$F9*Main!$C$4*$E9+Main!$C$5*CM$2*$F9 -> 3077.688665 | CN9: =CN$2*$F9*Main!$C$4*$E9+Main!$C$5*CN$2*$F9 -> 3542.967054 | CO9: =CO$2*$F9*Main!$C$4*$E9+Main!$C$5*CO$2*$F9 -> 4008.245442 | CP9: =CP$2*$F9*Main!$C$4*$E9+Main!$C$5*CP$2*$F9 -> 3263.51846 | CQ9: =CQ$2*$F9*Main!$C$4*$E9+Main!$C$5*CQ$2*$F9 -> 3715.188101 | CR9: =CR$2*$F9*Main!$C$4*$E9+Main!$C$5*CR$2*$F9 -> 4166.857742 | CS9: =CS$2*$F9*Main!$C$4*$E9+Main!$C$5*CS$2*$F9 -> 3567.134313 | CT9: =CT$2*$F9*Main!$C$4*$E9+Main!$C$5*CT$2*$F9 -> 4021.85419 | CU9: =CU$2*$F9*Main!$C$4*$E9+Main!$C$5*CU$2*$F9 -> 4476.574068 | CV9: =CV$2*$F9*Main!$C$4*$E9+Main!$C$5*CV$2*$F9 -> 3567.134313 | CW9: =CW$2*$F9*Main!$C$4*$E9+Main!$C$5*CW$2*$F9 -> 4059.160929 | CX9: =CX$2*$F9*Main!$C$4*$E9+Main!$C$5*CX$2*$F9 -> 4551.42218 | CY9: =CY$2*$F9*Main!$C$4*$E9+Main!$C$5*CY$2*$F9 -> 3752.964108 | CZ9: =CZ$2*$F9*Main!$C$4*$E9+Main!$C$5*CZ$2*$F9 -> 4231.381977 | DA9: =DA$2*$F9*Main!$C$4*$E9+Main!$C$5*DA$2*$F9 -> 4709.799846 | DB9: =DB$2*$F9*Main!$C$4*$E9+Main!$C$5*DB$2*$F9 -> 1122.721679 | DC9: =DC$2*$F9*Main!$C$4*$E9+Main!$C$5*DC$2*$F9 -> 1485.93446 | DD9: =DD$2*$F9*Main!$C$4*$E9+Main!$C$5*DD$2*$F9 -> 1848.912608 | DE9: =DE$2*$F9*Main!$C$4*$E9+Main!$C$5*DE$2*$F9 -> 2212.12539 | DF9: =DF$2*$F9*Main!$C$4*$E9+Main!$C$5*DF$2*$F9 -> 2575.338171 | DG9: =DG$2*$F9*Main!$C$4*$E9+Main!$C$5*DG$2*$F9 -> 1308.786108 | DH9: =DH$2*$F9*Main!$C$4*$E9+Main!$C$5*DH$2*$F9 -> 1634.69215 | DI9: =DI$2*$F9*Main!$C$4*$E9+Main!$C$5*DI$2*$F9 -> 1960.598192 | DJ9: =DJ$2*$F9*Main!$C$4*$E9+Main!$C$5*DJ$2*$F9 -> 2286.504234 | DK9: =DK$2*$F9*Main!$C$4*$E9+Main!$C$5*DK$2*$F9 -> 2612.410277 | DL9: =DL$2*$F9*Main!$C$4*$E9+Main!$C$5*DL$2*$F9 -> 1416.952188 | DM9: =DM$2*$F9*Main!$C$4*$E9+Main!$C$5*DM$2*$F9 -> 1758.344046 | DN9: =DN$2*$F9*Main!$C$4*$E9+Main!$C$5*DN$2*$F9 -> 2099.735905 | DO9: =DO$2*$F9*Main!$C$4*$E9+Main!$C$5*DO$2*$F9 -> 2441.362397 | DP9: =DP$2*$F9*Main!$C$4*$E9+Main!$C$5*DP$2*$F9 -> 2782.754256 | DQ9: =DQ$2*$F9*Main!$C$4*$E9+Main!$C$5*DQ$2*$F9 -> 1162.609388 | DR9: =DR$2*$F9*Main!$C$4*$E9+Main!$C$5*DR$2*$F9 -> 1545.53139 | DS9: =DS$2*$F9*Main!$C$4*$E9+Main!$C$5*DS$2*$F9 -> 1928.688025 | DT9: =DT$2*$F9*Main!$C$4*$E9+Main!$C$5*DT$2*$F9 -> 2311.610027 | DU9: =DU$2*$F9*Main!$C$4*$E9+Main!$C$5*DU$2*$F9 -> 2694.766663 | DV9: =DV$2*$F9*Main!$C$4*$E9+Main!$C$5*DV$2*$F9 -> 1348.673816 | DW9: =DW$2*$F9*Main!$C$4*$E9+Main!$C$5*DW$2*$F9 -> 1694.523713 | DX9: =DX$2*$F9*Main!$C$4*$E9+Main!$C$5*DX$2*$F9 -> 2040.138976 | DY9: =DY$2*$F9*Main!$C$4*$E9+Main!$C$5*DY$2*$F9 -> 2385.988872 | DZ9: =DZ$2*$F9*Main!$C$4*$E9+Main!$C$5*DZ$2*$F9 -> 2731.838769 | EA9: =EA$2*$F9*Main!$C$4*$E9+Main!$C$5*EA$2*$F9 -> 1456.605263 | EB9: =EB$2*$F9*Main!$C$4*$E9+Main!$C$5*EB$2*$F9 -> 1817.940976 | EC9: =EC$2*$F9*Main!$C$4*$E9+Main!$C$5*EC$2*$F9 -> 2179.276689 | ED9: =ED$2*$F9*Main!$C$4*$E9+Main!$C$5*ED$2*$F9 -> 2540.847035 | EE9: =EE$2*$F9*Main!$C$4*$E9+Main!$C$5*EE$2*$F9 -> 2902.182748 | EF9: =EF$2*$F9*Main!$C$4*$E9+Main!$C$5*EF$2*$F9 -> 1440.65018 | EG9: =EG$2*$F9*Main!$C$4*$E9+Main!$C$5*EG$2*$F9 -> 1866.04086 | EH9: =EH$2*$F9*Main!$C$4*$E9+Main!$C$5*EH$2*$F9 -> 2291.196906 | EI9: =EI$2*$F9*Main!$C$4*$E9+Main!$C$5*EI$2*$F9 -> 2716.587586 | EJ9: =EJ$2*$F9*Main!$C$4*$E9+Main!$C$5*EJ$2*$F9 -> 3141.978266 | EK9: =EK$2*$F9*Main!$C$4*$E9+Main!$C$5*EK$2*$F9 -> 1626.714608 | EL9: =EL$2*$F9*Main!$C$4*$E9+Main!$C$5*EL$2*$F9 -> 2014.798549 | EM9: =EM$2*$F9*Main!$C$4*$E9+Main!$C$5*EM$2*$F9 -> 2402.88249 | EN9: =EN$2*$F9*Main!$C$4*$E9+Main!$C$5*EN$2*$F9 -> 2790.966431 | EO9: =EO$2*$F9*Main!$C$4*$E9+Main!$C$5*EO$2*$F9 -> 3179.050372 | EP9: =EP$2*$F9*Main!$C$4*$E9+Main!$C$5*EP$2*$F9 -> 1734.646055 | EQ9: =EQ$2*$F9*Main!$C$4*$E9+Main!$C$5*EQ$2*$F9 -> 2138.450446 | ER9: =ER$2*$F9*Main!$C$4*$E9+Main!$C$5*ER$2*$F9 -> 2542.020203 | ES9: =ES$2*$F9*Main!$C$4*$E9+Main!$C$5*ES$2*$F9 -> 2945.58996 | ET9: =ET$2*$F9*Main!$C$4*$E9+Main!$C$5*ET$2*$F9 -> 3349.394351 | EU9: =EU$2*$F9*Main!$C$4*$E9+Main!$C$5*EU$2*$F9 -> 4118.288591 | EV9: =EV$2*$F9*Main!$C$4*$E9+Main!$C$5*EV$2*$F9 -> 4230.443443 | EW9: =EW$2*$F9*Main!$C$4*$E9+Main!$C$5*EW$2*$F9 -> 4375.446995 | EX9: =EX$2*$F9*Main!$C$4*$E9+Main!$C$5*EX$2*$F9 -> 4361.36898 | EY9: =EY$2*$F9*Main!$C$4*$E9+Main!$C$5*EY$2*$F9 -> 4473.758465 | EZ9: =EZ$2*$F9*Main!$C$4*$E9+Main!$C$5*EZ$2*$F9 -> 4618.527383 | FA9: =FA$2*$F9*Main!$C$4*$E9+Main!$C$5*FA$2*$F9 -> 4931.059312 | FB9: =FB$2*$F9*Main!$C$4*$E9+Main!$C$5*FB$2*$F9 -> 5043.448796 | FC9: =FC$2*$F9*Main!$C$4*$E9+Main!$C$5*FC$2*$F9 -> 5188.217715 | FD9: =IF($D9<100,(FD$2*(1+Main!$C$3)*$E9*Main!$C$4)+(FD$2*(1+Main!$C$3)*Main!$C$5),(FD$2*$E9*Main!$C$4)+(FD$2*Main!$C$5)) -> 111.3068925 | FE9: =IF($D9<100,(FE$2*(1+Main!$C$3)*$E9*Main!$C$4)+(FE$2*(1+Main!$C$3)*Main!$C$5),(FE$2*$E9*Main!$C$4)+(FE$2*Main!$C$5)) -> 121.6732494 | FF9: =IF($D9<100,(FF$2*(1+Main!$C$3)*$E9*Main!$C$4)+(FF$2*(1+Main!$C$3)*Main!$C$5),(FF$2*$E9*Main!$C$4)+(FF$2*Main!$C$5)) -> 122.5050691 | FG9: =IF($D9<100,(FG$2*(1+Main!$C$3)*$E9*Main!$C$4)+(FG$2*(1+Main!$C$3)*Main!$C$5),(FG$2*$E9*Main!$C$4)+(FG$2*Main!$C$5)) -> 132.2436374 | FH9: =IF($D9<100,(FH$2*(1+Main!$C$3)*$E9*Main!$C$4)+(FH$2*(1+Main!$C$3)*Main!$C$5),(FH$2*$E9*Main!$C$4)+(FH$2*Main!$C$5)) -> 178.4174781 | FI9: =IF($D9<100,(FI$2*(1+Main!$C$3)*$E9*Main!$C$4)+(FI$2*(1+Main!$C$3)*Main!$C$5),(FI$2*$E9*Main!$C$4)+(FI$2*Main!$C$5)) -> 50.40356534
A10: AL | B10: 12220 | C10: (Auburn-Opelika, Lee County) | D10: 12220 | E10: 0.7422 | F10: =IF($D10<100,Main!$C$2*(1+Main!$C$3),Main!$C$2) -> 2989.97 | G10: =G$2*$F10*Main!$C$4*$E10+Main!$C$5*G$2*$F10 -> 1396.666672 | H10: =H$2*$F10*Main!$C$4*$E10+Main!$C$5*H$2*$F10 -> 1709.289176 | I10: =I$2*$F10*Main!$C$4*$E10+Main!$C$5*I$2*$F10 -> 2021.911681 | J10: =J$2*$F10*Main!$C$4*$E10+Main!$C$5*J$2*$F10 -> 2334.534185 | K10: =K$2*$F10*Main!$C$4*$E10+Main!$C$5*K$2*$F10 -> 2646.918228 | L10: =L$2*$F10*Main!$C$4*$E10+Main!$C$5*L$2*$F10 -> 1644.427757 | M10: =M$2*$F10*Main!$C$4*$E10+Main!$C$5*M$2*$F10 -> 1914.842646 | N10: =N$2*$F10*Main!$C$4*$E10+Main!$C$5*N$2*$F10 -> 2185.257535 | O10: =O$2*$F10*Main!$C$4*$E10+Main!$C$5*O$2*$F10 -> 2455.672424 | P10: =P$2*$F10*Main!$C$4*$E10+Main!$C$5*P$2*$F10 -> 2726.325775 | Q10: =Q$2*$F10*Main!$C$4*$E10+Main!$C$5*Q$2*$F10 -> 1778.919818 | R10: =R$2*$F10*Main!$C$4*$E10+Main!$C$5*R$2*$F10 -> 2057.919307 | S10: =S$2*$F10*Main!$C$4*$E10+Main!$C$5*S$2*$F10 -> 2336.918796 | T10: =T$2*$F10*Main!$C$4*$E10+Main!$C$5*T$2*$F10 -> 2615.918285 | U10: =U$2*$F10*Main!$C$4*$E10+Main!$C$5*U$2*$F10 -> 2894.917774 | V10: =V$2*$F10*Main!$C$4*$E10+Main!$C$5*V$2*$F10 -> 1476.789602 | W10: =W$2*$F10*Main!$C$4*$E10+Main!$C$5*W$2*$F10 -> 1794.658251 | X10: =X$2*$F10*Main!$C$4*$E10+Main!$C$5*X$2*$F10 -> 2112.76536 | Y10: =Y$2*$F10*Main!$C$4*$E10+Main!$C$5*Y$2*$F10 -> 2430.634009 | Z10: =Z$2*$F10*Main!$C$4*$E10+Main!$C$5*Z$2*$F10 -> 2748.502657 | AA10: =AA$2*$F10*Main!$C$4*$E10+Main!$C$5*AA$2*$F10 -> 1724.550687 | AB10: =AB$2*$F10*Main!$C$4*$E10+Main!$C$5*AB$2*$F10 -> 2000.450181 | AC10: =AC$2*$F10*Main!$C$4*$E10+Main!$C$5*AC$2*$F10 -> 2276.111215 | AD10: =AD$2*$F10*Main!$C$4*$E10+Main!$C$5*AD$2*$F10 -> 2552.01071 | AE10: =AE$2*$F10*Main!$C$4*$E10+Main!$C$5*AE$2*$F10 -> 2827.671743 | AF10: =AF$2*$F10*Main!$C$4*$E10+Main!$C$5*AF$2*$F10 -> 1859.042748 | AG10: =AG$2*$F10*Main!$C$4*$E10+Main!$C$5*AG$2*$F10 -> 2143.288381 | AH10: =AH$2*$F10*Main!$C$4*$E10+Main!$C$5*AH$2*$F10 -> 2427.772476 | AI10: =AI$2*$F10*Main!$C$4*$E10+Main!$C$5*AI$2*$F10 -> 2712.018109 | AJ10: =AJ$2*$F10*Main!$C$4*$E10+Main!$C$5*AJ$2*$F10 -> 2996.263742 | AK10: =AK$2*$F10*Main!$C$4*$E10+Main!$C$5*AK$2*$F10 -> 1584.097098 | AL10: =AL$2*$F10*Main!$C$4*$E10+Main!$C$5*AL$2*$F10 -> 1956.334878 | AM10: =AM$2*$F10*Main!$C$4*$E10+Main!$C$5*AM$2*$F10 -> 2328.572657 | AN10: =AN$2*$F10*Main!$C$4*$E10+Main!$C$5*AN$2*$F10 -> 2700.571976 | AO10: =AO$2*$F10*Main!$C$4*$E10+Main!$C$5*AO$2*$F10 -> 3072.809755 | AP10: =AP$2*$F10*Main!$C$4*$E10+Main!$C$5*AP$2*$F10 -> 1831.858183 | AQ10: =AQ$2*$F10*Main!$C$4*$E10+Main!$C$5*AQ$2*$F10 -> 2161.888347 | AR10: =AR$2*$F10*Main!$C$4*$E10+Main!$C$5*AR$2*$F10 -> 2491.918512 | AS10: =AS$2*$F10*Main!$C$4*$E10+Main!$C$5*AS$2*$F10 -> 2821.948677 | AT10: =AT$2*$F10*Main!$C$4*$E10+Main!$C$5*AT$2*$F10 -> 3151.978841 | AU10: =AU$2*$F10*Main!$C$4*$E10+Main!$C$5*AU$2*$F10 -> 1966.350244 | AV10: =AV$2*$F10*Main!$C$4*$E10+Main!$C$5*AV$2*$F10 -> 2304.965008 | AW10: =AW$2*$F10*Main!$C$4*$E10+Main!$C$5*AW$2*$F10 -> 2643.579773 | AX10: =AX$2*$F10*Main!$C$4*$E10+Main!$C$5*AX$2*$F10 -> 2981.956076 | AY10: =AY$2*$F10*Main!$C$4*$E10+Main!$C$5*AY$2*$F10 -> 3320.57084 | AZ10: =AZ$2*$F10*Main!$C$4*$E10+Main!$C$5*AZ$2*$F10 -> 2959.540732 | BA10: =BA$2*$F10*Main!$C$4*$E10+Main!$C$5*BA$2*$F10 -> 3368.26306 | BB10: =BB$2*$F10*Main!$C$4*$E10+Main!$C$5*BB$2*$F10 -> 3776.746927 | BC10: =BC$2*$F10*Main!$C$4*$E10+Main!$C$5*BC$2*$F10 -> 2996.740664 | BD10: =BD$2*$F10*Main!$C$4*$E10+Main!$C$5*BD$2*$F10 -> 3430.97833 | BE10: =BE$2*$F10*Main!$C$4*$E10+Main!$C$5*BE$2*$F10 -> 3865.215996 | BF10: =BF$2*$F10*Main!$C$4*$E10+Main!$C$5*BF$2*$F10 -> 3173.917263 | BG10: =BG$2*$F10*Main!$C$4*$E10+Main!$C$5*BG$2*$F10 -> 3598.139562 | BH10: =BH$2*$F10*Main!$C$4*$E10+Main!$C$5*BH$2*$F10 -> 4022.361862 | BI10: =BI$2*$F10*Main!$C$4*$E10+Main!$C$5*BI$2*$F10 -> 3066.371306 | BJ10: =BJ$2*$F10*Main!$C$4*$E10+Main!$C$5*BJ$2*$F10 -> 3521.83201 | BK10: =BK$2*$F10*Main!$C$4*$E10+Main!$C$5*BK$2*$F10 -> 3977.292714 | BL10: =BL$2*$F10*Main!$C$4*$E10+Main!$C$5*BL$2*$F10 -> 3103.332776 | BM10: =BM$2*$F10*Main!$C$4*$E10+Main!$C$5*BM$2*$F10 -> 3584.54728 | BN10: =BN$2*$F10*Main!$C$4*$E10+Main!$C$5*BN$2*$F10 -> 4065.523322 | BO10: =BO$2*$F10*Main!$C$4*$E10+Main!$C$5*BO$2*$F10 -> 3280.509375 | BP10: =BP$2*$F10*Main!$C$4*$E10+Main!$C$5*BP$2*$F10 -> 3751.708512 | BQ10: =BQ$2*$F10*Main!$C$4*$E10+Main!$C$5*BQ$2*$F10 -> 4222.669187 | BR10: =BR$2*$F10*Main!$C$4*$E10+Main!$C$5*BR$2*$F10 -> 3444.809074 | BS10: =BS$2*$F10*Main!$C$4*$E10+Main!$C$5*BS$2*$F10 -> 3967.038887 | BT10: =BT$2*$F10*Main!$C$4*$E10+Main!$C$5*BT$2*$F10 -> 4489.268699 | BU10: =BU$2*$F10*Main!$C$4*$E10+Main!$C$5*BU$2*$F10 -> 3482.009006 | BV10: =BV$2*$F10*Main!$C$4*$E10+Main!$C$5*BV$2*$F10 -> 4029.754156 | BW10: =BW$2*$F10*Main!$C$4*$E10+Main!$C$5*BW$2*$F10 -> 4577.737768 | BX10: =BX$2*$F10*Main!$C$4*$E10+Main!$C$5*BX$2*$F10 -> 3659.185604 | BY10: =BY$2*$F10*Main!$C$4*$E10+Main!$C$5*BY$2*$F10 -> 4197.15385 | BZ10: =BZ$2*$F10*Main!$C$4*$E10+Main!$C$5*BZ$2*$F10 -> 4734.883634 | CA10: =CA$2*$F10*Main!$C$4*$E10+Main!$C$5*CA$2*$F10 -> 2986.248376 | CB10: =CB$2*$F10*Main!$C$4*$E10+Main!$C$5*CB$2*$F10 -> 3386.147643 | CC10: =CC$2*$F10*Main!$C$4*$E10+Main!$C$5*CC$2*$F10 -> 3785.808449 | CD10: =CD$2*$F10*Main!$C$4*$E10+Main!$C$5*CD$2*$F10 -> 2986.248376 | CE10: =CE$2*$F10*Main!$C$4*$E10+Main!$C$5*CE$2*$F10 -> 3424.062958 | CF10: =CF$2*$F10*Main!$C$4*$E10+Main!$C$5*CF$2*$F10 -> 3861.877541 | CG10: =CG$2*$F10*Main!$C$4*$E10+Main!$C$5*CG$2*$F10 -> 3175.109568 | CH10: =CH$2*$F10*Main!$C$4*$E10+Main!$C$5*CH$2*$F10 -> 3599.093407 | CI10: =CI$2*$F10*Main!$C$4*$E10+Main!$C$5*CI$2*$F10 -> 4022.838784 | CJ10: =CJ$2*$F10*Main!$C$4*$E10+Main!$C$5*CJ$2*$F10 -> 3127.89427 | CK10: =CK$2*$F10*Main!$C$4*$E10+Main!$C$5*CK$2*$F10 -> 3562.847319 | CL10: =CL$2*$F10*Main!$C$4*$E10+Main!$C$5*CL$2*$F10 -> 3997.800369 | CM10: =CM$2*$F10*Main!$C$4*$E10+Main!$C$5*CM$2*$F10 -> 3127.89427 | CN10: =CN$2*$F10*Main!$C$4*$E10+Main!$C$5*CN$2*$F10 -> 3600.762634 | CO10: =CO$2*$F10*Main!$C$4*$E10+Main!$C$5*CO$2*$F10 -> 4073.630999 | CP10: =CP$2*$F10*Main!$C$4*$E10+Main!$C$5*CP$2*$F10 -> 3316.755462 | CQ10: =CQ$2*$F10*Main!$C$4*$E10+Main!$C$5*CQ$2*$F10 -> 3775.793083 | CR10: =CR$2*$F10*Main!$C$4*$E10+Main!$C$5*CR$2*$F10 -> 4234.830704 | CS10: =CS$2*$F10*Main!$C$4*$E10+Main!$C$5*CS$2*$F10 -> 3625.324128 | CT10: =CT$2*$F10*Main!$C$4*$E10+Main!$C$5*CT$2*$F10 -> 4087.461743 | CU10: =CU$2*$F10*Main!$C$4*$E10+Main!$C$5*CU$2*$F10 -> 4549.599358 | CV10: =CV$2*$F10*Main!$C$4*$E10+Main!$C$5*CV$2*$F10 -> 3625.324128 | CW10: =CW$2*$F10*Main!$C$4*$E10+Main!$C$5*CW$2*$F10 -> 4125.377058 | CX10: =CX$2*$F10*Main!$C$4*$E10+Main!$C$5*CX$2*$F10 -> 4625.668449 | CY10: =CY$2*$F10*Main!$C$4*$E10+Main!$C$5*CY$2*$F10 -> 3814.18532 | CZ10: =CZ$2*$F10*Main!$C$4*$E10+Main!$C$5*CZ$2*$F10 -> 4300.407507 | DA10: =DA$2*$F10*Main!$C$4*$E10+Main!$C$5*DA$2*$F10 -> 4786.629693 | DB10: =DB$2*$F10*Main!$C$4*$E10+Main!$C$5*DB$2*$F10 -> 1141.036371 | DC10: =DC$2*$F10*Main!$C$4*$E10+Main!$C$5*DC$2*$F10 -> 1510.174157 | DD10: =DD$2*$F10*Main!$C$4*$E10+Main!$C$5*DD$2*$F10 -> 1879.073481 | DE10: =DE$2*$F10*Main!$C$4*$E10+Main!$C$5*DE$2*$F10 -> 2248.211266 | DF10: =DF$2*$F10*Main!$C$4*$E10+Main!$C$5*DF$2*$F10 -> 2617.349051 | DG10: =DG$2*$F10*Main!$C$4*$E10+Main!$C$5*DG$2*$F10 -> 1330.136025 | DH10: =DH$2*$F10*Main!$C$4*$E10+Main!$C$5*DH$2*$F10 -> 1661.358495 | DI10: =DI$2*$F10*Main!$C$4*$E10+Main!$C$5*DI$2*$F10 -> 1992.580965 | DJ10: =DJ$2*$F10*Main!$C$4*$E10+Main!$C$5*DJ$2*$F10 -> 2323.803435 | DK10: =DK$2*$F10*Main!$C$4*$E10+Main!$C$5*DK$2*$F10 -> 2655.025905 | DL10: =DL$2*$F10*Main!$C$4*$E10+Main!$C$5*DL$2*$F10 -> 1440.066593 | DM10: =DM$2*$F10*Main!$C$4*$E10+Main!$C$5*DM$2*$F10 -> 1787.027496 | DN10: =DN$2*$F10*Main!$C$4*$E10+Main!$C$5*DN$2*$F10 -> 2133.988398 | DO10: =DO$2*$F10*Main!$C$4*$E10+Main!$C$5*DO$2*$F10 -> 2481.187762 | DP10: =DP$2*$F10*Main!$C$4*$E10+Main!$C$5*DP$2*$F10 -> 2828.148665 | DQ10: =DQ$2*$F10*Main!$C$4*$E10+Main!$C$5*DQ$2*$F10 -> 1181.574759 | DR10: =DR$2*$F10*Main!$C$4*$E10+Main!$C$5*DR$2*$F10 -> 1570.743276 | DS10: =DS$2*$F10*Main!$C$4*$E10+Main!$C$5*DS$2*$F10 -> 1960.150255 | DT10: =DT$2*$F10*Main!$C$4*$E10+Main!$C$5*DT$2*$F10 -> 2349.318773 | DU10: =DU$2*$F10*Main!$C$4*$E10+Main!$C$5*DU$2*$F10 -> 2738.725752 | DV10: =DV$2*$F10*Main!$C$4*$E10+Main!$C$5*DV$2*$F10 -> 1370.674412 | DW10: =DW$2*$F10*Main!$C$4*$E10+Main!$C$5*DW$2*$F10 -> 1722.166076 | DX10: =DX$2*$F10*Main!$C$4*$E10+Main!$C$5*DX$2*$F10 -> 2073.419279 | DY10: =DY$2*$F10*Main!$C$4*$E10+Main!$C$5*DY$2*$F10 -> 2424.910942 | DZ10: =DZ$2*$F10*Main!$C$4*$E10+Main!$C$5*DZ$2*$F10 -> 2776.402606 | EA10: =EA$2*$F10*Main!$C$4*$E10+Main!$C$5*EA$2*$F10 -> 1480.366519 | EB10: =EB$2*$F10*Main!$C$4*$E10+Main!$C$5*EB$2*$F10 -> 1847.596615 | EC10: =EC$2*$F10*Main!$C$4*$E10+Main!$C$5*EC$2*$F10 -> 2214.826712 | ED10: =ED$2*$F10*Main!$C$4*$E10+Main!$C$5*ED$2*$F10 -> 2582.295269 | EE10: =EE$2*$F10*Main!$C$4*$E10+Main!$C$5*EE$2*$F10 -> 2949.525366 | EF10: =EF$2*$F10*Main!$C$4*$E10+Main!$C$5*EF$2*$F10 -> 1464.151164 | EG10: =EG$2*$F10*Main!$C$4*$E10+Main!$C$5*EG$2*$F10 -> 1896.481141 | EH10: =EH$2*$F10*Main!$C$4*$E10+Main!$C$5*EH$2*$F10 -> 2328.572657 | EI10: =EI$2*$F10*Main!$C$4*$E10+Main!$C$5*EI$2*$F10 -> 2760.902635 | EJ10: =EJ$2*$F10*Main!$C$4*$E10+Main!$C$5*EJ$2*$F10 -> 3193.232612 | EK10: =EK$2*$F10*Main!$C$4*$E10+Main!$C$5*EK$2*$F10 -> 1653.250818 | EL10: =EL$2*$F10*Main!$C$4*$E10+Main!$C$5*EL$2*$F10 -> 2047.66548 | EM10: =EM$2*$F10*Main!$C$4*$E10+Main!$C$5*EM$2*$F10 -> 2442.080142 | EN10: =EN$2*$F10*Main!$C$4*$E10+Main!$C$5*EN$2*$F10 -> 2836.494804 | EO10: =EO$2*$F10*Main!$C$4*$E10+Main!$C$5*EO$2*$F10 -> 3230.909466 | EP10: =EP$2*$F10*Main!$C$4*$E10+Main!$C$5*EP$2*$F10 -> 1762.942924 | EQ10: =EQ$2*$F10*Main!$C$4*$E10+Main!$C$5*EQ$2*$F10 -> 2173.33448 | ER10: =ER$2*$F10*Main!$C$4*$E10+Main!$C$5*ER$2*$F10 -> 2583.487575 | ES10: =ES$2*$F10*Main!$C$4*$E10+Main!$C$5*ES$2*$F10 -> 2993.64067 | ET10: =ET$2*$F10*Main!$C$4*$E10+Main!$C$5*ET$2*$F10 -> 3404.032226 | EU10: =EU$2*$F10*Main!$C$4*$E10+Main!$C$5*EU$2*$F10 -> 4185.469256 | EV10: =EV$2*$F10*Main!$C$4*$E10+Main!$C$5*EV$2*$F10 -> 4299.453662 | EW10: =EW$2*$F10*Main!$C$4*$E10+Main!$C$5*EW$2*$F10 -> 4446.822623 | EX10: =EX$2*$F10*Main!$C$4*$E10+Main!$C$5*EX$2*$F10 -> 4432.514957 | EY10: =EY$2*$F10*Main!$C$4*$E10+Main!$C$5*EY$2*$F10 -> 4546.737825 | EZ10: =EZ$2*$F10*Main!$C$4*$E10+Main!$C$5*EZ$2*$F10 -> 4693.868324 | FA10: =FA$2*$F10*Main!$C$4*$E10+Main!$C$5*FA$2*$F10 -> 5011.498512 | FB10: =FB$2*$F10*Main!$C$4*$E10+Main!$C$5*FB$2*$F10 -> 5125.721379 | FC10: =FC$2*$F10*Main!$C$4*$E10+Main!$C$5*FC$2*$F10 -> 5272.851879 | FD10: =IF($D10<100,(FD$2*(1+Main!$C$3)*$E10*Main!$C$4)+(FD$2*(1+Main!$C$3)*Main!$C$5),(FD$2*$E10*Main!$C$4)+(FD$2*Main!$C$5)) -> 113.1226155 | FE10: =IF($D10<100,(FE$2*(1+Main!$C$3)*$E10*Main!$C$4)+(FE$2*(1+Main!$C$3)*Main!$C$5),(FE$2*$E10*Main!$C$4)+(FE$2*Main!$C$5)) -> 123.6580762 | FF10: =IF($D10<100,(FF$2*(1+Main!$C$3)*$E10*Main!$C$4)+(FF$2*(1+Main!$C$3)*Main!$C$5),(FF$2*$E10*Main!$C$4)+(FF$2*Main!$C$5)) -> 124.5034652 | FG10: =IF($D10<100,(FG$2*(1+Main!$C$3)*$E10*Main!$C$4)+(FG$2*(1+Main!$C$3)*Main!$C$5),(FG$2*$E10*Main!$C$4)+(FG$2*Main!$C$5)) -> 134.4008965 | FH10: =IF($D10<100,(FH$2*(1+Main!$C$3)*$E10*Main!$C$4)+(FH$2*(1+Main!$C$3)*Main!$C$5),(FH$2*$E10*Main!$C$4)+(FH$2*Main!$C$5)) -> 181.32796 | FI10: =IF($D10<100,(FI$2*(1+Main!$C$3)*$E10*Main!$C$4)+(FI$2*(1+Main!$C$3)*Main!$C$5),(FI$2*$E10*Main!$C$4)+(FI$2*Main!$C$5)) -> 51.22578674
A11: AL | B11: 13820 | C11: (Bibb County, Birmingham-Hoover, Blount County, Chilton County, Jefferson County, Shelby County, St. Clair County, Walker County) | D11: 13820 | E11: 0.8118 | F11: =IF($D11<100,Main!$C$2*(1+Main!$C$3),Main!$C$2) -> 2989.97 | G11: =G$2*$F11*Main!$C$4*$E11+Main!$C$5*G$2*$F11 -> 1492.389285 | H11: =H$2*$F11*Main!$C$4*$E11+Main!$C$5*H$2*$F11 -> 1826.437834 | I11: =I$2*$F11*Main!$C$4*$E11+Main!$C$5*I$2*$F11 -> 2160.486383 | J11: =J$2*$F11*Main!$C$4*$E11+Main!$C$5*J$2*$F11 -> 2494.534932 | K11: =K$2*$F11*Main!$C$4*$E11+Main!$C$5*K$2*$F11 -> 2828.328677 | L11: =L$2*$F11*Main!$C$4*$E11+Main!$C$5*L$2*$F11 -> 1757.131041 | M11: =M$2*$F11*Main!$C$4*$E11+Main!$C$5*M$2*$F11 -> 2046.079214 | N11: =N$2*$F11*Main!$C$4*$E11+Main!$C$5*N$2*$F11 -> 2335.027387 | O11: =O$2*$F11*Main!$C$4*$E11+Main!$C$5*O$2*$F11 -> 2623.97556 | P11: =P$2*$F11*Main!$C$4*$E11+Main!$C$5*P$2*$F11 -> 2913.178537 | Q11: =Q$2*$F11*Main!$C$4*$E11+Main!$C$5*Q$2*$F11 -> 1900.840714 | R11: =R$2*$F11*Main!$C$4*$E11+Main!$C$5*R$2*$F11 -> 2198.961845 | S11: =S$2*$F11*Main!$C$4*$E11+Main!$C$5*S$2*$F11 -> 2497.082976 | T11: =T$2*$F11*Main!$C$4*$E11+Main!$C$5*T$2*$F11 -> 2795.204107 | U11: =U$2*$F11*Main!$C$4*$E11+Main!$C$5*U$2*$F11 -> 3093.325237 | V11: =V$2*$F11*Main!$C$4*$E11+Main!$C$5*V$2*$F11 -> 1578.003558 | W11: =W$2*$F11*Main!$C$4*$E11+Main!$C$5*W$2*$F11 -> 1917.657804 | X11: =X$2*$F11*Main!$C$4*$E11+Main!$C$5*X$2*$F11 -> 2257.566854 | Y11: =Y$2*$F11*Main!$C$4*$E11+Main!$C$5*Y$2*$F11 -> 2597.221099 | Z11: =Z$2*$F11*Main!$C$4*$E11+Main!$C$5*Z$2*$F11 -> 2936.875345 | AA11: =AA$2*$F11*Main!$C$4*$E11+Main!$C$5*AA$2*$F11 -> 1842.745314 | AB11: =AB$2*$F11*Main!$C$4*$E11+Main!$C$5*AB$2*$F11 -> 2137.553988 | AC11: =AC$2*$F11*Main!$C$4*$E11+Main!$C$5*AC$2*$F11 -> 2432.107857 | AD11: =AD$2*$F11*Main!$C$4*$E11+Main!$C$5*AD$2*$F11 -> 2726.916531 | AE11: =AE$2*$F11*Main!$C$4*$E11+Main!$C$5*AE$2*$F11 -> 3021.470401 | AF11: =AF$2*$F11*Main!$C$4*$E11+Main!$C$5*AF$2*$F11 -> 1986.454988 | AG11: =AG$2*$F11*Main!$C$4*$E11+Main!$C$5*AG$2*$F11 -> 2290.181815 | AH11: =AH$2*$F11*Main!$C$4*$E11+Main!$C$5*AH$2*$F11 -> 2594.163447 | AI11: =AI$2*$F11*Main!$C$4*$E11+Main!$C$5*AI$2*$F11 -> 2897.890274 | AJ11: =AJ$2*$F11*Main!$C$4*$E11+Main!$C$5*AJ$2*$F11 -> 3201.617101 | AK11: =AK$2*$F11*Main!$C$4*$E11+Main!$C$5*AK$2*$F11 -> 1692.665531 | AL11: =AL$2*$F11*Main!$C$4*$E11+Main!$C$5*AL$2*$F11 -> 2090.415177 | AM11: =AM$2*$F11*Main!$C$4*$E11+Main!$C$5*AM$2*$F11 -> 2488.164822 | AN11: =AN$2*$F11*Main!$C$4*$E11+Main!$C$5*AN$2*$F11 -> 2885.659663 | AO11: =AO$2*$F11*Main!$C$4*$E11+Main!$C$5*AO$2*$F11 -> 3283.409309 | AP11: =AP$2*$F11*Main!$C$4*$E11+Main!$C$5*AP$2*$F11 -> 1957.407288 | AQ11: =AQ$2*$F11*Main!$C$4*$E11+Main!$C$5*AQ$2*$F11 -> 2310.056557 | AR11: =AR$2*$F11*Main!$C$4*$E11+Main!$C$5*AR$2*$F11 -> 2662.705826 | AS11: =AS$2*$F11*Main!$C$4*$E11+Main!$C$5*AS$2*$F11 -> 3015.355095 | AT11: =AT$2*$F11*Main!$C$4*$E11+Main!$C$5*AT$2*$F11 -> 3368.004365 | AU11: =AU$2*$F11*Main!$C$4*$E11+Main!$C$5*AU$2*$F11 -> 2101.116961 | AV11: =AV$2*$F11*Main!$C$4*$E11+Main!$C$5*AV$2*$F11 -> 2462.939188 | AW11: =AW$2*$F11*Main!$C$4*$E11+Main!$C$5*AW$2*$F11 -> 2824.761415 | AX11: =AX$2*$F11*Main!$C$4*$E11+Main!$C$5*AX$2*$F11 -> 3186.328838 | AY11: =AY$2*$F11*Main!$C$4*$E11+Main!$C$5*AY$2*$F11 -> 3548.151065 | AZ11: =AZ$2*$F11*Main!$C$4*$E11+Main!$C$5*AZ$2*$F11 -> 3162.377226 | BA11: =BA$2*$F11*Main!$C$4*$E11+Main!$C$5*BA$2*$F11 -> 3599.111942 | BB11: =BB$2*$F11*Main!$C$4*$E11+Main!$C$5*BB$2*$F11 -> 4035.591854 | BC11: =BC$2*$F11*Main!$C$4*$E11+Main!$C$5*BC$2*$F11 -> 3202.12671 | BD11: =BD$2*$F11*Main!$C$4*$E11+Main!$C$5*BD$2*$F11 -> 3666.125495 | BE11: =BE$2*$F11*Main!$C$4*$E11+Main!$C$5*BE$2*$F11 -> 4130.124281 | BF11: =BF$2*$F11*Main!$C$4*$E11+Main!$C$5*BF$2*$F11 -> 3391.446368 | BG11: =BG$2*$F11*Main!$C$4*$E11+Main!$C$5*BG$2*$F11 -> 3844.743369 | BH11: =BH$2*$F11*Main!$C$4*$E11+Main!$C$5*BH$2*$F11 -> 4298.040371 | BI11: =BI$2*$F11*Main!$C$4*$E11+Main!$C$5*BI$2*$F11 -> 3276.52959 | BJ11: =BJ$2*$F11*Main!$C$4*$E11+Main!$C$5*BJ$2*$F11 -> 3763.205966 | BK11: =BK$2*$F11*Main!$C$4*$E11+Main!$C$5*BK$2*$F11 -> 4249.882342 | BL11: =BL$2*$F11*Main!$C$4*$E11+Main!$C$5*BL$2*$F11 -> 3316.02427 | BM11: =BM$2*$F11*Main!$C$4*$E11+Main!$C$5*BM$2*$F11 -> 3830.21952 | BN11: =BN$2*$F11*Main!$C$4*$E11+Main!$C$5*BN$2*$F11 -> 4344.159965 | BO11: =BO$2*$F11*Main!$C$4*$E11+Main!$C$5*BO$2*$F11 -> 3505.343928 | BP11: =BP$2*$F11*Main!$C$4*$E11+Main!$C$5*BP$2*$F11 -> 4008.837394 | BQ11: =BQ$2*$F11*Main!$C$4*$E11+Main!$C$5*BQ$2*$F11 -> 4512.076055 | BR11: =BR$2*$F11*Main!$C$4*$E11+Main!$C$5*BR$2*$F11 -> 3680.90415 | BS11: =BS$2*$F11*Main!$C$4*$E11+Main!$C$5*BS$2*$F11 -> 4238.925753 | BT11: =BT$2*$F11*Main!$C$4*$E11+Main!$C$5*BT$2*$F11 -> 4796.947357 | BU11: =BU$2*$F11*Main!$C$4*$E11+Main!$C$5*BU$2*$F11 -> 3720.653634 | BV11: =BV$2*$F11*Main!$C$4*$E11+Main!$C$5*BV$2*$F11 -> 4305.939307 | BW11: =BW$2*$F11*Main!$C$4*$E11+Main!$C$5*BW$2*$F11 -> 4891.479784 | BX11: =BX$2*$F11*Main!$C$4*$E11+Main!$C$5*BX$2*$F11 -> 3909.973292 | BY11: =BY$2*$F11*Main!$C$4*$E11+Main!$C$5*BY$2*$F11 -> 4484.811985 | BZ11: =BZ$2*$F11*Main!$C$4*$E11+Main!$C$5*BZ$2*$F11 -> 5059.395874 | CA11: =CA$2*$F11*Main!$C$4*$E11+Main!$C$5*CA$2*$F11 -> 3190.915317 | CB11: =CB$2*$F11*Main!$C$4*$E11+Main!$C$5*CB$2*$F11 -> 3618.222271 | CC11: =CC$2*$F11*Main!$C$4*$E11+Main!$C$5*CC$2*$F11 -> 4045.274421 | CD11: =CD$2*$F11*Main!$C$4*$E11+Main!$C$5*CD$2*$F11 -> 3190.915317 | CE11: =CE$2*$F11*Main!$C$4*$E11+Main!$C$5*CE$2*$F11 -> 3658.736168 | CF11: =CF$2*$F11*Main!$C$4*$E11+Main!$C$5*CF$2*$F11 -> 4126.55702 | CG11: =CG$2*$F11*Main!$C$4*$E11+Main!$C$5*CG$2*$F11 -> 3392.72039 | CH11: =CH$2*$F11*Main!$C$4*$E11+Main!$C$5*CH$2*$F11 -> 3845.762587 | CI11: =CI$2*$F11*Main!$C$4*$E11+Main!$C$5*CI$2*$F11 -> 4298.54998 | CJ11: =CJ$2*$F11*Main!$C$4*$E11+Main!$C$5*CJ$2*$F11 -> 3342.269122 | CK11: =CK$2*$F11*Main!$C$4*$E11+Main!$C$5*CK$2*$F11 -> 3807.03232 | CL11: =CL$2*$F11*Main!$C$4*$E11+Main!$C$5*CL$2*$F11 -> 4271.795519 | CM11: =CM$2*$F11*Main!$C$4*$E11+Main!$C$5*CM$2*$F11 -> 3342.269122 | CN11: =CN$2*$F11*Main!$C$4*$E11+Main!$C$5*CN$2*$F11 -> 3847.546218 | CO11: =CO$2*$F11*Main!$C$4*$E11+Main!$C$5*CO$2*$F11 -> 4352.823314 | CP11: =CP$2*$F11*Main!$C$4*$E11+Main!$C$5*CP$2*$F11 -> 3544.074195 | CQ11: =CQ$2*$F11*Main!$C$4*$E11+Main!$C$5*CQ$2*$F11 -> 4034.572637 | CR11: =CR$2*$F11*Main!$C$4*$E11+Main!$C$5*CR$2*$F11 -> 4525.071078 | CS11: =CS$2*$F11*Main!$C$4*$E11+Main!$C$5*CS$2*$F11 -> 3873.791069 | CT11: =CT$2*$F11*Main!$C$4*$E11+Main!$C$5*CT$2*$F11 -> 4367.601968 | CU11: =CU$2*$F11*Main!$C$4*$E11+Main!$C$5*CU$2*$F11 -> 4861.412867 | CV11: =CV$2*$F11*Main!$C$4*$E11+Main!$C$5*CV$2*$F11 -> 3873.791069 | CW11: =CW$2*$F11*Main!$C$4*$E11+Main!$C$5*CW$2*$F11 -> 4408.115865 | CX11: =CX$2*$F11*Main!$C$4*$E11+Main!$C$5*CX$2*$F11 -> 4942.695466 | CY11: =CY$2*$F11*Main!$C$4*$E11+Main!$C$5*CY$2*$F11 -> 4075.596143 | CZ11: =CZ$2*$F11*Main!$C$4*$E11+Main!$C$5*CZ$2*$F11 -> 4595.142284 | DA11: =DA$2*$F11*Main!$C$4*$E11+Main!$C$5*DA$2*$F11 -> 5114.688426 | DB11: =DB$2*$F11*Main!$C$4*$E11+Main!$C$5*DB$2*$F11 -> 1219.238984 | DC11: =DC$2*$F11*Main!$C$4*$E11+Main!$C$5*DC$2*$F11 -> 1613.676172 | DD11: =DD$2*$F11*Main!$C$4*$E11+Main!$C$5*DD$2*$F11 -> 2007.858556 | DE11: =DE$2*$F11*Main!$C$4*$E11+Main!$C$5*DE$2*$F11 -> 2402.295744 | DF11: =DF$2*$F11*Main!$C$4*$E11+Main!$C$5*DF$2*$F11 -> 2796.732933 | DG11: =DG$2*$F11*Main!$C$4*$E11+Main!$C$5*DG$2*$F11 -> 1421.298861 | DH11: =DH$2*$F11*Main!$C$4*$E11+Main!$C$5*DH$2*$F11 -> 1775.222152 | DI11: =DI$2*$F11*Main!$C$4*$E11+Main!$C$5*DI$2*$F11 -> 2129.145443 | DJ11: =DJ$2*$F11*Main!$C$4*$E11+Main!$C$5*DJ$2*$F11 -> 2483.068735 | DK11: =DK$2*$F11*Main!$C$4*$E11+Main!$C$5*DK$2*$F11 -> 2836.992026 | DL11: =DL$2*$F11*Main!$C$4*$E11+Main!$C$5*DL$2*$F11 -> 1538.763683 | DM11: =DM$2*$F11*Main!$C$4*$E11+Main!$C$5*DM$2*$F11 -> 1909.504063 | DN11: =DN$2*$F11*Main!$C$4*$E11+Main!$C$5*DN$2*$F11 -> 2280.244444 | DO11: =DO$2*$F11*Main!$C$4*$E11+Main!$C$5*DO$2*$F11 -> 2651.239629 | DP11: =DP$2*$F11*Main!$C$4*$E11+Main!$C$5*DP$2*$F11 -> 3021.980009 | DQ11: =DQ$2*$F11*Main!$C$4*$E11+Main!$C$5*DQ$2*$F11 -> 1262.555729 | DR11: =DR$2*$F11*Main!$C$4*$E11+Main!$C$5*DR$2*$F11 -> 1678.396486 | DS11: =DS$2*$F11*Main!$C$4*$E11+Main!$C$5*DS$2*$F11 -> 2094.492047 | DT11: =DT$2*$F11*Main!$C$4*$E11+Main!$C$5*DT$2*$F11 -> 2510.332804 | DU11: =DU$2*$F11*Main!$C$4*$E11+Main!$C$5*DU$2*$F11 -> 2926.428365 | DV11: =DV$2*$F11*Main!$C$4*$E11+Main!$C$5*DV$2*$F11 -> 1464.615607 | DW11: =DW$2*$F11*Main!$C$4*$E11+Main!$C$5*DW$2*$F11 -> 1840.19727 | DX11: =DX$2*$F11*Main!$C$4*$E11+Main!$C$5*DX$2*$F11 -> 2215.52413 | DY11: =DY$2*$F11*Main!$C$4*$E11+Main!$C$5*DY$2*$F11 -> 2591.105794 | DZ11: =DZ$2*$F11*Main!$C$4*$E11+Main!$C$5*DZ$2*$F11 -> 2966.687458 | EA11: =EA$2*$F11*Main!$C$4*$E11+Main!$C$5*EA$2*$F11 -> 1581.825624 | EB11: =EB$2*$F11*Main!$C$4*$E11+Main!$C$5*EB$2*$F11 -> 1974.224377 | EC11: =EC$2*$F11*Main!$C$4*$E11+Main!$C$5*EC$2*$F11 -> 2366.62313 | ED11: =ED$2*$F11*Main!$C$4*$E11+Main!$C$5*ED$2*$F11 -> 2759.276688 | EE11: =EE$2*$F11*Main!$C$4*$E11+Main!$C$5*EE$2*$F11 -> 3151.675442 | EF11: =EF$2*$F11*Main!$C$4*$E11+Main!$C$5*EF$2*$F11 -> 1564.498926 | EG11: =EG$2*$F11*Main!$C$4*$E11+Main!$C$5*EG$2*$F11 -> 2026.459276 | EH11: =EH$2*$F11*Main!$C$4*$E11+Main!$C$5*EH$2*$F11 -> 2488.164822 | EI11: =EI$2*$F11*Main!$C$4*$E11+Main!$C$5*EI$2*$F11 -> 2950.125173 | EJ11: =EJ$2*$F11*Main!$C$4*$E11+Main!$C$5*EJ$2*$F11 -> 3412.085523 | EK11: =EK$2*$F11*Main!$C$4*$E11+Main!$C$5*EK$2*$F11 -> 1766.558803 | EL11: =EL$2*$F11*Main!$C$4*$E11+Main!$C$5*EL$2*$F11 -> 2188.005256 | EM11: =EM$2*$F11*Main!$C$4*$E11+Main!$C$5*EM$2*$F11 -> 2609.45171 | EN11: =EN$2*$F11*Main!$C$4*$E11+Main!$C$5*EN$2*$F11 -> 3030.898163 | EO11: =EO$2*$F11*Main!$C$4*$E11+Main!$C$5*EO$2*$F11 -> 3452.344616 | EP11: =EP$2*$F11*Main!$C$4*$E11+Main!$C$5*EP$2*$F11 -> 1883.76882 | EQ11: =EQ$2*$F11*Main!$C$4*$E11+Main!$C$5*EQ$2*$F11 -> 2322.287167 | ER11: =ER$2*$F11*Main!$C$4*$E11+Main!$C$5*ER$2*$F11 -> 2760.55071 | ES11: =ES$2*$F11*Main!$C$4*$E11+Main!$C$5*ES$2*$F11 -> 3198.814253 | ET11: =ET$2*$F11*Main!$C$4*$E11+Main!$C$5*ET$2*$F11 -> 3637.3326 | EU11: =EU$2*$F11*Main!$C$4*$E11+Main!$C$5*EU$2*$F11 -> 4472.32657 | EV11: =EV$2*$F11*Main!$C$4*$E11+Main!$C$5*EV$2*$F11 -> 4594.123067 | EW11: =EW$2*$F11*Main!$C$4*$E11+Main!$C$5*EW$2*$F11 -> 4751.592177 | EX11: =EX$2*$F11*Main!$C$4*$E11+Main!$C$5*EX$2*$F11 -> 4736.303914 | EY11: =EY$2*$F11*Main!$C$4*$E11+Main!$C$5*EY$2*$F11 -> 4858.355214 | EZ11: =EZ$2*$F11*Main!$C$4*$E11+Main!$C$5*EZ$2*$F11 -> 5015.56952 | FA11: =FA$2*$F11*Main!$C$4*$E11+Main!$C$5*FA$2*$F11 -> 5354.968961 | FB11: =FB$2*$F11*Main!$C$4*$E11+Main!$C$5*FB$2*$F11 -> 5477.020262 | FC11: =FC$2*$F11*Main!$C$4*$E11+Main!$C$5*FC$2*$F11 -> 5634.234567 | FD11: =IF($D11<100,(FD$2*(1+Main!$C$3)*$E11*Main!$C$4)+(FD$2*(1+Main!$C$3)*Main!$C$5),(FD$2*$E11*Main!$C$4)+(FD$2*Main!$C$5)) -> 120.8756409 | FE11: =IF($D11<100,(FE$2*(1+Main!$C$3)*$E11*Main!$C$4)+(FE$2*(1+Main!$C$3)*Main!$C$5),(FE$2*$E11*Main!$C$4)+(FE$2*Main!$C$5)) -> 132.133165 | FF11: =IF($D11<100,(FF$2*(1+Main!$C$3)*$E11*Main!$C$4)+(FF$2*(1+Main!$C$3)*Main!$C$5),(FF$2*$E11*Main!$C$4)+(FF$2*Main!$C$5)) -> 133.036494 | FG11: =IF($D11<100,(FG$2*(1+Main!$C$3)*$E11*Main!$C$4)+(FG$2*(1+Main!$C$3)*Main!$C$5),(FG$2*$E11*Main!$C$4)+(FG$2*Main!$C$5)) -> 143.6122603 | FH11: =IF($D11<100,(FH$2*(1+Main!$C$3)*$E11*Main!$C$4)+(FH$2*(1+Main!$C$3)*Main!$C$5),(FH$2*$E11*Main!$C$4)+(FH$2*Main!$C$5)) -> 193.7555395 | FI11: =IF($D11<100,(FI$2*(1+Main!$C$3)*$E11*Main!$C$4)+(FI$2*(1+Main!$C$3)*Main!$C$5),(FI$2*$E11*Main!$C$4)+(FI$2*Main!$C$5)) -> 54.73662166
A12: AL | B12: 17980 | C12: (Columbus, Russell County) | D12: 17980 | E12: 0.8254 | F12: =IF($D12<100,Main!$C$2*(1+Main!$C$3),Main!$C$2) -> 2989.97 | G12: =G$2*$F12*Main!$C$4*$E12+Main!$C$5*G$2*$F12 -> 1511.093703 | H12: =H$2*$F12*Main!$C$4*$E12+Main!$C$5*H$2*$F12 -> 1849.328951 | I12: =I$2*$F12*Main!$C$4*$E12+Main!$C$5*I$2*$F12 -> 2187.564198 | J12: =J$2*$F12*Main!$C$4*$E12+Main!$C$5*J$2*$F12 -> 2525.799446 | K12: =K$2*$F12*Main!$C$4*$E12+Main!$C$5*K$2*$F12 -> 2863.776695 | L12: =L$2*$F12*Main!$C$4*$E12+Main!$C$5*L$2*$F12 -> 1779.153522 | M12: =M$2*$F12*Main!$C$4*$E12+Main!$C$5*M$2*$F12 -> 2071.723141 | N12: =N$2*$F12*Main!$C$4*$E12+Main!$C$5*N$2*$F12 -> 2364.29276 | O12: =O$2*$F12*Main!$C$4*$E12+Main!$C$5*O$2*$F12 -> 2656.862379 | P12: =P$2*$F12*Main!$C$4*$E12+Main!$C$5*P$2*$F12 -> 2949.689996 | Q12: =Q$2*$F12*Main!$C$4*$E12+Main!$C$5*Q$2*$F12 -> 1924.664338 | R12: =R$2*$F12*Main!$C$4*$E12+Main!$C$5*R$2*$F12 -> 2226.521881 | S12: =S$2*$F12*Main!$C$4*$E12+Main!$C$5*S$2*$F12 -> 2528.379425 | T12: =T$2*$F12*Main!$C$4*$E12+Main!$C$5*T$2*$F12 -> 2830.236968 | U12: =U$2*$F12*Main!$C$4*$E12+Main!$C$5*U$2*$F12 -> 3132.094512 | V12: =V$2*$F12*Main!$C$4*$E12+Main!$C$5*V$2*$F12 -> 1597.780998 | W12: =W$2*$F12*Main!$C$4*$E12+Main!$C$5*W$2*$F12 -> 1941.692199 | X12: =X$2*$F12*Main!$C$4*$E12+Main!$C$5*X$2*$F12 -> 2285.861398 | Y12: =Y$2*$F12*Main!$C$4*$E12+Main!$C$5*Y$2*$F12 -> 2629.7726 | Z12: =Z$2*$F12*Main!$C$4*$E12+Main!$C$5*Z$2*$F12 -> 2973.683801 | AA12: =AA$2*$F12*Main!$C$4*$E12+Main!$C$5*AA$2*$F12 -> 1865.840816 | AB12: =AB$2*$F12*Main!$C$4*$E12+Main!$C$5*AB$2*$F12 -> 2164.344387 | AC12: =AC$2*$F12*Main!$C$4*$E12+Main!$C$5*AC$2*$F12 -> 2462.58996 | AD12: =AD$2*$F12*Main!$C$4*$E12+Main!$C$5*AD$2*$F12 -> 2761.093531 | AE12: =AE$2*$F12*Main!$C$4*$E12+Main!$C$5*AE$2*$F12 -> 3059.339104 | AF12: =AF$2*$F12*Main!$C$4*$E12+Main!$C$5*AF$2*$F12 -> 2011.351632 | AG12: =AG$2*$F12*Main!$C$4*$E12+Main!$C$5*AG$2*$F12 -> 2318.885129 | AH12: =AH$2*$F12*Main!$C$4*$E12+Main!$C$5*AH$2*$F12 -> 2626.676625 | AI12: =AI$2*$F12*Main!$C$4*$E12+Main!$C$5*AI$2*$F12 -> 2934.210122 | AJ12: =AJ$2*$F12*Main!$C$4*$E12+Main!$C$5*AJ$2*$F12 -> 3241.743619 | AK12: =AK$2*$F12*Main!$C$4*$E12+Main!$C$5*AK$2*$F12 -> 1713.880053 | AL12: =AL$2*$F12*Main!$C$4*$E12+Main!$C$5*AL$2*$F12 -> 2116.614776 | AM12: =AM$2*$F12*Main!$C$4*$E12+Main!$C$5*AM$2*$F12 -> 2519.349498 | AN12: =AN$2*$F12*Main!$C$4*$E12+Main!$C$5*AN$2*$F12 -> 2921.826223 | AO12: =AO$2*$F12*Main!$C$4*$E12+Main!$C$5*AO$2*$F12 -> 3324.560946 | AP12: =AP$2*$F12*Main!$C$4*$E12+Main!$C$5*AP$2*$F12 -> 1981.939871 | AQ12: =AQ$2*$F12*Main!$C$4*$E12+Main!$C$5*AQ$2*$F12 -> 2339.008966 | AR12: =AR$2*$F12*Main!$C$4*$E12+Main!$C$5*AR$2*$F12 -> 2696.07806 | AS12: =AS$2*$F12*Main!$C$4*$E12+Main!$C$5*AS$2*$F12 -> 3053.147154 | AT12: =AT$2*$F12*Main!$C$4*$E12+Main!$C$5*AT$2*$F12 -> 3410.216248 | AU12: =AU$2*$F12*Main!$C$4*$E12+Main!$C$5*AU$2*$F12 -> 2127.450687 | AV12: =AV$2*$F12*Main!$C$4*$E12+Main!$C$5*AV$2*$F12 -> 2493.807706 | AW12: =AW$2*$F12*Main!$C$4*$E12+Main!$C$5*AW$2*$F12 -> 2860.164725 | AX12: =AX$2*$F12*Main!$C$4*$E12+Main!$C$5*AX$2*$F12 -> 3226.263745 | AY12: =AY$2*$F12*Main!$C$4*$E12+Main!$C$5*AY$2*$F12 -> 3592.620764 | AZ12: =AZ$2*$F12*Main!$C$4*$E12+Main!$C$5*AZ$2*$F12 -> 3202.011943 | BA12: =BA$2*$F12*Main!$C$4*$E12+Main!$C$5*BA$2*$F12 -> 3644.220344 | BB12: =BB$2*$F12*Main!$C$4*$E12+Main!$C$5*BB$2*$F12 -> 4086.170748 | BC12: =BC$2*$F12*Main!$C$4*$E12+Main!$C$5*BC$2*$F12 -> 3242.259615 | BD12: =BD$2*$F12*Main!$C$4*$E12+Main!$C$5*BD$2*$F12 -> 3712.073792 | BE12: =BE$2*$F12*Main!$C$4*$E12+Main!$C$5*BE$2*$F12 -> 4181.887969 | BF12: =BF$2*$F12*Main!$C$4*$E12+Main!$C$5*BF$2*$F12 -> 3433.952055 | BG12: =BG$2*$F12*Main!$C$4*$E12+Main!$C$5*BG$2*$F12 -> 3892.93032 | BH12: =BH$2*$F12*Main!$C$4*$E12+Main!$C$5*BH$2*$F12 -> 4351.908585 | BI12: =BI$2*$F12*Main!$C$4*$E12+Main!$C$5*BI$2*$F12 -> 3317.595002 | BJ12: =BJ$2*$F12*Main!$C$4*$E12+Main!$C$5*BJ$2*$F12 -> 3810.370992 | BK12: =BK$2*$F12*Main!$C$4*$E12+Main!$C$5*BK$2*$F12 -> 4303.146982 | BL12: =BL$2*$F12*Main!$C$4*$E12+Main!$C$5*BL$2*$F12 -> 3357.584677 | BM12: =BM$2*$F12*Main!$C$4*$E12+Main!$C$5*BM$2*$F12 -> 3878.22444 | BN12: =BN$2*$F12*Main!$C$4*$E12+Main!$C$5*BN$2*$F12 -> 4398.606205 | BO12: =BO$2*$F12*Main!$C$4*$E12+Main!$C$5*BO$2*$F12 -> 3549.277117 | BP12: =BP$2*$F12*Main!$C$4*$E12+Main!$C$5*BP$2*$F12 -> 4059.080968 | BQ12: =BQ$2*$F12*Main!$C$4*$E12+Main!$C$5*BQ$2*$F12 -> 4568.626822 | BR12: =BR$2*$F12*Main!$C$4*$E12+Main!$C$5*BR$2*$F12 -> 3727.03767 | BS12: =BS$2*$F12*Main!$C$4*$E12+Main!$C$5*BS$2*$F12 -> 4292.053072 | BT12: =BT$2*$F12*Main!$C$4*$E12+Main!$C$5*BT$2*$F12 -> 4857.068474 | BU12: =BU$2*$F12*Main!$C$4*$E12+Main!$C$5*BU$2*$F12 -> 3767.285343 | BV12: =BV$2*$F12*Main!$C$4*$E12+Main!$C$5*BV$2*$F12 -> 4359.90652 | BW12: =BW$2*$F12*Main!$C$4*$E12+Main!$C$5*BW$2*$F12 -> 4952.785695 | BX12: =BX$2*$F12*Main!$C$4*$E12+Main!$C$5*BX$2*$F12 -> 3958.977783 | BY12: =BY$2*$F12*Main!$C$4*$E12+Main!$C$5*BY$2*$F12 -> 4541.021046 | BZ12: =BZ$2*$F12*Main!$C$4*$E12+Main!$C$5*BZ$2*$F12 -> 5122.806312 | CA12: =CA$2*$F12*Main!$C$4*$E12+Main!$C$5*CA$2*$F12 -> 3230.907708 | CB12: =CB$2*$F12*Main!$C$4*$E12+Main!$C$5*CB$2*$F12 -> 3663.570187 | CC12: =CC$2*$F12*Main!$C$4*$E12+Main!$C$5*CC$2*$F12 -> 4095.974668 | CD12: =CD$2*$F12*Main!$C$4*$E12+Main!$C$5*CD$2*$F12 -> 3230.907708 | CE12: =CE$2*$F12*Main!$C$4*$E12+Main!$C$5*CE$2*$F12 -> 3704.591853 | CF12: =CF$2*$F12*Main!$C$4*$E12+Main!$C$5*CF$2*$F12 -> 4178.275998 | CG12: =CG$2*$F12*Main!$C$4*$E12+Main!$C$5*CG$2*$F12 -> 3435.242045 | CH12: =CH$2*$F12*Main!$C$4*$E12+Main!$C$5*CH$2*$F12 -> 3893.962312 | CI12: =CI$2*$F12*Main!$C$4*$E12+Main!$C$5*CI$2*$F12 -> 4352.424581 | CJ12: =CJ$2*$F12*Main!$C$4*$E12+Main!$C$5*CJ$2*$F12 -> 3384.158461 | CK12: =CK$2*$F12*Main!$C$4*$E12+Main!$C$5*CK$2*$F12 -> 3854.746631 | CL12: =CL$2*$F12*Main!$C$4*$E12+Main!$C$5*CL$2*$F12 -> 4325.334801 | CM12: =CM$2*$F12*Main!$C$4*$E12+Main!$C$5*CM$2*$F12 -> 3384.158461 | CN12: =CN$2*$F12*Main!$C$4*$E12+Main!$C$5*CN$2*$F12 -> 3895.768297 | CO12: =CO$2*$F12*Main!$C$4*$E12+Main!$C$5*CO$2*$F12 -> 4407.378134 | CP12: =CP$2*$F12*Main!$C$4*$E12+Main!$C$5*CP$2*$F12 -> 3588.492798 | CQ12: =CQ$2*$F12*Main!$C$4*$E12+Main!$C$5*CQ$2*$F12 -> 4085.138756 | CR12: =CR$2*$F12*Main!$C$4*$E12+Main!$C$5*CR$2*$F12 -> 4581.784715 | CS12: =CS$2*$F12*Main!$C$4*$E12+Main!$C$5*CS$2*$F12 -> 3922.342081 | CT12: =CT$2*$F12*Main!$C$4*$E12+Main!$C$5*CT$2*$F12 -> 4422.342012 | CU12: =CU$2*$F12*Main!$C$4*$E12+Main!$C$5*CU$2*$F12 -> 4922.341943 | CV12: =CV$2*$F12*Main!$C$4*$E12+Main!$C$5*CV$2*$F12 -> 3922.342081 | CW12: =CW$2*$F12*Main!$C$4*$E12+Main!$C$5*CW$2*$F12 -> 4463.363678 | CX12: =CX$2*$F12*Main!$C$4*$E12+Main!$C$5*CX$2*$F12 -> 5004.643273 | CY12: =CY$2*$F12*Main!$C$4*$E12+Main!$C$5*CY$2*$F12 -> 4126.676418 | CZ12: =CZ$2*$F12*Main!$C$4*$E12+Main!$C$5*CZ$2*$F12 -> 4652.734137 | DA12: =DA$2*$F12*Main!$C$4*$E12+Main!$C$5*DA$2*$F12 -> 5178.791856 | DB12: =DB$2*$F12*Main!$C$4*$E12+Main!$C$5*DB$2*$F12 -> 1234.519954 | DC12: =DC$2*$F12*Main!$C$4*$E12+Main!$C$5*DC$2*$F12 -> 1633.900704 | DD12: =DD$2*$F12*Main!$C$4*$E12+Main!$C$5*DD$2*$F12 -> 2033.023456 | DE12: =DE$2*$F12*Main!$C$4*$E12+Main!$C$5*DE$2*$F12 -> 2432.404206 | DF12: =DF$2*$F12*Main!$C$4*$E12+Main!$C$5*DF$2*$F12 -> 2831.784956 | DG12: =DG$2*$F12*Main!$C$4*$E12+Main!$C$5*DG$2*$F12 -> 1439.112289 | DH12: =DH$2*$F12*Main!$C$4*$E12+Main!$C$5*DH$2*$F12 -> 1797.471373 | DI12: =DI$2*$F12*Main!$C$4*$E12+Main!$C$5*DI$2*$F12 -> 2155.830456 | DJ12: =DJ$2*$F12*Main!$C$4*$E12+Main!$C$5*DJ$2*$F12 -> 2514.18954 | DK12: =DK$2*$F12*Main!$C$4*$E12+Main!$C$5*DK$2*$F12 -> 2872.548624 | DL12: =DL$2*$F12*Main!$C$4*$E12+Main!$C$5*DL$2*$F12 -> 1558.049321 | DM12: =DM$2*$F12*Main!$C$4*$E12+Main!$C$5*DM$2*$F12 -> 1933.436266 | DN12: =DN$2*$F12*Main!$C$4*$E12+Main!$C$5*DN$2*$F12 -> 2308.823211 | DO12: =DO$2*$F12*Main!$C$4*$E12+Main!$C$5*DO$2*$F12 -> 2684.468154 | DP12: =DP$2*$F12*Main!$C$4*$E12+Main!$C$5*DP$2*$F12 -> 3059.8551 | DQ12: =DQ$2*$F12*Main!$C$4*$E12+Main!$C$5*DQ$2*$F12 -> 1278.379597 | DR12: =DR$2*$F12*Main!$C$4*$E12+Main!$C$5*DR$2*$F12 -> 1699.43217 | DS12: =DS$2*$F12*Main!$C$4*$E12+Main!$C$5*DS$2*$F12 -> 2120.742742 | DT12: =DT$2*$F12*Main!$C$4*$E12+Main!$C$5*DT$2*$F12 -> 2541.795315 | DU12: =DU$2*$F12*Main!$C$4*$E12+Main!$C$5*DU$2*$F12 -> 2963.105887 | DV12: =DV$2*$F12*Main!$C$4*$E12+Main!$C$5*DV$2*$F12 -> 1482.971932 | DW12: =DW$2*$F12*Main!$C$4*$E12+Main!$C$5*DW$2*$F12 -> 1863.260837 | DX12: =DX$2*$F12*Main!$C$4*$E12+Main!$C$5*DX$2*$F12 -> 2243.291745 | DY12: =DY$2*$F12*Main!$C$4*$E12+Main!$C$5*DY$2*$F12 -> 2623.58065 | DZ12: =DZ$2*$F12*Main!$C$4*$E12+Main!$C$5*DZ$2*$F12 -> 3003.869555 | EA12: =EA$2*$F12*Main!$C$4*$E12+Main!$C$5*EA$2*$F12 -> 1601.650966 | EB12: =EB$2*$F12*Main!$C$4*$E12+Main!$C$5*EB$2*$F12 -> 1998.967733 | EC12: =EC$2*$F12*Main!$C$4*$E12+Main!$C$5*EC$2*$F12 -> 2396.2845 | ED12: =ED$2*$F12*Main!$C$4*$E12+Main!$C$5*ED$2*$F12 -> 2793.859264 | EE12: =EE$2*$F12*Main!$C$4*$E12+Main!$C$5*EE$2*$F12 -> 3191.176031 | EF12: =EF$2*$F12*Main!$C$4*$E12+Main!$C$5*EF$2*$F12 -> 1584.107109 | EG12: =EG$2*$F12*Main!$C$4*$E12+Main!$C$5*EG$2*$F12 -> 2051.857302 | EH12: =EH$2*$F12*Main!$C$4*$E12+Main!$C$5*EH$2*$F12 -> 2519.349498 | EI12: =EI$2*$F12*Main!$C$4*$E12+Main!$C$5*EI$2*$F12 -> 2987.099692 | EJ12: =EJ$2*$F12*Main!$C$4*$E12+Main!$C$5*EJ$2*$F12 -> 3454.849885 | EK12: =EK$2*$F12*Main!$C$4*$E12+Main!$C$5*EK$2*$F12 -> 1788.699444 | EL12: =EL$2*$F12*Main!$C$4*$E12+Main!$C$5*EL$2*$F12 -> 2215.427971 | EM12: =EM$2*$F12*Main!$C$4*$E12+Main!$C$5*EM$2*$F12 -> 2642.156499 | EN12: =EN$2*$F12*Main!$C$4*$E12+Main!$C$5*EN$2*$F12 -> 3068.885026 | EO12: =EO$2*$F12*Main!$C$4*$E12+Main!$C$5*EO$2*$F12 -> 3495.613554 | EP12: =EP$2*$F12*Main!$C$4*$E12+Main!$C$5*EP$2*$F12 -> 1907.378478 | EQ12: =EQ$2*$F12*Main!$C$4*$E12+Main!$C$5*EQ$2*$F12 -> 2351.392865 | ER12: =ER$2*$F12*Main!$C$4*$E12+Main!$C$5*ER$2*$F12 -> 2795.149254 | ES12: =ES$2*$F12*Main!$C$4*$E12+Main!$C$5*ES$2*$F12 -> 3238.905643 | ET12: =ET$2*$F12*Main!$C$4*$E12+Main!$C$5*ET$2*$F12 -> 3682.920029 | EU12: =EU$2*$F12*Main!$C$4*$E12+Main!$C$5*EU$2*$F12 -> 4528.379149 | EV12: =EV$2*$F12*Main!$C$4*$E12+Main!$C$5*EV$2*$F12 -> 4651.702146 | EW12: =EW$2*$F12*Main!$C$4*$E12+Main!$C$5*EW$2*$F12 -> 4811.144848 | EX12: =EX$2*$F12*Main!$C$4*$E12+Main!$C$5*EX$2*$F12 -> 4795.664974 | EY12: =EY$2*$F12*Main!$C$4*$E12+Main!$C$5*EY$2*$F12 -> 4919.245968 | EZ12: =EZ$2*$F12*Main!$C$4*$E12+Main!$C$5*EZ$2*$F12 -> 5078.430673 | FA12: =FA$2*$F12*Main!$C$4*$E12+Main!$C$5*FA$2*$F12 -> 5422.083876 | FB12: =FB$2*$F12*Main!$C$4*$E12+Main!$C$5*FB$2*$F12 -> 5545.664871 | FC12: =FC$2*$F12*Main!$C$4*$E12+Main!$C$5*FC$2*$F12 -> 5704.849575 | FD12: =IF($D12<100,(FD$2*(1+Main!$C$3)*$E12*Main!$C$4)+(FD$2*(1+Main!$C$3)*Main!$C$5),(FD$2*$E12*Main!$C$4)+(FD$2*Main!$C$5)) -> 122.3905999 | FE12: =IF($D12<100,(FE$2*(1+Main!$C$3)*$E12*Main!$C$4)+(FE$2*(1+Main!$C$3)*Main!$C$5),(FE$2*$E12*Main!$C$4)+(FE$2*Main!$C$5)) -> 133.7892168 | FF12: =IF($D12<100,(FF$2*(1+Main!$C$3)*$E12*Main!$C$4)+(FF$2*(1+Main!$C$3)*Main!$C$5),(FF$2*$E12*Main!$C$4)+(FF$2*Main!$C$5)) -> 134.7038674 | FG12: =IF($D12<100,(FG$2*(1+Main!$C$3)*$E12*Main!$C$4)+(FG$2*(1+Main!$C$3)*Main!$C$5),(FG$2*$E12*Main!$C$4)+(FG$2*Main!$C$5)) -> 145.412182 | FH12: =IF($D12<100,(FH$2*(1+Main!$C$3)*$E12*Main!$C$4)+(FH$2*(1+Main!$C$3)*Main!$C$5),(FH$2*$E12*Main!$C$4)+(FH$2*Main!$C$5)) -> 196.1839171 | FI12: =IF($D12<100,(FI$2*(1+Main!$C$3)*$E12*Main!$C$4)+(FI$2*(1+Main!$C$3)*Main!$C$5),(FI$2*$E12*Main!$C$4)+(FI$2*Main!$C$5)) -> 55.42264687
A13: AL | B13: 19300 | C13: (Baldwin County, Daphne-Fairhope-Foley) | D13: 19300 | E13: 0.7246 | F13: =IF($D13<100,Main!$C$2*(1+Main!$C$3),Main!$C$2) -> 2989.97 | G13: =G$2*$F13*Main!$C$4*$E13+Main!$C$5*G$2*$F13 -> 1372.460954 | H13: =H$2*$F13*Main!$C$4*$E13+Main!$C$5*H$2*$F13 -> 1679.665378 | I13: =I$2*$F13*Main!$C$4*$E13+Main!$C$5*I$2*$F13 -> 1986.869802 | J13: =J$2*$F13*Main!$C$4*$E13+Main!$C$5*J$2*$F13 -> 2294.074226 | K13: =K$2*$F13*Main!$C$4*$E13+Main!$C$5*K$2*$F13 -> 2601.044321 | L13: =L$2*$F13*Main!$C$4*$E13+Main!$C$5*L$2*$F13 -> 1615.928076 | M13: =M$2*$F13*Main!$C$4*$E13+Main!$C$5*M$2*$F13 -> 1881.656387 | N13: =N$2*$F13*Main!$C$4*$E13+Main!$C$5*N$2*$F13 -> 2147.384699 | O13: =O$2*$F13*Main!$C$4*$E13+Main!$C$5*O$2*$F13 -> 2413.113011 | P13: =P$2*$F13*Main!$C$4*$E13+Main!$C$5*P$2*$F13 -> 2679.075651 | Q13: =Q$2*$F13*Main!$C$4*$E13+Main!$C$5*Q$2*$F13 -> 1748.089247 | R13: =R$2*$F13*Main!$C$4*$E13+Main!$C$5*R$2*$F13 -> 2022.253378 | S13: =S$2*$F13*Main!$C$4*$E13+Main!$C$5*S$2*$F13 -> 2296.417509 | T13: =T$2*$F13*Main!$C$4*$E13+Main!$C$5*T$2*$F13 -> 2570.58164 | U13: =U$2*$F13*Main!$C$4*$E13+Main!$C$5*U$2*$F13 -> 2844.745771 | V13: =V$2*$F13*Main!$C$4*$E13+Main!$C$5*V$2*$F13 -> 1451.195269 | W13: =W$2*$F13*Main!$C$4*$E13+Main!$C$5*W$2*$F13 -> 1763.554916 | X13: =X$2*$F13*Main!$C$4*$E13+Main!$C$5*X$2*$F13 -> 2076.148891 | Y13: =Y$2*$F13*Main!$C$4*$E13+Main!$C$5*Y$2*$F13 -> 2388.508538 | Z13: =Z$2*$F13*Main!$C$4*$E13+Main!$C$5*Z$2*$F13 -> 2700.868185 | AA13: =AA$2*$F13*Main!$C$4*$E13+Main!$C$5*AA$2*$F13 -> 1694.66239 | AB13: =AB$2*$F13*Main!$C$4*$E13+Main!$C$5*AB$2*$F13 -> 1965.780253 | AC13: =AC$2*$F13*Main!$C$4*$E13+Main!$C$5*AC$2*$F13 -> 2236.663788 | AD13: =AD$2*$F13*Main!$C$4*$E13+Main!$C$5*AD$2*$F13 -> 2507.781651 | AE13: =AE$2*$F13*Main!$C$4*$E13+Main!$C$5*AE$2*$F13 -> 2778.665186 | AF13: =AF$2*$F13*Main!$C$4*$E13+Main!$C$5*AF$2*$F13 -> 1826.823561 | AG13: =AG$2*$F13*Main!$C$4*$E13+Main!$C$5*AG$2*$F13 -> 2106.142915 | AH13: =AH$2*$F13*Main!$C$4*$E13+Main!$C$5*AH$2*$F13 -> 2385.696598 | AI13: =AI$2*$F13*Main!$C$4*$E13+Main!$C$5*AI$2*$F13 -> 2665.015952 | AJ13: =AJ$2*$F13*Main!$C$4*$E13+Main!$C$5*AJ$2*$F13 -> 2944.335306 | AK13: =AK$2*$F13*Main!$C$4*$E13+Main!$C$5*AK$2*$F13 -> 1556.643011 | AL13: =AL$2*$F13*Main!$C$4*$E13+Main!$C$5*AL$2*$F13 -> 1922.429515 | AM13: =AM$2*$F13*Main!$C$4*$E13+Main!$C$5*AM$2*$F13 -> 2288.216018 | AN13: =AN$2*$F13*Main!$C$4*$E13+Main!$C$5*AN$2*$F13 -> 2653.768193 | AO13: =AO$2*$F13*Main!$C$4*$E13+Main!$C$5*AO$2*$F13 -> 3019.554696 | AP13: =AP$2*$F13*Main!$C$4*$E13+Main!$C$5*AP$2*$F13 -> 1800.110133 | AQ13: =AQ$2*$F13*Main!$C$4*$E13+Main!$C$5*AQ$2*$F13 -> 2124.420524 | AR13: =AR$2*$F13*Main!$C$4*$E13+Main!$C$5*AR$2*$F13 -> 2448.730915 | AS13: =AS$2*$F13*Main!$C$4*$E13+Main!$C$5*AS$2*$F13 -> 2773.041306 | AT13: =AT$2*$F13*Main!$C$4*$E13+Main!$C$5*AT$2*$F13 -> 3097.351697 | AU13: =AU$2*$F13*Main!$C$4*$E13+Main!$C$5*AU$2*$F13 -> 1932.271304 | AV13: =AV$2*$F13*Main!$C$4*$E13+Main!$C$5*AV$2*$F13 -> 2265.017515 | AW13: =AW$2*$F13*Main!$C$4*$E13+Main!$C$5*AW$2*$F13 -> 2597.763725 | AX13: =AX$2*$F13*Main!$C$4*$E13+Main!$C$5*AX$2*$F13 -> 2930.275607 | AY13: =AY$2*$F13*Main!$C$4*$E13+Main!$C$5*AY$2*$F13 -> 3263.021818 | AZ13: =AZ$2*$F13*Main!$C$4*$E13+Main!$C$5*AZ$2*$F13 -> 2908.248745 | BA13: =BA$2*$F13*Main!$C$4*$E13+Main!$C$5*BA$2*$F13 -> 3309.887481 | BB13: =BB$2*$F13*Main!$C$4*$E13+Main!$C$5*BB$2*$F13 -> 3711.291889 | BC13: =BC$2*$F13*Main!$C$4*$E13+Main!$C$5*BC$2*$F13 -> 2944.803963 | BD13: =BD$2*$F13*Main!$C$4*$E13+Main!$C$5*BD$2*$F13 -> 3371.515829 | BE13: =BE$2*$F13*Main!$C$4*$E13+Main!$C$5*BE$2*$F13 -> 3798.227694 | BF13: =BF$2*$F13*Main!$C$4*$E13+Main!$C$5*BF$2*$F13 -> 3118.909903 | BG13: =BG$2*$F13*Main!$C$4*$E13+Main!$C$5*BG$2*$F13 -> 3535.779979 | BH13: =BH$2*$F13*Main!$C$4*$E13+Main!$C$5*BH$2*$F13 -> 3952.650055 | BI13: =BI$2*$F13*Main!$C$4*$E13+Main!$C$5*BI$2*$F13 -> 3013.227831 | BJ13: =BJ$2*$F13*Main!$C$4*$E13+Main!$C$5*BJ$2*$F13 -> 3460.794917 | BK13: =BK$2*$F13*Main!$C$4*$E13+Main!$C$5*BK$2*$F13 -> 3908.362003 | BL13: =BL$2*$F13*Main!$C$4*$E13+Main!$C$5*BL$2*$F13 -> 3049.548721 | BM13: =BM$2*$F13*Main!$C$4*$E13+Main!$C$5*BM$2*$F13 -> 3522.423265 | BN13: =BN$2*$F13*Main!$C$4*$E13+Main!$C$5*BN$2*$F13 -> 3995.063481 | BO13: =BO$2*$F13*Main!$C$4*$E13+Main!$C$5*BO$2*$F13 -> 3223.65466 | BP13: =BP$2*$F13*Main!$C$4*$E13+Main!$C$5*BP$2*$F13 -> 3686.687415 | BQ13: =BQ$2*$F13*Main!$C$4*$E13+Main!$C$5*BQ$2*$F13 -> 4149.485842 | BR13: =BR$2*$F13*Main!$C$4*$E13+Main!$C$5*BR$2*$F13 -> 3385.106871 | BS13: =BS$2*$F13*Main!$C$4*$E13+Main!$C$5*BS$2*$F13 -> 3898.285886 | BT13: =BT$2*$F13*Main!$C$4*$E13+Main!$C$5*BT$2*$F13 -> 4411.4649 | BU13: =BU$2*$F13*Main!$C$4*$E13+Main!$C$5*BU$2*$F13 -> 3421.662088 | BV13: =BV$2*$F13*Main!$C$4*$E13+Main!$C$5*BV$2*$F13 -> 3959.914233 | BW13: =BW$2*$F13*Main!$C$4*$E13+Main!$C$5*BW$2*$F13 -> 4498.400706 | BX13: =BX$2*$F13*Main!$C$4*$E13+Main!$C$5*BX$2*$F13 -> 3595.768028 | BY13: =BY$2*$F13*Main!$C$4*$E13+Main!$C$5*BY$2*$F13 -> 4124.412712 | BZ13: =BZ$2*$F13*Main!$C$4*$E13+Main!$C$5*BZ$2*$F13 -> 4652.823067 | CA13: =CA$2*$F13*Main!$C$4*$E13+Main!$C$5*CA$2*$F13 -> 2934.493517 | CB13: =CB$2*$F13*Main!$C$4*$E13+Main!$C$5*CB$2*$F13 -> 3327.462105 | CC13: =CC$2*$F13*Main!$C$4*$E13+Main!$C$5*CC$2*$F13 -> 3720.196365 | CD13: =CD$2*$F13*Main!$C$4*$E13+Main!$C$5*CD$2*$F13 -> 2934.493517 | CE13: =CE$2*$F13*Main!$C$4*$E13+Main!$C$5*CE$2*$F13 -> 3364.720307 | CF13: =CF$2*$F13*Main!$C$4*$E13+Main!$C$5*CF$2*$F13 -> 3794.947098 | CG13: =CG$2*$F13*Main!$C$4*$E13+Main!$C$5*CG$2*$F13 -> 3120.081544 | CH13: =CH$2*$F13*Main!$C$4*$E13+Main!$C$5*CH$2*$F13 -> 3536.717292 | CI13: =CI$2*$F13*Main!$C$4*$E13+Main!$C$5*CI$2*$F13 -> 3953.118712 | CJ13: =CJ$2*$F13*Main!$C$4*$E13+Main!$C$5*CJ$2*$F13 -> 3073.684537 | CK13: =CK$2*$F13*Main!$C$4*$E13+Main!$C$5*CK$2*$F13 -> 3501.099388 | CL13: =CL$2*$F13*Main!$C$4*$E13+Main!$C$5*CL$2*$F13 -> 3928.514239 | CM13: =CM$2*$F13*Main!$C$4*$E13+Main!$C$5*CM$2*$F13 -> 3073.684537 | CN13: =CN$2*$F13*Main!$C$4*$E13+Main!$C$5*CN$2*$F13 -> 3538.35759 | CO13: =CO$2*$F13*Main!$C$4*$E13+Main!$C$5*CO$2*$F13 -> 4003.030644 | CP13: =CP$2*$F13*Main!$C$4*$E13+Main!$C$5*CP$2*$F13 -> 3259.272565 | CQ13: =CQ$2*$F13*Main!$C$4*$E13+Main!$C$5*CQ$2*$F13 -> 3710.354575 | CR13: =CR$2*$F13*Main!$C$4*$E13+Main!$C$5*CR$2*$F13 -> 4161.436586 | CS13: =CS$2*$F13*Main!$C$4*$E13+Main!$C$5*CS$2*$F13 -> 3562.493407 | CT13: =CT$2*$F13*Main!$C$4*$E13+Main!$C$5*CT$2*$F13 -> 4016.621686 | CU13: =CU$2*$F13*Main!$C$4*$E13+Main!$C$5*CU$2*$F13 -> 4470.749965 | CV13: =CV$2*$F13*Main!$C$4*$E13+Main!$C$5*CV$2*$F13 -> 3562.493407 | CW13: =CW$2*$F13*Main!$C$4*$E13+Main!$C$5*CW$2*$F13 -> 4053.879888 | CX13: =CX$2*$F13*Main!$C$4*$E13+Main!$C$5*CX$2*$F13 -> 4545.500698 | CY13: =CY$2*$F13*Main!$C$4*$E13+Main!$C$5*CY$2*$F13 -> 3748.081434 | CZ13: =CZ$2*$F13*Main!$C$4*$E13+Main!$C$5*CZ$2*$F13 -> 4225.876873 | DA13: =DA$2*$F13*Main!$C$4*$E13+Main!$C$5*DA$2*$F13 -> 4703.672312 | DB13: =DB$2*$F13*Main!$C$4*$E13+Main!$C$5*DB$2*$F13 -> 1121.260998 | DC13: =DC$2*$F13*Main!$C$4*$E13+Main!$C$5*DC$2*$F13 -> 1484.001233 | DD13: =DD$2*$F13*Main!$C$4*$E13+Main!$C$5*DD$2*$F13 -> 1846.50714 | DE13: =DE$2*$F13*Main!$C$4*$E13+Main!$C$5*DE$2*$F13 -> 2209.247375 | DF13: =DF$2*$F13*Main!$C$4*$E13+Main!$C$5*DF$2*$F13 -> 2571.98761 | DG13: =DG$2*$F13*Main!$C$4*$E13+Main!$C$5*DG$2*$F13 -> 1307.083354 | DH13: =DH$2*$F13*Main!$C$4*$E13+Main!$C$5*DH$2*$F13 -> 1632.565386 | DI13: =DI$2*$F13*Main!$C$4*$E13+Main!$C$5*DI$2*$F13 -> 1958.047419 | DJ13: =DJ$2*$F13*Main!$C$4*$E13+Main!$C$5*DJ$2*$F13 -> 2283.529452 | DK13: =DK$2*$F13*Main!$C$4*$E13+Main!$C$5*DK$2*$F13 -> 2609.011484 | DL13: =DL$2*$F13*Main!$C$4*$E13+Main!$C$5*DL$2*$F13 -> 1415.108708 | DM13: =DM$2*$F13*Main!$C$4*$E13+Main!$C$5*DM$2*$F13 -> 1756.056409 | DN13: =DN$2*$F13*Main!$C$4*$E13+Main!$C$5*DN$2*$F13 -> 2097.004111 | DO13: =DO$2*$F13*Main!$C$4*$E13+Main!$C$5*DO$2*$F13 -> 2438.186141 | DP13: =DP$2*$F13*Main!$C$4*$E13+Main!$C$5*DP$2*$F13 -> 2779.133843 | DQ13: =DQ$2*$F13*Main!$C$4*$E13+Main!$C$5*DQ$2*$F13 -> 1161.096812 | DR13: =DR$2*$F13*Main!$C$4*$E13+Main!$C$5*DR$2*$F13 -> 1543.520626 | DS13: =DS$2*$F13*Main!$C$4*$E13+Main!$C$5*DS$2*$F13 -> 1926.178768 | DT13: =DT$2*$F13*Main!$C$4*$E13+Main!$C$5*DT$2*$F13 -> 2308.602582 | DU13: =DU$2*$F13*Main!$C$4*$E13+Main!$C$5*DU$2*$F13 -> 2691.260724 | DV13: =DV$2*$F13*Main!$C$4*$E13+Main!$C$5*DV$2*$F13 -> 1346.919168 | DW13: =DW$2*$F13*Main!$C$4*$E13+Main!$C$5*DW$2*$F13 -> 1692.319107 | DX13: =DX$2*$F13*Main!$C$4*$E13+Main!$C$5*DX$2*$F13 -> 2037.484718 | DY13: =DY$2*$F13*Main!$C$4*$E13+Main!$C$5*DY$2*$F13 -> 2382.884658 | DZ13: =DZ$2*$F13*Main!$C$4*$E13+Main!$C$5*DZ$2*$F13 -> 2728.284598 | EA13: =EA$2*$F13*Main!$C$4*$E13+Main!$C$5*EA$2*$F13 -> 1454.710193 | EB13: =EB$2*$F13*Main!$C$4*$E13+Main!$C$5*EB$2*$F13 -> 1815.575802 | EC13: =EC$2*$F13*Main!$C$4*$E13+Main!$C$5*EC$2*$F13 -> 2176.441411 | ED13: =ED$2*$F13*Main!$C$4*$E13+Main!$C$5*ED$2*$F13 -> 2537.541347 | EE13: =EE$2*$F13*Main!$C$4*$E13+Main!$C$5*EE$2*$F13 -> 2898.406956 | EF13: =EF$2*$F13*Main!$C$4*$E13+Main!$C$5*EF$2*$F13 -> 1438.775868 | EG13: =EG$2*$F13*Main!$C$4*$E13+Main!$C$5*EG$2*$F13 -> 1863.613107 | EH13: =EH$2*$F13*Main!$C$4*$E13+Main!$C$5*EH$2*$F13 -> 2288.216018 | EI13: =EI$2*$F13*Main!$C$4*$E13+Main!$C$5*EI$2*$F13 -> 2713.053257 | EJ13: =EJ$2*$F13*Main!$C$4*$E13+Main!$C$5*EJ$2*$F13 -> 3137.890496 | EK13: =EK$2*$F13*Main!$C$4*$E13+Main!$C$5*EK$2*$F13 -> 1624.598223 | EL13: =EL$2*$F13*Main!$C$4*$E13+Main!$C$5*EL$2*$F13 -> 2012.17726 | EM13: =EM$2*$F13*Main!$C$4*$E13+Main!$C$5*EM$2*$F13 -> 2399.756297 | EN13: =EN$2*$F13*Main!$C$4*$E13+Main!$C$5*EN$2*$F13 -> 2787.335334 | EO13: =EO$2*$F13*Main!$C$4*$E13+Main!$C$5*EO$2*$F13 -> 3174.91437 | EP13: =EP$2*$F13*Main!$C$4*$E13+Main!$C$5*EP$2*$F13 -> 1732.389249 | EQ13: =EQ$2*$F13*Main!$C$4*$E13+Main!$C$5*EQ$2*$F13 -> 2135.668283 | ER13: =ER$2*$F13*Main!$C$4*$E13+Main!$C$5*ER$2*$F13 -> 2538.712989 | ES13: =ES$2*$F13*Main!$C$4*$E13+Main!$C$5*ES$2*$F13 -> 2941.757695 | ET13: =ET$2*$F13*Main!$C$4*$E13+Main!$C$5*ET$2*$F13 -> 3345.036729 | EU13: =EU$2*$F13*Main!$C$4*$E13+Main!$C$5*EU$2*$F13 -> 4112.930624 | EV13: =EV$2*$F13*Main!$C$4*$E13+Main!$C$5*EV$2*$F13 -> 4224.93956 | EW13: =EW$2*$F13*Main!$C$4*$E13+Main!$C$5*EW$2*$F13 -> 4369.75446 | EX13: =EX$2*$F13*Main!$C$4*$E13+Main!$C$5*EX$2*$F13 -> 4355.694761 | EY13: =EY$2*$F13*Main!$C$4*$E13+Main!$C$5*EY$2*$F13 -> 4467.938025 | EZ13: =EZ$2*$F13*Main!$C$4*$E13+Main!$C$5*EZ$2*$F13 -> 4612.518597 | FA13: =FA$2*$F13*Main!$C$4*$E13+Main!$C$5*FA$2*$F13 -> 4924.643915 | FB13: =FB$2*$F13*Main!$C$4*$E13+Main!$C$5*FB$2*$F13 -> 5036.887179 | FC13: =FC$2*$F13*Main!$C$4*$E13+Main!$C$5*FC$2*$F13 -> 5181.467751 | FD13: =IF($D13<100,(FD$2*(1+Main!$C$3)*$E13*Main!$C$4)+(FD$2*(1+Main!$C$3)*Main!$C$5),(FD$2*$E13*Main!$C$4)+(FD$2*Main!$C$5)) -> 111.1620803 | FE13: =IF($D13<100,(FE$2*(1+Main!$C$3)*$E13*Main!$C$4)+(FE$2*(1+Main!$C$3)*Main!$C$5),(FE$2*$E13*Main!$C$4)+(FE$2*Main!$C$5)) -> 121.5149503 | FF13: =IF($D13<100,(FF$2*(1+Main!$C$3)*$E13*Main!$C$4)+(FF$2*(1+Main!$C$3)*Main!$C$5),(FF$2*$E13*Main!$C$4)+(FF$2*Main!$C$5)) -> 122.3456878 | FG13: =IF($D13<100,(FG$2*(1+Main!$C$3)*$E13*Main!$C$4)+(FG$2*(1+Main!$C$3)*Main!$C$5),(FG$2*$E13*Main!$C$4)+(FG$2*Main!$C$5)) -> 132.0715861 | FH13: =IF($D13<100,(FH$2*(1+Main!$C$3)*$E13*Main!$C$4)+(FH$2*(1+Main!$C$3)*Main!$C$5),(FH$2*$E13*Main!$C$4)+(FH$2*Main!$C$5)) -> 178.1853537 | FI13: =IF($D13<100,(FI$2*(1+Main!$C$3)*$E13*Main!$C$4)+(FI$2*(1+Main!$C$3)*Main!$C$5),(FI$2*$E13*Main!$C$4)+(FI$2*Main!$C$5)) -> 50.3379894
A14: AL | B14: 19460 | C14: (Decatur, Lawrence County, Morgan County) | D14: 19460 | E14: 0.6782 | F14: =IF($D14<100,Main!$C$2*(1+Main!$C$3),Main!$C$2) -> 2989.97 | G14: =G$2*$F14*Main!$C$4*$E14+Main!$C$5*G$2*$F14 -> 1308.645879 | H14: =H$2*$F14*Main!$C$4*$E14+Main!$C$5*H$2*$F14 -> 1601.566273 | I14: =I$2*$F14*Main!$C$4*$E14+Main!$C$5*I$2*$F14 -> 1894.486667 | J14: =J$2*$F14*Main!$C$4*$E14+Main!$C$5*J$2*$F14 -> 2187.407061 | K14: =K$2*$F14*Main!$C$4*$E14+Main!$C$5*K$2*$F14 -> 2480.104022 | L14: =L$2*$F14*Main!$C$4*$E14+Main!$C$5*L$2*$F14 -> 1540.792553 | M14: =M$2*$F14*Main!$C$4*$E14+Main!$C$5*M$2*$F14 -> 1794.165342 | N14: =N$2*$F14*Main!$C$4*$E14+Main!$C$5*N$2*$F14 -> 2047.538132 | O14: =O$2*$F14*Main!$C$4*$E14+Main!$C$5*O$2*$F14 -> 2300.910921 | P14: =P$2*$F14*Main!$C$4*$E14+Main!$C$5*P$2*$F14 -> 2554.507143 | Q14: =Q$2*$F14*Main!$C$4*$E14+Main!$C$5*Q$2*$F14 -> 1666.808649 | R14: =R$2*$F14*Main!$C$4*$E14+Main!$C$5*R$2*$F14 -> 1928.225019 | S14: =S$2*$F14*Main!$C$4*$E14+Main!$C$5*S$2*$F14 -> 2189.641389 | T14: =T$2*$F14*Main!$C$4*$E14+Main!$C$5*T$2*$F14 -> 2451.057759 | U14: =U$2*$F14*Main!$C$4*$E14+Main!$C$5*U$2*$F14 -> 2712.474129 | V14: =V$2*$F14*Main!$C$4*$E14+Main!$C$5*V$2*$F14 -> 1383.719298 | W14: =W$2*$F14*Main!$C$4*$E14+Main!$C$5*W$2*$F14 -> 1681.555214 | X14: =X$2*$F14*Main!$C$4*$E14+Main!$C$5*X$2*$F14 -> 1979.614562 | Y14: =Y$2*$F14*Main!$C$4*$E14+Main!$C$5*Y$2*$F14 -> 2277.450477 | Z14: =Z$2*$F14*Main!$C$4*$E14+Main!$C$5*Z$2*$F14 -> 2575.286393 | AA14: =AA$2*$F14*Main!$C$4*$E14+Main!$C$5*AA$2*$F14 -> 1615.865972 | AB14: =AB$2*$F14*Main!$C$4*$E14+Main!$C$5*AB$2*$F14 -> 1874.377716 | AC14: =AC$2*$F14*Main!$C$4*$E14+Main!$C$5*AC$2*$F14 -> 2132.666026 | AD14: =AD$2*$F14*Main!$C$4*$E14+Main!$C$5*AD$2*$F14 -> 2391.17777 | AE14: =AE$2*$F14*Main!$C$4*$E14+Main!$C$5*AE$2*$F14 -> 2649.466081 | AF14: =AF$2*$F14*Main!$C$4*$E14+Main!$C$5*AF$2*$F14 -> 1741.882068 | AG14: =AG$2*$F14*Main!$C$4*$E14+Main!$C$5*AG$2*$F14 -> 2008.21396 | AH14: =AH$2*$F14*Main!$C$4*$E14+Main!$C$5*AH$2*$F14 -> 2274.769284 | AI14: =AI$2*$F14*Main!$C$4*$E14+Main!$C$5*AI$2*$F14 -> 2541.101175 | AJ14: =AJ$2*$F14*Main!$C$4*$E14+Main!$C$5*AJ$2*$F14 -> 2807.433067 | AK14: =AK$2*$F14*Main!$C$4*$E14+Main!$C$5*AK$2*$F14 -> 1484.264056 | AL14: =AL$2*$F14*Main!$C$4*$E14+Main!$C$5*AL$2*$F14 -> 1833.042649 | AM14: =AM$2*$F14*Main!$C$4*$E14+Main!$C$5*AM$2*$F14 -> 2181.821241 | AN14: =AN$2*$F14*Main!$C$4*$E14+Main!$C$5*AN$2*$F14 -> 2530.376401 | AO14: =AO$2*$F14*Main!$C$4*$E14+Main!$C$5*AO$2*$F14 -> 2879.154994 | AP14: =AP$2*$F14*Main!$C$4*$E14+Main!$C$5*AP$2*$F14 -> 1716.41073 | AQ14: =AQ$2*$F14*Main!$C$4*$E14+Main!$C$5*AQ$2*$F14 -> 2025.641718 | AR14: =AR$2*$F14*Main!$C$4*$E14+Main!$C$5*AR$2*$F14 -> 2334.872706 | AS14: =AS$2*$F14*Main!$C$4*$E14+Main!$C$5*AS$2*$F14 -> 2644.103694 | AT14: =AT$2*$F14*Main!$C$4*$E14+Main!$C$5*AT$2*$F14 -> 2953.334682 | AU14: =AU$2*$F14*Main!$C$4*$E14+Main!$C$5*AU$2*$F14 -> 1842.426826 | AV14: =AV$2*$F14*Main!$C$4*$E14+Main!$C$5*AV$2*$F14 -> 2159.701395 | AW14: =AW$2*$F14*Main!$C$4*$E14+Main!$C$5*AW$2*$F14 -> 2476.975963 | AX14: =AX$2*$F14*Main!$C$4*$E14+Main!$C$5*AX$2*$F14 -> 2794.027099 | AY14: =AY$2*$F14*Main!$C$4*$E14+Main!$C$5*AY$2*$F14 -> 3111.301668 | AZ14: =AZ$2*$F14*Main!$C$4*$E14+Main!$C$5*AZ$2*$F14 -> 2773.024416 | BA14: =BA$2*$F14*Main!$C$4*$E14+Main!$C$5*BA$2*$F14 -> 3155.988227 | BB14: =BB$2*$F14*Main!$C$4*$E14+Main!$C$5*BB$2*$F14 -> 3538.728604 | BC14: =BC$2*$F14*Main!$C$4*$E14+Main!$C$5*BC$2*$F14 -> 2807.879932 | BD14: =BD$2*$F14*Main!$C$4*$E14+Main!$C$5*BD$2*$F14 -> 3214.751052 | BE14: =BE$2*$F14*Main!$C$4*$E14+Main!$C$5*BE$2*$F14 -> 3621.622171 | BF14: =BF$2*$F14*Main!$C$4*$E14+Main!$C$5*BF$2*$F14 -> 2973.890499 | BG14: =BG$2*$F14*Main!$C$4*$E14+Main!$C$5*BG$2*$F14 -> 3371.377441 | BH14: =BH$2*$F14*Main!$C$4*$E14+Main!$C$5*BH$2*$F14 -> 3768.864383 | BI14: =BI$2*$F14*Main!$C$4*$E14+Main!$C$5*BI$2*$F14 -> 2873.122308 | BJ14: =BJ$2*$F14*Main!$C$4*$E14+Main!$C$5*BJ$2*$F14 -> 3299.878947 | BK14: =BK$2*$F14*Main!$C$4*$E14+Main!$C$5*BK$2*$F14 -> 3726.635585 | BL14: =BL$2*$F14*Main!$C$4*$E14+Main!$C$5*BL$2*$F14 -> 2907.754392 | BM14: =BM$2*$F14*Main!$C$4*$E14+Main!$C$5*BM$2*$F14 -> 3358.641772 | BN14: =BN$2*$F14*Main!$C$4*$E14+Main!$C$5*BN$2*$F14 -> 3809.305719 | BO14: =BO$2*$F14*Main!$C$4*$E14+Main!$C$5*BO$2*$F14 -> 3073.764958 | BP14: =BP$2*$F14*Main!$C$4*$E14+Main!$C$5*BP$2*$F14 -> 3515.268161 | BQ14: =BQ$2*$F14*Main!$C$4*$E14+Main!$C$5*BQ$2*$F14 -> 3956.54793 | BR14: =BR$2*$F14*Main!$C$4*$E14+Main!$C$5*BR$2*$F14 -> 3227.710154 | BS14: =BS$2*$F14*Main!$C$4*$E14+Main!$C$5*BS$2*$F14 -> 3717.027974 | BT14: =BT$2*$F14*Main!$C$4*$E14+Main!$C$5*BT$2*$F14 -> 4206.345795 | BU14: =BU$2*$F14*Main!$C$4*$E14+Main!$C$5*BU$2*$F14 -> 3262.56567 | BV14: =BV$2*$F14*Main!$C$4*$E14+Main!$C$5*BV$2*$F14 -> 3775.790799 | BW14: =BW$2*$F14*Main!$C$4*$E14+Main!$C$5*BW$2*$F14 -> 4289.239362 | BX14: =BX$2*$F14*Main!$C$4*$E14+Main!$C$5*BX$2*$F14 -> 3428.576236 | BY14: =BY$2*$F14*Main!$C$4*$E14+Main!$C$5*BY$2*$F14 -> 3932.640621 | BZ14: =BZ$2*$F14*Main!$C$4*$E14+Main!$C$5*BZ$2*$F14 -> 4436.481574 | CA14: =CA$2*$F14*Main!$C$4*$E14+Main!$C$5*CA$2*$F14 -> 2798.048889 | CB14: =CB$2*$F14*Main!$C$4*$E14+Main!$C$5*CB$2*$F14 -> 3172.745686 | CC14: =CC$2*$F14*Main!$C$4*$E14+Main!$C$5*CC$2*$F14 -> 3547.21905 | CD14: =CD$2*$F14*Main!$C$4*$E14+Main!$C$5*CD$2*$F14 -> 2798.048889 | CE14: =CE$2*$F14*Main!$C$4*$E14+Main!$C$5*CE$2*$F14 -> 3208.271501 | CF14: =CF$2*$F14*Main!$C$4*$E14+Main!$C$5*CF$2*$F14 -> 3618.494112 | CG14: =CG$2*$F14*Main!$C$4*$E14+Main!$C$5*CG$2*$F14 -> 2975.007663 | CH14: =CH$2*$F14*Main!$C$4*$E14+Main!$C$5*CH$2*$F14 -> 3372.271172 | CI14: =CI$2*$F14*Main!$C$4*$E14+Main!$C$5*CI$2*$F14 -> 3769.311248 | CJ14: =CJ$2*$F14*Main!$C$4*$E14+Main!$C$5*CJ$2*$F14 -> 2930.767969 | CK14: =CK$2*$F14*Main!$C$4*$E14+Main!$C$5*CK$2*$F14 -> 3338.309387 | CL14: =CL$2*$F14*Main!$C$4*$E14+Main!$C$5*CL$2*$F14 -> 3745.850805 | CM14: =CM$2*$F14*Main!$C$4*$E14+Main!$C$5*CM$2*$F14 -> 2930.767969 | CN14: =CN$2*$F14*Main!$C$4*$E14+Main!$C$5*CN$2*$F14 -> 3373.835202 | CO14: =CO$2*$F14*Main!$C$4*$E14+Main!$C$5*CO$2*$F14 -> 3816.902434 | CP14: =CP$2*$F14*Main!$C$4*$E14+Main!$C$5*CP$2*$F14 -> 3107.726743 | CQ14: =CQ$2*$F14*Main!$C$4*$E14+Main!$C$5*CQ$2*$F14 -> 3537.834873 | CR14: =CR$2*$F14*Main!$C$4*$E14+Main!$C$5*CR$2*$F14 -> 3967.943003 | CS14: =CS$2*$F14*Main!$C$4*$E14+Main!$C$5*CS$2*$F14 -> 3396.848779 | CT14: =CT$2*$F14*Main!$C$4*$E14+Main!$C$5*CT$2*$F14 -> 3829.861536 | CU14: =CU$2*$F14*Main!$C$4*$E14+Main!$C$5*CU$2*$F14 -> 4262.874292 | CV14: =CV$2*$F14*Main!$C$4*$E14+Main!$C$5*CV$2*$F14 -> 3396.848779 | CW14: =CW$2*$F14*Main!$C$4*$E14+Main!$C$5*CW$2*$F14 -> 3865.38735 | CX14: =CX$2*$F14*Main!$C$4*$E14+Main!$C$5*CX$2*$F14 -> 4334.149354 | CY14: =CY$2*$F14*Main!$C$4*$E14+Main!$C$5*CY$2*$F14 -> 3573.807553 | CZ14: =CZ$2*$F14*Main!$C$4*$E14+Main!$C$5*CZ$2*$F14 -> 4029.387022 | DA14: =DA$2*$F14*Main!$C$4*$E14+Main!$C$5*DA$2*$F14 -> 4484.96649 | DB14: =DB$2*$F14*Main!$C$4*$E14+Main!$C$5*DB$2*$F14 -> 1069.125923 | DC14: =DC$2*$F14*Main!$C$4*$E14+Main!$C$5*DC$2*$F14 -> 1414.99989 | DD14: =DD$2*$F14*Main!$C$4*$E14+Main!$C$5*DD$2*$F14 -> 1760.650423 | DE14: =DE$2*$F14*Main!$C$4*$E14+Main!$C$5*DE$2*$F14 -> 2106.524389 | DF14: =DF$2*$F14*Main!$C$4*$E14+Main!$C$5*DF$2*$F14 -> 2452.398356 | DG14: =DG$2*$F14*Main!$C$4*$E14+Main!$C$5*DG$2*$F14 -> 1246.308129 | DH14: =DH$2*$F14*Main!$C$4*$E14+Main!$C$5*DH$2*$F14 -> 1556.656281 | DI14: =DI$2*$F14*Main!$C$4*$E14+Main!$C$5*DI$2*$F14 -> 1867.004433 | DJ14: =DJ$2*$F14*Main!$C$4*$E14+Main!$C$5*DJ$2*$F14 -> 2177.352585 | DK14: =DK$2*$F14*Main!$C$4*$E14+Main!$C$5*DK$2*$F14 -> 2487.700737 | DL14: =DL$2*$F14*Main!$C$4*$E14+Main!$C$5*DL$2*$F14 -> 1349.310648 | DM14: =DM$2*$F14*Main!$C$4*$E14+Main!$C$5*DM$2*$F14 -> 1674.405364 | DN14: =DN$2*$F14*Main!$C$4*$E14+Main!$C$5*DN$2*$F14 -> 1999.500081 | DO14: =DO$2*$F14*Main!$C$4*$E14+Main!$C$5*DO$2*$F14 -> 2324.81823 | DP14: =DP$2*$F14*Main!$C$4*$E14+Main!$C$5*DP$2*$F14 -> 2649.912946 | DQ14: =DQ$2*$F14*Main!$C$4*$E14+Main!$C$5*DQ$2*$F14 -> 1107.109498 | DR14: =DR$2*$F14*Main!$C$4*$E14+Main!$C$5*DR$2*$F14 -> 1471.751819 | DS14: =DS$2*$F14*Main!$C$4*$E14+Main!$C$5*DS$2*$F14 -> 1836.617573 | DT14: =DT$2*$F14*Main!$C$4*$E14+Main!$C$5*DT$2*$F14 -> 2201.259894 | DU14: =DU$2*$F14*Main!$C$4*$E14+Main!$C$5*DU$2*$F14 -> 2566.125648 | DV14: =DV$2*$F14*Main!$C$4*$E14+Main!$C$5*DV$2*$F14 -> 1284.291705 | DW14: =DW$2*$F14*Main!$C$4*$E14+Main!$C$5*DW$2*$F14 -> 1613.631644 | DX14: =DX$2*$F14*Main!$C$4*$E14+Main!$C$5*DX$2*$F14 -> 1942.748151 | DY14: =DY$2*$F14*Main!$C$4*$E14+Main!$C$5*DY$2*$F14 -> 2272.08809 | DZ14: =DZ$2*$F14*Main!$C$4*$E14+Main!$C$5*DZ$2*$F14 -> 2601.42803 | EA14: =EA$2*$F14*Main!$C$4*$E14+Main!$C$5*EA$2*$F14 -> 1387.07079 | EB14: =EB$2*$F14*Main!$C$4*$E14+Main!$C$5*EB$2*$F14 -> 1731.157294 | EC14: =EC$2*$F14*Main!$C$4*$E14+Main!$C$5*EC$2*$F14 -> 2075.243798 | ED14: =ED$2*$F14*Main!$C$4*$E14+Main!$C$5*ED$2*$F14 -> 2419.553735 | EE14: =EE$2*$F14*Main!$C$4*$E14+Main!$C$5*EE$2*$F14 -> 2763.640239 | EF14: =EF$2*$F14*Main!$C$4*$E14+Main!$C$5*EF$2*$F14 -> 1371.87736 | EG14: =EG$2*$F14*Main!$C$4*$E14+Main!$C$5*EG$2*$F14 -> 1776.961017 | EH14: =EH$2*$F14*Main!$C$4*$E14+Main!$C$5*EH$2*$F14 -> 2181.821241 | EI14: =EI$2*$F14*Main!$C$4*$E14+Main!$C$5*EI$2*$F14 -> 2586.904898 | EJ14: =EJ$2*$F14*Main!$C$4*$E14+Main!$C$5*EJ$2*$F14 -> 2991.988555 | EK14: =EK$2*$F14*Main!$C$4*$E14+Main!$C$5*EK$2*$F14 -> 1549.059566 | EL14: =EL$2*$F14*Main!$C$4*$E14+Main!$C$5*EL$2*$F14 -> 1918.617409 | EM14: =EM$2*$F14*Main!$C$4*$E14+Main!$C$5*EM$2*$F14 -> 2288.175252 | EN14: =EN$2*$F14*Main!$C$4*$E14+Main!$C$5*EN$2*$F14 -> 2657.733094 | EO14: =EO$2*$F14*Main!$C$4*$E14+Main!$C$5*EO$2*$F14 -> 3027.290937 | EP14: =EP$2*$F14*Main!$C$4*$E14+Main!$C$5*EP$2*$F14 -> 1651.838652 | EQ14: =EQ$2*$F14*Main!$C$4*$E14+Main!$C$5*EQ$2*$F14 -> 2036.366492 | ER14: =ER$2*$F14*Main!$C$4*$E14+Main!$C$5*ER$2*$F14 -> 2420.670899 | ES14: =ES$2*$F14*Main!$C$4*$E14+Main!$C$5*ES$2*$F14 -> 2804.975306 | ET14: =ET$2*$F14*Main!$C$4*$E14+Main!$C$5*ET$2*$F14 -> 3189.503146 | EU14: =EU$2*$F14*Main!$C$4*$E14+Main!$C$5*EU$2*$F14 -> 3921.692414 | EV14: =EV$2*$F14*Main!$C$4*$E14+Main!$C$5*EV$2*$F14 -> 4028.49329 | EW14: =EW$2*$F14*Main!$C$4*$E14+Main!$C$5*EW$2*$F14 -> 4166.574758 | EX14: =EX$2*$F14*Main!$C$4*$E14+Main!$C$5*EX$2*$F14 -> 4153.16879 | EY14: =EY$2*$F14*Main!$C$4*$E14+Main!$C$5*EY$2*$F14 -> 4260.193099 | EZ14: =EZ$2*$F14*Main!$C$4*$E14+Main!$C$5*EZ$2*$F14 -> 4398.051133 | FA14: =FA$2*$F14*Main!$C$4*$E14+Main!$C$5*FA$2*$F14 -> 4695.663616 | FB14: =FB$2*$F14*Main!$C$4*$E14+Main!$C$5*FB$2*$F14 -> 4802.687924 | FC14: =FC$2*$F14*Main!$C$4*$E14+Main!$C$5*FC$2*$F14 -> 4940.545959 | FD14: =IF($D14<100,(FD$2*(1+Main!$C$3)*$E14*Main!$C$4)+(FD$2*(1+Main!$C$3)*Main!$C$5),(FD$2*$E14*Main!$C$4)+(FD$2*Main!$C$5)) -> 105.9933966 | FE14: =IF($D14<100,(FE$2*(1+Main!$C$3)*$E14*Main!$C$4)+(FE$2*(1+Main!$C$3)*Main!$C$5),(FE$2*$E14*Main!$C$4)+(FE$2*Main!$C$5)) -> 115.8648911 | FF14: =IF($D14<100,(FF$2*(1+Main!$C$3)*$E14*Main!$C$4)+(FF$2*(1+Main!$C$3)*Main!$C$5),(FF$2*$E14*Main!$C$4)+(FF$2*Main!$C$5)) -> 116.6570019 | FG14: =IF($D14<100,(FG$2*(1+Main!$C$3)*$E14*Main!$C$4)+(FG$2*(1+Main!$C$3)*Main!$C$5),(FG$2*$E14*Main!$C$4)+(FG$2*Main!$C$5)) -> 125.9306768 | FH14: =IF($D14<100,(FH$2*(1+Main!$C$3)*$E14*Main!$C$4)+(FH$2*(1+Main!$C$3)*Main!$C$5),(FH$2*$E14*Main!$C$4)+(FH$2*Main!$C$5)) -> 169.9003008 | FI14: =IF($D14<100,(FI$2*(1+Main!$C$3)*$E14*Main!$C$4)+(FI$2*(1+Main!$C$3)*Main!$C$5),(FI$2*$E14*Main!$C$4)+(FI$2*Main!$C$5)) -> 47.99743279
A15: AL | B15: 20020 | C15: (Dothan, Geneva County, Henry County, Houston County) | D15: 20020 | E15: 0.6776 | F15: =IF($D15<100,Main!$C$2*(1+Main!$C$3),Main!$C$2) -> 2989.97 | G15: =G$2*$F15*Main!$C$4*$E15+Main!$C$5*G$2*$F15 -> 1307.820684 | H15: =H$2*$F15*Main!$C$4*$E15+Main!$C$5*H$2*$F15 -> 1600.556371 | I15: =I$2*$F15*Main!$C$4*$E15+Main!$C$5*I$2*$F15 -> 1893.292058 | J15: =J$2*$F15*Main!$C$4*$E15+Main!$C$5*J$2*$F15 -> 2186.027744 | K15: =K$2*$F15*Main!$C$4*$E15+Main!$C$5*K$2*$F15 -> 2478.540139 | L15: =L$2*$F15*Main!$C$4*$E15+Main!$C$5*L$2*$F15 -> 1539.820973 | M15: =M$2*$F15*Main!$C$4*$E15+Main!$C$5*M$2*$F15 -> 1793.033993 | N15: =N$2*$F15*Main!$C$4*$E15+Main!$C$5*N$2*$F15 -> 2046.247012 | O15: =O$2*$F15*Main!$C$4*$E15+Main!$C$5*O$2*$F15 -> 2299.460032 | P15: =P$2*$F15*Main!$C$4*$E15+Main!$C$5*P$2*$F15 -> 2552.896343 | Q15: =Q$2*$F15*Main!$C$4*$E15+Main!$C$5*Q$2*$F15 -> 1665.757607 | R15: =R$2*$F15*Main!$C$4*$E15+Main!$C$5*R$2*$F15 -> 1927.009135 | S15: =S$2*$F15*Main!$C$4*$E15+Main!$C$5*S$2*$F15 -> 2188.260663 | T15: =T$2*$F15*Main!$C$4*$E15+Main!$C$5*T$2*$F15 -> 2449.512192 | U15: =U$2*$F15*Main!$C$4*$E15+Main!$C$5*U$2*$F15 -> 2710.76372 | V15: =V$2*$F15*Main!$C$4*$E15+Main!$C$5*V$2*$F15 -> 1382.846764 | W15: =W$2*$F15*Main!$C$4*$E15+Main!$C$5*W$2*$F15 -> 1680.494873 | X15: =X$2*$F15*Main!$C$4*$E15+Main!$C$5*X$2*$F15 -> 1978.366273 | Y15: =Y$2*$F15*Main!$C$4*$E15+Main!$C$5*Y$2*$F15 -> 2276.014382 | Z15: =Z$2*$F15*Main!$C$4*$E15+Main!$C$5*Z$2*$F15 -> 2573.66249 | AA15: =AA$2*$F15*Main!$C$4*$E15+Main!$C$5*AA$2*$F15 -> 1614.847053 | AB15: =AB$2*$F15*Main!$C$4*$E15+Main!$C$5*AB$2*$F15 -> 1873.195786 | AC15: =AC$2*$F15*Main!$C$4*$E15+Main!$C$5*AC$2*$F15 -> 2131.321228 | AD15: =AD$2*$F15*Main!$C$4*$E15+Main!$C$5*AD$2*$F15 -> 2389.669961 | AE15: =AE$2*$F15*Main!$C$4*$E15+Main!$C$5*AE$2*$F15 -> 2647.795403 | AF15: =AF$2*$F15*Main!$C$4*$E15+Main!$C$5*AF$2*$F15 -> 1740.783687 | AG15: =AG$2*$F15*Main!$C$4*$E15+Main!$C$5*AG$2*$F15 -> 2006.947637 | AH15: =AH$2*$F15*Main!$C$4*$E15+Main!$C$5*AH$2*$F15 -> 2273.334879 | AI15: =AI$2*$F15*Main!$C$4*$E15+Main!$C$5*AI$2*$F15 -> 2539.498829 | AJ15: =AJ$2*$F15*Main!$C$4*$E15+Main!$C$5*AJ$2*$F15 -> 2805.662779 | AK15: =AK$2*$F15*Main!$C$4*$E15+Main!$C$5*AK$2*$F15 -> 1483.328121 | AL15: =AL$2*$F15*Main!$C$4*$E15+Main!$C$5*AL$2*$F15 -> 1831.886784 | AM15: =AM$2*$F15*Main!$C$4*$E15+Main!$C$5*AM$2*$F15 -> 2180.445447 | AN15: =AN$2*$F15*Main!$C$4*$E15+Main!$C$5*AN$2*$F15 -> 2528.780818 | AO15: =AO$2*$F15*Main!$C$4*$E15+Main!$C$5*AO$2*$F15 -> 2877.33948 | AP15: =AP$2*$F15*Main!$C$4*$E15+Main!$C$5*AP$2*$F15 -> 1715.32841 | AQ15: =AQ$2*$F15*Main!$C$4*$E15+Main!$C$5*AQ$2*$F15 -> 2024.364406 | AR15: =AR$2*$F15*Main!$C$4*$E15+Main!$C$5*AR$2*$F15 -> 2333.400401 | AS15: =AS$2*$F15*Main!$C$4*$E15+Main!$C$5*AS$2*$F15 -> 2642.436397 | AT15: =AT$2*$F15*Main!$C$4*$E15+Main!$C$5*AT$2*$F15 -> 2951.472393 | AU15: =AU$2*$F15*Main!$C$4*$E15+Main!$C$5*AU$2*$F15 -> 1841.265044 | AV15: =AV$2*$F15*Main!$C$4*$E15+Main!$C$5*AV$2*$F15 -> 2158.339548 | AW15: =AW$2*$F15*Main!$C$4*$E15+Main!$C$5*AW$2*$F15 -> 2475.414053 | AX15: =AX$2*$F15*Main!$C$4*$E15+Main!$C$5*AX$2*$F15 -> 2792.265265 | AY15: =AY$2*$F15*Main!$C$4*$E15+Main!$C$5*AY$2*$F15 -> 3109.339769 | AZ15: =AZ$2*$F15*Main!$C$4*$E15+Main!$C$5*AZ$2*$F15 -> 2771.275826 | BA15: =BA$2*$F15*Main!$C$4*$E15+Main!$C$5*BA$2*$F15 -> 3153.99815 | BB15: =BB$2*$F15*Main!$C$4*$E15+Main!$C$5*BB$2*$F15 -> 3536.497182 | BC15: =BC$2*$F15*Main!$C$4*$E15+Main!$C$5*BC$2*$F15 -> 2806.109363 | BD15: =BD$2*$F15*Main!$C$4*$E15+Main!$C$5*BD$2*$F15 -> 3212.723921 | BE15: =BE$2*$F15*Main!$C$4*$E15+Main!$C$5*BE$2*$F15 -> 3619.338479 | BF15: =BF$2*$F15*Main!$C$4*$E15+Main!$C$5*BF$2*$F15 -> 2972.015248 | BG15: =BG$2*$F15*Main!$C$4*$E15+Main!$C$5*BG$2*$F15 -> 3369.251546 | BH15: =BH$2*$F15*Main!$C$4*$E15+Main!$C$5*BH$2*$F15 -> 3766.487844 | BI15: =BI$2*$F15*Main!$C$4*$E15+Main!$C$5*BI$2*$F15 -> 2871.310599 | BJ15: =BJ$2*$F15*Main!$C$4*$E15+Main!$C$5*BJ$2*$F15 -> 3297.798137 | BK15: =BK$2*$F15*Main!$C$4*$E15+Main!$C$5*BK$2*$F15 -> 3724.285674 | BL15: =BL$2*$F15*Main!$C$4*$E15+Main!$C$5*BL$2*$F15 -> 2905.920844 | BM15: =BM$2*$F15*Main!$C$4*$E15+Main!$C$5*BM$2*$F15 -> 3356.523907 | BN15: =BN$2*$F15*Main!$C$4*$E15+Main!$C$5*BN$2*$F15 -> 3806.903679 | BO15: =BO$2*$F15*Main!$C$4*$E15+Main!$C$5*BO$2*$F15 -> 3071.826729 | BP15: =BP$2*$F15*Main!$C$4*$E15+Main!$C$5*BP$2*$F15 -> 3513.051532 | BQ15: =BQ$2*$F15*Main!$C$4*$E15+Main!$C$5*BQ$2*$F15 -> 3954.053044 | BR15: =BR$2*$F15*Main!$C$4*$E15+Main!$C$5*BR$2*$F15 -> 3225.674851 | BS15: =BS$2*$F15*Main!$C$4*$E15+Main!$C$5*BS$2*$F15 -> 3714.684122 | BT15: =BT$2*$F15*Main!$C$4*$E15+Main!$C$5*BT$2*$F15 -> 4203.693393 | BU15: =BU$2*$F15*Main!$C$4*$E15+Main!$C$5*BU$2*$F15 -> 3260.508388 | BV15: =BV$2*$F15*Main!$C$4*$E15+Main!$C$5*BV$2*$F15 -> 3773.409893 | BW15: =BW$2*$F15*Main!$C$4*$E15+Main!$C$5*BW$2*$F15 -> 4286.534689 | BX15: =BX$2*$F15*Main!$C$4*$E15+Main!$C$5*BX$2*$F15 -> 3426.414273 | BY15: =BY$2*$F15*Main!$C$4*$E15+Main!$C$5*BY$2*$F15 -> 3930.16081 | BZ15: =BZ$2*$F15*Main!$C$4*$E15+Main!$C$5*BZ$2*$F15 -> 4433.684054 | CA15: =CA$2*$F15*Main!$C$4*$E15+Main!$C$5*CA$2*$F15 -> 2796.284519 | CB15: =CB$2*$F15*Main!$C$4*$E15+Main!$C$5*CB$2*$F15 -> 3170.745043 | CC15: =CC$2*$F15*Main!$C$4*$E15+Main!$C$5*CC$2*$F15 -> 3544.982275 | CD15: =CD$2*$F15*Main!$C$4*$E15+Main!$C$5*CD$2*$F15 -> 2796.284519 | CE15: =CE$2*$F15*Main!$C$4*$E15+Main!$C$5*CE$2*$F15 -> 3206.248456 | CF15: =CF$2*$F15*Main!$C$4*$E15+Main!$C$5*CF$2*$F15 -> 3616.212392 | CG15: =CG$2*$F15*Main!$C$4*$E15+Main!$C$5*CG$2*$F15 -> 2973.131707 | CH15: =CH$2*$F15*Main!$C$4*$E15+Main!$C$5*CH$2*$F15 -> 3370.144714 | CI15: =CI$2*$F15*Main!$C$4*$E15+Main!$C$5*CI$2*$F15 -> 3766.934428 | CJ15: =CJ$2*$F15*Main!$C$4*$E15+Main!$C$5*CJ$2*$F15 -> 2928.91991 | CK15: =CK$2*$F15*Main!$C$4*$E15+Main!$C$5*CK$2*$F15 -> 3336.204344 | CL15: =CL$2*$F15*Main!$C$4*$E15+Main!$C$5*CL$2*$F15 -> 3743.488778 | CM15: =CM$2*$F15*Main!$C$4*$E15+Main!$C$5*CM$2*$F15 -> 2928.91991 | CN15: =CN$2*$F15*Main!$C$4*$E15+Main!$C$5*CN$2*$F15 -> 3371.707757 | CO15: =CO$2*$F15*Main!$C$4*$E15+Main!$C$5*CO$2*$F15 -> 3814.495603 | CP15: =CP$2*$F15*Main!$C$4*$E15+Main!$C$5*CP$2*$F15 -> 3105.767099 | CQ15: =CQ$2*$F15*Main!$C$4*$E15+Main!$C$5*CQ$2*$F15 -> 3535.604015 | CR15: =CR$2*$F15*Main!$C$4*$E15+Main!$C$5*CR$2*$F15 -> 3965.440931 | CS15: =CS$2*$F15*Main!$C$4*$E15+Main!$C$5*CS$2*$F15 -> 3394.706823 | CT15: =CT$2*$F15*Main!$C$4*$E15+Main!$C$5*CT$2*$F15 -> 3827.446534 | CU15: =CU$2*$F15*Main!$C$4*$E15+Main!$C$5*CU$2*$F15 -> 4260.186245 | CV15: =CV$2*$F15*Main!$C$4*$E15+Main!$C$5*CV$2*$F15 -> 3394.706823 | CW15: =CW$2*$F15*Main!$C$4*$E15+Main!$C$5*CW$2*$F15 -> 3862.949947 | CX15: =CX$2*$F15*Main!$C$4*$E15+Main!$C$5*CX$2*$F15 -> 4331.416362 | CY15: =CY$2*$F15*Main!$C$4*$E15+Main!$C$5*CY$2*$F15 -> 3571.554011 | CZ15: =CZ$2*$F15*Main!$C$4*$E15+Main!$C$5*CZ$2*$F15 -> 4026.846204 | DA15: =DA$2*$F15*Main!$C$4*$E15+Main!$C$5*DA$2*$F15 -> 4482.138398 | DB15: =DB$2*$F15*Main!$C$4*$E15+Main!$C$5*DB$2*$F15 -> 1068.451763 | DC15: =DC$2*$F15*Main!$C$4*$E15+Main!$C$5*DC$2*$F15 -> 1414.107631 | DD15: =DD$2*$F15*Main!$C$4*$E15+Main!$C$5*DD$2*$F15 -> 1759.540207 | DE15: =DE$2*$F15*Main!$C$4*$E15+Main!$C$5*DE$2*$F15 -> 2105.196075 | DF15: =DF$2*$F15*Main!$C$4*$E15+Main!$C$5*DF$2*$F15 -> 2450.851943 | DG15: =DG$2*$F15*Main!$C$4*$E15+Main!$C$5*DG$2*$F15 -> 1245.522243 | DH15: =DH$2*$F15*Main!$C$4*$E15+Main!$C$5*DH$2*$F15 -> 1555.674698 | DI15: =DI$2*$F15*Main!$C$4*$E15+Main!$C$5*DI$2*$F15 -> 1865.827153 | DJ15: =DJ$2*$F15*Main!$C$4*$E15+Main!$C$5*DJ$2*$F15 -> 2175.979609 | DK15: =DK$2*$F15*Main!$C$4*$E15+Main!$C$5*DK$2*$F15 -> 2486.132064 | DL15: =DL$2*$F15*Main!$C$4*$E15+Main!$C$5*DL$2*$F15 -> 1348.459811 | DM15: =DM$2*$F15*Main!$C$4*$E15+Main!$C$5*DM$2*$F15 -> 1673.349532 | DN15: =DN$2*$F15*Main!$C$4*$E15+Main!$C$5*DN$2*$F15 -> 1998.239253 | DO15: =DO$2*$F15*Main!$C$4*$E15+Main!$C$5*DO$2*$F15 -> 2323.352266 | DP15: =DP$2*$F15*Main!$C$4*$E15+Main!$C$5*DP$2*$F15 -> 2648.241987 | DQ15: =DQ$2*$F15*Main!$C$4*$E15+Main!$C$5*DQ$2*$F15 -> 1106.411386 | DR15: =DR$2*$F15*Main!$C$4*$E15+Main!$C$5*DR$2*$F15 -> 1470.823774 | DS15: =DS$2*$F15*Main!$C$4*$E15+Main!$C$5*DS$2*$F15 -> 1835.459454 | DT15: =DT$2*$F15*Main!$C$4*$E15+Main!$C$5*DT$2*$F15 -> 2199.871842 | DU15: =DU$2*$F15*Main!$C$4*$E15+Main!$C$5*DU$2*$F15 -> 2564.507522 | DV15: =DV$2*$F15*Main!$C$4*$E15+Main!$C$5*DV$2*$F15 -> 1283.481867 | DW15: =DW$2*$F15*Main!$C$4*$E15+Main!$C$5*DW$2*$F15 -> 1612.614134 | DX15: =DX$2*$F15*Main!$C$4*$E15+Main!$C$5*DX$2*$F15 -> 1941.523109 | DY15: =DY$2*$F15*Main!$C$4*$E15+Main!$C$5*DY$2*$F15 -> 2270.655376 | DZ15: =DZ$2*$F15*Main!$C$4*$E15+Main!$C$5*DZ$2*$F15 -> 2599.787643 | EA15: =EA$2*$F15*Main!$C$4*$E15+Main!$C$5*EA$2*$F15 -> 1386.196143 | EB15: =EB$2*$F15*Main!$C$4*$E15+Main!$C$5*EB$2*$F15 -> 1730.065676 | EC15: =EC$2*$F15*Main!$C$4*$E15+Main!$C$5*EC$2*$F15 -> 2073.935208 | ED15: =ED$2*$F15*Main!$C$4*$E15+Main!$C$5*ED$2*$F15 -> 2418.028033 | EE15: =EE$2*$F15*Main!$C$4*$E15+Main!$C$5*EE$2*$F15 -> 2761.897566 | EF15: =EF$2*$F15*Main!$C$4*$E15+Main!$C$5*EF$2*$F15 -> 1371.012293 | EG15: =EG$2*$F15*Main!$C$4*$E15+Main!$C$5*EG$2*$F15 -> 1775.840516 | EH15: =EH$2*$F15*Main!$C$4*$E15+Main!$C$5*EH$2*$F15 -> 2180.445447 | EI15: =EI$2*$F15*Main!$C$4*$E15+Main!$C$5*EI$2*$F15 -> 2585.273669 | EJ15: =EJ$2*$F15*Main!$C$4*$E15+Main!$C$5*EJ$2*$F15 -> 2990.101892 | EK15: =EK$2*$F15*Main!$C$4*$E15+Main!$C$5*EK$2*$F15 -> 1548.082773 | EL15: =EL$2*$F15*Main!$C$4*$E15+Main!$C$5*EL$2*$F15 -> 1917.407583 | EM15: =EM$2*$F15*Main!$C$4*$E15+Main!$C$5*EM$2*$F15 -> 2286.732393 | EN15: =EN$2*$F15*Main!$C$4*$E15+Main!$C$5*EN$2*$F15 -> 2656.057203 | EO15: =EO$2*$F15*Main!$C$4*$E15+Main!$C$5*EO$2*$F15 -> 3025.382013 | EP15: =EP$2*$F15*Main!$C$4*$E15+Main!$C$5*EP$2*$F15 -> 1650.797049 | EQ15: =EQ$2*$F15*Main!$C$4*$E15+Main!$C$5*EQ$2*$F15 -> 2035.082417 | ER15: =ER$2*$F15*Main!$C$4*$E15+Main!$C$5*ER$2*$F15 -> 2419.144493 | ES15: =ES$2*$F15*Main!$C$4*$E15+Main!$C$5*ES$2*$F15 -> 2803.206568 | ET15: =ET$2*$F15*Main!$C$4*$E15+Main!$C$5*ET$2*$F15 -> 3187.491936 | EU15: =EU$2*$F15*Main!$C$4*$E15+Main!$C$5*EU$2*$F15 -> 3919.219507 | EV15: =EV$2*$F15*Main!$C$4*$E15+Main!$C$5*EV$2*$F15 -> 4025.953037 | EW15: =EW$2*$F15*Main!$C$4*$E15+Main!$C$5*EW$2*$F15 -> 4163.947434 | EX15: =EX$2*$F15*Main!$C$4*$E15+Main!$C$5*EX$2*$F15 -> 4150.54992 | EY15: =EY$2*$F15*Main!$C$4*$E15+Main!$C$5*EY$2*$F15 -> 4257.506742 | EZ15: =EZ$2*$F15*Main!$C$4*$E15+Main!$C$5*EZ$2*$F15 -> 4395.277847 | FA15: =FA$2*$F15*Main!$C$4*$E15+Main!$C$5*FA$2*$F15 -> 4692.702664 | FB15: =FB$2*$F15*Main!$C$4*$E15+Main!$C$5*FB$2*$F15 -> 4799.659486 | FC15: =FC$2*$F15*Main!$C$4*$E15+Main!$C$5*FC$2*$F15 -> 4937.430591 | FD15: =IF($D15<100,(FD$2*(1+Main!$C$3)*$E15*Main!$C$4)+(FD$2*(1+Main!$C$3)*Main!$C$5),(FD$2*$E15*Main!$C$4)+(FD$2*Main!$C$5)) -> 105.9265602 | FE15: =IF($D15<100,(FE$2*(1+Main!$C$3)*$E15*Main!$C$4)+(FE$2*(1+Main!$C$3)*Main!$C$5),(FE$2*$E15*Main!$C$4)+(FE$2*Main!$C$5)) -> 115.79183 | FF15: =IF($D15<100,(FF$2*(1+Main!$C$3)*$E15*Main!$C$4)+(FF$2*(1+Main!$C$3)*Main!$C$5),(FF$2*$E15*Main!$C$4)+(FF$2*Main!$C$5)) -> 116.5834413 | FG15: =IF($D15<100,(FG$2*(1+Main!$C$3)*$E15*Main!$C$4)+(FG$2*(1+Main!$C$3)*Main!$C$5),(FG$2*$E15*Main!$C$4)+(FG$2*Main!$C$5)) -> 125.8512685 | FH15: =IF($D15<100,(FH$2*(1+Main!$C$3)*$E15*Main!$C$4)+(FH$2*(1+Main!$C$3)*Main!$C$5),(FH$2*$E15*Main!$C$4)+(FH$2*Main!$C$5)) -> 169.7931665 | FI15: =IF($D15<100,(FI$2*(1+Main!$C$3)*$E15*Main!$C$4)+(FI$2*(1+Main!$C$3)*Main!$C$5),(FI$2*$E15*Main!$C$4)+(FI$2*Main!$C$5)) -> 47.96716697
A16: AL | B16: 22520 | C16: (Colbert County, Florence-Muscle Shoals, Lauderdale County) | D16: 22520 | E16: 0.6916 | F16: =IF($D16<100,Main!$C$2*(1+Main!$C$3),Main!$C$2) -> 2989.97 | G16: =G$2*$F16*Main!$C$4*$E16+Main!$C$5*G$2*$F16 -> 1327.075233 | H16: =H$2*$F16*Main!$C$4*$E16+Main!$C$5*H$2*$F16 -> 1624.120756 | I16: =I$2*$F16*Main!$C$4*$E16+Main!$C$5*I$2*$F16 -> 1921.166279 | J16: =J$2*$F16*Main!$C$4*$E16+Main!$C$5*J$2*$F16 -> 2218.211803 | K16: =K$2*$F16*Main!$C$4*$E16+Main!$C$5*K$2*$F16 -> 2515.030747 | L16: =L$2*$F16*Main!$C$4*$E16+Main!$C$5*L$2*$F16 -> 1562.491174 | M16: =M$2*$F16*Main!$C$4*$E16+Main!$C$5*M$2*$F16 -> 1819.432153 | N16: =N$2*$F16*Main!$C$4*$E16+Main!$C$5*N$2*$F16 -> 2076.373132 | O16: =O$2*$F16*Main!$C$4*$E16+Main!$C$5*O$2*$F16 -> 2333.314111 | P16: =P$2*$F16*Main!$C$4*$E16+Main!$C$5*P$2*$F16 -> 2590.481669 | Q16: =Q$2*$F16*Main!$C$4*$E16+Main!$C$5*Q$2*$F16 -> 1690.281925 | R16: =R$2*$F16*Main!$C$4*$E16+Main!$C$5*R$2*$F16 -> 1955.379761 | S16: =S$2*$F16*Main!$C$4*$E16+Main!$C$5*S$2*$F16 -> 2220.477596 | T16: =T$2*$F16*Main!$C$4*$E16+Main!$C$5*T$2*$F16 -> 2485.575432 | U16: =U$2*$F16*Main!$C$4*$E16+Main!$C$5*U$2*$F16 -> 2750.673267 | V16: =V$2*$F16*Main!$C$4*$E16+Main!$C$5*V$2*$F16 -> 1403.205893 | W16: =W$2*$F16*Main!$C$4*$E16+Main!$C$5*W$2*$F16 -> 1705.236162 | X16: =X$2*$F16*Main!$C$4*$E16+Main!$C$5*X$2*$F16 -> 2007.49301 | Y16: =Y$2*$F16*Main!$C$4*$E16+Main!$C$5*Y$2*$F16 -> 2309.523279 | Z16: =Z$2*$F16*Main!$C$4*$E16+Main!$C$5*Z$2*$F16 -> 2611.553548 | AA16: =AA$2*$F16*Main!$C$4*$E16+Main!$C$5*AA$2*$F16 -> 1638.621834 | AB16: =AB$2*$F16*Main!$C$4*$E16+Main!$C$5*AB$2*$F16 -> 1900.774138 | AC16: =AC$2*$F16*Main!$C$4*$E16+Main!$C$5*AC$2*$F16 -> 2162.699863 | AD16: =AD$2*$F16*Main!$C$4*$E16+Main!$C$5*AD$2*$F16 -> 2424.852167 | AE16: =AE$2*$F16*Main!$C$4*$E16+Main!$C$5*AE$2*$F16 -> 2686.777891 | AF16: =AF$2*$F16*Main!$C$4*$E16+Main!$C$5*AF$2*$F16 -> 1766.412586 | AG16: =AG$2*$F16*Main!$C$4*$E16+Main!$C$5*AG$2*$F16 -> 2036.495167 | AH16: =AH$2*$F16*Main!$C$4*$E16+Main!$C$5*AH$2*$F16 -> 2306.804327 | AI16: =AI$2*$F16*Main!$C$4*$E16+Main!$C$5*AI$2*$F16 -> 2576.886908 | AJ16: =AJ$2*$F16*Main!$C$4*$E16+Main!$C$5*AJ$2*$F16 -> 2846.969489 | AK16: =AK$2*$F16*Main!$C$4*$E16+Main!$C$5*AK$2*$F16 -> 1505.166599 | AL16: =AL$2*$F16*Main!$C$4*$E16+Main!$C$5*AL$2*$F16 -> 1858.856959 | AM16: =AM$2*$F16*Main!$C$4*$E16+Main!$C$5*AM$2*$F16 -> 2212.547319 | AN16: =AN$2*$F16*Main!$C$4*$E16+Main!$C$5*AN$2*$F16 -> 2566.0111 | AO16: =AO$2*$F16*Main!$C$4*$E16+Main!$C$5*AO$2*$F16 -> 2919.70146 | AP16: =AP$2*$F16*Main!$C$4*$E16+Main!$C$5*AP$2*$F16 -> 1740.58254 | AQ16: =AQ$2*$F16*Main!$C$4*$E16+Main!$C$5*AQ$2*$F16 -> 2054.168356 | AR16: =AR$2*$F16*Main!$C$4*$E16+Main!$C$5*AR$2*$F16 -> 2367.754171 | AS16: =AS$2*$F16*Main!$C$4*$E16+Main!$C$5*AS$2*$F16 -> 2681.339987 | AT16: =AT$2*$F16*Main!$C$4*$E16+Main!$C$5*AT$2*$F16 -> 2994.925803 | AU16: =AU$2*$F16*Main!$C$4*$E16+Main!$C$5*AU$2*$F16 -> 1868.373292 | AV16: =AV$2*$F16*Main!$C$4*$E16+Main!$C$5*AV$2*$F16 -> 2190.115964 | AW16: =AW$2*$F16*Main!$C$4*$E16+Main!$C$5*AW$2*$F16 -> 2511.858636 | AX16: =AX$2*$F16*Main!$C$4*$E16+Main!$C$5*AX$2*$F16 -> 2833.374729 | AY16: =AY$2*$F16*Main!$C$4*$E16+Main!$C$5*AY$2*$F16 -> 3155.117401 | AZ16: =AZ$2*$F16*Main!$C$4*$E16+Main!$C$5*AZ$2*$F16 -> 2812.07627 | BA16: =BA$2*$F16*Main!$C$4*$E16+Main!$C$5*BA$2*$F16 -> 3200.43327 | BB16: =BB$2*$F16*Main!$C$4*$E16+Main!$C$5*BB$2*$F16 -> 3588.563691 | BC16: =BC$2*$F16*Main!$C$4*$E16+Main!$C$5*BC$2*$F16 -> 2847.422648 | BD16: =BD$2*$F16*Main!$C$4*$E16+Main!$C$5*BD$2*$F16 -> 3260.023638 | BE16: =BE$2*$F16*Main!$C$4*$E16+Main!$C$5*BE$2*$F16 -> 3672.624628 | BF16: =BF$2*$F16*Main!$C$4*$E16+Main!$C$5*BF$2*$F16 -> 3015.771103 | BG16: =BG$2*$F16*Main!$C$4*$E16+Main!$C$5*BG$2*$F16 -> 3418.85576 | BH16: =BH$2*$F16*Main!$C$4*$E16+Main!$C$5*BH$2*$F16 -> 3821.940418 | BI16: =BI$2*$F16*Main!$C$4*$E16+Main!$C$5*BI$2*$F16 -> 2913.583817 | BJ16: =BJ$2*$F16*Main!$C$4*$E16+Main!$C$5*BJ$2*$F16 -> 3346.350369 | BK16: =BK$2*$F16*Main!$C$4*$E16+Main!$C$5*BK$2*$F16 -> 3779.116921 | BL16: =BL$2*$F16*Main!$C$4*$E16+Main!$C$5*BL$2*$F16 -> 2948.703616 | BM16: =BM$2*$F16*Main!$C$4*$E16+Main!$C$5*BM$2*$F16 -> 3405.940737 | BN16: =BN$2*$F16*Main!$C$4*$E16+Main!$C$5*BN$2*$F16 -> 3862.951279 | BO16: =BO$2*$F16*Main!$C$4*$E16+Main!$C$5*BO$2*$F16 -> 3117.05207 | BP16: =BP$2*$F16*Main!$C$4*$E16+Main!$C$5*BP$2*$F16 -> 3564.772859 | BQ16: =BQ$2*$F16*Main!$C$4*$E16+Main!$C$5*BQ$2*$F16 -> 4012.267069 | BR16: =BR$2*$F16*Main!$C$4*$E16+Main!$C$5*BR$2*$F16 -> 3273.16524 | BS16: =BS$2*$F16*Main!$C$4*$E16+Main!$C$5*BS$2*$F16 -> 3769.374009 | BT16: =BT$2*$F16*Main!$C$4*$E16+Main!$C$5*BT$2*$F16 -> 4265.582778 | BU16: =BU$2*$F16*Main!$C$4*$E16+Main!$C$5*BU$2*$F16 -> 3308.511618 | BV16: =BV$2*$F16*Main!$C$4*$E16+Main!$C$5*BV$2*$F16 -> 3828.964377 | BW16: =BW$2*$F16*Main!$C$4*$E16+Main!$C$5*BW$2*$F16 -> 4349.643716 | BX16: =BX$2*$F16*Main!$C$4*$E16+Main!$C$5*BX$2*$F16 -> 3476.860073 | BY16: =BY$2*$F16*Main!$C$4*$E16+Main!$C$5*BY$2*$F16 -> 3988.023079 | BZ16: =BZ$2*$F16*Main!$C$4*$E16+Main!$C$5*BZ$2*$F16 -> 4498.959505 | CA16: =CA$2*$F16*Main!$C$4*$E16+Main!$C$5*CA$2*$F16 -> 2837.453157 | CB16: =CB$2*$F16*Main!$C$4*$E16+Main!$C$5*CB$2*$F16 -> 3217.426721 | CC16: =CC$2*$F16*Main!$C$4*$E16+Main!$C$5*CC$2*$F16 -> 3597.173706 | CD16: =CD$2*$F16*Main!$C$4*$E16+Main!$C$5*CD$2*$F16 -> 2837.453157 | CE16: =CE$2*$F16*Main!$C$4*$E16+Main!$C$5*CE$2*$F16 -> 3253.452837 | CF16: =CF$2*$F16*Main!$C$4*$E16+Main!$C$5*CF$2*$F16 -> 3669.452517 | CG16: =CG$2*$F16*Main!$C$4*$E16+Main!$C$5*CG$2*$F16 -> 3016.903999 | CH16: =CH$2*$F16*Main!$C$4*$E16+Main!$C$5*CH$2*$F16 -> 3419.762077 | CI16: =CI$2*$F16*Main!$C$4*$E16+Main!$C$5*CI$2*$F16 -> 3822.393576 | CJ16: =CJ$2*$F16*Main!$C$4*$E16+Main!$C$5*CJ$2*$F16 -> 2972.041289 | CK16: =CK$2*$F16*Main!$C$4*$E16+Main!$C$5*CK$2*$F16 -> 3385.322017 | CL16: =CL$2*$F16*Main!$C$4*$E16+Main!$C$5*CL$2*$F16 -> 3798.602745 | CM16: =CM$2*$F16*Main!$C$4*$E16+Main!$C$5*CM$2*$F16 -> 2972.041289 | CN16: =CN$2*$F16*Main!$C$4*$E16+Main!$C$5*CN$2*$F16 -> 3421.348133 | CO16: =CO$2*$F16*Main!$C$4*$E16+Main!$C$5*CO$2*$F16 -> 3870.654977 | CP16: =CP$2*$F16*Main!$C$4*$E16+Main!$C$5*CP$2*$F16 -> 3151.492131 | CQ16: =CQ$2*$F16*Main!$C$4*$E16+Main!$C$5*CQ$2*$F16 -> 3587.657373 | CR16: =CR$2*$F16*Main!$C$4*$E16+Main!$C$5*CR$2*$F16 -> 4023.822615 | CS16: =CS$2*$F16*Main!$C$4*$E16+Main!$C$5*CS$2*$F16 -> 3444.685806 | CT16: =CT$2*$F16*Main!$C$4*$E16+Main!$C$5*CT$2*$F16 -> 3883.796579 | CU16: =CU$2*$F16*Main!$C$4*$E16+Main!$C$5*CU$2*$F16 -> 4322.907353 | CV16: =CV$2*$F16*Main!$C$4*$E16+Main!$C$5*CV$2*$F16 -> 3444.685806 | CW16: =CW$2*$F16*Main!$C$4*$E16+Main!$C$5*CW$2*$F16 -> 3919.822695 | CX16: =CX$2*$F16*Main!$C$4*$E16+Main!$C$5*CX$2*$F16 -> 4395.186164 | CY16: =CY$2*$F16*Main!$C$4*$E16+Main!$C$5*CY$2*$F16 -> 3624.136648 | CZ16: =CZ$2*$F16*Main!$C$4*$E16+Main!$C$5*CZ$2*$F16 -> 4086.131936 | DA16: =DA$2*$F16*Main!$C$4*$E16+Main!$C$5*DA$2*$F16 -> 4548.127223 | DB16: =DB$2*$F16*Main!$C$4*$E16+Main!$C$5*DB$2*$F16 -> 1084.182173 | DC16: =DC$2*$F16*Main!$C$4*$E16+Main!$C$5*DC$2*$F16 -> 1434.927002 | DD16: =DD$2*$F16*Main!$C$4*$E16+Main!$C$5*DD$2*$F16 -> 1785.445251 | DE16: =DE$2*$F16*Main!$C$4*$E16+Main!$C$5*DE$2*$F16 -> 2136.190079 | DF16: =DF$2*$F16*Main!$C$4*$E16+Main!$C$5*DF$2*$F16 -> 2486.934908 | DG16: =DG$2*$F16*Main!$C$4*$E16+Main!$C$5*DG$2*$F16 -> 1263.859595 | DH16: =DH$2*$F16*Main!$C$4*$E16+Main!$C$5*DH$2*$F16 -> 1578.578307 | DI16: =DI$2*$F16*Main!$C$4*$E16+Main!$C$5*DI$2*$F16 -> 1893.29702 | DJ16: =DJ$2*$F16*Main!$C$4*$E16+Main!$C$5*DJ$2*$F16 -> 2208.015732 | DK16: =DK$2*$F16*Main!$C$4*$E16+Main!$C$5*DK$2*$F16 -> 2522.734444 | DL16: =DL$2*$F16*Main!$C$4*$E16+Main!$C$5*DL$2*$F16 -> 1368.312674 | DM16: =DM$2*$F16*Main!$C$4*$E16+Main!$C$5*DM$2*$F16 -> 1697.985623 | DN16: =DN$2*$F16*Main!$C$4*$E16+Main!$C$5*DN$2*$F16 -> 2027.658572 | DO16: =DO$2*$F16*Main!$C$4*$E16+Main!$C$5*DO$2*$F16 -> 2357.558101 | DP16: =DP$2*$F16*Main!$C$4*$E16+Main!$C$5*DP$2*$F16 -> 2687.23105 | DQ16: =DQ$2*$F16*Main!$C$4*$E16+Main!$C$5*DQ$2*$F16 -> 1122.700662 | DR16: =DR$2*$F16*Main!$C$4*$E16+Main!$C$5*DR$2*$F16 -> 1492.478156 | DS16: =DS$2*$F16*Main!$C$4*$E16+Main!$C$5*DS$2*$F16 -> 1862.482229 | DT16: =DT$2*$F16*Main!$C$4*$E16+Main!$C$5*DT$2*$F16 -> 2232.259722 | DU16: =DU$2*$F16*Main!$C$4*$E16+Main!$C$5*DU$2*$F16 -> 2602.263795 | DV16: =DV$2*$F16*Main!$C$4*$E16+Main!$C$5*DV$2*$F16 -> 1302.378084 | DW16: =DW$2*$F16*Main!$C$4*$E16+Main!$C$5*DW$2*$F16 -> 1636.356041 | DX16: =DX$2*$F16*Main!$C$4*$E16+Main!$C$5*DX$2*$F16 -> 1970.107418 | DY16: =DY$2*$F16*Main!$C$4*$E16+Main!$C$5*DY$2*$F16 -> 2304.085375 | DZ16: =DZ$2*$F16*Main!$C$4*$E16+Main!$C$5*DZ$2*$F16 -> 2638.063332 | EA16: =EA$2*$F16*Main!$C$4*$E16+Main!$C$5*EA$2*$F16 -> 1406.604583 | EB16: =EB$2*$F16*Main!$C$4*$E16+Main!$C$5*EB$2*$F16 -> 1755.536777 | EC16: =EC$2*$F16*Main!$C$4*$E16+Main!$C$5*EC$2*$F16 -> 2104.468971 | ED16: =ED$2*$F16*Main!$C$4*$E16+Main!$C$5*ED$2*$F16 -> 2453.627744 | EE16: =EE$2*$F16*Main!$C$4*$E16+Main!$C$5*EE$2*$F16 -> 2802.559937 | EF16: =EF$2*$F16*Main!$C$4*$E16+Main!$C$5*EF$2*$F16 -> 1391.197188 | EG16: =EG$2*$F16*Main!$C$4*$E16+Main!$C$5*EG$2*$F16 -> 1801.985543 | EH16: =EH$2*$F16*Main!$C$4*$E16+Main!$C$5*EH$2*$F16 -> 2212.547319 | EI16: =EI$2*$F16*Main!$C$4*$E16+Main!$C$5*EI$2*$F16 -> 2623.335674 | EJ16: =EJ$2*$F16*Main!$C$4*$E16+Main!$C$5*EJ$2*$F16 -> 3034.12403 | EK16: =EK$2*$F16*Main!$C$4*$E16+Main!$C$5*EK$2*$F16 -> 1570.87461 | EL16: =EL$2*$F16*Main!$C$4*$E16+Main!$C$5*EL$2*$F16 -> 1945.636849 | EM16: =EM$2*$F16*Main!$C$4*$E16+Main!$C$5*EM$2*$F16 -> 2320.399088 | EN16: =EN$2*$F16*Main!$C$4*$E16+Main!$C$5*EN$2*$F16 -> 2695.161327 | EO16: =EO$2*$F16*Main!$C$4*$E16+Main!$C$5*EO$2*$F16 -> 3069.923566 | EP16: =EP$2*$F16*Main!$C$4*$E16+Main!$C$5*EP$2*$F16 -> 1675.101109 | EQ16: =EQ$2*$F16*Main!$C$4*$E16+Main!$C$5*EQ$2*$F16 -> 2065.044164 | ER16: =ER$2*$F16*Main!$C$4*$E16+Main!$C$5*ER$2*$F16 -> 2454.76064 | ES16: =ES$2*$F16*Main!$C$4*$E16+Main!$C$5*ES$2*$F16 -> 2844.477117 | ET16: =ET$2*$F16*Main!$C$4*$E16+Main!$C$5*ET$2*$F16 -> 3234.420172 | EU16: =EU$2*$F16*Main!$C$4*$E16+Main!$C$5*EU$2*$F16 -> 3976.920691 | EV16: =EV$2*$F16*Main!$C$4*$E16+Main!$C$5*EV$2*$F16 -> 4085.225618 | EW16: =EW$2*$F16*Main!$C$4*$E16+Main!$C$5*EW$2*$F16 -> 4225.251654 | EX16: =EX$2*$F16*Main!$C$4*$E16+Main!$C$5*EX$2*$F16 -> 4211.656894 | EY16: =EY$2*$F16*Main!$C$4*$E16+Main!$C$5*EY$2*$F16 -> 4320.188401 | EZ16: =EZ$2*$F16*Main!$C$4*$E16+Main!$C$5*EZ$2*$F16 -> 4459.987857 | FA16: =FA$2*$F16*Main!$C$4*$E16+Main!$C$5*FA$2*$F16 -> 4761.791547 | FB16: =FB$2*$F16*Main!$C$4*$E16+Main!$C$5*FB$2*$F16 -> 4870.323054 | FC16: =FC$2*$F16*Main!$C$4*$E16+Main!$C$5*FC$2*$F16 -> 5010.122511 | FD16: =IF($D16<100,(FD$2*(1+Main!$C$3)*$E16*Main!$C$4)+(FD$2*(1+Main!$C$3)*Main!$C$5),(FD$2*$E16*Main!$C$4)+(FD$2*Main!$C$5)) -> 107.4860768 | FE16: =IF($D16<100,(FE$2*(1+Main!$C$3)*$E16*Main!$C$4)+(FE$2*(1+Main!$C$3)*Main!$C$5),(FE$2*$E16*Main!$C$4)+(FE$2*Main!$C$5)) -> 117.4965892 | FF16: =IF($D16<100,(FF$2*(1+Main!$C$3)*$E16*Main!$C$4)+(FF$2*(1+Main!$C$3)*Main!$C$5),(FF$2*$E16*Main!$C$4)+(FF$2*Main!$C$5)) -> 118.2998551 | FG16: =IF($D16<100,(FG$2*(1+Main!$C$3)*$E16*Main!$C$4)+(FG$2*(1+Main!$C$3)*Main!$C$5),(FG$2*$E16*Main!$C$4)+(FG$2*Main!$C$5)) -> 127.7041291 | FH16: =IF($D16<100,(FH$2*(1+Main!$C$3)*$E16*Main!$C$4)+(FH$2*(1+Main!$C$3)*Main!$C$5),(FH$2*$E16*Main!$C$4)+(FH$2*Main!$C$5)) -> 172.2929669 | FI16: =IF($D16<100,(FI$2*(1+Main!$C$3)*$E16*Main!$C$4)+(FI$2*(1+Main!$C$3)*Main!$C$5),(FI$2*$E16*Main!$C$4)+(FI$2*Main!$C$5)) -> 48.67336939
A17: AL | B17: 23460 | C17: (Etowah County, Gadsden) | D17: 23460 | E17: 0.7157 | F17: =IF($D17<100,Main!$C$2*(1+Main!$C$3),Main!$C$2) -> 2989.97 | G17: =G$2*$F17*Main!$C$4*$E17+Main!$C$5*G$2*$F17 -> 1360.220563 | H17: =H$2*$F17*Main!$C$4*$E17+Main!$C$5*H$2*$F17 -> 1664.685162 | I17: =I$2*$F17*Main!$C$4*$E17+Main!$C$5*I$2*$F17 -> 1969.149761 | J17: =J$2*$F17*Main!$C$4*$E17+Main!$C$5*J$2*$F17 -> 2273.61436 | K17: =K$2*$F17*Main!$C$4*$E17+Main!$C$5*K$2*$F17 -> 2577.846721 | L17: =L$2*$F17*Main!$C$4*$E17+Main!$C$5*L$2*$F17 -> 1601.516305 | M17: =M$2*$F17*Main!$C$4*$E17+Main!$C$5*M$2*$F17 -> 1864.8747 | N17: =N$2*$F17*Main!$C$4*$E17+Main!$C$5*N$2*$F17 -> 2128.233095 | O17: =O$2*$F17*Main!$C$4*$E17+Main!$C$5*O$2*$F17 -> 2391.591489 | P17: =P$2*$F17*Main!$C$4*$E17+Main!$C$5*P$2*$F17 -> 2655.182123 | Q17: =Q$2*$F17*Main!$C$4*$E17+Main!$C$5*Q$2*$F17 -> 1732.498787 | R17: =R$2*$F17*Main!$C$4*$E17+Main!$C$5*R$2*$F17 -> 2004.217766 | S17: =S$2*$F17*Main!$C$4*$E17+Main!$C$5*S$2*$F17 -> 2275.936745 | T17: =T$2*$F17*Main!$C$4*$E17+Main!$C$5*T$2*$F17 -> 2547.655723 | U17: =U$2*$F17*Main!$C$4*$E17+Main!$C$5*U$2*$F17 -> 2819.374702 | V17: =V$2*$F17*Main!$C$4*$E17+Main!$C$5*V$2*$F17 -> 1438.25268 | W17: =W$2*$F17*Main!$C$4*$E17+Main!$C$5*W$2*$F17 -> 1747.826525 | X17: =X$2*$F17*Main!$C$4*$E17+Main!$C$5*X$2*$F17 -> 2057.632608 | Y17: =Y$2*$F17*Main!$C$4*$E17+Main!$C$5*Y$2*$F17 -> 2367.206453 | Z17: =Z$2*$F17*Main!$C$4*$E17+Main!$C$5*Z$2*$F17 -> 2676.780298 | AA17: =AA$2*$F17*Main!$C$4*$E17+Main!$C$5*AA$2*$F17 -> 1679.548422 | AB17: =AB$2*$F17*Main!$C$4*$E17+Main!$C$5*AB$2*$F17 -> 1948.248301 | AC17: =AC$2*$F17*Main!$C$4*$E17+Main!$C$5*AC$2*$F17 -> 2216.715942 | AD17: =AD$2*$F17*Main!$C$4*$E17+Main!$C$5*AD$2*$F17 -> 2485.415821 | AE17: =AE$2*$F17*Main!$C$4*$E17+Main!$C$5*AE$2*$F17 -> 2753.883461 | AF17: =AF$2*$F17*Main!$C$4*$E17+Main!$C$5*AF$2*$F17 -> 1810.530904 | AG17: =AG$2*$F17*Main!$C$4*$E17+Main!$C$5*AG$2*$F17 -> 2087.359129 | AH17: =AH$2*$F17*Main!$C$4*$E17+Main!$C$5*AH$2*$F17 -> 2364.419592 | AI17: =AI$2*$F17*Main!$C$4*$E17+Main!$C$5*AI$2*$F17 -> 2641.247816 | AJ17: =AJ$2*$F17*Main!$C$4*$E17+Main!$C$5*AJ$2*$F17 -> 2918.07604 | AK17: =AK$2*$F17*Main!$C$4*$E17+Main!$C$5*AK$2*$F17 -> 1542.759979 | AL17: =AL$2*$F17*Main!$C$4*$E17+Main!$C$5*AL$2*$F17 -> 1905.284189 | AM17: =AM$2*$F17*Main!$C$4*$E17+Main!$C$5*AM$2*$F17 -> 2267.808399 | AN17: =AN$2*$F17*Main!$C$4*$E17+Main!$C$5*AN$2*$F17 -> 2630.100371 | AO17: =AO$2*$F17*Main!$C$4*$E17+Main!$C$5*AO$2*$F17 -> 2992.624581 | AP17: =AP$2*$F17*Main!$C$4*$E17+Main!$C$5*AP$2*$F17 -> 1784.055722 | AQ17: =AQ$2*$F17*Main!$C$4*$E17+Main!$C$5*AQ$2*$F17 -> 2105.473727 | AR17: =AR$2*$F17*Main!$C$4*$E17+Main!$C$5*AR$2*$F17 -> 2426.891733 | AS17: =AS$2*$F17*Main!$C$4*$E17+Main!$C$5*AS$2*$F17 -> 2748.309738 | AT17: =AT$2*$F17*Main!$C$4*$E17+Main!$C$5*AT$2*$F17 -> 3069.727744 | AU17: =AU$2*$F17*Main!$C$4*$E17+Main!$C$5*AU$2*$F17 -> 1915.038204 | AV17: =AV$2*$F17*Main!$C$4*$E17+Main!$C$5*AV$2*$F17 -> 2244.816793 | AW17: =AW$2*$F17*Main!$C$4*$E17+Main!$C$5*AW$2*$F17 -> 2574.595383 | AX17: =AX$2*$F17*Main!$C$4*$E17+Main!$C$5*AX$2*$F17 -> 2904.141734 | AY17: =AY$2*$F17*Main!$C$4*$E17+Main!$C$5*AY$2*$F17 -> 3233.920323 | AZ17: =AZ$2*$F17*Main!$C$4*$E17+Main!$C$5*AZ$2*$F17 -> 2882.31132 | BA17: =BA$2*$F17*Main!$C$4*$E17+Main!$C$5*BA$2*$F17 -> 3280.368012 | BB17: =BB$2*$F17*Main!$C$4*$E17+Main!$C$5*BB$2*$F17 -> 3678.192465 | BC17: =BC$2*$F17*Main!$C$4*$E17+Main!$C$5*BC$2*$F17 -> 2918.540517 | BD17: =BD$2*$F17*Main!$C$4*$E17+Main!$C$5*BD$2*$F17 -> 3341.446723 | BE17: =BE$2*$F17*Main!$C$4*$E17+Main!$C$5*BE$2*$F17 -> 3764.352928 | BF17: =BF$2*$F17*Main!$C$4*$E17+Main!$C$5*BF$2*$F17 -> 3091.093681 | BG17: =BG$2*$F17*Main!$C$4*$E17+Main!$C$5*BG$2*$F17 -> 3504.245871 | BH17: =BH$2*$F17*Main!$C$4*$E17+Main!$C$5*BH$2*$F17 -> 3917.398062 | BI17: =BI$2*$F17*Main!$C$4*$E17+Main!$C$5*BI$2*$F17 -> 2986.354143 | BJ17: =BJ$2*$F17*Main!$C$4*$E17+Main!$C$5*BJ$2*$F17 -> 3429.92957 | BK17: =BK$2*$F17*Main!$C$4*$E17+Main!$C$5*BK$2*$F17 -> 3873.504996 | BL17: =BL$2*$F17*Main!$C$4*$E17+Main!$C$5*BL$2*$F17 -> 3022.351101 | BM17: =BM$2*$F17*Main!$C$4*$E17+Main!$C$5*BM$2*$F17 -> 3491.00828 | BN17: =BN$2*$F17*Main!$C$4*$E17+Main!$C$5*BN$2*$F17 -> 3959.43322 | BO17: =BO$2*$F17*Main!$C$4*$E17+Main!$C$5*BO$2*$F17 -> 3194.904265 | BP17: =BP$2*$F17*Main!$C$4*$E17+Main!$C$5*BP$2*$F17 -> 3653.807429 | BQ17: =BQ$2*$F17*Main!$C$4*$E17+Main!$C$5*BQ$2*$F17 -> 4112.478354 | BR17: =BR$2*$F17*Main!$C$4*$E17+Main!$C$5*BR$2*$F17 -> 3354.916552 | BS17: =BS$2*$F17*Main!$C$4*$E17+Main!$C$5*BS$2*$F17 -> 3863.518743 | BT17: =BT$2*$F17*Main!$C$4*$E17+Main!$C$5*BT$2*$F17 -> 4372.120934 | BU17: =BU$2*$F17*Main!$C$4*$E17+Main!$C$5*BU$2*$F17 -> 3391.14575 | BV17: =BV$2*$F17*Main!$C$4*$E17+Main!$C$5*BV$2*$F17 -> 3924.597454 | BW17: =BW$2*$F17*Main!$C$4*$E17+Main!$C$5*BW$2*$F17 -> 4458.281397 | BX17: =BX$2*$F17*Main!$C$4*$E17+Main!$C$5*BX$2*$F17 -> 3563.698913 | BY17: =BY$2*$F17*Main!$C$4*$E17+Main!$C$5*BY$2*$F17 -> 4087.628841 | BZ17: =BZ$2*$F17*Main!$C$4*$E17+Main!$C$5*BZ$2*$F17 -> 4611.326531 | CA17: =CA$2*$F17*Main!$C$4*$E17+Main!$C$5*CA$2*$F17 -> 2908.322026 | CB17: =CB$2*$F17*Main!$C$4*$E17+Main!$C$5*CB$2*$F17 -> 3297.785895 | CC17: =CC$2*$F17*Main!$C$4*$E17+Main!$C$5*CC$2*$F17 -> 3687.017526 | CD17: =CD$2*$F17*Main!$C$4*$E17+Main!$C$5*CD$2*$F17 -> 2908.322026 | CE17: =CE$2*$F17*Main!$C$4*$E17+Main!$C$5*CE$2*$F17 -> 3334.711808 | CF17: =CF$2*$F17*Main!$C$4*$E17+Main!$C$5*CF$2*$F17 -> 3761.10159 | CG17: =CG$2*$F17*Main!$C$4*$E17+Main!$C$5*CG$2*$F17 -> 3092.254873 | CH17: =CH$2*$F17*Main!$C$4*$E17+Main!$C$5*CH$2*$F17 -> 3505.174825 | CI17: =CI$2*$F17*Main!$C$4*$E17+Main!$C$5*CI$2*$F17 -> 3917.862539 | CJ17: =CJ$2*$F17*Main!$C$4*$E17+Main!$C$5*CJ$2*$F17 -> 3046.271661 | CK17: =CK$2*$F17*Main!$C$4*$E17+Main!$C$5*CK$2*$F17 -> 3469.874582 | CL17: =CL$2*$F17*Main!$C$4*$E17+Main!$C$5*CL$2*$F17 -> 3893.477502 | CM17: =CM$2*$F17*Main!$C$4*$E17+Main!$C$5*CM$2*$F17 -> 3046.271661 | CN17: =CN$2*$F17*Main!$C$4*$E17+Main!$C$5*CN$2*$F17 -> 3506.800494 | CO17: =CO$2*$F17*Main!$C$4*$E17+Main!$C$5*CO$2*$F17 -> 3967.329327 | CP17: =CP$2*$F17*Main!$C$4*$E17+Main!$C$5*CP$2*$F17 -> 3230.204508 | CQ17: =CQ$2*$F17*Main!$C$4*$E17+Main!$C$5*CQ$2*$F17 -> 3677.263512 | CR17: =CR$2*$F17*Main!$C$4*$E17+Main!$C$5*CR$2*$F17 -> 4124.322515 | CS17: =CS$2*$F17*Main!$C$4*$E17+Main!$C$5*CS$2*$F17 -> 3530.721054 | CT17: =CT$2*$F17*Main!$C$4*$E17+Main!$C$5*CT$2*$F17 -> 3980.799157 | CU17: =CU$2*$F17*Main!$C$4*$E17+Main!$C$5*CU$2*$F17 -> 4430.87726 | CV17: =CV$2*$F17*Main!$C$4*$E17+Main!$C$5*CV$2*$F17 -> 3530.721054 | CW17: =CW$2*$F17*Main!$C$4*$E17+Main!$C$5*CW$2*$F17 -> 4017.72507 | CX17: =CX$2*$F17*Main!$C$4*$E17+Main!$C$5*CX$2*$F17 -> 4504.961324 | CY17: =CY$2*$F17*Main!$C$4*$E17+Main!$C$5*CY$2*$F17 -> 3714.653901 | CZ17: =CZ$2*$F17*Main!$C$4*$E17+Main!$C$5*CZ$2*$F17 -> 4188.188087 | DA17: =DA$2*$F17*Main!$C$4*$E17+Main!$C$5*DA$2*$F17 -> 4661.722273 | DB17: =DB$2*$F17*Main!$C$4*$E17+Main!$C$5*DB$2*$F17 -> 1111.260951 | DC17: =DC$2*$F17*Main!$C$4*$E17+Main!$C$5*DC$2*$F17 -> 1470.766062 | DD17: =DD$2*$F17*Main!$C$4*$E17+Main!$C$5*DD$2*$F17 -> 1830.038933 | DE17: =DE$2*$F17*Main!$C$4*$E17+Main!$C$5*DE$2*$F17 -> 2189.544044 | DF17: =DF$2*$F17*Main!$C$4*$E17+Main!$C$5*DF$2*$F17 -> 2549.049154 | DG17: =DG$2*$F17*Main!$C$4*$E17+Main!$C$5*DG$2*$F17 -> 1295.426037 | DH17: =DH$2*$F17*Main!$C$4*$E17+Main!$C$5*DH$2*$F17 -> 1618.005235 | DI17: =DI$2*$F17*Main!$C$4*$E17+Main!$C$5*DI$2*$F17 -> 1940.584432 | DJ17: =DJ$2*$F17*Main!$C$4*$E17+Main!$C$5*DJ$2*$F17 -> 2263.16363 | DK17: =DK$2*$F17*Main!$C$4*$E17+Main!$C$5*DK$2*$F17 -> 2585.742828 | DL17: =DL$2*$F17*Main!$C$4*$E17+Main!$C$5*DL$2*$F17 -> 1402.487959 | DM17: =DM$2*$F17*Main!$C$4*$E17+Main!$C$5*DM$2*$F17 -> 1740.394894 | DN17: =DN$2*$F17*Main!$C$4*$E17+Main!$C$5*DN$2*$F17 -> 2078.301829 | DO17: =DO$2*$F17*Main!$C$4*$E17+Main!$C$5*DO$2*$F17 -> 2416.441003 | DP17: =DP$2*$F17*Main!$C$4*$E17+Main!$C$5*DP$2*$F17 -> 2754.347938 | DQ17: =DQ$2*$F17*Main!$C$4*$E17+Main!$C$5*DQ$2*$F17 -> 1150.741487 | DR17: =DR$2*$F17*Main!$C$4*$E17+Main!$C$5*DR$2*$F17 -> 1529.754626 | DS17: =DS$2*$F17*Main!$C$4*$E17+Main!$C$5*DS$2*$F17 -> 1909.000004 | DT17: =DT$2*$F17*Main!$C$4*$E17+Main!$C$5*DT$2*$F17 -> 2288.013144 | DU17: =DU$2*$F17*Main!$C$4*$E17+Main!$C$5*DU$2*$F17 -> 2667.258522 | DV17: =DV$2*$F17*Main!$C$4*$E17+Main!$C$5*DV$2*$F17 -> 1334.906572 | DW17: =DW$2*$F17*Main!$C$4*$E17+Main!$C$5*DW$2*$F17 -> 1677.226038 | DX17: =DX$2*$F17*Main!$C$4*$E17+Main!$C$5*DX$2*$F17 -> 2019.313265 | DY17: =DY$2*$F17*Main!$C$4*$E17+Main!$C$5*DY$2*$F17 -> 2361.63273 | DZ17: =DZ$2*$F17*Main!$C$4*$E17+Main!$C$5*DZ$2*$F17 -> 2703.952196 | EA17: =EA$2*$F17*Main!$C$4*$E17+Main!$C$5*EA$2*$F17 -> 1441.736256 | EB17: =EB$2*$F17*Main!$C$4*$E17+Main!$C$5*EB$2*$F17 -> 1799.383459 | EC17: =EC$2*$F17*Main!$C$4*$E17+Main!$C$5*EC$2*$F17 -> 2157.030662 | ED17: =ED$2*$F17*Main!$C$4*$E17+Main!$C$5*ED$2*$F17 -> 2514.910103 | EE17: =EE$2*$F17*Main!$C$4*$E17+Main!$C$5*EE$2*$F17 -> 2872.557306 | EF17: =EF$2*$F17*Main!$C$4*$E17+Main!$C$5*EF$2*$F17 -> 1425.944042 | EG17: =EG$2*$F17*Main!$C$4*$E17+Main!$C$5*EG$2*$F17 -> 1846.99234 | EH17: =EH$2*$F17*Main!$C$4*$E17+Main!$C$5*EH$2*$F17 -> 2267.808399 | EI17: =EI$2*$F17*Main!$C$4*$E17+Main!$C$5*EI$2*$F17 -> 2688.856697 | EJ17: =EJ$2*$F17*Main!$C$4*$E17+Main!$C$5*EJ$2*$F17 -> 3109.904995 | EK17: =EK$2*$F17*Main!$C$4*$E17+Main!$C$5*EK$2*$F17 -> 1610.109128 | EL17: =EL$2*$F17*Main!$C$4*$E17+Main!$C$5*EL$2*$F17 -> 1994.231513 | EM17: =EM$2*$F17*Main!$C$4*$E17+Main!$C$5*EM$2*$F17 -> 2378.353898 | EN17: =EN$2*$F17*Main!$C$4*$E17+Main!$C$5*EN$2*$F17 -> 2762.476283 | EO17: =EO$2*$F17*Main!$C$4*$E17+Main!$C$5*EO$2*$F17 -> 3146.598669 | EP17: =EP$2*$F17*Main!$C$4*$E17+Main!$C$5*EP$2*$F17 -> 1716.938812 | EQ17: =EQ$2*$F17*Main!$C$4*$E17+Main!$C$5*EQ$2*$F17 -> 2116.621173 | ER17: =ER$2*$F17*Main!$C$4*$E17+Main!$C$5*ER$2*$F17 -> 2516.071295 | ES17: =ES$2*$F17*Main!$C$4*$E17+Main!$C$5*ES$2*$F17 -> 2915.521418 | ET17: =ET$2*$F17*Main!$C$4*$E17+Main!$C$5*ET$2*$F17 -> 3315.203779 | EU17: =EU$2*$F17*Main!$C$4*$E17+Main!$C$5*EU$2*$F17 -> 4076.249157 | EV17: =EV$2*$F17*Main!$C$4*$E17+Main!$C$5*EV$2*$F17 -> 4187.259133 | EW17: =EW$2*$F17*Main!$C$4*$E17+Main!$C$5*EW$2*$F17 -> 4330.782491 | EX17: =EX$2*$F17*Main!$C$4*$E17+Main!$C$5*EX$2*$F17 -> 4316.848185 | EY17: =EY$2*$F17*Main!$C$4*$E17+Main!$C$5*EY$2*$F17 -> 4428.090399 | EZ17: =EZ$2*$F17*Main!$C$4*$E17+Main!$C$5*EZ$2*$F17 -> 4571.381519 | FA17: =FA$2*$F17*Main!$C$4*$E17+Main!$C$5*FA$2*$F17 -> 4880.723125 | FB17: =FB$2*$F17*Main!$C$4*$E17+Main!$C$5*FB$2*$F17 -> 4991.965339 | FC17: =FC$2*$F17*Main!$C$4*$E17+Main!$C$5*FC$2*$F17 -> 5135.256459 | FD17: =IF($D17<100,(FD$2*(1+Main!$C$3)*$E17*Main!$C$4)+(FD$2*(1+Main!$C$3)*Main!$C$5),(FD$2*$E17*Main!$C$4)+(FD$2*Main!$C$5)) -> 110.1706733 | FE17: =IF($D17<100,(FE$2*(1+Main!$C$3)*$E17*Main!$C$4)+(FE$2*(1+Main!$C$3)*Main!$C$5),(FE$2*$E17*Main!$C$4)+(FE$2*Main!$C$5)) -> 120.4312105 | FF17: =IF($D17<100,(FF$2*(1+Main!$C$3)*$E17*Main!$C$4)+(FF$2*(1+Main!$C$3)*Main!$C$5),(FF$2*$E17*Main!$C$4)+(FF$2*Main!$C$5)) -> 121.254539 | FG17: =IF($D17<100,(FG$2*(1+Main!$C$3)*$E17*Main!$C$4)+(FG$2*(1+Main!$C$3)*Main!$C$5),(FG$2*$E17*Main!$C$4)+(FG$2*Main!$C$5)) -> 130.8936962 | FH17: =IF($D17<100,(FH$2*(1+Main!$C$3)*$E17*Main!$C$4)+(FH$2*(1+Main!$C$3)*Main!$C$5),(FH$2*$E17*Main!$C$4)+(FH$2*Main!$C$5)) -> 176.5961949 | FI17: =IF($D17<100,(FI$2*(1+Main!$C$3)*$E17*Main!$C$4)+(FI$2*(1+Main!$C$3)*Main!$C$5),(FI$2*$E17*Main!$C$4)+(FI$2*Main!$C$5)) -> 49.88904643
A18: AL | B18: 26620 | C18: (Huntsville, Limestone County, Madison County) | D18: 26620 | E18: 0.8468 | F18: =IF($D18<100,Main!$C$2*(1+Main!$C$3),Main!$C$2) -> 2989.97 | G18: =G$2*$F18*Main!$C$4*$E18+Main!$C$5*G$2*$F18 -> 1540.525656 | H18: =H$2*$F18*Main!$C$4*$E18+Main!$C$5*H$2*$F18 -> 1885.348796 | I18: =I$2*$F18*Main!$C$4*$E18+Main!$C$5*I$2*$F18 -> 2230.171937 | J18: =J$2*$F18*Main!$C$4*$E18+Main!$C$5*J$2*$F18 -> 2574.995078 | K18: =K$2*$F18*Main!$C$4*$E18+Main!$C$5*K$2*$F18 -> 2919.555195 | L18: =L$2*$F18*Main!$C$4*$E18+Main!$C$5*L$2*$F18 -> 1813.806543 | M18: =M$2*$F18*Main!$C$4*$E18+Main!$C$5*M$2*$F18 -> 2112.074614 | N18: =N$2*$F18*Main!$C$4*$E18+Main!$C$5*N$2*$F18 -> 2410.342686 | O18: =O$2*$F18*Main!$C$4*$E18+Main!$C$5*O$2*$F18 -> 2708.610757 | P18: =P$2*$F18*Main!$C$4*$E18+Main!$C$5*P$2*$F18 -> 3007.141851 | Q18: =Q$2*$F18*Main!$C$4*$E18+Main!$C$5*Q$2*$F18 -> 1962.15151 | R18: =R$2*$F18*Main!$C$4*$E18+Main!$C$5*R$2*$F18 -> 2269.888409 | S18: =S$2*$F18*Main!$C$4*$E18+Main!$C$5*S$2*$F18 -> 2577.625308 | T18: =T$2*$F18*Main!$C$4*$E18+Main!$C$5*T$2*$F18 -> 2885.362207 | U18: =U$2*$F18*Main!$C$4*$E18+Main!$C$5*U$2*$F18 -> 3193.099105 | V18: =V$2*$F18*Main!$C$4*$E18+Main!$C$5*V$2*$F18 -> 1628.901381 | W18: =W$2*$F18*Main!$C$4*$E18+Main!$C$5*W$2*$F18 -> 1979.511027 | X18: =X$2*$F18*Main!$C$4*$E18+Main!$C$5*X$2*$F18 -> 2330.383696 | Y18: =Y$2*$F18*Main!$C$4*$E18+Main!$C$5*Y$2*$F18 -> 2680.993343 | Z18: =Z$2*$F18*Main!$C$4*$E18+Main!$C$5*Z$2*$F18 -> 3031.602989 | AA18: =AA$2*$F18*Main!$C$4*$E18+Main!$C$5*AA$2*$F18 -> 1902.182268 | AB18: =AB$2*$F18*Main!$C$4*$E18+Main!$C$5*AB$2*$F18 -> 2206.499868 | AC18: =AC$2*$F18*Main!$C$4*$E18+Main!$C$5*AC$2*$F18 -> 2510.554445 | AD18: =AD$2*$F18*Main!$C$4*$E18+Main!$C$5*AD$2*$F18 -> 2814.872045 | AE18: =AE$2*$F18*Main!$C$4*$E18+Main!$C$5*AE$2*$F18 -> 3118.926622 | AF18: =AF$2*$F18*Main!$C$4*$E18+Main!$C$5*AF$2*$F18 -> 2050.527234 | AG18: =AG$2*$F18*Main!$C$4*$E18+Main!$C$5*AG$2*$F18 -> 2364.050639 | AH18: =AH$2*$F18*Main!$C$4*$E18+Main!$C$5*AH$2*$F18 -> 2677.837067 | AI18: =AI$2*$F18*Main!$C$4*$E18+Main!$C$5*AI$2*$F18 -> 2991.360472 | AJ18: =AJ$2*$F18*Main!$C$4*$E18+Main!$C$5*AJ$2*$F18 -> 3304.883876 | AK18: =AK$2*$F18*Main!$C$4*$E18+Main!$C$5*AK$2*$F18 -> 1747.261726 | AL18: =AL$2*$F18*Main!$C$4*$E18+Main!$C$5*AL$2*$F18 -> 2157.840615 | AM18: =AM$2*$F18*Main!$C$4*$E18+Main!$C$5*AM$2*$F18 -> 2568.419503 | AN18: =AN$2*$F18*Main!$C$4*$E18+Main!$C$5*AN$2*$F18 -> 2978.735368 | AO18: =AO$2*$F18*Main!$C$4*$E18+Main!$C$5*AO$2*$F18 -> 3389.314256 | AP18: =AP$2*$F18*Main!$C$4*$E18+Main!$C$5*AP$2*$F18 -> 2020.542614 | AQ18: =AQ$2*$F18*Main!$C$4*$E18+Main!$C$5*AQ$2*$F18 -> 2384.566432 | AR18: =AR$2*$F18*Main!$C$4*$E18+Main!$C$5*AR$2*$F18 -> 2748.590251 | AS18: =AS$2*$F18*Main!$C$4*$E18+Main!$C$5*AS$2*$F18 -> 3112.61407 | AT18: =AT$2*$F18*Main!$C$4*$E18+Main!$C$5*AT$2*$F18 -> 3476.637889 | AU18: =AU$2*$F18*Main!$C$4*$E18+Main!$C$5*AU$2*$F18 -> 2168.88758 | AV18: =AV$2*$F18*Main!$C$4*$E18+Main!$C$5*AV$2*$F18 -> 2542.380227 | AW18: =AW$2*$F18*Main!$C$4*$E18+Main!$C$5*AW$2*$F18 -> 2915.872873 | AX18: =AX$2*$F18*Main!$C$4*$E18+Main!$C$5*AX$2*$F18 -> 3289.102497 | AY18: =AY$2*$F18*Main!$C$4*$E18+Main!$C$5*AY$2*$F18 -> 3662.595144 | AZ18: =AZ$2*$F18*Main!$C$4*$E18+Main!$C$5*AZ$2*$F18 -> 3264.378336 | BA18: =BA$2*$F18*Main!$C$4*$E18+Main!$C$5*BA$2*$F18 -> 3715.199742 | BB18: =BB$2*$F18*Main!$C$4*$E18+Main!$C$5*BB$2*$F18 -> 4165.758125 | BC18: =BC$2*$F18*Main!$C$4*$E18+Main!$C$5*BC$2*$F18 -> 3305.409922 | BD18: =BD$2*$F18*Main!$C$4*$E18+Main!$C$5*BD$2*$F18 -> 3784.374788 | BE18: =BE$2*$F18*Main!$C$4*$E18+Main!$C$5*BE$2*$F18 -> 4263.339654 | BF18: =BF$2*$F18*Main!$C$4*$E18+Main!$C$5*BF$2*$F18 -> 3500.836004 | BG18: =BG$2*$F18*Main!$C$4*$E18+Main!$C$5*BG$2*$F18 -> 3968.753905 | BH18: =BH$2*$F18*Main!$C$4*$E18+Main!$C$5*BH$2*$F18 -> 4436.671805 | BI18: =BI$2*$F18*Main!$C$4*$E18+Main!$C$5*BI$2*$F18 -> 3382.212636 | BJ18: =BJ$2*$F18*Main!$C$4*$E18+Main!$C$5*BJ$2*$F18 -> 3884.586548 | BK18: =BK$2*$F18*Main!$C$4*$E18+Main!$C$5*BK$2*$F18 -> 4386.96046 | BL18: =BL$2*$F18*Main!$C$4*$E18+Main!$C$5*BL$2*$F18 -> 3422.981199 | BM18: =BM$2*$F18*Main!$C$4*$E18+Main!$C$5*BM$2*$F18 -> 3953.761594 | BN18: =BN$2*$F18*Main!$C$4*$E18+Main!$C$5*BN$2*$F18 -> 4484.278966 | BO18: =BO$2*$F18*Main!$C$4*$E18+Main!$C$5*BO$2*$F18 -> 3618.407281 | BP18: =BP$2*$F18*Main!$C$4*$E18+Main!$C$5*BP$2*$F18 -> 4138.140711 | BQ18: =BQ$2*$F18*Main!$C$4*$E18+Main!$C$5*BQ$2*$F18 -> 4657.611117 | BR18: =BR$2*$F18*Main!$C$4*$E18+Main!$C$5*BR$2*$F18 -> 3799.630122 | BS18: =BS$2*$F18*Main!$C$4*$E18+Main!$C$5*BS$2*$F18 -> 4375.650471 | BT18: =BT$2*$F18*Main!$C$4*$E18+Main!$C$5*BT$2*$F18 -> 4951.67082 | BU18: =BU$2*$F18*Main!$C$4*$E18+Main!$C$5*BU$2*$F18 -> 3840.661708 | BV18: =BV$2*$F18*Main!$C$4*$E18+Main!$C$5*BV$2*$F18 -> 4444.825518 | BW18: =BW$2*$F18*Main!$C$4*$E18+Main!$C$5*BW$2*$F18 -> 5049.25235 | BX18: =BX$2*$F18*Main!$C$4*$E18+Main!$C$5*BX$2*$F18 -> 4036.08779 | BY18: =BY$2*$F18*Main!$C$4*$E18+Main!$C$5*BY$2*$F18 -> 4629.467657 | BZ18: =BZ$2*$F18*Main!$C$4*$E18+Main!$C$5*BZ$2*$F18 -> 5222.584501 | CA18: =CA$2*$F18*Main!$C$4*$E18+Main!$C$5*CA$2*$F18 -> 3293.836911 | CB18: =CB$2*$F18*Main!$C$4*$E18+Main!$C$5*CB$2*$F18 -> 3734.926466 | CC18: =CC$2*$F18*Main!$C$4*$E18+Main!$C$5*CC$2*$F18 -> 4175.752998 | CD18: =CD$2*$F18*Main!$C$4*$E18+Main!$C$5*CD$2*$F18 -> 3293.836911 | CE18: =CE$2*$F18*Main!$C$4*$E18+Main!$C$5*CE$2*$F18 -> 3776.747122 | CF18: =CF$2*$F18*Main!$C$4*$E18+Main!$C$5*CF$2*$F18 -> 4259.657332 | CG18: =CG$2*$F18*Main!$C$4*$E18+Main!$C$5*CG$2*$F18 -> 3502.151119 | CH18: =CH$2*$F18*Main!$C$4*$E18+Main!$C$5*CH$2*$F18 -> 3969.805997 | CI18: =CI$2*$F18*Main!$C$4*$E18+Main!$C$5*CI$2*$F18 -> 4437.197851 | CJ18: =CJ$2*$F18*Main!$C$4*$E18+Main!$C$5*CJ$2*$F18 -> 3450.072567 | CK18: =CK$2*$F18*Main!$C$4*$E18+Main!$C$5*CK$2*$F18 -> 3929.826502 | CL18: =CL$2*$F18*Main!$C$4*$E18+Main!$C$5*CL$2*$F18 -> 4409.580437 | CM18: =CM$2*$F18*Main!$C$4*$E18+Main!$C$5*CM$2*$F18 -> 3450.072567 | CN18: =CN$2*$F18*Main!$C$4*$E18+Main!$C$5*CN$2*$F18 -> 3971.647158 | CO18: =CO$2*$F18*Main!$C$4*$E18+Main!$C$5*CO$2*$F18 -> 4493.221748 | CP18: =CP$2*$F18*Main!$C$4*$E18+Main!$C$5*CP$2*$F18 -> 3658.386776 | CQ18: =CQ$2*$F18*Main!$C$4*$E18+Main!$C$5*CQ$2*$F18 -> 4164.706033 | CR18: =CR$2*$F18*Main!$C$4*$E18+Main!$C$5*CR$2*$F18 -> 4671.025289 | CS18: =CS$2*$F18*Main!$C$4*$E18+Main!$C$5*CS$2*$F18 -> 3998.738526 | CT18: =CT$2*$F18*Main!$C$4*$E18+Main!$C$5*CT$2*$F18 -> 4508.477081 | CU18: =CU$2*$F18*Main!$C$4*$E18+Main!$C$5*CU$2*$F18 -> 5018.215637 | CV18: =CV$2*$F18*Main!$C$4*$E18+Main!$C$5*CV$2*$F18 -> 3998.738526 | CW18: =CW$2*$F18*Main!$C$4*$E18+Main!$C$5*CW$2*$F18 -> 4550.297737 | CX18: =CX$2*$F18*Main!$C$4*$E18+Main!$C$5*CX$2*$F18 -> 5102.119971 | CY18: =CY$2*$F18*Main!$C$4*$E18+Main!$C$5*CY$2*$F18 -> 4207.052734 | CZ18: =CZ$2*$F18*Main!$C$4*$E18+Main!$C$5*CZ$2*$F18 -> 4743.356612 | DA18: =DA$2*$F18*Main!$C$4*$E18+Main!$C$5*DA$2*$F18 -> 5279.66049 | DB18: =DB$2*$F18*Main!$C$4*$E18+Main!$C$5*DB$2*$F18 -> 1258.56501 | DC18: =DC$2*$F18*Main!$C$4*$E18+Main!$C$5*DC$2*$F18 -> 1665.724599 | DD18: =DD$2*$F18*Main!$C$4*$E18+Main!$C$5*DD$2*$F18 -> 2072.621166 | DE18: =DE$2*$F18*Main!$C$4*$E18+Main!$C$5*DE$2*$F18 -> 2479.780755 | DF18: =DF$2*$F18*Main!$C$4*$E18+Main!$C$5*DF$2*$F18 -> 2886.940344 | DG18: =DG$2*$F18*Main!$C$4*$E18+Main!$C$5*DG$2*$F18 -> 1467.142241 | DH18: =DH$2*$F18*Main!$C$4*$E18+Main!$C$5*DH$2*$F18 -> 1832.481175 | DI18: =DI$2*$F18*Main!$C$4*$E18+Main!$C$5*DI$2*$F18 -> 2197.820109 | DJ18: =DJ$2*$F18*Main!$C$4*$E18+Main!$C$5*DJ$2*$F18 -> 2563.159043 | DK18: =DK$2*$F18*Main!$C$4*$E18+Main!$C$5*DK$2*$F18 -> 2928.497977 | DL18: =DL$2*$F18*Main!$C$4*$E18+Main!$C$5*DL$2*$F18 -> 1588.39584 | DM18: =DM$2*$F18*Main!$C$4*$E18+Main!$C$5*DM$2*$F18 -> 1971.094291 | DN18: =DN$2*$F18*Main!$C$4*$E18+Main!$C$5*DN$2*$F18 -> 2353.792743 | DO18: =DO$2*$F18*Main!$C$4*$E18+Main!$C$5*DO$2*$F18 -> 2736.754217 | DP18: =DP$2*$F18*Main!$C$4*$E18+Main!$C$5*DP$2*$F18 -> 3119.452668 | DQ18: =DQ$2*$F18*Main!$C$4*$E18+Main!$C$5*DQ$2*$F18 -> 1303.278918 | DR18: =DR$2*$F18*Main!$C$4*$E18+Main!$C$5*DR$2*$F18 -> 1732.532439 | DS18: =DS$2*$F18*Main!$C$4*$E18+Main!$C$5*DS$2*$F18 -> 2162.048982 | DT18: =DT$2*$F18*Main!$C$4*$E18+Main!$C$5*DT$2*$F18 -> 2591.302503 | DU18: =DU$2*$F18*Main!$C$4*$E18+Main!$C$5*DU$2*$F18 -> 3020.819047 | DV18: =DV$2*$F18*Main!$C$4*$E18+Main!$C$5*DV$2*$F18 -> 1511.85615 | DW18: =DW$2*$F18*Main!$C$4*$E18+Main!$C$5*DW$2*$F18 -> 1899.552038 | DX18: =DX$2*$F18*Main!$C$4*$E18+Main!$C$5*DX$2*$F18 -> 2286.984903 | DY18: =DY$2*$F18*Main!$C$4*$E18+Main!$C$5*DY$2*$F18 -> 2674.680791 | DZ18: =DZ$2*$F18*Main!$C$4*$E18+Main!$C$5*DZ$2*$F18 -> 3062.376679 | EA18: =EA$2*$F18*Main!$C$4*$E18+Main!$C$5*EA$2*$F18 -> 1632.846725 | EB18: =EB$2*$F18*Main!$C$4*$E18+Main!$C$5*EB$2*$F18 -> 2037.902131 | EC18: =EC$2*$F18*Main!$C$4*$E18+Main!$C$5*EC$2*$F18 -> 2442.957536 | ED18: =ED$2*$F18*Main!$C$4*$E18+Main!$C$5*ED$2*$F18 -> 2848.275965 | EE18: =EE$2*$F18*Main!$C$4*$E18+Main!$C$5*EE$2*$F18 -> 3253.33137 | EF18: =EF$2*$F18*Main!$C$4*$E18+Main!$C$5*EF$2*$F18 -> 1614.961162 | EG18: =EG$2*$F18*Main!$C$4*$E18+Main!$C$5*EG$2*$F18 -> 2091.821844 | EH18: =EH$2*$F18*Main!$C$4*$E18+Main!$C$5*EH$2*$F18 -> 2568.419503 | EI18: =EI$2*$F18*Main!$C$4*$E18+Main!$C$5*EI$2*$F18 -> 3045.280185 | EJ18: =EJ$2*$F18*Main!$C$4*$E18+Main!$C$5*EJ$2*$F18 -> 3522.140867 | EK18: =EK$2*$F18*Main!$C$4*$E18+Main!$C$5*EK$2*$F18 -> 1823.538394 | EL18: =EL$2*$F18*Main!$C$4*$E18+Main!$C$5*EL$2*$F18 -> 2258.57842 | EM18: =EM$2*$F18*Main!$C$4*$E18+Main!$C$5*EM$2*$F18 -> 2693.618446 | EN18: =EN$2*$F18*Main!$C$4*$E18+Main!$C$5*EN$2*$F18 -> 3128.658473 | EO18: =EO$2*$F18*Main!$C$4*$E18+Main!$C$5*EO$2*$F18 -> 3563.698499 | EP18: =EP$2*$F18*Main!$C$4*$E18+Main!$C$5*EP$2*$F18 -> 1944.528969 | EQ18: =EQ$2*$F18*Main!$C$4*$E18+Main!$C$5*EQ$2*$F18 -> 2397.191536 | ER18: =ER$2*$F18*Main!$C$4*$E18+Main!$C$5*ER$2*$F18 -> 2849.59108 | ES18: =ES$2*$F18*Main!$C$4*$E18+Main!$C$5*ES$2*$F18 -> 3301.990624 | ET18: =ET$2*$F18*Main!$C$4*$E18+Main!$C$5*ET$2*$F18 -> 3754.65319 | EU18: =EU$2*$F18*Main!$C$4*$E18+Main!$C$5*EU$2*$F18 -> 4616.57953 | EV18: =EV$2*$F18*Main!$C$4*$E18+Main!$C$5*EV$2*$F18 -> 4742.30452 | EW18: =EW$2*$F18*Main!$C$4*$E18+Main!$C$5*EW$2*$F18 -> 4904.852728 | EX18: =EX$2*$F18*Main!$C$4*$E18+Main!$C$5*EX$2*$F18 -> 4889.071349 | EY18: =EY$2*$F18*Main!$C$4*$E18+Main!$C$5*EY$2*$F18 -> 5015.059361 | EZ18: =EZ$2*$F18*Main!$C$4*$E18+Main!$C$5*EZ$2*$F18 -> 5177.344546 | FA18: =FA$2*$F18*Main!$C$4*$E18+Main!$C$5*FA$2*$F18 -> 5527.69117 | FB18: =FB$2*$F18*Main!$C$4*$E18+Main!$C$5*FB$2*$F18 -> 5653.679182 | FC18: =FC$2*$F18*Main!$C$4*$E18+Main!$C$5*FC$2*$F18 -> 5815.964367 | FD18: =IF($D18<100,(FD$2*(1+Main!$C$3)*$E18*Main!$C$4)+(FD$2*(1+Main!$C$3)*Main!$C$5),(FD$2*$E18*Main!$C$4)+(FD$2*Main!$C$5)) -> 124.7744325 | FE18: =IF($D18<100,(FE$2*(1+Main!$C$3)*$E18*Main!$C$4)+(FE$2*(1+Main!$C$3)*Main!$C$5),(FE$2*$E18*Main!$C$4)+(FE$2*Main!$C$5)) -> 136.3950631 | FF18: =IF($D18<100,(FF$2*(1+Main!$C$3)*$E18*Main!$C$4)+(FF$2*(1+Main!$C$3)*Main!$C$5),(FF$2*$E18*Main!$C$4)+(FF$2*Main!$C$5)) -> 137.3275286 | FG18: =IF($D18<100,(FG$2*(1+Main!$C$3)*$E18*Main!$C$4)+(FG$2*(1+Main!$C$3)*Main!$C$5),(FG$2*$E18*Main!$C$4)+(FG$2*Main!$C$5)) -> 148.2444117 | FH18: =IF($D18<100,(FH$2*(1+Main!$C$3)*$E18*Main!$C$4)+(FH$2*(1+Main!$C$3)*Main!$C$5),(FH$2*$E18*Main!$C$4)+(FH$2*Main!$C$5)) -> 200.0050406 | FI18: =IF($D18<100,(FI$2*(1+Main!$C$3)*$E18*Main!$C$4)+(FI$2*(1+Main!$C$3)*Main!$C$5),(FI$2*$E18*Main!$C$4)+(FI$2*Main!$C$5)) -> 56.50212773
A19: AL | B19: 33660 | C19: (Mobile, Mobile County) | D19: 33660 | E19: 0.7534 | F19: =IF($D19<100,Main!$C$2*(1+Main!$C$3),Main!$C$2) -> 2989.97 | G19: =G$2*$F19*Main!$C$4*$E19+Main!$C$5*G$2*$F19 -> 1412.070311 | H19: =H$2*$F19*Main!$C$4*$E19+Main!$C$5*H$2*$F19 -> 1728.140684 | I19: =I$2*$F19*Main!$C$4*$E19+Main!$C$5*I$2*$F19 -> 2044.211058 | J19: =J$2*$F19*Main!$C$4*$E19+Main!$C$5*J$2*$F19 -> 2360.281432 | K19: =K$2*$F19*Main!$C$4*$E19+Main!$C$5*K$2*$F19 -> 2676.110714 | L19: =L$2*$F19*Main!$C$4*$E19+Main!$C$5*L$2*$F19 -> 1662.563917 | M19: =M$2*$F19*Main!$C$4*$E19+Main!$C$5*M$2*$F19 -> 1935.961174 | N19: =N$2*$F19*Main!$C$4*$E19+Main!$C$5*N$2*$F19 -> 2209.358431 | O19: =O$2*$F19*Main!$C$4*$E19+Main!$C$5*O$2*$F19 -> 2482.755688 | P19: =P$2*$F19*Main!$C$4*$E19+Main!$C$5*P$2*$F19 -> 2756.394035 | Q19: =Q$2*$F19*Main!$C$4*$E19+Main!$C$5*Q$2*$F19 -> 1798.539273 | R19: =R$2*$F19*Main!$C$4*$E19+Main!$C$5*R$2*$F19 -> 2080.615807 | S19: =S$2*$F19*Main!$C$4*$E19+Main!$C$5*S$2*$F19 -> 2362.692342 | T19: =T$2*$F19*Main!$C$4*$E19+Main!$C$5*T$2*$F19 -> 2644.768877 | U19: =U$2*$F19*Main!$C$4*$E19+Main!$C$5*U$2*$F19 -> 2926.845411 | V19: =V$2*$F19*Main!$C$4*$E19+Main!$C$5*V$2*$F19 -> 1493.076906 | W19: =W$2*$F19*Main!$C$4*$E19+Main!$C$5*W$2*$F19 -> 1814.451282 | X19: =X$2*$F19*Main!$C$4*$E19+Main!$C$5*X$2*$F19 -> 2136.06675 | Y19: =Y$2*$F19*Main!$C$4*$E19+Main!$C$5*Y$2*$F19 -> 2457.441127 | Z19: =Z$2*$F19*Main!$C$4*$E19+Main!$C$5*Z$2*$F19 -> 2778.815504 | AA19: =AA$2*$F19*Main!$C$4*$E19+Main!$C$5*AA$2*$F19 -> 1743.570512 | AB19: =AB$2*$F19*Main!$C$4*$E19+Main!$C$5*AB$2*$F19 -> 2022.512863 | AC19: =AC$2*$F19*Main!$C$4*$E19+Main!$C$5*AC$2*$F19 -> 2301.214123 | AD19: =AD$2*$F19*Main!$C$4*$E19+Main!$C$5*AD$2*$F19 -> 2580.156474 | AE19: =AE$2*$F19*Main!$C$4*$E19+Main!$C$5*AE$2*$F19 -> 2858.857734 | AF19: =AF$2*$F19*Main!$C$4*$E19+Main!$C$5*AF$2*$F19 -> 1879.545867 | AG19: =AG$2*$F19*Main!$C$4*$E19+Main!$C$5*AG$2*$F19 -> 2166.926405 | AH19: =AH$2*$F19*Main!$C$4*$E19+Main!$C$5*AH$2*$F19 -> 2454.548034 | AI19: =AI$2*$F19*Main!$C$4*$E19+Main!$C$5*AI$2*$F19 -> 2741.928572 | AJ19: =AJ$2*$F19*Main!$C$4*$E19+Main!$C$5*AJ$2*$F19 -> 3029.30911 | AK19: =AK$2*$F19*Main!$C$4*$E19+Main!$C$5*AK$2*$F19 -> 1601.56788 | AL19: =AL$2*$F19*Main!$C$4*$E19+Main!$C$5*AL$2*$F19 -> 1977.911018 | AM19: =AM$2*$F19*Main!$C$4*$E19+Main!$C$5*AM$2*$F19 -> 2354.254155 | AN19: =AN$2*$F19*Main!$C$4*$E19+Main!$C$5*AN$2*$F19 -> 2730.356201 | AO19: =AO$2*$F19*Main!$C$4*$E19+Main!$C$5*AO$2*$F19 -> 3106.699339 | AP19: =AP$2*$F19*Main!$C$4*$E19+Main!$C$5*AP$2*$F19 -> 1852.061487 | AQ19: =AQ$2*$F19*Main!$C$4*$E19+Main!$C$5*AQ$2*$F19 -> 2185.731507 | AR19: =AR$2*$F19*Main!$C$4*$E19+Main!$C$5*AR$2*$F19 -> 2519.401528 | AS19: =AS$2*$F19*Main!$C$4*$E19+Main!$C$5*AS$2*$F19 -> 2853.071549 | AT19: =AT$2*$F19*Main!$C$4*$E19+Main!$C$5*AT$2*$F19 -> 3186.741569 | AU19: =AU$2*$F19*Main!$C$4*$E19+Main!$C$5*AU$2*$F19 -> 1988.036842 | AV19: =AV$2*$F19*Main!$C$4*$E19+Main!$C$5*AV$2*$F19 -> 2330.386141 | AW19: =AW$2*$F19*Main!$C$4*$E19+Main!$C$5*AW$2*$F19 -> 2672.735439 | AX19: =AX$2*$F19*Main!$C$4*$E19+Main!$C$5*AX$2*$F19 -> 3014.843647 | AY19: =AY$2*$F19*Main!$C$4*$E19+Main!$C$5*AY$2*$F19 -> 3357.192945 | AZ19: =AZ$2*$F19*Main!$C$4*$E19+Main!$C$5*AZ$2*$F19 -> 2992.181087 | BA19: =BA$2*$F19*Main!$C$4*$E19+Main!$C$5*BA$2*$F19 -> 3405.411156 | BB19: =BB$2*$F19*Main!$C$4*$E19+Main!$C$5*BB$2*$F19 -> 3818.400134 | BC19: =BC$2*$F19*Main!$C$4*$E19+Main!$C$5*BC$2*$F19 -> 3029.791292 | BD19: =BD$2*$F19*Main!$C$4*$E19+Main!$C$5*BD$2*$F19 -> 3468.818104 | BE19: =BE$2*$F19*Main!$C$4*$E19+Main!$C$5*BE$2*$F19 -> 3907.844916 | BF19: =BF$2*$F19*Main!$C$4*$E19+Main!$C$5*BF$2*$F19 -> 3208.921946 | BG19: =BG$2*$F19*Main!$C$4*$E19+Main!$C$5*BG$2*$F19 -> 3637.822934 | BH19: =BH$2*$F19*Main!$C$4*$E19+Main!$C$5*BH$2*$F19 -> 4066.723921 | BI19: =BI$2*$F19*Main!$C$4*$E19+Main!$C$5*BI$2*$F19 -> 3100.18988 | BJ19: =BJ$2*$F19*Main!$C$4*$E19+Main!$C$5*BJ$2*$F19 -> 3560.673796 | BK19: =BK$2*$F19*Main!$C$4*$E19+Main!$C$5*BK$2*$F19 -> 4021.157712 | BL19: =BL$2*$F19*Main!$C$4*$E19+Main!$C$5*BL$2*$F19 -> 3137.558994 | BM19: =BM$2*$F19*Main!$C$4*$E19+Main!$C$5*BM$2*$F19 -> 3624.080743 | BN19: =BN$2*$F19*Main!$C$4*$E19+Main!$C$5*BN$2*$F19 -> 4110.361402 | BO19: =BO$2*$F19*Main!$C$4*$E19+Main!$C$5*BO$2*$F19 -> 3316.689648 | BP19: =BP$2*$F19*Main!$C$4*$E19+Main!$C$5*BP$2*$F19 -> 3793.085573 | BQ19: =BQ$2*$F19*Main!$C$4*$E19+Main!$C$5*BQ$2*$F19 -> 4269.240407 | BR19: =BR$2*$F19*Main!$C$4*$E19+Main!$C$5*BR$2*$F19 -> 3482.801385 | BS19: =BS$2*$F19*Main!$C$4*$E19+Main!$C$5*BS$2*$F19 -> 4010.790796 | BT19: =BT$2*$F19*Main!$C$4*$E19+Main!$C$5*BT$2*$F19 -> 4538.780207 | BU19: =BU$2*$F19*Main!$C$4*$E19+Main!$C$5*BU$2*$F19 -> 3520.41159 | BV19: =BV$2*$F19*Main!$C$4*$E19+Main!$C$5*BV$2*$F19 -> 4074.197744 | BW19: =BW$2*$F19*Main!$C$4*$E19+Main!$C$5*BW$2*$F19 -> 4628.224989 | BX19: =BX$2*$F19*Main!$C$4*$E19+Main!$C$5*BX$2*$F19 -> 3699.542244 | BY19: =BY$2*$F19*Main!$C$4*$E19+Main!$C$5*BY$2*$F19 -> 4243.443665 | BZ19: =BZ$2*$F19*Main!$C$4*$E19+Main!$C$5*BZ$2*$F19 -> 4787.103994 | CA19: =CA$2*$F19*Main!$C$4*$E19+Main!$C$5*CA$2*$F19 -> 3019.183286 | CB19: =CB$2*$F19*Main!$C$4*$E19+Main!$C$5*CB$2*$F19 -> 3423.492985 | CC19: =CC$2*$F19*Main!$C$4*$E19+Main!$C$5*CC$2*$F19 -> 3827.561594 | CD19: =CD$2*$F19*Main!$C$4*$E19+Main!$C$5*CD$2*$F19 -> 3019.183286 | CE19: =CE$2*$F19*Main!$C$4*$E19+Main!$C$5*CE$2*$F19 -> 3461.826463 | CF19: =CF$2*$F19*Main!$C$4*$E19+Main!$C$5*CF$2*$F19 -> 3904.469641 | CG19: =CG$2*$F19*Main!$C$4*$E19+Main!$C$5*CG$2*$F19 -> 3210.127401 | CH19: =CH$2*$F19*Main!$C$4*$E19+Main!$C$5*CH$2*$F19 -> 3638.787298 | CI19: =CI$2*$F19*Main!$C$4*$E19+Main!$C$5*CI$2*$F19 -> 4067.206103 | CJ19: =CJ$2*$F19*Main!$C$4*$E19+Main!$C$5*CJ$2*$F19 -> 3162.391373 | CK19: =CK$2*$F19*Main!$C$4*$E19+Main!$C$5*CK$2*$F19 -> 3602.141457 | CL19: =CL$2*$F19*Main!$C$4*$E19+Main!$C$5*CL$2*$F19 -> 4041.891542 | CM19: =CM$2*$F19*Main!$C$4*$E19+Main!$C$5*CM$2*$F19 -> 3162.391373 | CN19: =CN$2*$F19*Main!$C$4*$E19+Main!$C$5*CN$2*$F19 -> 3640.474935 | CO19: =CO$2*$F19*Main!$C$4*$E19+Main!$C$5*CO$2*$F19 -> 4118.558498 | CP19: =CP$2*$F19*Main!$C$4*$E19+Main!$C$5*CP$2*$F19 -> 3353.335488 | CQ19: =CQ$2*$F19*Main!$C$4*$E19+Main!$C$5*CQ$2*$F19 -> 3817.43577 | CR19: =CR$2*$F19*Main!$C$4*$E19+Main!$C$5*CR$2*$F19 -> 4281.536051 | CS19: =CS$2*$F19*Main!$C$4*$E19+Main!$C$5*CS$2*$F19 -> 3665.307314 | CT19: =CT$2*$F19*Main!$C$4*$E19+Main!$C$5*CT$2*$F19 -> 4132.541779 | CU19: =CU$2*$F19*Main!$C$4*$E19+Main!$C$5*CU$2*$F19 -> 4599.776244 | CV19: =CV$2*$F19*Main!$C$4*$E19+Main!$C$5*CV$2*$F19 -> 3665.307314 | CW19: =CW$2*$F19*Main!$C$4*$E19+Main!$C$5*CW$2*$F19 -> 4170.875257 | CX19: =CX$2*$F19*Main!$C$4*$E19+Main!$C$5*CX$2*$F19 -> 4676.684291 | CY19: =CY$2*$F19*Main!$C$4*$E19+Main!$C$5*CY$2*$F19 -> 3856.25143 | CZ19: =CZ$2*$F19*Main!$C$4*$E19+Main!$C$5*CZ$2*$F19 -> 4347.836091 | DA19: =DA$2*$F19*Main!$C$4*$E19+Main!$C$5*DA$2*$F19 -> 4839.420753 | DB19: =DB$2*$F19*Main!$C$4*$E19+Main!$C$5*DB$2*$F19 -> 1153.6207 | DC19: =DC$2*$F19*Main!$C$4*$E19+Main!$C$5*DC$2*$F19 -> 1526.829653 | DD19: =DD$2*$F19*Main!$C$4*$E19+Main!$C$5*DD$2*$F19 -> 1899.797516 | DE19: =DE$2*$F19*Main!$C$4*$E19+Main!$C$5*DE$2*$F19 -> 2273.006469 | DF19: =DF$2*$F19*Main!$C$4*$E19+Main!$C$5*DF$2*$F19 -> 2646.215423 | DG19: =DG$2*$F19*Main!$C$4*$E19+Main!$C$5*DG$2*$F19 -> 1344.805907 | DH19: =DH$2*$F19*Main!$C$4*$E19+Main!$C$5*DH$2*$F19 -> 1679.681382 | DI19: =DI$2*$F19*Main!$C$4*$E19+Main!$C$5*DI$2*$F19 -> 2014.556858 | DJ19: =DJ$2*$F19*Main!$C$4*$E19+Main!$C$5*DJ$2*$F19 -> 2349.432334 | DK19: =DK$2*$F19*Main!$C$4*$E19+Main!$C$5*DK$2*$F19 -> 2684.30781 | DL19: =DL$2*$F19*Main!$C$4*$E19+Main!$C$5*DL$2*$F19 -> 1455.948883 | DM19: =DM$2*$F19*Main!$C$4*$E19+Main!$C$5*DM$2*$F19 -> 1806.736369 | DN19: =DN$2*$F19*Main!$C$4*$E19+Main!$C$5*DN$2*$F19 -> 2157.523854 | DO19: =DO$2*$F19*Main!$C$4*$E19+Main!$C$5*DO$2*$F19 -> 2508.552431 | DP19: =DP$2*$F19*Main!$C$4*$E19+Main!$C$5*DP$2*$F19 -> 2859.339916 | DQ19: =DQ$2*$F19*Main!$C$4*$E19+Main!$C$5*DQ$2*$F19 -> 1194.606179 | DR19: =DR$2*$F19*Main!$C$4*$E19+Main!$C$5*DR$2*$F19 -> 1588.066781 | DS19: =DS$2*$F19*Main!$C$4*$E19+Main!$C$5*DS$2*$F19 -> 1981.768475 | DT19: =DT$2*$F19*Main!$C$4*$E19+Main!$C$5*DT$2*$F19 -> 2375.229077 | DU19: =DU$2*$F19*Main!$C$4*$E19+Main!$C$5*DU$2*$F19 -> 2768.93077 | DV19: =DV$2*$F19*Main!$C$4*$E19+Main!$C$5*DV$2*$F19 -> 1385.791386 | DW19: =DW$2*$F19*Main!$C$4*$E19+Main!$C$5*DW$2*$F19 -> 1741.159601 | DX19: =DX$2*$F19*Main!$C$4*$E19+Main!$C$5*DX$2*$F19 -> 2096.286726 | DY19: =DY$2*$F19*Main!$C$4*$E19+Main!$C$5*DY$2*$F19 -> 2451.654941 | DZ19: =DZ$2*$F19*Main!$C$4*$E19+Main!$C$5*DZ$2*$F19 -> 2807.023157 | EA19: =EA$2*$F19*Main!$C$4*$E19+Main!$C$5*EA$2*$F19 -> 1496.693271 | EB19: =EB$2*$F19*Main!$C$4*$E19+Main!$C$5*EB$2*$F19 -> 1867.973497 | EC19: =EC$2*$F19*Main!$C$4*$E19+Main!$C$5*EC$2*$F19 -> 2239.253722 | ED19: =ED$2*$F19*Main!$C$4*$E19+Main!$C$5*ED$2*$F19 -> 2610.775038 | EE19: =EE$2*$F19*Main!$C$4*$E19+Main!$C$5*EE$2*$F19 -> 2982.055263 | EF19: =EF$2*$F19*Main!$C$4*$E19+Main!$C$5*EF$2*$F19 -> 1480.29908 | EG19: =EG$2*$F19*Main!$C$4*$E19+Main!$C$5*EG$2*$F19 -> 1917.397163 | EH19: =EH$2*$F19*Main!$C$4*$E19+Main!$C$5*EH$2*$F19 -> 2354.254155 | EI19: =EI$2*$F19*Main!$C$4*$E19+Main!$C$5*EI$2*$F19 -> 2791.352238 | EJ19: =EJ$2*$F19*Main!$C$4*$E19+Main!$C$5*EJ$2*$F19 -> 3228.450322 | EK19: =EK$2*$F19*Main!$C$4*$E19+Main!$C$5*EK$2*$F19 -> 1671.484286 | EL19: =EL$2*$F19*Main!$C$4*$E19+Main!$C$5*EL$2*$F19 -> 2070.248892 | EM19: =EM$2*$F19*Main!$C$4*$E19+Main!$C$5*EM$2*$F19 -> 2469.013497 | EN19: =EN$2*$F19*Main!$C$4*$E19+Main!$C$5*EN$2*$F19 -> 2867.778103 | EO19: =EO$2*$F19*Main!$C$4*$E19+Main!$C$5*EO$2*$F19 -> 3266.542708 | EP19: =EP$2*$F19*Main!$C$4*$E19+Main!$C$5*EP$2*$F19 -> 1782.386172 | EQ19: =EQ$2*$F19*Main!$C$4*$E19+Main!$C$5*EQ$2*$F19 -> 2197.303878 | ER19: =ER$2*$F19*Main!$C$4*$E19+Main!$C$5*ER$2*$F19 -> 2611.980493 | ES19: =ES$2*$F19*Main!$C$4*$E19+Main!$C$5*ES$2*$F19 -> 3026.657108 | ET19: =ET$2*$F19*Main!$C$4*$E19+Main!$C$5*ET$2*$F19 -> 3441.574815 | EU19: =EU$2*$F19*Main!$C$4*$E19+Main!$C$5*EU$2*$F19 -> 4231.630203 | EV19: =EV$2*$F19*Main!$C$4*$E19+Main!$C$5*EV$2*$F19 -> 4346.871727 | EW19: =EW$2*$F19*Main!$C$4*$E19+Main!$C$5*EW$2*$F19 -> 4495.865999 | EX19: =EX$2*$F19*Main!$C$4*$E19+Main!$C$5*EX$2*$F19 -> 4481.400536 | EY19: =EY$2*$F19*Main!$C$4*$E19+Main!$C$5*EY$2*$F19 -> 4596.883152 | EZ19: =EZ$2*$F19*Main!$C$4*$E19+Main!$C$5*EZ$2*$F19 -> 4745.636333 | FA19: =FA$2*$F19*Main!$C$4*$E19+Main!$C$5*FA$2*$F19 -> 5066.769618 | FB19: =FB$2*$F19*Main!$C$4*$E19+Main!$C$5*FB$2*$F19 -> 5182.252234 | FC19: =FC$2*$F19*Main!$C$4*$E19+Main!$C$5*FC$2*$F19 -> 5331.005415 | FD19: =IF($D19<100,(FD$2*(1+Main!$C$3)*$E19*Main!$C$4)+(FD$2*(1+Main!$C$3)*Main!$C$5),(FD$2*$E19*Main!$C$4)+(FD$2*Main!$C$5)) -> 114.3702287 | FE19: =IF($D19<100,(FE$2*(1+Main!$C$3)*$E19*Main!$C$4)+(FE$2*(1+Main!$C$3)*Main!$C$5),(FE$2*$E19*Main!$C$4)+(FE$2*Main!$C$5)) -> 125.0218836 | FF19: =IF($D19<100,(FF$2*(1+Main!$C$3)*$E19*Main!$C$4)+(FF$2*(1+Main!$C$3)*Main!$C$5),(FF$2*$E19*Main!$C$4)+(FF$2*Main!$C$5)) -> 125.8765962 | FG19: =IF($D19<100,(FG$2*(1+Main!$C$3)*$E19*Main!$C$4)+(FG$2*(1+Main!$C$3)*Main!$C$5),(FG$2*$E19*Main!$C$4)+(FG$2*Main!$C$5)) -> 135.8831849 | FH19: =IF($D19<100,(FH$2*(1+Main!$C$3)*$E19*Main!$C$4)+(FH$2*(1+Main!$C$3)*Main!$C$5),(FH$2*$E19*Main!$C$4)+(FH$2*Main!$C$5)) -> 183.3278004 | FI19: =IF($D19<100,(FI$2*(1+Main!$C$3)*$E19*Main!$C$4)+(FI$2*(1+Main!$C$3)*Main!$C$5),(FI$2*$E19*Main!$C$4)+(FI$2*Main!$C$5)) -> 51.79074868
A20: AL | B20: 33860 | C20: (Autauga County, Elmore County, Lowndes County, Montgomery, Montgomery County) | D20: 33860 | E20: 0.7471 | F20: =IF($D20<100,Main!$C$2*(1+Main!$C$3),Main!$C$2) -> 2989.97 | G20: =G$2*$F20*Main!$C$4*$E20+Main!$C$5*G$2*$F20 -> 1403.405764 | H20: =H$2*$F20*Main!$C$4*$E20+Main!$C$5*H$2*$F20 -> 1717.536711 | I20: =I$2*$F20*Main!$C$4*$E20+Main!$C$5*I$2*$F20 -> 2031.667658 | J20: =J$2*$F20*Main!$C$4*$E20+Main!$C$5*J$2*$F20 -> 2345.798605 | K20: =K$2*$F20*Main!$C$4*$E20+Main!$C$5*K$2*$F20 -> 2659.689941 | L20: =L$2*$F20*Main!$C$4*$E20+Main!$C$5*L$2*$F20 -> 1652.362327 | M20: =M$2*$F20*Main!$C$4*$E20+Main!$C$5*M$2*$F20 -> 1924.082002 | N20: =N$2*$F20*Main!$C$4*$E20+Main!$C$5*N$2*$F20 -> 2195.801677 | O20: =O$2*$F20*Main!$C$4*$E20+Main!$C$5*O$2*$F20 -> 2467.521352 | P20: =P$2*$F20*Main!$C$4*$E20+Main!$C$5*P$2*$F20 -> 2739.480639 | Q20: =Q$2*$F20*Main!$C$4*$E20+Main!$C$5*Q$2*$F20 -> 1787.503329 | R20: =R$2*$F20*Main!$C$4*$E20+Main!$C$5*R$2*$F20 -> 2067.849026 | S20: =S$2*$F20*Main!$C$4*$E20+Main!$C$5*S$2*$F20 -> 2348.194722 | T20: =T$2*$F20*Main!$C$4*$E20+Main!$C$5*T$2*$F20 -> 2628.540419 | U20: =U$2*$F20*Main!$C$4*$E20+Main!$C$5*U$2*$F20 -> 2908.886115 | V20: =V$2*$F20*Main!$C$4*$E20+Main!$C$5*V$2*$F20 -> 1483.915297 | W20: =W$2*$F20*Main!$C$4*$E20+Main!$C$5*W$2*$F20 -> 1803.317702 | X20: =X$2*$F20*Main!$C$4*$E20+Main!$C$5*X$2*$F20 -> 2122.959718 | Y20: =Y$2*$F20*Main!$C$4*$E20+Main!$C$5*Y$2*$F20 -> 2442.362123 | Z20: =Z$2*$F20*Main!$C$4*$E20+Main!$C$5*Z$2*$F20 -> 2761.764528 | AA20: =AA$2*$F20*Main!$C$4*$E20+Main!$C$5*AA$2*$F20 -> 1732.87186 | AB20: =AB$2*$F20*Main!$C$4*$E20+Main!$C$5*AB$2*$F20 -> 2010.102605 | AC20: =AC$2*$F20*Main!$C$4*$E20+Main!$C$5*AC$2*$F20 -> 2287.093737 | AD20: =AD$2*$F20*Main!$C$4*$E20+Main!$C$5*AD$2*$F20 -> 2564.324481 | AE20: =AE$2*$F20*Main!$C$4*$E20+Main!$C$5*AE$2*$F20 -> 2841.315614 | AF20: =AF$2*$F20*Main!$C$4*$E20+Main!$C$5*AF$2*$F20 -> 1868.012863 | AG20: =AG$2*$F20*Main!$C$4*$E20+Main!$C$5*AG$2*$F20 -> 2153.630017 | AH20: =AH$2*$F20*Main!$C$4*$E20+Main!$C$5*AH$2*$F20 -> 2439.486782 | AI20: =AI$2*$F20*Main!$C$4*$E20+Main!$C$5*AI$2*$F20 -> 2725.103936 | AJ20: =AJ$2*$F20*Main!$C$4*$E20+Main!$C$5*AJ$2*$F20 -> 3010.72109 | AK20: =AK$2*$F20*Main!$C$4*$E20+Main!$C$5*AK$2*$F20 -> 1591.740565 | AL20: =AL$2*$F20*Main!$C$4*$E20+Main!$C$5*AL$2*$F20 -> 1965.774439 | AM20: =AM$2*$F20*Main!$C$4*$E20+Main!$C$5*AM$2*$F20 -> 2339.808313 | AN20: =AN$2*$F20*Main!$C$4*$E20+Main!$C$5*AN$2*$F20 -> 2713.602575 | AO20: =AO$2*$F20*Main!$C$4*$E20+Main!$C$5*AO$2*$F20 -> 3087.636448 | AP20: =AP$2*$F20*Main!$C$4*$E20+Main!$C$5*AP$2*$F20 -> 1840.697128 | AQ20: =AQ$2*$F20*Main!$C$4*$E20+Main!$C$5*AQ$2*$F20 -> 2172.31973 | AR20: =AR$2*$F20*Main!$C$4*$E20+Main!$C$5*AR$2*$F20 -> 2503.942331 | AS20: =AS$2*$F20*Main!$C$4*$E20+Main!$C$5*AS$2*$F20 -> 2835.564933 | AT20: =AT$2*$F20*Main!$C$4*$E20+Main!$C$5*AT$2*$F20 -> 3167.187535 | AU20: =AU$2*$F20*Main!$C$4*$E20+Main!$C$5*AU$2*$F20 -> 1975.838131 | AV20: =AV$2*$F20*Main!$C$4*$E20+Main!$C$5*AV$2*$F20 -> 2316.086754 | AW20: =AW$2*$F20*Main!$C$4*$E20+Main!$C$5*AW$2*$F20 -> 2656.335377 | AX20: =AX$2*$F20*Main!$C$4*$E20+Main!$C$5*AX$2*$F20 -> 2996.344388 | AY20: =AY$2*$F20*Main!$C$4*$E20+Main!$C$5*AY$2*$F20 -> 3336.593011 | AZ20: =AZ$2*$F20*Main!$C$4*$E20+Main!$C$5*AZ$2*$F20 -> 2973.820888 | BA20: =BA$2*$F20*Main!$C$4*$E20+Main!$C$5*BA$2*$F20 -> 3384.515352 | BB20: =BB$2*$F20*Main!$C$4*$E20+Main!$C$5*BB$2*$F20 -> 3794.970205 | BC20: =BC$2*$F20*Main!$C$4*$E20+Main!$C$5*BC$2*$F20 -> 3011.200314 | BD20: =BD$2*$F20*Main!$C$4*$E20+Main!$C$5*BD$2*$F20 -> 3447.533231 | BE20: =BE$2*$F20*Main!$C$4*$E20+Main!$C$5*BE$2*$F20 -> 3883.866148 | BF20: =BF$2*$F20*Main!$C$4*$E20+Main!$C$5*BF$2*$F20 -> 3189.231812 | BG20: =BG$2*$F20*Main!$C$4*$E20+Main!$C$5*BG$2*$F20 -> 3615.501037 | BH20: =BH$2*$F20*Main!$C$4*$E20+Main!$C$5*BH$2*$F20 -> 4041.770263 | BI20: =BI$2*$F20*Main!$C$4*$E20+Main!$C$5*BI$2*$F20 -> 3081.166932 | BJ20: =BJ$2*$F20*Main!$C$4*$E20+Main!$C$5*BJ$2*$F20 -> 3538.825291 | BK20: =BK$2*$F20*Main!$C$4*$E20+Main!$C$5*BK$2*$F20 -> 3996.48365 | BL20: =BL$2*$F20*Main!$C$4*$E20+Main!$C$5*BL$2*$F20 -> 3118.306747 | BM20: =BM$2*$F20*Main!$C$4*$E20+Main!$C$5*BM$2*$F20 -> 3601.84317 | BN20: =BN$2*$F20*Main!$C$4*$E20+Main!$C$5*BN$2*$F20 -> 4085.139982 | BO20: =BO$2*$F20*Main!$C$4*$E20+Main!$C$5*BO$2*$F20 -> 3296.338244 | BP20: =BP$2*$F20*Main!$C$4*$E20+Main!$C$5*BP$2*$F20 -> 3769.810976 | BQ20: =BQ$2*$F20*Main!$C$4*$E20+Main!$C$5*BQ$2*$F20 -> 4243.044096 | BR20: =BR$2*$F20*Main!$C$4*$E20+Main!$C$5*BR$2*$F20 -> 3461.43071 | BS20: =BS$2*$F20*Main!$C$4*$E20+Main!$C$5*BS$2*$F20 -> 3986.180347 | BT20: =BT$2*$F20*Main!$C$4*$E20+Main!$C$5*BT$2*$F20 -> 4510.929984 | BU20: =BU$2*$F20*Main!$C$4*$E20+Main!$C$5*BU$2*$F20 -> 3498.810136 | BV20: =BV$2*$F20*Main!$C$4*$E20+Main!$C$5*BV$2*$F20 -> 4049.198226 | BW20: =BW$2*$F20*Main!$C$4*$E20+Main!$C$5*BW$2*$F20 -> 4599.825927 | BX20: =BX$2*$F20*Main!$C$4*$E20+Main!$C$5*BX$2*$F20 -> 3676.841634 | BY20: =BY$2*$F20*Main!$C$4*$E20+Main!$C$5*BY$2*$F20 -> 4217.405644 | BZ20: =BZ$2*$F20*Main!$C$4*$E20+Main!$C$5*BZ$2*$F20 -> 4757.730041 | CA20: =CA$2*$F20*Main!$C$4*$E20+Main!$C$5*CA$2*$F20 -> 3000.657399 | CB20: =CB$2*$F20*Main!$C$4*$E20+Main!$C$5*CB$2*$F20 -> 3402.48623 | CC20: =CC$2*$F20*Main!$C$4*$E20+Main!$C$5*CC$2*$F20 -> 3804.07545 | CD20: =CD$2*$F20*Main!$C$4*$E20+Main!$C$5*CD$2*$F20 -> 3000.657399 | CE20: =CE$2*$F20*Main!$C$4*$E20+Main!$C$5*CE$2*$F20 -> 3440.584492 | CF20: =CF$2*$F20*Main!$C$4*$E20+Main!$C$5*CF$2*$F20 -> 3880.511585 | CG20: =CG$2*$F20*Main!$C$4*$E20+Main!$C$5*CG$2*$F20 -> 3190.42987 | CH20: =CH$2*$F20*Main!$C$4*$E20+Main!$C$5*CH$2*$F20 -> 3616.459484 | CI20: =CI$2*$F20*Main!$C$4*$E20+Main!$C$5*CI$2*$F20 -> 4042.249486 | CJ20: =CJ$2*$F20*Main!$C$4*$E20+Main!$C$5*CJ$2*$F20 -> 3142.986752 | CK20: =CK$2*$F20*Main!$C$4*$E20+Main!$C$5*CK$2*$F20 -> 3580.038505 | CL20: =CL$2*$F20*Main!$C$4*$E20+Main!$C$5*CL$2*$F20 -> 4017.090257 | CM20: =CM$2*$F20*Main!$C$4*$E20+Main!$C$5*CM$2*$F20 -> 3142.986752 | CN20: =CN$2*$F20*Main!$C$4*$E20+Main!$C$5*CN$2*$F20 -> 3618.136766 | CO20: =CO$2*$F20*Main!$C$4*$E20+Main!$C$5*CO$2*$F20 -> 4093.28678 | CP20: =CP$2*$F20*Main!$C$4*$E20+Main!$C$5*CP$2*$F20 -> 3332.759224 | CQ20: =CQ$2*$F20*Main!$C$4*$E20+Main!$C$5*CQ$2*$F20 -> 3794.011759 | CR20: =CR$2*$F20*Main!$C$4*$E20+Main!$C$5*CR$2*$F20 -> 4255.264293 | CS20: =CS$2*$F20*Main!$C$4*$E20+Main!$C$5*CS$2*$F20 -> 3642.816772 | CT20: =CT$2*$F20*Main!$C$4*$E20+Main!$C$5*CT$2*$F20 -> 4107.184259 | CU20: =CU$2*$F20*Main!$C$4*$E20+Main!$C$5*CU$2*$F20 -> 4571.551746 | CV20: =CV$2*$F20*Main!$C$4*$E20+Main!$C$5*CV$2*$F20 -> 3642.816772 | CW20: =CW$2*$F20*Main!$C$4*$E20+Main!$C$5*CW$2*$F20 -> 4145.28252 | CX20: =CX$2*$F20*Main!$C$4*$E20+Main!$C$5*CX$2*$F20 -> 4647.98788 | CY20: =CY$2*$F20*Main!$C$4*$E20+Main!$C$5*CY$2*$F20 -> 3832.589243 | CZ20: =CZ$2*$F20*Main!$C$4*$E20+Main!$C$5*CZ$2*$F20 -> 4321.157512 | DA20: =DA$2*$F20*Main!$C$4*$E20+Main!$C$5*DA$2*$F20 -> 4809.725782 | DB20: =DB$2*$F20*Main!$C$4*$E20+Main!$C$5*DB$2*$F20 -> 1146.542015 | DC20: =DC$2*$F20*Main!$C$4*$E20+Main!$C$5*DC$2*$F20 -> 1517.460936 | DD20: =DD$2*$F20*Main!$C$4*$E20+Main!$C$5*DD$2*$F20 -> 1888.140246 | DE20: =DE$2*$F20*Main!$C$4*$E20+Main!$C$5*DE$2*$F20 -> 2259.059168 | DF20: =DF$2*$F20*Main!$C$4*$E20+Main!$C$5*DF$2*$F20 -> 2629.978089 | DG20: =DG$2*$F20*Main!$C$4*$E20+Main!$C$5*DG$2*$F20 -> 1336.554098 | DH20: =DH$2*$F20*Main!$C$4*$E20+Main!$C$5*DH$2*$F20 -> 1669.374758 | DI20: =DI$2*$F20*Main!$C$4*$E20+Main!$C$5*DI$2*$F20 -> 2002.195418 | DJ20: =DJ$2*$F20*Main!$C$4*$E20+Main!$C$5*DJ$2*$F20 -> 2335.016078 | DK20: =DK$2*$F20*Main!$C$4*$E20+Main!$C$5*DK$2*$F20 -> 2667.836739 | DL20: =DL$2*$F20*Main!$C$4*$E20+Main!$C$5*DL$2*$F20 -> 1447.015095 | DM20: =DM$2*$F20*Main!$C$4*$E20+Main!$C$5*DM$2*$F20 -> 1795.650127 | DN20: =DN$2*$F20*Main!$C$4*$E20+Main!$C$5*DN$2*$F20 -> 2144.28516 | DO20: =DO$2*$F20*Main!$C$4*$E20+Main!$C$5*DO$2*$F20 -> 2493.159805 | DP20: =DP$2*$F20*Main!$C$4*$E20+Main!$C$5*DP$2*$F20 -> 2841.794837 | DQ20: =DQ$2*$F20*Main!$C$4*$E20+Main!$C$5*DQ$2*$F20 -> 1187.276005 | DR20: =DR$2*$F20*Main!$C$4*$E20+Main!$C$5*DR$2*$F20 -> 1578.32231 | DS20: =DS$2*$F20*Main!$C$4*$E20+Main!$C$5*DS$2*$F20 -> 1969.608226 | DT20: =DT$2*$F20*Main!$C$4*$E20+Main!$C$5*DT$2*$F20 -> 2360.654531 | DU20: =DU$2*$F20*Main!$C$4*$E20+Main!$C$5*DU$2*$F20 -> 2751.940448 | DV20: =DV$2*$F20*Main!$C$4*$E20+Main!$C$5*DV$2*$F20 -> 1377.288088 | DW20: =DW$2*$F20*Main!$C$4*$E20+Main!$C$5*DW$2*$F20 -> 1730.475743 | DX20: =DX$2*$F20*Main!$C$4*$E20+Main!$C$5*DX$2*$F20 -> 2083.423787 | DY20: =DY$2*$F20*Main!$C$4*$E20+Main!$C$5*DY$2*$F20 -> 2436.611442 | DZ20: =DZ$2*$F20*Main!$C$4*$E20+Main!$C$5*DZ$2*$F20 -> 2789.799097 | EA20: =EA$2*$F20*Main!$C$4*$E20+Main!$C$5*EA$2*$F20 -> 1487.509473 | EB20: =EB$2*$F20*Main!$C$4*$E20+Main!$C$5*EB$2*$F20 -> 1856.511501 | EC20: =EC$2*$F20*Main!$C$4*$E20+Main!$C$5*EC$2*$F20 -> 2225.513529 | ED20: =ED$2*$F20*Main!$C$4*$E20+Main!$C$5*ED$2*$F20 -> 2594.755168 | EE20: =EE$2*$F20*Main!$C$4*$E20+Main!$C$5*EE$2*$F20 -> 2963.757196 | EF20: =EF$2*$F20*Main!$C$4*$E20+Main!$C$5*EF$2*$F20 -> 1471.215877 | EG20: =EG$2*$F20*Main!$C$4*$E20+Main!$C$5*EG$2*$F20 -> 1905.631901 | EH20: =EH$2*$F20*Main!$C$4*$E20+Main!$C$5*EH$2*$F20 -> 2339.808313 | EI20: =EI$2*$F20*Main!$C$4*$E20+Main!$C$5*EI$2*$F20 -> 2774.224336 | EJ20: =EJ$2*$F20*Main!$C$4*$E20+Main!$C$5*EJ$2*$F20 -> 3208.64036 | EK20: =EK$2*$F20*Main!$C$4*$E20+Main!$C$5*EK$2*$F20 -> 1661.22796 | EL20: =EL$2*$F20*Main!$C$4*$E20+Main!$C$5*EL$2*$F20 -> 2057.545723 | EM20: =EM$2*$F20*Main!$C$4*$E20+Main!$C$5*EM$2*$F20 -> 2453.863485 | EN20: =EN$2*$F20*Main!$C$4*$E20+Main!$C$5*EN$2*$F20 -> 2850.181247 | EO20: =EO$2*$F20*Main!$C$4*$E20+Main!$C$5*EO$2*$F20 -> 3246.499009 | EP20: =EP$2*$F20*Main!$C$4*$E20+Main!$C$5*EP$2*$F20 -> 1771.449345 | EQ20: =EQ$2*$F20*Main!$C$4*$E20+Main!$C$5*EQ$2*$F20 -> 2183.821092 | ER20: =ER$2*$F20*Main!$C$4*$E20+Main!$C$5*ER$2*$F20 -> 2595.953227 | ES20: =ES$2*$F20*Main!$C$4*$E20+Main!$C$5*ES$2*$F20 -> 3008.085362 | ET20: =ET$2*$F20*Main!$C$4*$E20+Main!$C$5*ET$2*$F20 -> 3420.457108 | EU20: =EU$2*$F20*Main!$C$4*$E20+Main!$C$5*EU$2*$F20 -> 4205.66467 | EV20: =EV$2*$F20*Main!$C$4*$E20+Main!$C$5*EV$2*$F20 -> 4320.199066 | EW20: =EW$2*$F20*Main!$C$4*$E20+Main!$C$5*EW$2*$F20 -> 4468.2791 | EX20: =EX$2*$F20*Main!$C$4*$E20+Main!$C$5*EX$2*$F20 -> 4453.902398 | EY20: =EY$2*$F20*Main!$C$4*$E20+Main!$C$5*EY$2*$F20 -> 4568.676405 | EZ20: =EZ$2*$F20*Main!$C$4*$E20+Main!$C$5*EZ$2*$F20 -> 4716.516828 | FA20: =FA$2*$F20*Main!$C$4*$E20+Main!$C$5*FA$2*$F20 -> 5035.679621 | FB20: =FB$2*$F20*Main!$C$4*$E20+Main!$C$5*FB$2*$F20 -> 5150.453628 | FC20: =FC$2*$F20*Main!$C$4*$E20+Main!$C$5*FC$2*$F20 -> 5298.294051 | FD20: =IF($D20<100,(FD$2*(1+Main!$C$3)*$E20*Main!$C$4)+(FD$2*(1+Main!$C$3)*Main!$C$5),(FD$2*$E20*Main!$C$4)+(FD$2*Main!$C$5)) -> 113.6684463 | FE20: =IF($D20<100,(FE$2*(1+Main!$C$3)*$E20*Main!$C$4)+(FE$2*(1+Main!$C$3)*Main!$C$5),(FE$2*$E20*Main!$C$4)+(FE$2*Main!$C$5)) -> 124.2547419 | FF20: =IF($D20<100,(FF$2*(1+Main!$C$3)*$E20*Main!$C$4)+(FF$2*(1+Main!$C$3)*Main!$C$5),(FF$2*$E20*Main!$C$4)+(FF$2*Main!$C$5)) -> 125.10421 | FG20: =IF($D20<100,(FG$2*(1+Main!$C$3)*$E20*Main!$C$4)+(FG$2*(1+Main!$C$3)*Main!$C$5),(FG$2*$E20*Main!$C$4)+(FG$2*Main!$C$5)) -> 135.0493977 | FH20: =IF($D20<100,(FH$2*(1+Main!$C$3)*$E20*Main!$C$4)+(FH$2*(1+Main!$C$3)*Main!$C$5),(FH$2*$E20*Main!$C$4)+(FH$2*Main!$C$5)) -> 182.2028902 | FI20: =IF($D20<100,(FI$2*(1+Main!$C$3)*$E20*Main!$C$4)+(FI$2*(1+Main!$C$3)*Main!$C$5),(FI$2*$E20*Main!$C$4)+(FI$2*Main!$C$5)) -> 51.47295759
A21: AL | B21: 46220 | C21: (Hale County, Pickens County, Tuscaloosa, Tuscaloosa County) | D21: 46220 | E21: 0.7583 | F21: =IF($D21<100,Main!$C$2*(1+Main!$C$3),Main!$C$2) -> 2989.97 | G21: =G$2*$F21*Main!$C$4*$E21+Main!$C$5*G$2*$F21 -> 1418.809403 | H21: =H$2*$F21*Main!$C$4*$E21+Main!$C$5*H$2*$F21 -> 1736.388219 | I21: =I$2*$F21*Main!$C$4*$E21+Main!$C$5*I$2*$F21 -> 2053.967036 | J21: =J$2*$F21*Main!$C$4*$E21+Main!$C$5*J$2*$F21 -> 2371.545852 | K21: =K$2*$F21*Main!$C$4*$E21+Main!$C$5*K$2*$F21 -> 2688.882427 | L21: =L$2*$F21*Main!$C$4*$E21+Main!$C$5*L$2*$F21 -> 1670.498488 | M21: =M$2*$F21*Main!$C$4*$E21+Main!$C$5*M$2*$F21 -> 1945.20053 | N21: =N$2*$F21*Main!$C$4*$E21+Main!$C$5*N$2*$F21 -> 2219.902573 | O21: =O$2*$F21*Main!$C$4*$E21+Main!$C$5*O$2*$F21 -> 2494.604615 | P21: =P$2*$F21*Main!$C$4*$E21+Main!$C$5*P$2*$F21 -> 2769.548899 | Q21: =Q$2*$F21*Main!$C$4*$E21+Main!$C$5*Q$2*$F21 -> 1807.122784 | R21: =R$2*$F21*Main!$C$4*$E21+Main!$C$5*R$2*$F21 -> 2090.545526 | S21: =S$2*$F21*Main!$C$4*$E21+Main!$C$5*S$2*$F21 -> 2373.968269 | T21: =T$2*$F21*Main!$C$4*$E21+Main!$C$5*T$2*$F21 -> 2657.391011 | U21: =U$2*$F21*Main!$C$4*$E21+Main!$C$5*U$2*$F21 -> 2940.813753 | V21: =V$2*$F21*Main!$C$4*$E21+Main!$C$5*V$2*$F21 -> 1500.202601 | W21: =W$2*$F21*Main!$C$4*$E21+Main!$C$5*W$2*$F21 -> 1823.110734 | X21: =X$2*$F21*Main!$C$4*$E21+Main!$C$5*X$2*$F21 -> 2146.261108 | Y21: =Y$2*$F21*Main!$C$4*$E21+Main!$C$5*Y$2*$F21 -> 2469.169241 | Z21: =Z$2*$F21*Main!$C$4*$E21+Main!$C$5*Z$2*$F21 -> 2792.077374 | AA21: =AA$2*$F21*Main!$C$4*$E21+Main!$C$5*AA$2*$F21 -> 1751.891685 | AB21: =AB$2*$F21*Main!$C$4*$E21+Main!$C$5*AB$2*$F21 -> 2032.165286 | AC21: =AC$2*$F21*Main!$C$4*$E21+Main!$C$5*AC$2*$F21 -> 2312.196645 | AD21: =AD$2*$F21*Main!$C$4*$E21+Main!$C$5*AD$2*$F21 -> 2592.470246 | AE21: =AE$2*$F21*Main!$C$4*$E21+Main!$C$5*AE$2*$F21 -> 2872.501605 | AF21: =AF$2*$F21*Main!$C$4*$E21+Main!$C$5*AF$2*$F21 -> 1888.515982 | AG21: =AG$2*$F21*Main!$C$4*$E21+Main!$C$5*AG$2*$F21 -> 2177.268041 | AH21: =AH$2*$F21*Main!$C$4*$E21+Main!$C$5*AH$2*$F21 -> 2466.262341 | AI21: =AI$2*$F21*Main!$C$4*$E21+Main!$C$5*AI$2*$F21 -> 2755.0144 | AJ21: =AJ$2*$F21*Main!$C$4*$E21+Main!$C$5*AJ$2*$F21 -> 3043.766459 | AK21: =AK$2*$F21*Main!$C$4*$E21+Main!$C$5*AK$2*$F21 -> 1609.211348 | AL21: =AL$2*$F21*Main!$C$4*$E21+Main!$C$5*AL$2*$F21 -> 1987.350579 | AM21: =AM$2*$F21*Main!$C$4*$E21+Main!$C$5*AM$2*$F21 -> 2365.48981 | AN21: =AN$2*$F21*Main!$C$4*$E21+Main!$C$5*AN$2*$F21 -> 2743.3868 | AO21: =AO$2*$F21*Main!$C$4*$E21+Main!$C$5*AO$2*$F21 -> 3121.526031 | AP21: =AP$2*$F21*Main!$C$4*$E21+Main!$C$5*AP$2*$F21 -> 1860.900433 | AQ21: =AQ$2*$F21*Main!$C$4*$E21+Main!$C$5*AQ$2*$F21 -> 2196.16289 | AR21: =AR$2*$F21*Main!$C$4*$E21+Main!$C$5*AR$2*$F21 -> 2531.425348 | AS21: =AS$2*$F21*Main!$C$4*$E21+Main!$C$5*AS$2*$F21 -> 2866.687805 | AT21: =AT$2*$F21*Main!$C$4*$E21+Main!$C$5*AT$2*$F21 -> 3201.950263 | AU21: =AU$2*$F21*Main!$C$4*$E21+Main!$C$5*AU$2*$F21 -> 1997.524729 | AV21: =AV$2*$F21*Main!$C$4*$E21+Main!$C$5*AV$2*$F21 -> 2341.507886 | AW21: =AW$2*$F21*Main!$C$4*$E21+Main!$C$5*AW$2*$F21 -> 2685.491043 | AX21: =AX$2*$F21*Main!$C$4*$E21+Main!$C$5*AX$2*$F21 -> 3029.231959 | AY21: =AY$2*$F21*Main!$C$4*$E21+Main!$C$5*AY$2*$F21 -> 3373.215116 | AZ21: =AZ$2*$F21*Main!$C$4*$E21+Main!$C$5*AZ$2*$F21 -> 3006.461243 | BA21: =BA$2*$F21*Main!$C$4*$E21+Main!$C$5*BA$2*$F21 -> 3421.663448 | BB21: =BB$2*$F21*Main!$C$4*$E21+Main!$C$5*BB$2*$F21 -> 3836.623412 | BC21: =BC$2*$F21*Main!$C$4*$E21+Main!$C$5*BC$2*$F21 -> 3044.250942 | BD21: =BD$2*$F21*Main!$C$4*$E21+Main!$C$5*BD$2*$F21 -> 3485.373005 | BE21: =BE$2*$F21*Main!$C$4*$E21+Main!$C$5*BE$2*$F21 -> 3926.495068 | BF21: =BF$2*$F21*Main!$C$4*$E21+Main!$C$5*BF$2*$F21 -> 3224.236495 | BG21: =BG$2*$F21*Main!$C$4*$E21+Main!$C$5*BG$2*$F21 -> 3655.184409 | BH21: =BH$2*$F21*Main!$C$4*$E21+Main!$C$5*BH$2*$F21 -> 4086.132322 | BI21: =BI$2*$F21*Main!$C$4*$E21+Main!$C$5*BI$2*$F21 -> 3114.985507 | BJ21: =BJ$2*$F21*Main!$C$4*$E21+Main!$C$5*BJ$2*$F21 -> 3577.667077 | BK21: =BK$2*$F21*Main!$C$4*$E21+Main!$C$5*BK$2*$F21 -> 4040.348648 | BL21: =BL$2*$F21*Main!$C$4*$E21+Main!$C$5*BL$2*$F21 -> 3152.532964 | BM21: =BM$2*$F21*Main!$C$4*$E21+Main!$C$5*BM$2*$F21 -> 3641.376634 | BN21: =BN$2*$F21*Main!$C$4*$E21+Main!$C$5*BN$2*$F21 -> 4129.978062 | BO21: =BO$2*$F21*Main!$C$4*$E21+Main!$C$5*BO$2*$F21 -> 3332.518517 | BP21: =BP$2*$F21*Main!$C$4*$E21+Main!$C$5*BP$2*$F21 -> 3811.188038 | BQ21: =BQ$2*$F21*Main!$C$4*$E21+Main!$C$5*BQ$2*$F21 -> 4289.615316 | BR21: =BR$2*$F21*Main!$C$4*$E21+Main!$C$5*BR$2*$F21 -> 3499.423021 | BS21: =BS$2*$F21*Main!$C$4*$E21+Main!$C$5*BS$2*$F21 -> 4029.932257 | BT21: =BT$2*$F21*Main!$C$4*$E21+Main!$C$5*BT$2*$F21 -> 4560.441492 | BU21: =BU$2*$F21*Main!$C$4*$E21+Main!$C$5*BU$2*$F21 -> 3537.21272 | BV21: =BV$2*$F21*Main!$C$4*$E21+Main!$C$5*BV$2*$F21 -> 4093.641813 | BW21: =BW$2*$F21*Main!$C$4*$E21+Main!$C$5*BW$2*$F21 -> 4650.313148 | BX21: =BX$2*$F21*Main!$C$4*$E21+Main!$C$5*BX$2*$F21 -> 3717.198274 | BY21: =BY$2*$F21*Main!$C$4*$E21+Main!$C$5*BY$2*$F21 -> 4263.695459 | BZ21: =BZ$2*$F21*Main!$C$4*$E21+Main!$C$5*BZ$2*$F21 -> 4809.950402 | CA21: =CA$2*$F21*Main!$C$4*$E21+Main!$C$5*CA$2*$F21 -> 3033.592309 | CB21: =CB$2*$F21*Main!$C$4*$E21+Main!$C$5*CB$2*$F21 -> 3439.831573 | CC21: =CC$2*$F21*Main!$C$4*$E21+Main!$C$5*CC$2*$F21 -> 3845.828595 | CD21: =CD$2*$F21*Main!$C$4*$E21+Main!$C$5*CD$2*$F21 -> 3033.592309 | CE21: =CE$2*$F21*Main!$C$4*$E21+Main!$C$5*CE$2*$F21 -> 3478.347997 | CF21: =CF$2*$F21*Main!$C$4*$E21+Main!$C$5*CF$2*$F21 -> 3923.103685 | CG21: =CG$2*$F21*Main!$C$4*$E21+Main!$C$5*CG$2*$F21 -> 3225.447704 | CH21: =CH$2*$F21*Main!$C$4*$E21+Main!$C$5*CH$2*$F21 -> 3656.153375 | CI21: =CI$2*$F21*Main!$C$4*$E21+Main!$C$5*CI$2*$F21 -> 4086.616805 | CJ21: =CJ$2*$F21*Main!$C$4*$E21+Main!$C$5*CJ$2*$F21 -> 3177.483855 | CK21: =CK$2*$F21*Main!$C$4*$E21+Main!$C$5*CK$2*$F21 -> 3619.332643 | CL21: =CL$2*$F21*Main!$C$4*$E21+Main!$C$5*CL$2*$F21 -> 4061.181431 | CM21: =CM$2*$F21*Main!$C$4*$E21+Main!$C$5*CM$2*$F21 -> 3177.483855 | CN21: =CN$2*$F21*Main!$C$4*$E21+Main!$C$5*CN$2*$F21 -> 3657.849067 | CO21: =CO$2*$F21*Main!$C$4*$E21+Main!$C$5*CO$2*$F21 -> 4138.214279 | CP21: =CP$2*$F21*Main!$C$4*$E21+Main!$C$5*CP$2*$F21 -> 3369.33925 | CQ21: =CQ$2*$F21*Main!$C$4*$E21+Main!$C$5*CQ$2*$F21 -> 3835.654445 | CR21: =CR$2*$F21*Main!$C$4*$E21+Main!$C$5*CR$2*$F21 -> 4301.969641 | CS21: =CS$2*$F21*Main!$C$4*$E21+Main!$C$5*CS$2*$F21 -> 3682.799958 | CT21: =CT$2*$F21*Main!$C$4*$E21+Main!$C$5*CT$2*$F21 -> 4152.264295 | CU21: =CU$2*$F21*Main!$C$4*$E21+Main!$C$5*CU$2*$F21 -> 4621.728632 | CV21: =CV$2*$F21*Main!$C$4*$E21+Main!$C$5*CV$2*$F21 -> 3682.799958 | CW21: =CW$2*$F21*Main!$C$4*$E21+Main!$C$5*CW$2*$F21 -> 4190.780719 | CX21: =CX$2*$F21*Main!$C$4*$E21+Main!$C$5*CX$2*$F21 -> 4699.003722 | CY21: =CY$2*$F21*Main!$C$4*$E21+Main!$C$5*CY$2*$F21 -> 3874.655353 | CZ21: =CZ$2*$F21*Main!$C$4*$E21+Main!$C$5*CZ$2*$F21 -> 4368.586097 | DA21: =DA$2*$F21*Main!$C$4*$E21+Main!$C$5*DA$2*$F21 -> 4862.516842 | DB21: =DB$2*$F21*Main!$C$4*$E21+Main!$C$5*DB$2*$F21 -> 1159.126343 | DC21: =DC$2*$F21*Main!$C$4*$E21+Main!$C$5*DC$2*$F21 -> 1534.116433 | DD21: =DD$2*$F21*Main!$C$4*$E21+Main!$C$5*DD$2*$F21 -> 1908.864281 | DE21: =DE$2*$F21*Main!$C$4*$E21+Main!$C$5*DE$2*$F21 -> 2283.854371 | DF21: =DF$2*$F21*Main!$C$4*$E21+Main!$C$5*DF$2*$F21 -> 2658.844461 | DG21: =DG$2*$F21*Main!$C$4*$E21+Main!$C$5*DG$2*$F21 -> 1351.22398 | DH21: =DH$2*$F21*Main!$C$4*$E21+Main!$C$5*DH$2*$F21 -> 1687.697646 | DI21: =DI$2*$F21*Main!$C$4*$E21+Main!$C$5*DI$2*$F21 -> 2024.171311 | DJ21: =DJ$2*$F21*Main!$C$4*$E21+Main!$C$5*DJ$2*$F21 -> 2360.644977 | DK21: =DK$2*$F21*Main!$C$4*$E21+Main!$C$5*DK$2*$F21 -> 2697.118643 | DL21: =DL$2*$F21*Main!$C$4*$E21+Main!$C$5*DL$2*$F21 -> 1462.897385 | DM21: =DM$2*$F21*Main!$C$4*$E21+Main!$C$5*DM$2*$F21 -> 1815.359 | DN21: =DN$2*$F21*Main!$C$4*$E21+Main!$C$5*DN$2*$F21 -> 2167.820616 | DO21: =DO$2*$F21*Main!$C$4*$E21+Main!$C$5*DO$2*$F21 -> 2520.524473 | DP21: =DP$2*$F21*Main!$C$4*$E21+Main!$C$5*DP$2*$F21 -> 2872.986088 | DQ21: =DQ$2*$F21*Main!$C$4*$E21+Main!$C$5*DQ$2*$F21 -> 1200.307426 | DR21: =DR$2*$F21*Main!$C$4*$E21+Main!$C$5*DR$2*$F21 -> 1595.645815 | DS21: =DS$2*$F21*Main!$C$4*$E21+Main!$C$5*DS$2*$F21 -> 1991.226446 | DT21: =DT$2*$F21*Main!$C$4*$E21+Main!$C$5*DT$2*$F21 -> 2386.564835 | DU21: =DU$2*$F21*Main!$C$4*$E21+Main!$C$5*DU$2*$F21 -> 2782.145466 | DV21: =DV$2*$F21*Main!$C$4*$E21+Main!$C$5*DV$2*$F21 -> 1392.405062 | DW21: =DW$2*$F21*Main!$C$4*$E21+Main!$C$5*DW$2*$F21 -> 1749.469269 | DX21: =DX$2*$F21*Main!$C$4*$E21+Main!$C$5*DX$2*$F21 -> 2106.291234 | DY21: =DY$2*$F21*Main!$C$4*$E21+Main!$C$5*DY$2*$F21 -> 2463.355441 | DZ21: =DZ$2*$F21*Main!$C$4*$E21+Main!$C$5*DZ$2*$F21 -> 2820.419648 | EA21: =EA$2*$F21*Main!$C$4*$E21+Main!$C$5*EA$2*$F21 -> 1503.836226 | EB21: =EB$2*$F21*Main!$C$4*$E21+Main!$C$5*EB$2*$F21 -> 1876.888382 | EC21: =EC$2*$F21*Main!$C$4*$E21+Main!$C$5*EC$2*$F21 -> 2249.940539 | ED21: =ED$2*$F21*Main!$C$4*$E21+Main!$C$5*ED$2*$F21 -> 2623.234937 | EE21: =EE$2*$F21*Main!$C$4*$E21+Main!$C$5*EE$2*$F21 -> 2996.287093 | EF21: =EF$2*$F21*Main!$C$4*$E21+Main!$C$5*EF$2*$F21 -> 1487.363793 | EG21: =EG$2*$F21*Main!$C$4*$E21+Main!$C$5*EG$2*$F21 -> 1926.547922 | EH21: =EH$2*$F21*Main!$C$4*$E21+Main!$C$5*EH$2*$F21 -> 2365.48981 | EI21: =EI$2*$F21*Main!$C$4*$E21+Main!$C$5*EI$2*$F21 -> 2804.67394 | EJ21: =EJ$2*$F21*Main!$C$4*$E21+Main!$C$5*EJ$2*$F21 -> 3243.85807 | EK21: =EK$2*$F21*Main!$C$4*$E21+Main!$C$5*EK$2*$F21 -> 1679.461429 | EL21: =EL$2*$F21*Main!$C$4*$E21+Main!$C$5*EL$2*$F21 -> 2080.129135 | EM21: =EM$2*$F21*Main!$C$4*$E21+Main!$C$5*EM$2*$F21 -> 2480.796841 | EN21: =EN$2*$F21*Main!$C$4*$E21+Main!$C$5*EN$2*$F21 -> 2881.464546 | EO21: =EO$2*$F21*Main!$C$4*$E21+Main!$C$5*EO$2*$F21 -> 3282.132252 | EP21: =EP$2*$F21*Main!$C$4*$E21+Main!$C$5*EP$2*$F21 -> 1790.892593 | EQ21: =EQ$2*$F21*Main!$C$4*$E21+Main!$C$5*EQ$2*$F21 -> 2207.79049 | ER21: =ER$2*$F21*Main!$C$4*$E21+Main!$C$5*ER$2*$F21 -> 2624.446145 | ES21: =ES$2*$F21*Main!$C$4*$E21+Main!$C$5*ES$2*$F21 -> 3041.1018 | ET21: =ET$2*$F21*Main!$C$4*$E21+Main!$C$5*ET$2*$F21 -> 3457.999697 | EU21: =EU$2*$F21*Main!$C$4*$E21+Main!$C$5*EU$2*$F21 -> 4251.825617 | EV21: =EV$2*$F21*Main!$C$4*$E21+Main!$C$5*EV$2*$F21 -> 4367.617131 | EW21: =EW$2*$F21*Main!$C$4*$E21+Main!$C$5*EW$2*$F21 -> 4517.322477 | EX21: =EX$2*$F21*Main!$C$4*$E21+Main!$C$5*EX$2*$F21 -> 4502.787977 | EY21: =EY$2*$F21*Main!$C$4*$E21+Main!$C$5*EY$2*$F21 -> 4618.821732 | EZ21: =EZ$2*$F21*Main!$C$4*$E21+Main!$C$5*EZ$2*$F21 -> 4768.284836 | FA21: =FA$2*$F21*Main!$C$4*$E21+Main!$C$5*FA$2*$F21 -> 5090.950728 | FB21: =FB$2*$F21*Main!$C$4*$E21+Main!$C$5*FB$2*$F21 -> 5206.984483 | FC21: =FC$2*$F21*Main!$C$4*$E21+Main!$C$5*FC$2*$F21 -> 5356.447587 | FD21: =IF($D21<100,(FD$2*(1+Main!$C$3)*$E21*Main!$C$4)+(FD$2*(1+Main!$C$3)*Main!$C$5),(FD$2*$E21*Main!$C$4)+(FD$2*Main!$C$5)) -> 114.9160596 | FE21: =IF($D21<100,(FE$2*(1+Main!$C$3)*$E21*Main!$C$4)+(FE$2*(1+Main!$C$3)*Main!$C$5),(FE$2*$E21*Main!$C$4)+(FE$2*Main!$C$5)) -> 125.6185493 | FF21: =IF($D21<100,(FF$2*(1+Main!$C$3)*$E21*Main!$C$4)+(FF$2*(1+Main!$C$3)*Main!$C$5),(FF$2*$E21*Main!$C$4)+(FF$2*Main!$C$5)) -> 126.4773411 | FG21: =IF($D21<100,(FG$2*(1+Main!$C$3)*$E21*Main!$C$4)+(FG$2*(1+Main!$C$3)*Main!$C$5),(FG$2*$E21*Main!$C$4)+(FG$2*Main!$C$5)) -> 136.5316861 | FH21: =IF($D21<100,(FH$2*(1+Main!$C$3)*$E21*Main!$C$4)+(FH$2*(1+Main!$C$3)*Main!$C$5),(FH$2*$E21*Main!$C$4)+(FH$2*Main!$C$5)) -> 184.2027306 | FI21: =IF($D21<100,(FI$2*(1+Main!$C$3)*$E21*Main!$C$4)+(FI$2*(1+Main!$C$3)*Main!$C$5),(FI$2*$E21*Main!$C$4)+(FI$2*Main!$C$5)) -> 52.03791953
A22: AR | B22: 4 | C22: Nonurban | D22: 4 | E22: 0.7263 | F22: =IF($D22<100,Main!$C$2*(1+Main!$C$3),Main!$C$2) -> 3079.6691 | G22: =G$2*$F22*Main!$C$4*$E22+Main!$C$5*G$2*$F22 -> 1416.042977 | H22: =H$2*$F22*Main!$C$4*$E22+Main!$C$5*H$2*$F22 -> 1733.002571 | I22: =I$2*$F22*Main!$C$4*$E22+Main!$C$5*I$2*$F22 -> 2049.962165 | J22: =J$2*$F22*Main!$C$4*$E22+Main!$C$5*J$2*$F22 -> 2366.921759 | K22: =K$2*$F22*Main!$C$4*$E22+Main!$C$5*K$2*$F22 -> 2683.639583 | L22: =L$2*$F22*Main!$C$4*$E22+Main!$C$5*L$2*$F22 -> 1667.241312 | M22: =M$2*$F22*Main!$C$4*$E22+Main!$C$5*M$2*$F22 -> 1941.407735 | N22: =N$2*$F22*Main!$C$4*$E22+Main!$C$5*N$2*$F22 -> 2215.574157 | O22: =O$2*$F22*Main!$C$4*$E22+Main!$C$5*O$2*$F22 -> 2489.740579 | P22: =P$2*$F22*Main!$C$4*$E22+Main!$C$5*P$2*$F22 -> 2764.148771 | Q22: =Q$2*$F22*Main!$C$4*$E22+Main!$C$5*Q$2*$F22 -> 1803.599216 | R22: =R$2*$F22*Main!$C$4*$E22+Main!$C$5*R$2*$F22 -> 2086.469334 | S22: =S$2*$F22*Main!$C$4*$E22+Main!$C$5*S$2*$F22 -> 2369.339452 | T22: =T$2*$F22*Main!$C$4*$E22+Main!$C$5*T$2*$F22 -> 2652.20957 | U22: =U$2*$F22*Main!$C$4*$E22+Main!$C$5*U$2*$F22 -> 2935.079689 | V22: =V$2*$F22*Main!$C$4*$E22+Main!$C$5*V$2*$F22 -> 1497.277472 | W22: =W$2*$F22*Main!$C$4*$E22+Main!$C$5*W$2*$F22 -> 1819.555991 | X22: =X$2*$F22*Main!$C$4*$E22+Main!$C$5*X$2*$F22 -> 2142.07628 | Y22: =Y$2*$F22*Main!$C$4*$E22+Main!$C$5*Y$2*$F22 -> 2464.354799 | Z22: =Z$2*$F22*Main!$C$4*$E22+Main!$C$5*Z$2*$F22 -> 2786.633319 | AA22: =AA$2*$F22*Main!$C$4*$E22+Main!$C$5*AA$2*$F22 -> 1748.475808 | AB22: =AB$2*$F22*Main!$C$4*$E22+Main!$C$5*AB$2*$F22 -> 2028.202925 | AC22: =AC$2*$F22*Main!$C$4*$E22+Main!$C$5*AC$2*$F22 -> 2307.688272 | AD22: =AD$2*$F22*Main!$C$4*$E22+Main!$C$5*AD$2*$F22 -> 2587.415389 | AE22: =AE$2*$F22*Main!$C$4*$E22+Main!$C$5*AE$2*$F22 -> 2866.900737 | AF22: =AF$2*$F22*Main!$C$4*$E22+Main!$C$5*AF$2*$F22 -> 1884.833711 | AG22: =AG$2*$F22*Main!$C$4*$E22+Main!$C$5*AG$2*$F22 -> 2173.022755 | AH22: =AH$2*$F22*Main!$C$4*$E22+Main!$C$5*AH$2*$F22 -> 2461.453568 | AI22: =AI$2*$F22*Main!$C$4*$E22+Main!$C$5*AI$2*$F22 -> 2749.642611 | AJ22: =AJ$2*$F22*Main!$C$4*$E22+Main!$C$5*AJ$2*$F22 -> 3037.831655 | AK22: =AK$2*$F22*Main!$C$4*$E22+Main!$C$5*AK$2*$F22 -> 1606.073671 | AL22: =AL$2*$F22*Main!$C$4*$E22+Main!$C$5*AL$2*$F22 -> 1983.475598 | AM22: =AM$2*$F22*Main!$C$4*$E22+Main!$C$5*AM$2*$F22 -> 2360.877525 | AN22: =AN$2*$F22*Main!$C$4*$E22+Main!$C$5*AN$2*$F22 -> 2738.037683 | AO22: =AO$2*$F22*Main!$C$4*$E22+Main!$C$5*AO$2*$F22 -> 3115.43961 | AP22: =AP$2*$F22*Main!$C$4*$E22+Main!$C$5*AP$2*$F22 -> 1857.272007 | AQ22: =AQ$2*$F22*Main!$C$4*$E22+Main!$C$5*AQ$2*$F22 -> 2191.880763 | AR22: =AR$2*$F22*Main!$C$4*$E22+Main!$C$5*AR$2*$F22 -> 2526.489518 | AS22: =AS$2*$F22*Main!$C$4*$E22+Main!$C$5*AS$2*$F22 -> 2861.098273 | AT22: =AT$2*$F22*Main!$C$4*$E22+Main!$C$5*AT$2*$F22 -> 3195.707028 | AU22: =AU$2*$F22*Main!$C$4*$E22+Main!$C$5*AU$2*$F22 -> 1993.62991 | AV22: =AV$2*$F22*Main!$C$4*$E22+Main!$C$5*AV$2*$F22 -> 2336.942362 | AW22: =AW$2*$F22*Main!$C$4*$E22+Main!$C$5*AW$2*$F22 -> 2680.254813 | AX22: =AX$2*$F22*Main!$C$4*$E22+Main!$C$5*AX$2*$F22 -> 3023.325495 | AY22: =AY$2*$F22*Main!$C$4*$E22+Main!$C$5*AY$2*$F22 -> 3366.637946 | AZ22: =AZ$2*$F22*Main!$C$4*$E22+Main!$C$5*AZ$2*$F22 -> 3000.599178 | BA22: =BA$2*$F22*Main!$C$4*$E22+Main!$C$5*BA$2*$F22 -> 3414.991812 | BB22: =BB$2*$F22*Main!$C$4*$E22+Main!$C$5*BB$2*$F22 -> 3829.142678 | BC22: =BC$2*$F22*Main!$C$4*$E22+Main!$C$5*BC$2*$F22 -> 3038.315193 | BD22: =BD$2*$F22*Main!$C$4*$E22+Main!$C$5*BD$2*$F22 -> 3478.577147 | BE22: =BE$2*$F22*Main!$C$4*$E22+Main!$C$5*BE$2*$F22 -> 3918.8391 | BF22: =BF$2*$F22*Main!$C$4*$E22+Main!$C$5*BF$2*$F22 -> 3217.949807 | BG22: =BG$2*$F22*Main!$C$4*$E22+Main!$C$5*BG$2*$F22 -> 3648.057448 | BH22: =BH$2*$F22*Main!$C$4*$E22+Main!$C$5*BH$2*$F22 -> 4078.16509 | BI22: =BI$2*$F22*Main!$C$4*$E22+Main!$C$5*BI$2*$F22 -> 3108.911838 | BJ22: =BJ$2*$F22*Main!$C$4*$E22+Main!$C$5*BJ$2*$F22 -> 3570.691262 | BK22: =BK$2*$F22*Main!$C$4*$E22+Main!$C$5*BK$2*$F22 -> 4032.470686 | BL22: =BL$2*$F22*Main!$C$4*$E22+Main!$C$5*BL$2*$F22 -> 3146.386085 | BM22: =BM$2*$F22*Main!$C$4*$E22+Main!$C$5*BM$2*$F22 -> 3634.276596 | BN22: =BN$2*$F22*Main!$C$4*$E22+Main!$C$5*BN$2*$F22 -> 4121.925339 | BO22: =BO$2*$F22*Main!$C$4*$E22+Main!$C$5*BO$2*$F22 -> 3326.020698 | BP22: =BP$2*$F22*Main!$C$4*$E22+Main!$C$5*BP$2*$F22 -> 3803.756898 | BQ22: =BQ$2*$F22*Main!$C$4*$E22+Main!$C$5*BQ$2*$F22 -> 4281.251328 | BR22: =BR$2*$F22*Main!$C$4*$E22+Main!$C$5*BR$2*$F22 -> 3492.599768 | BS22: =BS$2*$F22*Main!$C$4*$E22+Main!$C$5*BS$2*$F22 -> 4022.074605 | BT22: =BT$2*$F22*Main!$C$4*$E22+Main!$C$5*BT$2*$F22 -> 4551.549441 | BU22: =BU$2*$F22*Main!$C$4*$E22+Main!$C$5*BU$2*$F22 -> 3530.315784 | BV22: =BV$2*$F22*Main!$C$4*$E22+Main!$C$5*BV$2*$F22 -> 4085.659939 | BW22: =BW$2*$F22*Main!$C$4*$E22+Main!$C$5*BW$2*$F22 -> 4641.245863 | BX22: =BX$2*$F22*Main!$C$4*$E22+Main!$C$5*BX$2*$F22 -> 3709.950397 | BY22: =BY$2*$F22*Main!$C$4*$E22+Main!$C$5*BY$2*$F22 -> 4255.38201 | BZ22: =BZ$2*$F22*Main!$C$4*$E22+Main!$C$5*BZ$2*$F22 -> 4800.571853 | CA22: =CA$2*$F22*Main!$C$4*$E22+Main!$C$5*CA$2*$F22 -> 3027.677343 | CB22: =CB$2*$F22*Main!$C$4*$E22+Main!$C$5*CB$2*$F22 -> 3433.124512 | CC22: =CC$2*$F22*Main!$C$4*$E22+Main!$C$5*CC$2*$F22 -> 3838.329912 | CD22: =CD$2*$F22*Main!$C$4*$E22+Main!$C$5*CD$2*$F22 -> 3027.677343 | CE22: =CE$2*$F22*Main!$C$4*$E22+Main!$C$5*CE$2*$F22 -> 3471.565836 | CF22: =CF$2*$F22*Main!$C$4*$E22+Main!$C$5*CF$2*$F22 -> 3915.454329 | CG22: =CG$2*$F22*Main!$C$4*$E22+Main!$C$5*CG$2*$F22 -> 3219.158654 | CH22: =CH$2*$F22*Main!$C$4*$E22+Main!$C$5*CH$2*$F22 -> 3649.024526 | CI22: =CI$2*$F22*Main!$C$4*$E22+Main!$C$5*CI$2*$F22 -> 4078.648628 | CJ22: =CJ$2*$F22*Main!$C$4*$E22+Main!$C$5*CJ$2*$F22 -> 3171.288326 | CK22: =CK$2*$F22*Main!$C$4*$E22+Main!$C$5*CK$2*$F22 -> 3612.275587 | CL22: =CL$2*$F22*Main!$C$4*$E22+Main!$C$5*CL$2*$F22 -> 4053.262848 | CM22: =CM$2*$F22*Main!$C$4*$E22+Main!$C$5*CM$2*$F22 -> 3171.288326 | CN22: =CN$2*$F22*Main!$C$4*$E22+Main!$C$5*CN$2*$F22 -> 3650.716911 | CO22: =CO$2*$F22*Main!$C$4*$E22+Main!$C$5*CO$2*$F22 -> 4130.145496 | CP22: =CP$2*$F22*Main!$C$4*$E22+Main!$C$5*CP$2*$F22 -> 3362.769637 | CQ22: =CQ$2*$F22*Main!$C$4*$E22+Main!$C$5*CQ$2*$F22 -> 3828.1756 | CR22: =CR$2*$F22*Main!$C$4*$E22+Main!$C$5*CR$2*$F22 -> 4293.581564 | CS22: =CS$2*$F22*Main!$C$4*$E22+Main!$C$5*CS$2*$F22 -> 3675.619152 | CT22: =CT$2*$F22*Main!$C$4*$E22+Main!$C$5*CT$2*$F22 -> 4144.168117 | CU22: =CU$2*$F22*Main!$C$4*$E22+Main!$C$5*CU$2*$F22 -> 4612.717082 | CV22: =CV$2*$F22*Main!$C$4*$E22+Main!$C$5*CV$2*$F22 -> 3675.619152 | CW22: =CW$2*$F22*Main!$C$4*$E22+Main!$C$5*CW$2*$F22 -> 4182.609441 | CX22: =CX$2*$F22*Main!$C$4*$E22+Main!$C$5*CX$2*$F22 -> 4689.841499 | CY22: =CY$2*$F22*Main!$C$4*$E22+Main!$C$5*CY$2*$F22 -> 3867.100463 | CZ22: =CZ$2*$F22*Main!$C$4*$E22+Main!$C$5*CZ$2*$F22 -> 4360.06813 | DA22: =DA$2*$F22*Main!$C$4*$E22+Main!$C$5*DA$2*$F22 -> 4853.035798 | DB22: =DB$2*$F22*Main!$C$4*$E22+Main!$C$5*DB$2*$F22 -> 1156.866253 | DC22: =DC$2*$F22*Main!$C$4*$E22+Main!$C$5*DC$2*$F22 -> 1531.125179 | DD22: =DD$2*$F22*Main!$C$4*$E22+Main!$C$5*DD$2*$F22 -> 1905.142335 | DE22: =DE$2*$F22*Main!$C$4*$E22+Main!$C$5*DE$2*$F22 -> 2279.401261 | DF22: =DF$2*$F22*Main!$C$4*$E22+Main!$C$5*DF$2*$F22 -> 2653.660186 | DG22: =DG$2*$F22*Main!$C$4*$E22+Main!$C$5*DG$2*$F22 -> 1348.589333 | DH22: =DH$2*$F22*Main!$C$4*$E22+Main!$C$5*DH$2*$F22 -> 1684.406935 | DI22: =DI$2*$F22*Main!$C$4*$E22+Main!$C$5*DI$2*$F22 -> 2020.224537 | DJ22: =DJ$2*$F22*Main!$C$4*$E22+Main!$C$5*DJ$2*$F22 -> 2356.042139 | DK22: =DK$2*$F22*Main!$C$4*$E22+Main!$C$5*DK$2*$F22 -> 2691.859741 | DL22: =DL$2*$F22*Main!$C$4*$E22+Main!$C$5*DL$2*$F22 -> 1460.044995 | DM22: =DM$2*$F22*Main!$C$4*$E22+Main!$C$5*DM$2*$F22 -> 1811.819373 | DN22: =DN$2*$F22*Main!$C$4*$E22+Main!$C$5*DN$2*$F22 -> 2163.593751 | DO22: =DO$2*$F22*Main!$C$4*$E22+Main!$C$5*DO$2*$F22 -> 2515.609898 | DP22: =DP$2*$F22*Main!$C$4*$E22+Main!$C$5*DP$2*$F22 -> 2867.384276 | DQ22: =DQ$2*$F22*Main!$C$4*$E22+Main!$C$5*DQ$2*$F22 -> 1197.967039 | DR22: =DR$2*$F22*Main!$C$4*$E22+Main!$C$5*DR$2*$F22 -> 1592.534589 | DS22: =DS$2*$F22*Main!$C$4*$E22+Main!$C$5*DS$2*$F22 -> 1987.343908 | DT22: =DT$2*$F22*Main!$C$4*$E22+Main!$C$5*DT$2*$F22 -> 2381.911457 | DU22: =DU$2*$F22*Main!$C$4*$E22+Main!$C$5*DU$2*$F22 -> 2776.720776 | DV22: =DV$2*$F22*Main!$C$4*$E22+Main!$C$5*DV$2*$F22 -> 1389.690119 | DW22: =DW$2*$F22*Main!$C$4*$E22+Main!$C$5*DW$2*$F22 -> 1746.058115 | DX22: =DX$2*$F22*Main!$C$4*$E22+Main!$C$5*DX$2*$F22 -> 2102.18434 | DY22: =DY$2*$F22*Main!$C$4*$E22+Main!$C$5*DY$2*$F22 -> 2458.552336 | DZ22: =DZ$2*$F22*Main!$C$4*$E22+Main!$C$5*DZ$2*$F22 -> 2814.920331 | EA22: =EA$2*$F22*Main!$C$4*$E22+Main!$C$5*EA$2*$F22 -> 1500.904012 | EB22: =EB$2*$F22*Main!$C$4*$E22+Main!$C$5*EB$2*$F22 -> 1873.228783 | EC22: =EC$2*$F22*Main!$C$4*$E22+Main!$C$5*EC$2*$F22 -> 2245.553554 | ED22: =ED$2*$F22*Main!$C$4*$E22+Main!$C$5*ED$2*$F22 -> 2618.120095 | EE22: =EE$2*$F22*Main!$C$4*$E22+Main!$C$5*EE$2*$F22 -> 2990.444866 | EF22: =EF$2*$F22*Main!$C$4*$E22+Main!$C$5*EF$2*$F22 -> 1484.463698 | EG22: =EG$2*$F22*Main!$C$4*$E22+Main!$C$5*EG$2*$F22 -> 1922.791496 | EH22: =EH$2*$F22*Main!$C$4*$E22+Main!$C$5*EH$2*$F22 -> 2360.877525 | EI22: =EI$2*$F22*Main!$C$4*$E22+Main!$C$5*EI$2*$F22 -> 2799.205324 | EJ22: =EJ$2*$F22*Main!$C$4*$E22+Main!$C$5*EJ$2*$F22 -> 3237.533123 | EK22: =EK$2*$F22*Main!$C$4*$E22+Main!$C$5*EK$2*$F22 -> 1676.186778 | EL22: =EL$2*$F22*Main!$C$4*$E22+Main!$C$5*EL$2*$F22 -> 2076.073253 | EM22: =EM$2*$F22*Main!$C$4*$E22+Main!$C$5*EM$2*$F22 -> 2475.959727 | EN22: =EN$2*$F22*Main!$C$4*$E22+Main!$C$5*EN$2*$F22 -> 2875.846202 | EO22: =EO$2*$F22*Main!$C$4*$E22+Main!$C$5*EO$2*$F22 -> 3275.732677 | EP22: =EP$2*$F22*Main!$C$4*$E22+Main!$C$5*EP$2*$F22 -> 1787.40067 | EQ22: =EQ$2*$F22*Main!$C$4*$E22+Main!$C$5*EQ$2*$F22 -> 2203.48569 | ER22: =ER$2*$F22*Main!$C$4*$E22+Main!$C$5*ER$2*$F22 -> 2619.328941 | ES22: =ES$2*$F22*Main!$C$4*$E22+Main!$C$5*ES$2*$F22 -> 3035.172192 | ET22: =ET$2*$F22*Main!$C$4*$E22+Main!$C$5*ET$2*$F22 -> 3451.257212 | EU22: =EU$2*$F22*Main!$C$4*$E22+Main!$C$5*EU$2*$F22 -> 4243.535313 | EV22: =EV$2*$F22*Main!$C$4*$E22+Main!$C$5*EV$2*$F22 -> 4359.101053 | EW22: =EW$2*$F22*Main!$C$4*$E22+Main!$C$5*EW$2*$F22 -> 4508.5145 | EX22: =EX$2*$F22*Main!$C$4*$E22+Main!$C$5*EX$2*$F22 -> 4494.00834 | EY22: =EY$2*$F22*Main!$C$4*$E22+Main!$C$5*EY$2*$F22 -> 4609.81585 | EZ22: =EZ$2*$F22*Main!$C$4*$E22+Main!$C$5*EZ$2*$F22 -> 4758.987528 | FA22: =FA$2*$F22*Main!$C$4*$E22+Main!$C$5*FA$2*$F22 -> 5081.024278 | FB22: =FB$2*$F22*Main!$C$4*$E22+Main!$C$5*FB$2*$F22 -> 5196.831788 | FC22: =FC$2*$F22*Main!$C$4*$E22+Main!$C$5*FC$2*$F22 -> 5346.003466 | FD22: =IF($D22<100,(FD$2*(1+Main!$C$3)*$E22*Main!$C$4)+(FD$2*(1+Main!$C$3)*Main!$C$5),(FD$2*$E22*Main!$C$4)+(FD$2*Main!$C$5)) -> 114.6919937 | FE22: =IF($D22<100,(FE$2*(1+Main!$C$3)*$E22*Main!$C$4)+(FE$2*(1+Main!$C$3)*Main!$C$5),(FE$2*$E22*Main!$C$4)+(FE$2*Main!$C$5)) -> 125.3736155 | FF22: =IF($D22<100,(FF$2*(1+Main!$C$3)*$E22*Main!$C$4)+(FF$2*(1+Main!$C$3)*Main!$C$5),(FF$2*$E22*Main!$C$4)+(FF$2*Main!$C$5)) -> 126.2307327 | FG22: =IF($D22<100,(FG$2*(1+Main!$C$3)*$E22*Main!$C$4)+(FG$2*(1+Main!$C$3)*Main!$C$5),(FG$2*$E22*Main!$C$4)+(FG$2*Main!$C$5)) -> 136.2654736 | FH22: =IF($D22<100,(FH$2*(1+Main!$C$3)*$E22*Main!$C$4)+(FH$2*(1+Main!$C$3)*Main!$C$5),(FH$2*$E22*Main!$C$4)+(FH$2*Main!$C$5)) -> 183.843568 | FI22: =IF($D22<100,(FI$2*(1+Main!$C$3)*$E22*Main!$C$4)+(FI$2*(1+Main!$C$3)*Main!$C$5),(FI$2*$E22*Main!$C$4)+(FI$2*Main!$C$5)) -> 51.93645483
A23: AR | B23: 22220 | C23: (Benton County, Fayetteville-Springdale-Rogers, Madison County, Washington County) | D23: 22220 | E23: 0.8458 | F23: =IF($D23<100,Main!$C$2*(1+Main!$C$3),Main!$C$2) -> 2989.97 | G23: =G$2*$F23*Main!$C$4*$E23+Main!$C$5*G$2*$F23 -> 1539.150331 | H23: =H$2*$F23*Main!$C$4*$E23+Main!$C$5*H$2*$F23 -> 1883.665626 | I23: =I$2*$F23*Main!$C$4*$E23+Main!$C$5*I$2*$F23 -> 2228.180921 | J23: =J$2*$F23*Main!$C$4*$E23+Main!$C$5*J$2*$F23 -> 2572.696216 | K23: =K$2*$F23*Main!$C$4*$E23+Main!$C$5*K$2*$F23 -> 2916.948723 | L23: =L$2*$F23*Main!$C$4*$E23+Main!$C$5*L$2*$F23 -> 1812.187243 | M23: =M$2*$F23*Main!$C$4*$E23+Main!$C$5*M$2*$F23 -> 2110.189031 | N23: =N$2*$F23*Main!$C$4*$E23+Main!$C$5*N$2*$F23 -> 2408.19082 | O23: =O$2*$F23*Main!$C$4*$E23+Main!$C$5*O$2*$F23 -> 2706.192608 | P23: =P$2*$F23*Main!$C$4*$E23+Main!$C$5*P$2*$F23 -> 3004.457185 | Q23: =Q$2*$F23*Main!$C$4*$E23+Main!$C$5*Q$2*$F23 -> 1960.399773 | R23: =R$2*$F23*Main!$C$4*$E23+Main!$C$5*R$2*$F23 -> 2267.861935 | S23: =S$2*$F23*Main!$C$4*$E23+Main!$C$5*S$2*$F23 -> 2575.324098 | T23: =T$2*$F23*Main!$C$4*$E23+Main!$C$5*T$2*$F23 -> 2882.786261 | U23: =U$2*$F23*Main!$C$4*$E23+Main!$C$5*U$2*$F23 -> 3190.248424 | V23: =V$2*$F23*Main!$C$4*$E23+Main!$C$5*V$2*$F23 -> 1627.447157 | W23: =W$2*$F23*Main!$C$4*$E23+Main!$C$5*W$2*$F23 -> 1977.743792 | X23: =X$2*$F23*Main!$C$4*$E23+Main!$C$5*X$2*$F23 -> 2328.303215 | Y23: =Y$2*$F23*Main!$C$4*$E23+Main!$C$5*Y$2*$F23 -> 2678.59985 | Z23: =Z$2*$F23*Main!$C$4*$E23+Main!$C$5*Z$2*$F23 -> 3028.896485 | AA23: =AA$2*$F23*Main!$C$4*$E23+Main!$C$5*AA$2*$F23 -> 1900.484069 | AB23: =AB$2*$F23*Main!$C$4*$E23+Main!$C$5*AB$2*$F23 -> 2204.529986 | AC23: =AC$2*$F23*Main!$C$4*$E23+Main!$C$5*AC$2*$F23 -> 2508.313114 | AD23: =AD$2*$F23*Main!$C$4*$E23+Main!$C$5*AD$2*$F23 -> 2812.35903 | AE23: =AE$2*$F23*Main!$C$4*$E23+Main!$C$5*AE$2*$F23 -> 3116.142159 | AF23: =AF$2*$F23*Main!$C$4*$E23+Main!$C$5*AF$2*$F23 -> 2048.696599 | AG23: =AG$2*$F23*Main!$C$4*$E23+Main!$C$5*AG$2*$F23 -> 2361.940101 | AH23: =AH$2*$F23*Main!$C$4*$E23+Main!$C$5*AH$2*$F23 -> 2675.446392 | AI23: =AI$2*$F23*Main!$C$4*$E23+Main!$C$5*AI$2*$F23 -> 2988.689895 | AJ23: =AJ$2*$F23*Main!$C$4*$E23+Main!$C$5*AJ$2*$F23 -> 3301.933397 | AK23: =AK$2*$F23*Main!$C$4*$E23+Main!$C$5*AK$2*$F23 -> 1745.701835 | AL23: =AL$2*$F23*Main!$C$4*$E23+Main!$C$5*AL$2*$F23 -> 2155.914174 | AM23: =AM$2*$F23*Main!$C$4*$E23+Main!$C$5*AM$2*$F23 -> 2566.126512 | AN23: =AN$2*$F23*Main!$C$4*$E23+Main!$C$5*AN$2*$F23 -> 2976.076062 | AO23: =AO$2*$F23*Main!$C$4*$E23+Main!$C$5*AO$2*$F23 -> 3386.288401 | AP23: =AP$2*$F23*Main!$C$4*$E23+Main!$C$5*AP$2*$F23 -> 2018.738747 | AQ23: =AQ$2*$F23*Main!$C$4*$E23+Main!$C$5*AQ$2*$F23 -> 2382.437579 | AR23: =AR$2*$F23*Main!$C$4*$E23+Main!$C$5*AR$2*$F23 -> 2746.136411 | AS23: =AS$2*$F23*Main!$C$4*$E23+Main!$C$5*AS$2*$F23 -> 3109.835243 | AT23: =AT$2*$F23*Main!$C$4*$E23+Main!$C$5*AT$2*$F23 -> 3473.534074 | AU23: =AU$2*$F23*Main!$C$4*$E23+Main!$C$5*AU$2*$F23 -> 2166.951277 | AV23: =AV$2*$F23*Main!$C$4*$E23+Main!$C$5*AV$2*$F23 -> 2540.110483 | AW23: =AW$2*$F23*Main!$C$4*$E23+Main!$C$5*AW$2*$F23 -> 2913.269689 | AX23: =AX$2*$F23*Main!$C$4*$E23+Main!$C$5*AX$2*$F23 -> 3286.166107 | AY23: =AY$2*$F23*Main!$C$4*$E23+Main!$C$5*AY$2*$F23 -> 3659.325313 | AZ23: =AZ$2*$F23*Main!$C$4*$E23+Main!$C$5*AZ$2*$F23 -> 3261.464018 | BA23: =BA$2*$F23*Main!$C$4*$E23+Main!$C$5*BA$2*$F23 -> 3711.882947 | BB23: =BB$2*$F23*Main!$C$4*$E23+Main!$C$5*BB$2*$F23 -> 4162.039088 | BC23: =BC$2*$F23*Main!$C$4*$E23+Main!$C$5*BC$2*$F23 -> 3302.458974 | BD23: =BD$2*$F23*Main!$C$4*$E23+Main!$C$5*BD$2*$F23 -> 3780.996237 | BE23: =BE$2*$F23*Main!$C$4*$E23+Main!$C$5*BE$2*$F23 -> 4259.533501 | BF23: =BF$2*$F23*Main!$C$4*$E23+Main!$C$5*BF$2*$F23 -> 3497.710586 | BG23: =BG$2*$F23*Main!$C$4*$E23+Main!$C$5*BG$2*$F23 -> 3965.210747 | BH23: =BH$2*$F23*Main!$C$4*$E23+Main!$C$5*BH$2*$F23 -> 4432.710907 | BI23: =BI$2*$F23*Main!$C$4*$E23+Main!$C$5*BI$2*$F23 -> 3379.19312 | BJ23: =BJ$2*$F23*Main!$C$4*$E23+Main!$C$5*BJ$2*$F23 -> 3881.118531 | BK23: =BK$2*$F23*Main!$C$4*$E23+Main!$C$5*BK$2*$F23 -> 4383.043942 | BL23: =BL$2*$F23*Main!$C$4*$E23+Main!$C$5*BL$2*$F23 -> 3419.925287 | BM23: =BM$2*$F23*Main!$C$4*$E23+Main!$C$5*BM$2*$F23 -> 3950.231821 | BN23: =BN$2*$F23*Main!$C$4*$E23+Main!$C$5*BN$2*$F23 -> 4480.275566 | BO23: =BO$2*$F23*Main!$C$4*$E23+Main!$C$5*BO$2*$F23 -> 3615.1769 | BP23: =BP$2*$F23*Main!$C$4*$E23+Main!$C$5*BP$2*$F23 -> 4134.44633 | BQ23: =BQ$2*$F23*Main!$C$4*$E23+Main!$C$5*BQ$2*$F23 -> 4653.452972 | BR23: =BR$2*$F23*Main!$C$4*$E23+Main!$C$5*BR$2*$F23 -> 3796.237951 | BS23: =BS$2*$F23*Main!$C$4*$E23+Main!$C$5*BS$2*$F23 -> 4371.744051 | BT23: =BT$2*$F23*Main!$C$4*$E23+Main!$C$5*BT$2*$F23 -> 4947.25015 | BU23: =BU$2*$F23*Main!$C$4*$E23+Main!$C$5*BU$2*$F23 -> 3837.232906 | BV23: =BV$2*$F23*Main!$C$4*$E23+Main!$C$5*BV$2*$F23 -> 4440.85734 | BW23: =BW$2*$F23*Main!$C$4*$E23+Main!$C$5*BW$2*$F23 -> 5044.744562 | BX23: =BX$2*$F23*Main!$C$4*$E23+Main!$C$5*BX$2*$F23 -> 4032.484519 | BY23: =BY$2*$F23*Main!$C$4*$E23+Main!$C$5*BY$2*$F23 -> 4625.334638 | BZ23: =BZ$2*$F23*Main!$C$4*$E23+Main!$C$5*BZ$2*$F23 -> 5217.921969 | CA23: =CA$2*$F23*Main!$C$4*$E23+Main!$C$5*CA$2*$F23 -> 3290.896294 | CB23: =CB$2*$F23*Main!$C$4*$E23+Main!$C$5*CB$2*$F23 -> 3731.59206 | CC23: =CC$2*$F23*Main!$C$4*$E23+Main!$C$5*CC$2*$F23 -> 4172.025039 | CD23: =CD$2*$F23*Main!$C$4*$E23+Main!$C$5*CD$2*$F23 -> 3290.896294 | CE23: =CE$2*$F23*Main!$C$4*$E23+Main!$C$5*CE$2*$F23 -> 3773.37538 | CF23: =CF$2*$F23*Main!$C$4*$E23+Main!$C$5*CF$2*$F23 -> 4255.854466 | CG23: =CG$2*$F23*Main!$C$4*$E23+Main!$C$5*CG$2*$F23 -> 3499.024527 | CH23: =CH$2*$F23*Main!$C$4*$E23+Main!$C$5*CH$2*$F23 -> 3966.261899 | CI23: =CI$2*$F23*Main!$C$4*$E23+Main!$C$5*CI$2*$F23 -> 4433.236483 | CJ23: =CJ$2*$F23*Main!$C$4*$E23+Main!$C$5*CJ$2*$F23 -> 3446.992469 | CK23: =CK$2*$F23*Main!$C$4*$E23+Main!$C$5*CK$2*$F23 -> 3926.318097 | CL23: =CL$2*$F23*Main!$C$4*$E23+Main!$C$5*CL$2*$F23 -> 4405.643725 | CM23: =CM$2*$F23*Main!$C$4*$E23+Main!$C$5*CM$2*$F23 -> 3446.992469 | CN23: =CN$2*$F23*Main!$C$4*$E23+Main!$C$5*CN$2*$F23 -> 3968.101416 | CO23: =CO$2*$F23*Main!$C$4*$E23+Main!$C$5*CO$2*$F23 -> 4489.210364 | CP23: =CP$2*$F23*Main!$C$4*$E23+Main!$C$5*CP$2*$F23 -> 3655.120702 | CQ23: =CQ$2*$F23*Main!$C$4*$E23+Main!$C$5*CQ$2*$F23 -> 4160.987936 | CR23: =CR$2*$F23*Main!$C$4*$E23+Main!$C$5*CR$2*$F23 -> 4666.855169 | CS23: =CS$2*$F23*Main!$C$4*$E23+Main!$C$5*CS$2*$F23 -> 3995.168598 | CT23: =CT$2*$F23*Main!$C$4*$E23+Main!$C$5*CT$2*$F23 -> 4504.452078 | CU23: =CU$2*$F23*Main!$C$4*$E23+Main!$C$5*CU$2*$F23 -> 5013.735558 | CV23: =CV$2*$F23*Main!$C$4*$E23+Main!$C$5*CV$2*$F23 -> 3995.168598 | CW23: =CW$2*$F23*Main!$C$4*$E23+Main!$C$5*CW$2*$F23 -> 4546.235398 | CX23: =CX$2*$F23*Main!$C$4*$E23+Main!$C$5*CX$2*$F23 -> 5097.564985 | CY23: =CY$2*$F23*Main!$C$4*$E23+Main!$C$5*CY$2*$F23 -> 4203.296832 | CZ23: =CZ$2*$F23*Main!$C$4*$E23+Main!$C$5*CZ$2*$F23 -> 4739.121917 | DA23: =DA$2*$F23*Main!$C$4*$E23+Main!$C$5*DA$2*$F23 -> 5274.947002 | DB23: =DB$2*$F23*Main!$C$4*$E23+Main!$C$5*DB$2*$F23 -> 1257.441409 | DC23: =DC$2*$F23*Main!$C$4*$E23+Main!$C$5*DC$2*$F23 -> 1664.237501 | DD23: =DD$2*$F23*Main!$C$4*$E23+Main!$C$5*DD$2*$F23 -> 2070.770805 | DE23: =DE$2*$F23*Main!$C$4*$E23+Main!$C$5*DE$2*$F23 -> 2477.566898 | DF23: =DF$2*$F23*Main!$C$4*$E23+Main!$C$5*DF$2*$F23 -> 2884.36299 | DG23: =DG$2*$F23*Main!$C$4*$E23+Main!$C$5*DG$2*$F23 -> 1465.832431 | DH23: =DH$2*$F23*Main!$C$4*$E23+Main!$C$5*DH$2*$F23 -> 1830.845203 | DI23: =DI$2*$F23*Main!$C$4*$E23+Main!$C$5*DI$2*$F23 -> 2195.857976 | DJ23: =DJ$2*$F23*Main!$C$4*$E23+Main!$C$5*DJ$2*$F23 -> 2560.870749 | DK23: =DK$2*$F23*Main!$C$4*$E23+Main!$C$5*DK$2*$F23 -> 2925.883521 | DL23: =DL$2*$F23*Main!$C$4*$E23+Main!$C$5*DL$2*$F23 -> 1586.977778 | DM23: =DM$2*$F23*Main!$C$4*$E23+Main!$C$5*DM$2*$F23 -> 1969.334571 | DN23: =DN$2*$F23*Main!$C$4*$E23+Main!$C$5*DN$2*$F23 -> 2351.691363 | DO23: =DO$2*$F23*Main!$C$4*$E23+Main!$C$5*DO$2*$F23 -> 2734.310943 | DP23: =DP$2*$F23*Main!$C$4*$E23+Main!$C$5*DP$2*$F23 -> 3116.667735 | DQ23: =DQ$2*$F23*Main!$C$4*$E23+Main!$C$5*DQ$2*$F23 -> 1302.115399 | DR23: =DR$2*$F23*Main!$C$4*$E23+Main!$C$5*DR$2*$F23 -> 1730.985697 | DS23: =DS$2*$F23*Main!$C$4*$E23+Main!$C$5*DS$2*$F23 -> 2160.118784 | DT23: =DT$2*$F23*Main!$C$4*$E23+Main!$C$5*DT$2*$F23 -> 2588.989083 | DU23: =DU$2*$F23*Main!$C$4*$E23+Main!$C$5*DU$2*$F23 -> 3018.12217 | DV23: =DV$2*$F23*Main!$C$4*$E23+Main!$C$5*DV$2*$F23 -> 1510.50642 | DW23: =DW$2*$F23*Main!$C$4*$E23+Main!$C$5*DW$2*$F23 -> 1897.856187 | DX23: =DX$2*$F23*Main!$C$4*$E23+Main!$C$5*DX$2*$F23 -> 2284.943167 | DY23: =DY$2*$F23*Main!$C$4*$E23+Main!$C$5*DY$2*$F23 -> 2672.292934 | DZ23: =DZ$2*$F23*Main!$C$4*$E23+Main!$C$5*DZ$2*$F23 -> 3059.642701 | EA23: =EA$2*$F23*Main!$C$4*$E23+Main!$C$5*EA$2*$F23 -> 1631.38898 | EB23: =EB$2*$F23*Main!$C$4*$E23+Main!$C$5*EB$2*$F23 -> 2036.082767 | EC23: =EC$2*$F23*Main!$C$4*$E23+Main!$C$5*EC$2*$F23 -> 2440.776553 | ED23: =ED$2*$F23*Main!$C$4*$E23+Main!$C$5*ED$2*$F23 -> 2845.733128 | EE23: =EE$2*$F23*Main!$C$4*$E23+Main!$C$5*EE$2*$F23 -> 3250.426915 | EF23: =EF$2*$F23*Main!$C$4*$E23+Main!$C$5*EF$2*$F23 -> 1613.519384 | EG23: =EG$2*$F23*Main!$C$4*$E23+Main!$C$5*EG$2*$F23 -> 2089.954342 | EH23: =EH$2*$F23*Main!$C$4*$E23+Main!$C$5*EH$2*$F23 -> 2566.126512 | EI23: =EI$2*$F23*Main!$C$4*$E23+Main!$C$5*EI$2*$F23 -> 3042.56147 | EJ23: =EJ$2*$F23*Main!$C$4*$E23+Main!$C$5*EJ$2*$F23 -> 3518.996428 | EK23: =EK$2*$F23*Main!$C$4*$E23+Main!$C$5*EK$2*$F23 -> 1821.910405 | EL23: =EL$2*$F23*Main!$C$4*$E23+Main!$C$5*EL$2*$F23 -> 2256.562044 | EM23: =EM$2*$F23*Main!$C$4*$E23+Main!$C$5*EM$2*$F23 -> 2691.213682 | EN23: =EN$2*$F23*Main!$C$4*$E23+Main!$C$5*EN$2*$F23 -> 3125.865321 | EO23: =EO$2*$F23*Main!$C$4*$E23+Main!$C$5*EO$2*$F23 -> 3560.51696 | EP23: =EP$2*$F23*Main!$C$4*$E23+Main!$C$5*EP$2*$F23 -> 1942.792965 | EQ23: =EQ$2*$F23*Main!$C$4*$E23+Main!$C$5*EQ$2*$F23 -> 2395.051411 | ER23: =ER$2*$F23*Main!$C$4*$E23+Main!$C$5*ER$2*$F23 -> 2847.047069 | ES23: =ES$2*$F23*Main!$C$4*$E23+Main!$C$5*ES$2*$F23 -> 3299.042727 | ET23: =ET$2*$F23*Main!$C$4*$E23+Main!$C$5*ET$2*$F23 -> 3751.301173 | EU23: =EU$2*$F23*Main!$C$4*$E23+Main!$C$5*EU$2*$F23 -> 4612.458017 | EV23: =EV$2*$F23*Main!$C$4*$E23+Main!$C$5*EV$2*$F23 -> 4738.070764 | EW23: =EW$2*$F23*Main!$C$4*$E23+Main!$C$5*EW$2*$F23 -> 4900.473855 | EX23: =EX$2*$F23*Main!$C$4*$E23+Main!$C$5*EX$2*$F23 -> 4884.706565 | EY23: =EY$2*$F23*Main!$C$4*$E23+Main!$C$5*EY$2*$F23 -> 5010.5821 | EZ23: =EZ$2*$F23*Main!$C$4*$E23+Main!$C$5*EZ$2*$F23 -> 5172.722403 | FA23: =FA$2*$F23*Main!$C$4*$E23+Main!$C$5*FA$2*$F23 -> 5522.75625 | FB23: =FB$2*$F23*Main!$C$4*$E23+Main!$C$5*FB$2*$F23 -> 5648.631785 | FC23: =FC$2*$F23*Main!$C$4*$E23+Main!$C$5*FC$2*$F23 -> 5810.772087 | FD23: =IF($D23<100,(FD$2*(1+Main!$C$3)*$E23*Main!$C$4)+(FD$2*(1+Main!$C$3)*Main!$C$5),(FD$2*$E23*Main!$C$4)+(FD$2*Main!$C$5)) -> 124.6630384 | FE23: =IF($D23<100,(FE$2*(1+Main!$C$3)*$E23*Main!$C$4)+(FE$2*(1+Main!$C$3)*Main!$C$5),(FE$2*$E23*Main!$C$4)+(FE$2*Main!$C$5)) -> 136.2732946 | FF23: =IF($D23<100,(FF$2*(1+Main!$C$3)*$E23*Main!$C$4)+(FF$2*(1+Main!$C$3)*Main!$C$5),(FF$2*$E23*Main!$C$4)+(FF$2*Main!$C$5)) -> 137.2049276 | FG23: =IF($D23<100,(FG$2*(1+Main!$C$3)*$E23*Main!$C$4)+(FG$2*(1+Main!$C$3)*Main!$C$5),(FG$2*$E23*Main!$C$4)+(FG$2*Main!$C$5)) -> 148.1120645 | FH23: =IF($D23<100,(FH$2*(1+Main!$C$3)*$E23*Main!$C$4)+(FH$2*(1+Main!$C$3)*Main!$C$5),(FH$2*$E23*Main!$C$4)+(FH$2*Main!$C$5)) -> 199.8264835 | FI23: =IF($D23<100,(FI$2*(1+Main!$C$3)*$E23*Main!$C$4)+(FI$2*(1+Main!$C$3)*Main!$C$5),(FI$2*$E23*Main!$C$4)+(FI$2*Main!$C$5)) -> 56.4516847
A24: AR | B24: 22900 | C24: (Crawford County, Fort Smith, Sebastian County) | D24: 22900 | E24: 0.7339 | F24: =IF($D24<100,Main!$C$2*(1+Main!$C$3),Main!$C$2) -> 2989.97 | G24: =G$2*$F24*Main!$C$4*$E24+Main!$C$5*G$2*$F24 -> 1385.251476 | H24: =H$2*$F24*Main!$C$4*$E24+Main!$C$5*H$2*$F24 -> 1695.318862 | I24: =I$2*$F24*Main!$C$4*$E24+Main!$C$5*I$2*$F24 -> 2005.386249 | J24: =J$2*$F24*Main!$C$4*$E24+Main!$C$5*J$2*$F24 -> 2315.453636 | K24: =K$2*$F24*Main!$C$4*$E24+Main!$C$5*K$2*$F24 -> 2625.284511 | L24: =L$2*$F24*Main!$C$4*$E24+Main!$C$5*L$2*$F24 -> 1630.987566 | M24: =M$2*$F24*Main!$C$4*$E24+Main!$C$5*M$2*$F24 -> 1899.192308 | N24: =N$2*$F24*Main!$C$4*$E24+Main!$C$5*N$2*$F24 -> 2167.39705 | O24: =O$2*$F24*Main!$C$4*$E24+Main!$C$5*O$2*$F24 -> 2435.601792 | P24: =P$2*$F24*Main!$C$4*$E24+Main!$C$5*P$2*$F24 -> 2704.043046 | Q24: =Q$2*$F24*Main!$C$4*$E24+Main!$C$5*Q$2*$F24 -> 1764.380401 | R24: =R$2*$F24*Main!$C$4*$E24+Main!$C$5*R$2*$F24 -> 2041.099579 | S24: =S$2*$F24*Main!$C$4*$E24+Main!$C$5*S$2*$F24 -> 2317.818757 | T24: =T$2*$F24*Main!$C$4*$E24+Main!$C$5*T$2*$F24 -> 2594.537935 | U24: =U$2*$F24*Main!$C$4*$E24+Main!$C$5*U$2*$F24 -> 2871.257113 | V24: =V$2*$F24*Main!$C$4*$E24+Main!$C$5*V$2*$F24 -> 1464.719547 | W24: =W$2*$F24*Main!$C$4*$E24+Main!$C$5*W$2*$F24 -> 1779.990201 | X24: =X$2*$F24*Main!$C$4*$E24+Main!$C$5*X$2*$F24 -> 2095.497366 | Y24: =Y$2*$F24*Main!$C$4*$E24+Main!$C$5*Y$2*$F24 -> 2410.76802 | Z24: =Z$2*$F24*Main!$C$4*$E24+Main!$C$5*Z$2*$F24 -> 2726.038673 | AA24: =AA$2*$F24*Main!$C$4*$E24+Main!$C$5*AA$2*$F24 -> 1710.455638 | AB24: =AB$2*$F24*Main!$C$4*$E24+Main!$C$5*AB$2*$F24 -> 1984.100159 | AC24: =AC$2*$F24*Main!$C$4*$E24+Main!$C$5*AC$2*$F24 -> 2257.508167 | AD24: =AD$2*$F24*Main!$C$4*$E24+Main!$C$5*AD$2*$F24 -> 2531.152688 | AE24: =AE$2*$F24*Main!$C$4*$E24+Main!$C$5*AE$2*$F24 -> 2804.560696 | AF24: =AF$2*$F24*Main!$C$4*$E24+Main!$C$5*AF$2*$F24 -> 1843.848473 | AG24: =AG$2*$F24*Main!$C$4*$E24+Main!$C$5*AG$2*$F24 -> 2125.770917 | AH24: =AH$2*$F24*Main!$C$4*$E24+Main!$C$5*AH$2*$F24 -> 2407.929874 | AI24: =AI$2*$F24*Main!$C$4*$E24+Main!$C$5*AI$2*$F24 -> 2689.852319 | AJ24: =AJ$2*$F24*Main!$C$4*$E24+Main!$C$5*AJ$2*$F24 -> 2971.774764 | AK24: =AK$2*$F24*Main!$C$4*$E24+Main!$C$5*AK$2*$F24 -> 1571.15 | AL24: =AL$2*$F24*Main!$C$4*$E24+Main!$C$5*AL$2*$F24 -> 1940.345417 | AM24: =AM$2*$F24*Main!$C$4*$E24+Main!$C$5*AM$2*$F24 -> 2309.540833 | AN24: =AN$2*$F24*Main!$C$4*$E24+Main!$C$5*AN$2*$F24 -> 2678.499737 | AO24: =AO$2*$F24*Main!$C$4*$E24+Main!$C$5*AO$2*$F24 -> 3047.695154 | AP24: =AP$2*$F24*Main!$C$4*$E24+Main!$C$5*AP$2*$F24 -> 1816.886091 | AQ24: =AQ$2*$F24*Main!$C$4*$E24+Main!$C$5*AQ$2*$F24 -> 2144.218863 | AR24: =AR$2*$F24*Main!$C$4*$E24+Main!$C$5*AR$2*$F24 -> 2471.551634 | AS24: =AS$2*$F24*Main!$C$4*$E24+Main!$C$5*AS$2*$F24 -> 2798.884405 | AT24: =AT$2*$F24*Main!$C$4*$E24+Main!$C$5*AT$2*$F24 -> 3126.217177 | AU24: =AU$2*$F24*Main!$C$4*$E24+Main!$C$5*AU$2*$F24 -> 1950.278926 | AV24: =AV$2*$F24*Main!$C$4*$E24+Main!$C$5*AV$2*$F24 -> 2286.126133 | AW24: =AW$2*$F24*Main!$C$4*$E24+Main!$C$5*AW$2*$F24 -> 2621.973341 | AX24: =AX$2*$F24*Main!$C$4*$E24+Main!$C$5*AX$2*$F24 -> 2957.584037 | AY24: =AY$2*$F24*Main!$C$4*$E24+Main!$C$5*AY$2*$F24 -> 3293.431244 | AZ24: =AZ$2*$F24*Main!$C$4*$E24+Main!$C$5*AZ$2*$F24 -> 2935.351897 | BA24: =BA$2*$F24*Main!$C$4*$E24+Main!$C$5*BA$2*$F24 -> 3340.733668 | BB24: =BB$2*$F24*Main!$C$4*$E24+Main!$C$5*BB$2*$F24 -> 3745.878926 | BC24: =BC$2*$F24*Main!$C$4*$E24+Main!$C$5*BC$2*$F24 -> 2972.247788 | BD24: =BD$2*$F24*Main!$C$4*$E24+Main!$C$5*BD$2*$F24 -> 3402.936355 | BE24: =BE$2*$F24*Main!$C$4*$E24+Main!$C$5*BE$2*$F24 -> 3833.624922 | BF24: =BF$2*$F24*Main!$C$4*$E24+Main!$C$5*BF$2*$F24 -> 3147.976292 | BG24: =BG$2*$F24*Main!$C$4*$E24+Main!$C$5*BG$2*$F24 -> 3568.73135 | BH24: =BH$2*$F24*Main!$C$4*$E24+Main!$C$5*BH$2*$F24 -> 3989.486408 | BI24: =BI$2*$F24*Main!$C$4*$E24+Main!$C$5*BI$2*$F24 -> 3041.309326 | BJ24: =BJ$2*$F24*Main!$C$4*$E24+Main!$C$5*BJ$2*$F24 -> 3493.047472 | BK24: =BK$2*$F24*Main!$C$4*$E24+Main!$C$5*BK$2*$F24 -> 3944.785617 | BL24: =BL$2*$F24*Main!$C$4*$E24+Main!$C$5*BL$2*$F24 -> 3077.968705 | BM24: =BM$2*$F24*Main!$C$4*$E24+Main!$C$5*BM$2*$F24 -> 3555.250159 | BN24: =BN$2*$F24*Main!$C$4*$E24+Main!$C$5*BN$2*$F24 -> 4032.295101 | BO24: =BO$2*$F24*Main!$C$4*$E24+Main!$C$5*BO$2*$F24 -> 3253.697208 | BP24: =BP$2*$F24*Main!$C$4*$E24+Main!$C$5*BP$2*$F24 -> 3721.045154 | BQ24: =BQ$2*$F24*Main!$C$4*$E24+Main!$C$5*BQ$2*$F24 -> 4188.156587 | BR24: =BR$2*$F24*Main!$C$4*$E24+Main!$C$5*BR$2*$F24 -> 3416.654058 | BS24: =BS$2*$F24*Main!$C$4*$E24+Main!$C$5*BS$2*$F24 -> 3934.615596 | BT24: =BT$2*$F24*Main!$C$4*$E24+Main!$C$5*BT$2*$F24 -> 4452.577135 | BU24: =BU$2*$F24*Main!$C$4*$E24+Main!$C$5*BU$2*$F24 -> 3453.549948 | BV24: =BV$2*$F24*Main!$C$4*$E24+Main!$C$5*BV$2*$F24 -> 3996.818283 | BW24: =BW$2*$F24*Main!$C$4*$E24+Main!$C$5*BW$2*$F24 -> 4540.323131 | BX24: =BX$2*$F24*Main!$C$4*$E24+Main!$C$5*BX$2*$F24 -> 3629.278452 | BY24: =BY$2*$F24*Main!$C$4*$E24+Main!$C$5*BY$2*$F24 -> 4162.84979 | BZ24: =BZ$2*$F24*Main!$C$4*$E24+Main!$C$5*BZ$2*$F24 -> 4696.184617 | CA24: =CA$2*$F24*Main!$C$4*$E24+Main!$C$5*CA$2*$F24 -> 2961.841255 | CB24: =CB$2*$F24*Main!$C$4*$E24+Main!$C$5*CB$2*$F24 -> 3358.472077 | CC24: =CC$2*$F24*Main!$C$4*$E24+Main!$C$5*CC$2*$F24 -> 3754.866387 | CD24: =CD$2*$F24*Main!$C$4*$E24+Main!$C$5*CD$2*$F24 -> 2961.841255 | CE24: =CE$2*$F24*Main!$C$4*$E24+Main!$C$5*CE$2*$F24 -> 3396.077504 | CF24: =CF$2*$F24*Main!$C$4*$E24+Main!$C$5*CF$2*$F24 -> 3830.313752 | CG24: =CG$2*$F24*Main!$C$4*$E24+Main!$C$5*CG$2*$F24 -> 3149.158852 | CH24: =CH$2*$F24*Main!$C$4*$E24+Main!$C$5*CH$2*$F24 -> 3569.677398 | CI24: =CI$2*$F24*Main!$C$4*$E24+Main!$C$5*CI$2*$F24 -> 3989.959432 | CJ24: =CJ$2*$F24*Main!$C$4*$E24+Main!$C$5*CJ$2*$F24 -> 3102.329453 | CK24: =CK$2*$F24*Main!$C$4*$E24+Main!$C$5*CK$2*$F24 -> 3533.727556 | CL24: =CL$2*$F24*Main!$C$4*$E24+Main!$C$5*CL$2*$F24 -> 3965.12566 | CM24: =CM$2*$F24*Main!$C$4*$E24+Main!$C$5*CM$2*$F24 -> 3102.329453 | CN24: =CN$2*$F24*Main!$C$4*$E24+Main!$C$5*CN$2*$F24 -> 3571.332983 | CO24: =CO$2*$F24*Main!$C$4*$E24+Main!$C$5*CO$2*$F24 -> 4040.336513 | CP24: =CP$2*$F24*Main!$C$4*$E24+Main!$C$5*CP$2*$F24 -> 3289.64705 | CQ24: =CQ$2*$F24*Main!$C$4*$E24+Main!$C$5*CQ$2*$F24 -> 3744.932878 | CR24: =CR$2*$F24*Main!$C$4*$E24+Main!$C$5*CR$2*$F24 -> 4200.218705 | CS24: =CS$2*$F24*Main!$C$4*$E24+Main!$C$5*CS$2*$F24 -> 3595.693731 | CT24: =CT$2*$F24*Main!$C$4*$E24+Main!$C$5*CT$2*$F24 -> 4054.054216 | CU24: =CU$2*$F24*Main!$C$4*$E24+Main!$C$5*CU$2*$F24 -> 4512.414701 | CV24: =CV$2*$F24*Main!$C$4*$E24+Main!$C$5*CV$2*$F24 -> 3595.693731 | CW24: =CW$2*$F24*Main!$C$4*$E24+Main!$C$5*CW$2*$F24 -> 4091.659643 | CX24: =CX$2*$F24*Main!$C$4*$E24+Main!$C$5*CX$2*$F24 -> 4587.862067 | CY24: =CY$2*$F24*Main!$C$4*$E24+Main!$C$5*CY$2*$F24 -> 3783.011329 | CZ24: =CZ$2*$F24*Main!$C$4*$E24+Main!$C$5*CZ$2*$F24 -> 4265.259537 | DA24: =DA$2*$F24*Main!$C$4*$E24+Main!$C$5*DA$2*$F24 -> 4747.507746 | DB24: =DB$2*$F24*Main!$C$4*$E24+Main!$C$5*DB$2*$F24 -> 1131.710485 | DC24: =DC$2*$F24*Main!$C$4*$E24+Main!$C$5*DC$2*$F24 -> 1497.831244 | DD24: =DD$2*$F24*Main!$C$4*$E24+Main!$C$5*DD$2*$F24 -> 1863.71549 | DE24: =DE$2*$F24*Main!$C$4*$E24+Main!$C$5*DE$2*$F24 -> 2229.836249 | DF24: =DF$2*$F24*Main!$C$4*$E24+Main!$C$5*DF$2*$F24 -> 2595.957008 | DG24: =DG$2*$F24*Main!$C$4*$E24+Main!$C$5*DG$2*$F24 -> 1319.264595 | DH24: =DH$2*$F24*Main!$C$4*$E24+Main!$C$5*DH$2*$F24 -> 1647.779927 | DI24: =DI$2*$F24*Main!$C$4*$E24+Main!$C$5*DI$2*$F24 -> 1976.295259 | DJ24: =DJ$2*$F24*Main!$C$4*$E24+Main!$C$5*DJ$2*$F24 -> 2304.810591 | DK24: =DK$2*$F24*Main!$C$4*$E24+Main!$C$5*DK$2*$F24 -> 2633.325923 | DL24: =DL$2*$F24*Main!$C$4*$E24+Main!$C$5*DL$2*$F24 -> 1428.296681 | DM24: =DM$2*$F24*Main!$C$4*$E24+Main!$C$5*DM$2*$F24 -> 1772.421813 | DN24: =DN$2*$F24*Main!$C$4*$E24+Main!$C$5*DN$2*$F24 -> 2116.546945 | DO24: =DO$2*$F24*Main!$C$4*$E24+Main!$C$5*DO$2*$F24 -> 2460.908589 | DP24: =DP$2*$F24*Main!$C$4*$E24+Main!$C$5*DP$2*$F24 -> 2805.03372 | DQ24: =DQ$2*$F24*Main!$C$4*$E24+Main!$C$5*DQ$2*$F24 -> 1171.917545 | DR24: =DR$2*$F24*Main!$C$4*$E24+Main!$C$5*DR$2*$F24 -> 1557.905322 | DS24: =DS$2*$F24*Main!$C$4*$E24+Main!$C$5*DS$2*$F24 -> 1944.129611 | DT24: =DT$2*$F24*Main!$C$4*$E24+Main!$C$5*DT$2*$F24 -> 2330.117387 | DU24: =DU$2*$F24*Main!$C$4*$E24+Main!$C$5*DU$2*$F24 -> 2716.341676 | DV24: =DV$2*$F24*Main!$C$4*$E24+Main!$C$5*DV$2*$F24 -> 1359.471655 | DW24: =DW$2*$F24*Main!$C$4*$E24+Main!$C$5*DW$2*$F24 -> 1708.090517 | DX24: =DX$2*$F24*Main!$C$4*$E24+Main!$C$5*DX$2*$F24 -> 2056.472867 | DY24: =DY$2*$F24*Main!$C$4*$E24+Main!$C$5*DY$2*$F24 -> 2405.091729 | DZ24: =DZ$2*$F24*Main!$C$4*$E24+Main!$C$5*DZ$2*$F24 -> 2753.710591 | EA24: =EA$2*$F24*Main!$C$4*$E24+Main!$C$5*EA$2*$F24 -> 1468.267229 | EB24: =EB$2*$F24*Main!$C$4*$E24+Main!$C$5*EB$2*$F24 -> 1832.495891 | EC24: =EC$2*$F24*Main!$C$4*$E24+Main!$C$5*EC$2*$F24 -> 2196.724553 | ED24: =ED$2*$F24*Main!$C$4*$E24+Main!$C$5*ED$2*$F24 -> 2561.189727 | EE24: =EE$2*$F24*Main!$C$4*$E24+Main!$C$5*EE$2*$F24 -> 2925.418389 | EF24: =EF$2*$F24*Main!$C$4*$E24+Main!$C$5*EF$2*$F24 -> 1452.184405 | EG24: =EG$2*$F24*Main!$C$4*$E24+Main!$C$5*EG$2*$F24 -> 1880.980875 | EH24: =EH$2*$F24*Main!$C$4*$E24+Main!$C$5*EH$2*$F24 -> 2309.540833 | EI24: =EI$2*$F24*Main!$C$4*$E24+Main!$C$5*EI$2*$F24 -> 2738.337303 | EJ24: =EJ$2*$F24*Main!$C$4*$E24+Main!$C$5*EJ$2*$F24 -> 3167.133773 | EK24: =EK$2*$F24*Main!$C$4*$E24+Main!$C$5*EK$2*$F24 -> 1639.738515 | EL24: =EL$2*$F24*Main!$C$4*$E24+Main!$C$5*EL$2*$F24 -> 2030.929558 | EM24: =EM$2*$F24*Main!$C$4*$E24+Main!$C$5*EM$2*$F24 -> 2422.120601 | EN24: =EN$2*$F24*Main!$C$4*$E24+Main!$C$5*EN$2*$F24 -> 2813.311645 | EO24: =EO$2*$F24*Main!$C$4*$E24+Main!$C$5*EO$2*$F24 -> 3204.502688 | EP24: =EP$2*$F24*Main!$C$4*$E24+Main!$C$5*EP$2*$F24 -> 1748.534089 | EQ24: =EQ$2*$F24*Main!$C$4*$E24+Main!$C$5*EQ$2*$F24 -> 2155.571444 | ER24: =ER$2*$F24*Main!$C$4*$E24+Main!$C$5*ER$2*$F24 -> 2562.372287 | ES24: =ES$2*$F24*Main!$C$4*$E24+Main!$C$5*ES$2*$F24 -> 2969.17313 | ET24: =ET$2*$F24*Main!$C$4*$E24+Main!$C$5*ET$2*$F24 -> 3376.210486 | EU24: =EU$2*$F24*Main!$C$4*$E24+Main!$C$5*EU$2*$F24 -> 4151.260697 | EV24: =EV$2*$F24*Main!$C$4*$E24+Main!$C$5*EV$2*$F24 -> 4264.313489 | EW24: =EW$2*$F24*Main!$C$4*$E24+Main!$C$5*EW$2*$F24 -> 4410.477978 | EX24: =EX$2*$F24*Main!$C$4*$E24+Main!$C$5*EX$2*$F24 -> 4396.287251 | EY24: =EY$2*$F24*Main!$C$4*$E24+Main!$C$5*EY$2*$F24 -> 4509.576555 | EZ24: =EZ$2*$F24*Main!$C$4*$E24+Main!$C$5*EZ$2*$F24 -> 4655.504532 | FA24: =FA$2*$F24*Main!$C$4*$E24+Main!$C$5*FA$2*$F24 -> 4970.538674 | FB24: =FB$2*$F24*Main!$C$4*$E24+Main!$C$5*FB$2*$F24 -> 5083.827978 | FC24: =FC$2*$F24*Main!$C$4*$E24+Main!$C$5*FC$2*$F24 -> 5229.755955 | FD24: =IF($D24<100,(FD$2*(1+Main!$C$3)*$E24*Main!$C$4)+(FD$2*(1+Main!$C$3)*Main!$C$5),(FD$2*$E24*Main!$C$4)+(FD$2*Main!$C$5)) -> 112.1980449 | FE24: =IF($D24<100,(FE$2*(1+Main!$C$3)*$E24*Main!$C$4)+(FE$2*(1+Main!$C$3)*Main!$C$5),(FE$2*$E24*Main!$C$4)+(FE$2*Main!$C$5)) -> 122.6473975 | FF24: =IF($D24<100,(FF$2*(1+Main!$C$3)*$E24*Main!$C$4)+(FF$2*(1+Main!$C$3)*Main!$C$5),(FF$2*$E24*Main!$C$4)+(FF$2*Main!$C$5)) -> 123.485877 | FG24: =IF($D24<100,(FG$2*(1+Main!$C$3)*$E24*Main!$C$4)+(FG$2*(1+Main!$C$3)*Main!$C$5),(FG$2*$E24*Main!$C$4)+(FG$2*Main!$C$5)) -> 133.3024149 | FH24: =IF($D24<100,(FH$2*(1+Main!$C$3)*$E24*Main!$C$4)+(FH$2*(1+Main!$C$3)*Main!$C$5),(FH$2*$E24*Main!$C$4)+(FH$2*Main!$C$5)) -> 179.8459355 | FI24: =IF($D24<100,(FI$2*(1+Main!$C$3)*$E24*Main!$C$4)+(FI$2*(1+Main!$C$3)*Main!$C$5),(FI$2*$E24*Main!$C$4)+(FI$2*Main!$C$5)) -> 50.80710958
A25: AR | B25: 26300 | C25: (Garland County, Hot Springs) | D25: 26300 | E25: 0.8461 | F25: =IF($D25<100,Main!$C$2*(1+Main!$C$3),Main!$C$2) -> 2989.97 | G25: =G$2*$F25*Main!$C$4*$E25+Main!$C$5*G$2*$F25 -> 1539.562928 | H25: =H$2*$F25*Main!$C$4*$E25+Main!$C$5*H$2*$F25 -> 1884.170577 | I25: =I$2*$F25*Main!$C$4*$E25+Main!$C$5*I$2*$F25 -> 2228.778226 | J25: =J$2*$F25*Main!$C$4*$E25+Main!$C$5*J$2*$F25 -> 2573.385875 | K25: =K$2*$F25*Main!$C$4*$E25+Main!$C$5*K$2*$F25 -> 2917.730665 | L25: =L$2*$F25*Main!$C$4*$E25+Main!$C$5*L$2*$F25 -> 1812.673033 | M25: =M$2*$F25*Main!$C$4*$E25+Main!$C$5*M$2*$F25 -> 2110.754706 | N25: =N$2*$F25*Main!$C$4*$E25+Main!$C$5*N$2*$F25 -> 2408.83638 | O25: =O$2*$F25*Main!$C$4*$E25+Main!$C$5*O$2*$F25 -> 2706.918053 | P25: =P$2*$F25*Main!$C$4*$E25+Main!$C$5*P$2*$F25 -> 3005.262585 | Q25: =Q$2*$F25*Main!$C$4*$E25+Main!$C$5*Q$2*$F25 -> 1960.925294 | R25: =R$2*$F25*Main!$C$4*$E25+Main!$C$5*R$2*$F25 -> 2268.469877 | S25: =S$2*$F25*Main!$C$4*$E25+Main!$C$5*S$2*$F25 -> 2576.014461 | T25: =T$2*$F25*Main!$C$4*$E25+Main!$C$5*T$2*$F25 -> 2883.559045 | U25: =U$2*$F25*Main!$C$4*$E25+Main!$C$5*U$2*$F25 -> 3191.103628 | V25: =V$2*$F25*Main!$C$4*$E25+Main!$C$5*V$2*$F25 -> 1627.883424 | W25: =W$2*$F25*Main!$C$4*$E25+Main!$C$5*W$2*$F25 -> 1978.273963 | X25: =X$2*$F25*Main!$C$4*$E25+Main!$C$5*X$2*$F25 -> 2328.92736 | Y25: =Y$2*$F25*Main!$C$4*$E25+Main!$C$5*Y$2*$F25 -> 2679.317898 | Z25: =Z$2*$F25*Main!$C$4*$E25+Main!$C$5*Z$2*$F25 -> 3029.708436 | AA25: =AA$2*$F25*Main!$C$4*$E25+Main!$C$5*AA$2*$F25 -> 1900.993529 | AB25: =AB$2*$F25*Main!$C$4*$E25+Main!$C$5*AB$2*$F25 -> 2205.12095 | AC25: =AC$2*$F25*Main!$C$4*$E25+Main!$C$5*AC$2*$F25 -> 2508.985513 | AD25: =AD$2*$F25*Main!$C$4*$E25+Main!$C$5*AD$2*$F25 -> 2813.112935 | AE25: =AE$2*$F25*Main!$C$4*$E25+Main!$C$5*AE$2*$F25 -> 3116.977498 | AF25: =AF$2*$F25*Main!$C$4*$E25+Main!$C$5*AF$2*$F25 -> 2049.24579 | AG25: =AG$2*$F25*Main!$C$4*$E25+Main!$C$5*AG$2*$F25 -> 2362.573263 | AH25: =AH$2*$F25*Main!$C$4*$E25+Main!$C$5*AH$2*$F25 -> 2676.163595 | AI25: =AI$2*$F25*Main!$C$4*$E25+Main!$C$5*AI$2*$F25 -> 2989.491068 | AJ25: =AJ$2*$F25*Main!$C$4*$E25+Main!$C$5*AJ$2*$F25 -> 3302.818541 | AK25: =AK$2*$F25*Main!$C$4*$E25+Main!$C$5*AK$2*$F25 -> 1746.169802 | AL25: =AL$2*$F25*Main!$C$4*$E25+Main!$C$5*AL$2*$F25 -> 2156.492106 | AM25: =AM$2*$F25*Main!$C$4*$E25+Main!$C$5*AM$2*$F25 -> 2566.814409 | AN25: =AN$2*$F25*Main!$C$4*$E25+Main!$C$5*AN$2*$F25 -> 2976.873854 | AO25: =AO$2*$F25*Main!$C$4*$E25+Main!$C$5*AO$2*$F25 -> 3387.196157 | AP25: =AP$2*$F25*Main!$C$4*$E25+Main!$C$5*AP$2*$F25 -> 2019.279907 | AQ25: =AQ$2*$F25*Main!$C$4*$E25+Main!$C$5*AQ$2*$F25 -> 2383.076235 | AR25: =AR$2*$F25*Main!$C$4*$E25+Main!$C$5*AR$2*$F25 -> 2746.872563 | AS25: =AS$2*$F25*Main!$C$4*$E25+Main!$C$5*AS$2*$F25 -> 3110.668891 | AT25: =AT$2*$F25*Main!$C$4*$E25+Main!$C$5*AT$2*$F25 -> 3474.465219 | AU25: =AU$2*$F25*Main!$C$4*$E25+Main!$C$5*AU$2*$F25 -> 2167.532168 | AV25: =AV$2*$F25*Main!$C$4*$E25+Main!$C$5*AV$2*$F25 -> 2540.791406 | AW25: =AW$2*$F25*Main!$C$4*$E25+Main!$C$5*AW$2*$F25 -> 2914.050644 | AX25: =AX$2*$F25*Main!$C$4*$E25+Main!$C$5*AX$2*$F25 -> 3287.047024 | AY25: =AY$2*$F25*Main!$C$4*$E25+Main!$C$5*AY$2*$F25 -> 3660.306262 | AZ25: =AZ$2*$F25*Main!$C$4*$E25+Main!$C$5*AZ$2*$F25 -> 3262.338314 | BA25: =BA$2*$F25*Main!$C$4*$E25+Main!$C$5*BA$2*$F25 -> 3712.877986 | BB25: =BB$2*$F25*Main!$C$4*$E25+Main!$C$5*BB$2*$F25 -> 4163.154799 | BC25: =BC$2*$F25*Main!$C$4*$E25+Main!$C$5*BC$2*$F25 -> 3303.344258 | BD25: =BD$2*$F25*Main!$C$4*$E25+Main!$C$5*BD$2*$F25 -> 3782.009802 | BE25: =BE$2*$F25*Main!$C$4*$E25+Main!$C$5*BE$2*$F25 -> 4260.675347 | BF25: =BF$2*$F25*Main!$C$4*$E25+Main!$C$5*BF$2*$F25 -> 3498.648212 | BG25: =BG$2*$F25*Main!$C$4*$E25+Main!$C$5*BG$2*$F25 -> 3966.273694 | BH25: =BH$2*$F25*Main!$C$4*$E25+Main!$C$5*BH$2*$F25 -> 4433.899176 | BI25: =BI$2*$F25*Main!$C$4*$E25+Main!$C$5*BI$2*$F25 -> 3380.098975 | BJ25: =BJ$2*$F25*Main!$C$4*$E25+Main!$C$5*BJ$2*$F25 -> 3882.158936 | BK25: =BK$2*$F25*Main!$C$4*$E25+Main!$C$5*BK$2*$F25 -> 4384.218897 | BL25: =BL$2*$F25*Main!$C$4*$E25+Main!$C$5*BL$2*$F25 -> 3420.842061 | BM25: =BM$2*$F25*Main!$C$4*$E25+Main!$C$5*BM$2*$F25 -> 3951.290753 | BN25: =BN$2*$F25*Main!$C$4*$E25+Main!$C$5*BN$2*$F25 -> 4481.476586 | BO25: =BO$2*$F25*Main!$C$4*$E25+Main!$C$5*BO$2*$F25 -> 3616.146014 | BP25: =BP$2*$F25*Main!$C$4*$E25+Main!$C$5*BP$2*$F25 -> 4135.554644 | BQ25: =BQ$2*$F25*Main!$C$4*$E25+Main!$C$5*BQ$2*$F25 -> 4654.700416 | BR25: =BR$2*$F25*Main!$C$4*$E25+Main!$C$5*BR$2*$F25 -> 3797.255602 | BS25: =BS$2*$F25*Main!$C$4*$E25+Main!$C$5*BS$2*$F25 -> 4372.915977 | BT25: =BT$2*$F25*Main!$C$4*$E25+Main!$C$5*BT$2*$F25 -> 4948.576351 | BU25: =BU$2*$F25*Main!$C$4*$E25+Main!$C$5*BU$2*$F25 -> 3838.261547 | BV25: =BV$2*$F25*Main!$C$4*$E25+Main!$C$5*BV$2*$F25 -> 4442.047793 | BW25: =BW$2*$F25*Main!$C$4*$E25+Main!$C$5*BW$2*$F25 -> 5046.096899 | BX25: =BX$2*$F25*Main!$C$4*$E25+Main!$C$5*BX$2*$F25 -> 4033.5655 | BY25: =BY$2*$F25*Main!$C$4*$E25+Main!$C$5*BY$2*$F25 -> 4626.574544 | BZ25: =BZ$2*$F25*Main!$C$4*$E25+Main!$C$5*BZ$2*$F25 -> 5219.320728 | CA25: =CA$2*$F25*Main!$C$4*$E25+Main!$C$5*CA$2*$F25 -> 3291.778479 | CB25: =CB$2*$F25*Main!$C$4*$E25+Main!$C$5*CB$2*$F25 -> 3732.592382 | CC25: =CC$2*$F25*Main!$C$4*$E25+Main!$C$5*CC$2*$F25 -> 4173.143427 | CD25: =CD$2*$F25*Main!$C$4*$E25+Main!$C$5*CD$2*$F25 -> 3291.778479 | CE25: =CE$2*$F25*Main!$C$4*$E25+Main!$C$5*CE$2*$F25 -> 3774.386902 | CF25: =CF$2*$F25*Main!$C$4*$E25+Main!$C$5*CF$2*$F25 -> 4256.995326 | CG25: =CG$2*$F25*Main!$C$4*$E25+Main!$C$5*CG$2*$F25 -> 3499.962505 | CH25: =CH$2*$F25*Main!$C$4*$E25+Main!$C$5*CH$2*$F25 -> 3967.325128 | CI25: =CI$2*$F25*Main!$C$4*$E25+Main!$C$5*CI$2*$F25 -> 4434.424893 | CJ25: =CJ$2*$F25*Main!$C$4*$E25+Main!$C$5*CJ$2*$F25 -> 3447.916498 | CK25: =CK$2*$F25*Main!$C$4*$E25+Main!$C$5*CK$2*$F25 -> 3927.370618 | CL25: =CL$2*$F25*Main!$C$4*$E25+Main!$C$5*CL$2*$F25 -> 4406.824739 | CM25: =CM$2*$F25*Main!$C$4*$E25+Main!$C$5*CM$2*$F25 -> 3447.916498 | CN25: =CN$2*$F25*Main!$C$4*$E25+Main!$C$5*CN$2*$F25 -> 3969.165139 | CO25: =CO$2*$F25*Main!$C$4*$E25+Main!$C$5*CO$2*$F25 -> 4490.413779 | CP25: =CP$2*$F25*Main!$C$4*$E25+Main!$C$5*CP$2*$F25 -> 3656.100524 | CQ25: =CQ$2*$F25*Main!$C$4*$E25+Main!$C$5*CQ$2*$F25 -> 4162.103365 | CR25: =CR$2*$F25*Main!$C$4*$E25+Main!$C$5*CR$2*$F25 -> 4668.106205 | CS25: =CS$2*$F25*Main!$C$4*$E25+Main!$C$5*CS$2*$F25 -> 3996.239576 | CT25: =CT$2*$F25*Main!$C$4*$E25+Main!$C$5*CT$2*$F25 -> 4505.659579 | CU25: =CU$2*$F25*Main!$C$4*$E25+Main!$C$5*CU$2*$F25 -> 5015.079582 | CV25: =CV$2*$F25*Main!$C$4*$E25+Main!$C$5*CV$2*$F25 -> 3996.239576 | CW25: =CW$2*$F25*Main!$C$4*$E25+Main!$C$5*CW$2*$F25 -> 4547.454099 | CX25: =CX$2*$F25*Main!$C$4*$E25+Main!$C$5*CX$2*$F25 -> 5098.931481 | CY25: =CY$2*$F25*Main!$C$4*$E25+Main!$C$5*CY$2*$F25 -> 4204.423602 | CZ25: =CZ$2*$F25*Main!$C$4*$E25+Main!$C$5*CZ$2*$F25 -> 4740.392325 | DA25: =DA$2*$F25*Main!$C$4*$E25+Main!$C$5*DA$2*$F25 -> 5276.361048 | DB25: =DB$2*$F25*Main!$C$4*$E25+Main!$C$5*DB$2*$F25 -> 1257.778489 | DC25: =DC$2*$F25*Main!$C$4*$E25+Main!$C$5*DC$2*$F25 -> 1664.683631 | DD25: =DD$2*$F25*Main!$C$4*$E25+Main!$C$5*DD$2*$F25 -> 2071.325913 | DE25: =DE$2*$F25*Main!$C$4*$E25+Main!$C$5*DE$2*$F25 -> 2478.231055 | DF25: =DF$2*$F25*Main!$C$4*$E25+Main!$C$5*DF$2*$F25 -> 2885.136196 | DG25: =DG$2*$F25*Main!$C$4*$E25+Main!$C$5*DG$2*$F25 -> 1466.225374 | DH25: =DH$2*$F25*Main!$C$4*$E25+Main!$C$5*DH$2*$F25 -> 1831.335995 | DI25: =DI$2*$F25*Main!$C$4*$E25+Main!$C$5*DI$2*$F25 -> 2196.446616 | DJ25: =DJ$2*$F25*Main!$C$4*$E25+Main!$C$5*DJ$2*$F25 -> 2561.557237 | DK25: =DK$2*$F25*Main!$C$4*$E25+Main!$C$5*DK$2*$F25 -> 2926.667858 | DL25: =DL$2*$F25*Main!$C$4*$E25+Main!$C$5*DL$2*$F25 -> 1587.403197 | DM25: =DM$2*$F25*Main!$C$4*$E25+Main!$C$5*DM$2*$F25 -> 1969.862487 | DN25: =DN$2*$F25*Main!$C$4*$E25+Main!$C$5*DN$2*$F25 -> 2352.321777 | DO25: =DO$2*$F25*Main!$C$4*$E25+Main!$C$5*DO$2*$F25 -> 2735.043925 | DP25: =DP$2*$F25*Main!$C$4*$E25+Main!$C$5*DP$2*$F25 -> 3117.503215 | DQ25: =DQ$2*$F25*Main!$C$4*$E25+Main!$C$5*DQ$2*$F25 -> 1302.464454 | DR25: =DR$2*$F25*Main!$C$4*$E25+Main!$C$5*DR$2*$F25 -> 1731.44972 | DS25: =DS$2*$F25*Main!$C$4*$E25+Main!$C$5*DS$2*$F25 -> 2160.697844 | DT25: =DT$2*$F25*Main!$C$4*$E25+Main!$C$5*DT$2*$F25 -> 2589.683109 | DU25: =DU$2*$F25*Main!$C$4*$E25+Main!$C$5*DU$2*$F25 -> 3018.931233 | DV25: =DV$2*$F25*Main!$C$4*$E25+Main!$C$5*DV$2*$F25 -> 1510.911339 | DW25: =DW$2*$F25*Main!$C$4*$E25+Main!$C$5*DW$2*$F25 -> 1898.364943 | DX25: =DX$2*$F25*Main!$C$4*$E25+Main!$C$5*DX$2*$F25 -> 2285.555688 | DY25: =DY$2*$F25*Main!$C$4*$E25+Main!$C$5*DY$2*$F25 -> 2673.009291 | DZ25: =DZ$2*$F25*Main!$C$4*$E25+Main!$C$5*DZ$2*$F25 -> 3060.462895 | EA25: =EA$2*$F25*Main!$C$4*$E25+Main!$C$5*EA$2*$F25 -> 1631.826303 | EB25: =EB$2*$F25*Main!$C$4*$E25+Main!$C$5*EB$2*$F25 -> 2036.628576 | EC25: =EC$2*$F25*Main!$C$4*$E25+Main!$C$5*EC$2*$F25 -> 2441.430848 | ED25: =ED$2*$F25*Main!$C$4*$E25+Main!$C$5*ED$2*$F25 -> 2846.495979 | EE25: =EE$2*$F25*Main!$C$4*$E25+Main!$C$5*EE$2*$F25 -> 3251.298252 | EF25: =EF$2*$F25*Main!$C$4*$E25+Main!$C$5*EF$2*$F25 -> 1613.951917 | EG25: =EG$2*$F25*Main!$C$4*$E25+Main!$C$5*EG$2*$F25 -> 2090.514593 | EH25: =EH$2*$F25*Main!$C$4*$E25+Main!$C$5*EH$2*$F25 -> 2566.814409 | EI25: =EI$2*$F25*Main!$C$4*$E25+Main!$C$5*EI$2*$F25 -> 3043.377085 | EJ25: =EJ$2*$F25*Main!$C$4*$E25+Main!$C$5*EJ$2*$F25 -> 3519.93976 | EK25: =EK$2*$F25*Main!$C$4*$E25+Main!$C$5*EK$2*$F25 -> 1822.398802 | EL25: =EL$2*$F25*Main!$C$4*$E25+Main!$C$5*EL$2*$F25 -> 2257.166957 | EM25: =EM$2*$F25*Main!$C$4*$E25+Main!$C$5*EM$2*$F25 -> 2691.935112 | EN25: =EN$2*$F25*Main!$C$4*$E25+Main!$C$5*EN$2*$F25 -> 3126.703267 | EO25: =EO$2*$F25*Main!$C$4*$E25+Main!$C$5*EO$2*$F25 -> 3561.471422 | EP25: =EP$2*$F25*Main!$C$4*$E25+Main!$C$5*EP$2*$F25 -> 1943.313766 | EQ25: =EQ$2*$F25*Main!$C$4*$E25+Main!$C$5*EQ$2*$F25 -> 2395.693449 | ER25: =ER$2*$F25*Main!$C$4*$E25+Main!$C$5*ER$2*$F25 -> 2847.810272 | ES25: =ES$2*$F25*Main!$C$4*$E25+Main!$C$5*ES$2*$F25 -> 3299.927096 | ET25: =ET$2*$F25*Main!$C$4*$E25+Main!$C$5*ET$2*$F25 -> 3752.306779 | EU25: =EU$2*$F25*Main!$C$4*$E25+Main!$C$5*EU$2*$F25 -> 4613.694471 | EV25: =EV$2*$F25*Main!$C$4*$E25+Main!$C$5*EV$2*$F25 -> 4739.340891 | EW25: =EW$2*$F25*Main!$C$4*$E25+Main!$C$5*EW$2*$F25 -> 4901.787517 | EX25: =EX$2*$F25*Main!$C$4*$E25+Main!$C$5*EX$2*$F25 -> 4886.016 | EY25: =EY$2*$F25*Main!$C$4*$E25+Main!$C$5*EY$2*$F25 -> 5011.925278 | EZ25: =EZ$2*$F25*Main!$C$4*$E25+Main!$C$5*EZ$2*$F25 -> 5174.109046 | FA25: =FA$2*$F25*Main!$C$4*$E25+Main!$C$5*FA$2*$F25 -> 5524.236726 | FB25: =FB$2*$F25*Main!$C$4*$E25+Main!$C$5*FB$2*$F25 -> 5650.146004 | FC25: =FC$2*$F25*Main!$C$4*$E25+Main!$C$5*FC$2*$F25 -> 5812.329771 | FD25: =IF($D25<100,(FD$2*(1+Main!$C$3)*$E25*Main!$C$4)+(FD$2*(1+Main!$C$3)*Main!$C$5),(FD$2*$E25*Main!$C$4)+(FD$2*Main!$C$5)) -> 124.6964566 | FE25: =IF($D25<100,(FE$2*(1+Main!$C$3)*$E25*Main!$C$4)+(FE$2*(1+Main!$C$3)*Main!$C$5),(FE$2*$E25*Main!$C$4)+(FE$2*Main!$C$5)) -> 136.3098252 | FF25: =IF($D25<100,(FF$2*(1+Main!$C$3)*$E25*Main!$C$4)+(FF$2*(1+Main!$C$3)*Main!$C$5),(FF$2*$E25*Main!$C$4)+(FF$2*Main!$C$5)) -> 137.2417079 | FG25: =IF($D25<100,(FG$2*(1+Main!$C$3)*$E25*Main!$C$4)+(FG$2*(1+Main!$C$3)*Main!$C$5),(FG$2*$E25*Main!$C$4)+(FG$2*Main!$C$5)) -> 148.1517687 | FH25: =IF($D25<100,(FH$2*(1+Main!$C$3)*$E25*Main!$C$4)+(FH$2*(1+Main!$C$3)*Main!$C$5),(FH$2*$E25*Main!$C$4)+(FH$2*Main!$C$5)) -> 199.8800506 | FI25: =IF($D25<100,(FI$2*(1+Main!$C$3)*$E25*Main!$C$4)+(FI$2*(1+Main!$C$3)*Main!$C$5),(FI$2*$E25*Main!$C$4)+(FI$2*Main!$C$5)) -> 56.46681761
A26: AR | B26: 27860 | C26: (Craighead County, Jonesboro, Poinsett County) | D26: 27860 | E26: 0.7792 | F26: =IF($D26<100,Main!$C$2*(1+Main!$C$3),Main!$C$2) -> 2989.97 | G26: =G$2*$F26*Main!$C$4*$E26+Main!$C$5*G$2*$F26 -> 1447.553693 | H26: =H$2*$F26*Main!$C$4*$E26+Main!$C$5*H$2*$F26 -> 1771.56648 | I26: =I$2*$F26*Main!$C$4*$E26+Main!$C$5*I$2*$F26 -> 2095.579267 | J26: =J$2*$F26*Main!$C$4*$E26+Main!$C$5*J$2*$F26 -> 2419.592053 | K26: =K$2*$F26*Main!$C$4*$E26+Main!$C$5*K$2*$F26 -> 2743.357691 | L26: =L$2*$F26*Main!$C$4*$E26+Main!$C$5*L$2*$F26 -> 1704.341859 | M26: =M$2*$F26*Main!$C$4*$E26+Main!$C$5*M$2*$F26 -> 1984.609212 | N26: =N$2*$F26*Main!$C$4*$E26+Main!$C$5*N$2*$F26 -> 2264.876565 | O26: =O$2*$F26*Main!$C$4*$E26+Main!$C$5*O$2*$F26 -> 2545.143919 | P26: =P$2*$F26*Main!$C$4*$E26+Main!$C$5*P$2*$F26 -> 2825.658421 | Q26: =Q$2*$F26*Main!$C$4*$E26+Main!$C$5*Q$2*$F26 -> 1843.734088 | R26: =R$2*$F26*Main!$C$4*$E26+Main!$C$5*R$2*$F26 -> 2132.898817 | S26: =S$2*$F26*Main!$C$4*$E26+Main!$C$5*S$2*$F26 -> 2422.063547 | T26: =T$2*$F26*Main!$C$4*$E26+Main!$C$5*T$2*$F26 -> 2711.228276 | U26: =U$2*$F26*Main!$C$4*$E26+Main!$C$5*U$2*$F26 -> 3000.393006 | V26: =V$2*$F26*Main!$C$4*$E26+Main!$C$5*V$2*$F26 -> 1530.595872 | W26: =W$2*$F26*Main!$C$4*$E26+Main!$C$5*W$2*$F26 -> 1860.045944 | X26: =X$2*$F26*Main!$C$4*$E26+Main!$C$5*X$2*$F26 -> 2189.743166 | Y26: =Y$2*$F26*Main!$C$4*$E26+Main!$C$5*Y$2*$F26 -> 2519.193238 | Z26: =Z$2*$F26*Main!$C$4*$E26+Main!$C$5*Z$2*$F26 -> 2848.64331 | AA26: =AA$2*$F26*Main!$C$4*$E26+Main!$C$5*AA$2*$F26 -> 1787.384038 | AB26: =AB$2*$F26*Main!$C$4*$E26+Main!$C$5*AB$2*$F26 -> 2073.335826 | AC26: =AC$2*$F26*Main!$C$4*$E26+Main!$C$5*AC$2*$F26 -> 2359.040465 | AD26: =AD$2*$F26*Main!$C$4*$E26+Main!$C$5*AD$2*$F26 -> 2644.992253 | AE26: =AE$2*$F26*Main!$C$4*$E26+Main!$C$5*AE$2*$F26 -> 2930.696891 | AF26: =AF$2*$F26*Main!$C$4*$E26+Main!$C$5*AF$2*$F26 -> 1926.776266 | AG26: =AG$2*$F26*Main!$C$4*$E26+Main!$C$5*AG$2*$F26 -> 2221.378281 | AH26: =AH$2*$F26*Main!$C$4*$E26+Main!$C$5*AH$2*$F26 -> 2516.227446 | AI26: =AI$2*$F26*Main!$C$4*$E26+Main!$C$5*AI$2*$F26 -> 2810.829461 | AJ26: =AJ$2*$F26*Main!$C$4*$E26+Main!$C$5*AJ$2*$F26 -> 3105.431476 | AK26: =AK$2*$F26*Main!$C$4*$E26+Main!$C$5*AK$2*$F26 -> 1641.813076 | AL26: =AL$2*$F26*Main!$C$4*$E26+Main!$C$5*AL$2*$F26 -> 2027.613198 | AM26: =AM$2*$F26*Main!$C$4*$E26+Main!$C$5*AM$2*$F26 -> 2413.41332 | AN26: =AN$2*$F26*Main!$C$4*$E26+Main!$C$5*AN$2*$F26 -> 2798.966292 | AO26: =AO$2*$F26*Main!$C$4*$E26+Main!$C$5*AO$2*$F26 -> 3184.766415 | AP26: =AP$2*$F26*Main!$C$4*$E26+Main!$C$5*AP$2*$F26 -> 1898.601241 | AQ26: =AQ$2*$F26*Main!$C$4*$E26+Main!$C$5*AQ$2*$F26 -> 2240.65593 | AR26: =AR$2*$F26*Main!$C$4*$E26+Main!$C$5*AR$2*$F26 -> 2582.710619 | AS26: =AS$2*$F26*Main!$C$4*$E26+Main!$C$5*AS$2*$F26 -> 2924.765307 | AT26: =AT$2*$F26*Main!$C$4*$E26+Main!$C$5*AT$2*$F26 -> 3266.819996 | AU26: =AU$2*$F26*Main!$C$4*$E26+Main!$C$5*AU$2*$F26 -> 2037.99347 | AV26: =AV$2*$F26*Main!$C$4*$E26+Main!$C$5*AV$2*$F26 -> 2388.945535 | AW26: =AW$2*$F26*Main!$C$4*$E26+Main!$C$5*AW$2*$F26 -> 2739.8976 | AX26: =AX$2*$F26*Main!$C$4*$E26+Main!$C$5*AX$2*$F26 -> 3090.602515 | AY26: =AY$2*$F26*Main!$C$4*$E26+Main!$C$5*AY$2*$F26 -> 3441.55458 | AZ26: =AZ$2*$F26*Main!$C$4*$E26+Main!$C$5*AZ$2*$F26 -> 3067.370477 | BA26: =BA$2*$F26*Main!$C$4*$E26+Main!$C$5*BA$2*$F26 -> 3490.984449 | BB26: =BB$2*$F26*Main!$C$4*$E26+Main!$C$5*BB$2*$F26 -> 3914.351271 | BC26: =BC$2*$F26*Main!$C$4*$E26+Main!$C$5*BC$2*$F26 -> 3105.925775 | BD26: =BD$2*$F26*Main!$C$4*$E26+Main!$C$5*BD$2*$F26 -> 3555.984725 | BE26: =BE$2*$F26*Main!$C$4*$E26+Main!$C$5*BE$2*$F26 -> 4006.043676 | BF26: =BF$2*$F26*Main!$C$4*$E26+Main!$C$5*BF$2*$F26 -> 3289.557735 | BG26: =BG$2*$F26*Main!$C$4*$E26+Main!$C$5*BG$2*$F26 -> 3729.236414 | BH26: =BH$2*$F26*Main!$C$4*$E26+Main!$C$5*BH$2*$F26 -> 4168.915092 | BI26: =BI$2*$F26*Main!$C$4*$E26+Main!$C$5*BI$2*$F26 -> 3178.093382 | BJ26: =BJ$2*$F26*Main!$C$4*$E26+Main!$C$5*BJ$2*$F26 -> 3650.148625 | BK26: =BK$2*$F26*Main!$C$4*$E26+Main!$C$5*BK$2*$F26 -> 4122.203867 | BL26: =BL$2*$F26*Main!$C$4*$E26+Main!$C$5*BL$2*$F26 -> 3216.40153 | BM26: =BM$2*$F26*Main!$C$4*$E26+Main!$C$5*BM$2*$F26 -> 3715.148901 | BN26: =BN$2*$F26*Main!$C$4*$E26+Main!$C$5*BN$2*$F26 -> 4213.649123 | BO26: =BO$2*$F26*Main!$C$4*$E26+Main!$C$5*BO$2*$F26 -> 3400.033491 | BP26: =BP$2*$F26*Main!$C$4*$E26+Main!$C$5*BP$2*$F26 -> 3888.40059 | BQ26: =BQ$2*$F26*Main!$C$4*$E26+Main!$C$5*BQ$2*$F26 -> 4376.520539 | BR26: =BR$2*$F26*Main!$C$4*$E26+Main!$C$5*BR$2*$F26 -> 3570.319387 | BS26: =BS$2*$F26*Main!$C$4*$E26+Main!$C$5*BS$2*$F26 -> 4111.576445 | BT26: =BT$2*$F26*Main!$C$4*$E26+Main!$C$5*BT$2*$F26 -> 4652.833503 | BU26: =BU$2*$F26*Main!$C$4*$E26+Main!$C$5*BU$2*$F26 -> 3608.874685 | BV26: =BV$2*$F26*Main!$C$4*$E26+Main!$C$5*BV$2*$F26 -> 4176.576722 | BW26: =BW$2*$F26*Main!$C$4*$E26+Main!$C$5*BW$2*$F26 -> 4744.525909 | BX26: =BX$2*$F26*Main!$C$4*$E26+Main!$C$5*BX$2*$F26 -> 3792.506645 | BY26: =BY$2*$F26*Main!$C$4*$E26+Main!$C$5*BY$2*$F26 -> 4350.07556 | BZ26: =BZ$2*$F26*Main!$C$4*$E26+Main!$C$5*BZ$2*$F26 -> 4907.397325 | CA26: =CA$2*$F26*Main!$C$4*$E26+Main!$C$5*CA$2*$F26 -> 3095.051204 | CB26: =CB$2*$F26*Main!$C$4*$E26+Main!$C$5*CB$2*$F26 -> 3509.520649 | CC26: =CC$2*$F26*Main!$C$4*$E26+Main!$C$5*CC$2*$F26 -> 3923.742946 | CD26: =CD$2*$F26*Main!$C$4*$E26+Main!$C$5*CD$2*$F26 -> 3095.051204 | CE26: =CE$2*$F26*Main!$C$4*$E26+Main!$C$5*CE$2*$F26 -> 3548.817395 | CF26: =CF$2*$F26*Main!$C$4*$E26+Main!$C$5*CF$2*$F26 -> 4002.583586 | CG26: =CG$2*$F26*Main!$C$4*$E26+Main!$C$5*CG$2*$F26 -> 3290.793482 | CH26: =CH$2*$F26*Main!$C$4*$E26+Main!$C$5*CH$2*$F26 -> 3730.225011 | CI26: =CI$2*$F26*Main!$C$4*$E26+Main!$C$5*CI$2*$F26 -> 4169.409391 | CJ26: =CJ$2*$F26*Main!$C$4*$E26+Main!$C$5*CJ$2*$F26 -> 3241.857912 | CK26: =CK$2*$F26*Main!$C$4*$E26+Main!$C$5*CK$2*$F26 -> 3692.658311 | CL26: =CL$2*$F26*Main!$C$4*$E26+Main!$C$5*CL$2*$F26 -> 4143.45871 | CM26: =CM$2*$F26*Main!$C$4*$E26+Main!$C$5*CM$2*$F26 -> 3241.857912 | CN26: =CN$2*$F26*Main!$C$4*$E26+Main!$C$5*CN$2*$F26 -> 3731.955057 | CO26: =CO$2*$F26*Main!$C$4*$E26+Main!$C$5*CO$2*$F26 -> 4222.052201 | CP26: =CP$2*$F26*Main!$C$4*$E26+Main!$C$5*CP$2*$F26 -> 3437.600191 | CQ26: =CQ$2*$F26*Main!$C$4*$E26+Main!$C$5*CQ$2*$F26 -> 3913.362673 | CR26: =CR$2*$F26*Main!$C$4*$E26+Main!$C$5*CR$2*$F26 -> 4389.125156 | CS26: =CS$2*$F26*Main!$C$4*$E26+Main!$C$5*CS$2*$F26 -> 3757.411439 | CT26: =CT$2*$F26*Main!$C$4*$E26+Main!$C$5*CT$2*$F26 -> 4236.386863 | CU26: =CU$2*$F26*Main!$C$4*$E26+Main!$C$5*CU$2*$F26 -> 4715.362286 | CV26: =CV$2*$F26*Main!$C$4*$E26+Main!$C$5*CV$2*$F26 -> 3757.411439 | CW26: =CW$2*$F26*Main!$C$4*$E26+Main!$C$5*CW$2*$F26 -> 4275.683608 | CX26: =CX$2*$F26*Main!$C$4*$E26+Main!$C$5*CX$2*$F26 -> 4794.202926 | CY26: =CY$2*$F26*Main!$C$4*$E26+Main!$C$5*CY$2*$F26 -> 3953.153717 | CZ26: =CZ$2*$F26*Main!$C$4*$E26+Main!$C$5*CZ$2*$F26 -> 4457.091225 | DA26: =DA$2*$F26*Main!$C$4*$E26+Main!$C$5*DA$2*$F26 -> 4961.028732 | DB26: =DB$2*$F26*Main!$C$4*$E26+Main!$C$5*DB$2*$F26 -> 1182.609599 | DC26: =DC$2*$F26*Main!$C$4*$E26+Main!$C$5*DC$2*$F26 -> 1565.19678 | DD26: =DD$2*$F26*Main!$C$4*$E26+Main!$C$5*DD$2*$F26 -> 1947.536811 | DE26: =DE$2*$F26*Main!$C$4*$E26+Main!$C$5*DE$2*$F26 -> 2330.123992 | DF26: =DF$2*$F26*Main!$C$4*$E26+Main!$C$5*DF$2*$F26 -> 2712.711172 | DG26: =DG$2*$F26*Main!$C$4*$E26+Main!$C$5*DG$2*$F26 -> 1378.599027 | DH26: =DH$2*$F26*Main!$C$4*$E26+Main!$C$5*DH$2*$F26 -> 1721.889462 | DI26: =DI$2*$F26*Main!$C$4*$E26+Main!$C$5*DI$2*$F26 -> 2065.179898 | DJ26: =DJ$2*$F26*Main!$C$4*$E26+Main!$C$5*DJ$2*$F26 -> 2408.470333 | DK26: =DK$2*$F26*Main!$C$4*$E26+Main!$C$5*DK$2*$F26 -> 2751.760768 | DL26: =DL$2*$F26*Main!$C$4*$E26+Main!$C$5*DL$2*$F26 -> 1492.534873 | DM26: =DM$2*$F26*Main!$C$4*$E26+Main!$C$5*DM$2*$F26 -> 1852.137165 | DN26: =DN$2*$F26*Main!$C$4*$E26+Main!$C$5*DN$2*$F26 -> 2211.739457 | DO26: =DO$2*$F26*Main!$C$4*$E26+Main!$C$5*DO$2*$F26 -> 2571.588898 | DP26: =DP$2*$F26*Main!$C$4*$E26+Main!$C$5*DP$2*$F26 -> 2931.19119 | DQ26: =DQ$2*$F26*Main!$C$4*$E26+Main!$C$5*DQ$2*$F26 -> 1224.624987 | DR26: =DR$2*$F26*Main!$C$4*$E26+Main!$C$5*DR$2*$F26 -> 1627.972712 | DS26: =DS$2*$F26*Main!$C$4*$E26+Main!$C$5*DS$2*$F26 -> 2031.567587 | DT26: =DT$2*$F26*Main!$C$4*$E26+Main!$C$5*DT$2*$F26 -> 2434.915312 | DU26: =DU$2*$F26*Main!$C$4*$E26+Main!$C$5*DU$2*$F26 -> 2838.510187 | DV26: =DV$2*$F26*Main!$C$4*$E26+Main!$C$5*DV$2*$F26 -> 1420.614415 | DW26: =DW$2*$F26*Main!$C$4*$E26+Main!$C$5*DW$2*$F26 -> 1784.912544 | DX26: =DX$2*$F26*Main!$C$4*$E26+Main!$C$5*DX$2*$F26 -> 2148.963524 | DY26: =DY$2*$F26*Main!$C$4*$E26+Main!$C$5*DY$2*$F26 -> 2513.261654 | DZ26: =DZ$2*$F26*Main!$C$4*$E26+Main!$C$5*DZ$2*$F26 -> 2877.559783 | EA26: =EA$2*$F26*Main!$C$4*$E26+Main!$C$5*EA$2*$F26 -> 1534.303112 | EB26: =EB$2*$F26*Main!$C$4*$E26+Main!$C$5*EB$2*$F26 -> 1914.913098 | EC26: =EC$2*$F26*Main!$C$4*$E26+Main!$C$5*EC$2*$F26 -> 2295.523084 | ED26: =ED$2*$F26*Main!$C$4*$E26+Main!$C$5*ED$2*$F26 -> 2676.380219 | EE26: =EE$2*$F26*Main!$C$4*$E26+Main!$C$5*EE$2*$F26 -> 3056.990205 | EF26: =EF$2*$F26*Main!$C$4*$E26+Main!$C$5*EF$2*$F26 -> 1517.496957 | EG26: =EG$2*$F26*Main!$C$4*$E26+Main!$C$5*EG$2*$F26 -> 1965.578713 | EH26: =EH$2*$F26*Main!$C$4*$E26+Main!$C$5*EH$2*$F26 -> 2413.41332 | EI26: =EI$2*$F26*Main!$C$4*$E26+Main!$C$5*EI$2*$F26 -> 2861.495076 | EJ26: =EJ$2*$F26*Main!$C$4*$E26+Main!$C$5*EJ$2*$F26 -> 3309.576832 | EK26: =EK$2*$F26*Main!$C$4*$E26+Main!$C$5*EK$2*$F26 -> 1713.486385 | EL26: =EL$2*$F26*Main!$C$4*$E26+Main!$C$5*EL$2*$F26 -> 2122.271395 | EM26: =EM$2*$F26*Main!$C$4*$E26+Main!$C$5*EM$2*$F26 -> 2531.056406 | EN26: =EN$2*$F26*Main!$C$4*$E26+Main!$C$5*EN$2*$F26 -> 2939.841417 | EO26: =EO$2*$F26*Main!$C$4*$E26+Main!$C$5*EO$2*$F26 -> 3348.626428 | EP26: =EP$2*$F26*Main!$C$4*$E26+Main!$C$5*EP$2*$F26 -> 1827.175082 | EQ26: =EQ$2*$F26*Main!$C$4*$E26+Main!$C$5*EQ$2*$F26 -> 2252.519098 | ER26: =ER$2*$F26*Main!$C$4*$E26+Main!$C$5*ER$2*$F26 -> 2677.615966 | ES26: =ES$2*$F26*Main!$C$4*$E26+Main!$C$5*ES$2*$F26 -> 3102.712833 | ET26: =ET$2*$F26*Main!$C$4*$E26+Main!$C$5*ET$2*$F26 -> 3528.05685 | EU26: =EU$2*$F26*Main!$C$4*$E26+Main!$C$5*EU$2*$F26 -> 4337.965242 | EV26: =EV$2*$F26*Main!$C$4*$E26+Main!$C$5*EV$2*$F26 -> 4456.102627 | EW26: =EW$2*$F26*Main!$C$4*$E26+Main!$C$5*EW$2*$F26 -> 4608.84092 | EX26: =EX$2*$F26*Main!$C$4*$E26+Main!$C$5*EX$2*$F26 -> 4594.01196 | EY26: =EY$2*$F26*Main!$C$4*$E26+Main!$C$5*EY$2*$F26 -> 4712.396494 | EZ26: =EZ$2*$F26*Main!$C$4*$E26+Main!$C$5*EZ$2*$F26 -> 4864.887638 | FA26: =FA$2*$F26*Main!$C$4*$E26+Main!$C$5*FA$2*$F26 -> 5194.090561 | FB26: =FB$2*$F26*Main!$C$4*$E26+Main!$C$5*FB$2*$F26 -> 5312.475095 | FC26: =FC$2*$F26*Main!$C$4*$E26+Main!$C$5*FC$2*$F26 -> 5464.966239 | FD26: =IF($D26<100,(FD$2*(1+Main!$C$3)*$E26*Main!$C$4)+(FD$2*(1+Main!$C$3)*Main!$C$5),(FD$2*$E26*Main!$C$4)+(FD$2*Main!$C$5)) -> 117.2441951 | FE26: =IF($D26<100,(FE$2*(1+Main!$C$3)*$E26*Main!$C$4)+(FE$2*(1+Main!$C$3)*Main!$C$5),(FE$2*$E26*Main!$C$4)+(FE$2*Main!$C$5)) -> 128.1635113 | FF26: =IF($D26<100,(FF$2*(1+Main!$C$3)*$E26*Main!$C$4)+(FF$2*(1+Main!$C$3)*Main!$C$5),(FF$2*$E26*Main!$C$4)+(FF$2*Main!$C$5)) -> 129.0397017 | FG26: =IF($D26<100,(FG$2*(1+Main!$C$3)*$E26*Main!$C$4)+(FG$2*(1+Main!$C$3)*Main!$C$5),(FG$2*$E26*Main!$C$4)+(FG$2*Main!$C$5)) -> 139.2977422 | FH26: =IF($D26<100,(FH$2*(1+Main!$C$3)*$E26*Main!$C$4)+(FH$2*(1+Main!$C$3)*Main!$C$5),(FH$2*$E26*Main!$C$4)+(FH$2*Main!$C$5)) -> 187.9345755 | FI26: =IF($D26<100,(FI$2*(1+Main!$C$3)*$E26*Main!$C$4)+(FI$2*(1+Main!$C$3)*Main!$C$5),(FI$2*$E26*Main!$C$4)+(FI$2*Main!$C$5)) -> 53.09217887
A27: AR | B27: 30780 | C27: (Faulkner County, Grant County, Little Rock-North Little Rock-Conway, Lonoke County, Perry County, Pulaski County, Saline County) | D27: 30780 | E27: 0.8094 | F27: =IF($D27<100,Main!$C$2*(1+Main!$C$3),Main!$C$2) -> 2989.97 | G27: =G$2*$F27*Main!$C$4*$E27+Main!$C$5*G$2*$F27 -> 1489.088505 | H27: =H$2*$F27*Main!$C$4*$E27+Main!$C$5*H$2*$F27 -> 1822.398225 | I27: =I$2*$F27*Main!$C$4*$E27+Main!$C$5*I$2*$F27 -> 2155.707945 | J27: =J$2*$F27*Main!$C$4*$E27+Main!$C$5*J$2*$F27 -> 2489.017665 | K27: =K$2*$F27*Main!$C$4*$E27+Main!$C$5*K$2*$F27 -> 2822.073144 | L27: =L$2*$F27*Main!$C$4*$E27+Main!$C$5*L$2*$F27 -> 1753.244721 | M27: =M$2*$F27*Main!$C$4*$E27+Main!$C$5*M$2*$F27 -> 2041.553815 | N27: =N$2*$F27*Main!$C$4*$E27+Main!$C$5*N$2*$F27 -> 2329.862909 | O27: =O$2*$F27*Main!$C$4*$E27+Main!$C$5*O$2*$F27 -> 2618.172003 | P27: =P$2*$F27*Main!$C$4*$E27+Main!$C$5*P$2*$F27 -> 2906.735338 | Q27: =Q$2*$F27*Main!$C$4*$E27+Main!$C$5*Q$2*$F27 -> 1896.636545 | R27: =R$2*$F27*Main!$C$4*$E27+Main!$C$5*R$2*$F27 -> 2194.098309 | S27: =S$2*$F27*Main!$C$4*$E27+Main!$C$5*S$2*$F27 -> 2491.560073 | T27: =T$2*$F27*Main!$C$4*$E27+Main!$C$5*T$2*$F27 -> 2789.021837 | U27: =U$2*$F27*Main!$C$4*$E27+Main!$C$5*U$2*$F27 -> 3086.483601 | V27: =V$2*$F27*Main!$C$4*$E27+Main!$C$5*V$2*$F27 -> 1574.513422 | W27: =W$2*$F27*Main!$C$4*$E27+Main!$C$5*W$2*$F27 -> 1913.41644 | X27: =X$2*$F27*Main!$C$4*$E27+Main!$C$5*X$2*$F27 -> 2252.573699 | Y27: =Y$2*$F27*Main!$C$4*$E27+Main!$C$5*Y$2*$F27 -> 2591.476717 | Z27: =Z$2*$F27*Main!$C$4*$E27+Main!$C$5*Z$2*$F27 -> 2930.379735 | AA27: =AA$2*$F27*Main!$C$4*$E27+Main!$C$5*AA$2*$F27 -> 1838.669638 | AB27: =AB$2*$F27*Main!$C$4*$E27+Main!$C$5*AB$2*$F27 -> 2132.826271 | AC27: =AC$2*$F27*Main!$C$4*$E27+Main!$C$5*AC$2*$F27 -> 2426.728663 | AD27: =AD$2*$F27*Main!$C$4*$E27+Main!$C$5*AD$2*$F27 -> 2720.885296 | AE27: =AE$2*$F27*Main!$C$4*$E27+Main!$C$5*AE$2*$F27 -> 3014.787688 | AF27: =AF$2*$F27*Main!$C$4*$E27+Main!$C$5*AF$2*$F27 -> 1982.061462 | AG27: =AG$2*$F27*Main!$C$4*$E27+Main!$C$5*AG$2*$F27 -> 2285.116524 | AH27: =AH$2*$F27*Main!$C$4*$E27+Main!$C$5*AH$2*$F27 -> 2588.425827 | AI27: =AI$2*$F27*Main!$C$4*$E27+Main!$C$5*AI$2*$F27 -> 2891.480889 | AJ27: =AJ$2*$F27*Main!$C$4*$E27+Main!$C$5*AJ$2*$F27 -> 3194.535951 | AK27: =AK$2*$F27*Main!$C$4*$E27+Main!$C$5*AK$2*$F27 -> 1688.921792 | AL27: =AL$2*$F27*Main!$C$4*$E27+Main!$C$5*AL$2*$F27 -> 2085.791718 | AM27: =AM$2*$F27*Main!$C$4*$E27+Main!$C$5*AM$2*$F27 -> 2482.661644 | AN27: =AN$2*$F27*Main!$C$4*$E27+Main!$C$5*AN$2*$F27 -> 2879.277329 | AO27: =AO$2*$F27*Main!$C$4*$E27+Main!$C$5*AO$2*$F27 -> 3276.147255 | AP27: =AP$2*$F27*Main!$C$4*$E27+Main!$C$5*AP$2*$F27 -> 1953.078008 | AQ27: =AQ$2*$F27*Main!$C$4*$E27+Main!$C$5*AQ$2*$F27 -> 2304.947308 | AR27: =AR$2*$F27*Main!$C$4*$E27+Main!$C$5*AR$2*$F27 -> 2656.816608 | AS27: =AS$2*$F27*Main!$C$4*$E27+Main!$C$5*AS$2*$F27 -> 3008.685909 | AT27: =AT$2*$F27*Main!$C$4*$E27+Main!$C$5*AT$2*$F27 -> 3360.555209 | AU27: =AU$2*$F27*Main!$C$4*$E27+Main!$C$5*AU$2*$F27 -> 2096.469833 | AV27: =AV$2*$F27*Main!$C$4*$E27+Main!$C$5*AV$2*$F27 -> 2457.491803 | AW27: =AW$2*$F27*Main!$C$4*$E27+Main!$C$5*AW$2*$F27 -> 2818.513772 | AX27: =AX$2*$F27*Main!$C$4*$E27+Main!$C$5*AX$2*$F27 -> 3179.281501 | AY27: =AY$2*$F27*Main!$C$4*$E27+Main!$C$5*AY$2*$F27 -> 3540.303471 | AZ27: =AZ$2*$F27*Main!$C$4*$E27+Main!$C$5*AZ$2*$F27 -> 3155.382864 | BA27: =BA$2*$F27*Main!$C$4*$E27+Main!$C$5*BA$2*$F27 -> 3591.151636 | BB27: =BB$2*$F27*Main!$C$4*$E27+Main!$C$5*BB$2*$F27 -> 4026.666167 | BC27: =BC$2*$F27*Main!$C$4*$E27+Main!$C$5*BC$2*$F27 -> 3195.044432 | BD27: =BD$2*$F27*Main!$C$4*$E27+Main!$C$5*BD$2*$F27 -> 3658.016972 | BE27: =BE$2*$F27*Main!$C$4*$E27+Main!$C$5*BE$2*$F27 -> 4120.989513 | BF27: =BF$2*$F27*Main!$C$4*$E27+Main!$C$5*BF$2*$F27 -> 3383.945364 | BG27: =BG$2*$F27*Main!$C$4*$E27+Main!$C$5*BG$2*$F27 -> 3836.23979 | BH27: =BH$2*$F27*Main!$C$4*$E27+Main!$C$5*BH$2*$F27 -> 4288.534215 | BI27: =BI$2*$F27*Main!$C$4*$E27+Main!$C$5*BI$2*$F27 -> 3269.282753 | BJ27: =BJ$2*$F27*Main!$C$4*$E27+Main!$C$5*BJ$2*$F27 -> 3754.882726 | BK27: =BK$2*$F27*Main!$C$4*$E27+Main!$C$5*BK$2*$F27 -> 4240.4827 | BL27: =BL$2*$F27*Main!$C$4*$E27+Main!$C$5*BL$2*$F27 -> 3308.690081 | BM27: =BM$2*$F27*Main!$C$4*$E27+Main!$C$5*BM$2*$F27 -> 3821.748063 | BN27: =BN$2*$F27*Main!$C$4*$E27+Main!$C$5*BN$2*$F27 -> 4334.551805 | BO27: =BO$2*$F27*Main!$C$4*$E27+Main!$C$5*BO$2*$F27 -> 3497.591013 | BP27: =BP$2*$F27*Main!$C$4*$E27+Main!$C$5*BP$2*$F27 -> 3999.97088 | BQ27: =BQ$2*$F27*Main!$C$4*$E27+Main!$C$5*BQ$2*$F27 -> 4502.096507 | BR27: =BR$2*$F27*Main!$C$4*$E27+Main!$C$5*BR$2*$F27 -> 3672.76294 | BS27: =BS$2*$F27*Main!$C$4*$E27+Main!$C$5*BS$2*$F27 -> 4229.550344 | BT27: =BT$2*$F27*Main!$C$4*$E27+Main!$C$5*BT$2*$F27 -> 4786.337748 | BU27: =BU$2*$F27*Main!$C$4*$E27+Main!$C$5*BU$2*$F27 -> 3712.424509 | BV27: =BV$2*$F27*Main!$C$4*$E27+Main!$C$5*BV$2*$F27 -> 4296.415681 | BW27: =BW$2*$F27*Main!$C$4*$E27+Main!$C$5*BW$2*$F27 -> 4880.661094 | BX27: =BX$2*$F27*Main!$C$4*$E27+Main!$C$5*BX$2*$F27 -> 3901.325441 | BY27: =BY$2*$F27*Main!$C$4*$E27+Main!$C$5*BY$2*$F27 -> 4474.892739 | BZ27: =BZ$2*$F27*Main!$C$4*$E27+Main!$C$5*BZ$2*$F27 -> 5048.205797 | CA27: =CA$2*$F27*Main!$C$4*$E27+Main!$C$5*CA$2*$F27 -> 3183.857836 | CB27: =CB$2*$F27*Main!$C$4*$E27+Main!$C$5*CB$2*$F27 -> 3610.219698 | CC27: =CC$2*$F27*Main!$C$4*$E27+Main!$C$5*CC$2*$F27 -> 4036.327318 | CD27: =CD$2*$F27*Main!$C$4*$E27+Main!$C$5*CD$2*$F27 -> 3183.857836 | CE27: =CE$2*$F27*Main!$C$4*$E27+Main!$C$5*CE$2*$F27 -> 3650.643989 | CF27: =CF$2*$F27*Main!$C$4*$E27+Main!$C$5*CF$2*$F27 -> 4117.430141 | CG27: =CG$2*$F27*Main!$C$4*$E27+Main!$C$5*CG$2*$F27 -> 3385.216569 | CH27: =CH$2*$F27*Main!$C$4*$E27+Main!$C$5*CH$2*$F27 -> 3837.256753 | CI27: =CI$2*$F27*Main!$C$4*$E27+Main!$C$5*CI$2*$F27 -> 4289.042697 | CJ27: =CJ$2*$F27*Main!$C$4*$E27+Main!$C$5*CJ$2*$F27 -> 3334.876885 | CK27: =CK$2*$F27*Main!$C$4*$E27+Main!$C$5*CK$2*$F27 -> 3798.612148 | CL27: =CL$2*$F27*Main!$C$4*$E27+Main!$C$5*CL$2*$F27 -> 4262.347411 | CM27: =CM$2*$F27*Main!$C$4*$E27+Main!$C$5*CM$2*$F27 -> 3334.876885 | CN27: =CN$2*$F27*Main!$C$4*$E27+Main!$C$5*CN$2*$F27 -> 3839.036439 | CO27: =CO$2*$F27*Main!$C$4*$E27+Main!$C$5*CO$2*$F27 -> 4343.195993 | CP27: =CP$2*$F27*Main!$C$4*$E27+Main!$C$5*CP$2*$F27 -> 3536.235618 | CQ27: =CQ$2*$F27*Main!$C$4*$E27+Main!$C$5*CQ$2*$F27 -> 4025.649204 | CR27: =CR$2*$F27*Main!$C$4*$E27+Main!$C$5*CR$2*$F27 -> 4515.062789 | CS27: =CS$2*$F27*Main!$C$4*$E27+Main!$C$5*CS$2*$F27 -> 3865.223244 | CT27: =CT$2*$F27*Main!$C$4*$E27+Main!$C$5*CT$2*$F27 -> 4357.94196 | CU27: =CU$2*$F27*Main!$C$4*$E27+Main!$C$5*CU$2*$F27 -> 4850.660677 | CV27: =CV$2*$F27*Main!$C$4*$E27+Main!$C$5*CV$2*$F27 -> 3865.223244 | CW27: =CW$2*$F27*Main!$C$4*$E27+Main!$C$5*CW$2*$F27 -> 4398.366251 | CX27: =CX$2*$F27*Main!$C$4*$E27+Main!$C$5*CX$2*$F27 -> 4931.7635 | CY27: =CY$2*$F27*Main!$C$4*$E27+Main!$C$5*CY$2*$F27 -> 4066.581976 | CZ27: =CZ$2*$F27*Main!$C$4*$E27+Main!$C$5*CZ$2*$F27 -> 4584.979016 | DA27: =DA$2*$F27*Main!$C$4*$E27+Main!$C$5*DA$2*$F27 -> 5103.376056 | DB27: =DB$2*$F27*Main!$C$4*$E27+Main!$C$5*DB$2*$F27 -> 1216.542342 | DC27: =DC$2*$F27*Main!$C$4*$E27+Main!$C$5*DC$2*$F27 -> 1610.107137 | DD27: =DD$2*$F27*Main!$C$4*$E27+Main!$C$5*DD$2*$F27 -> 2003.417691 | DE27: =DE$2*$F27*Main!$C$4*$E27+Main!$C$5*DE$2*$F27 -> 2396.982487 | DF27: =DF$2*$F27*Main!$C$4*$E27+Main!$C$5*DF$2*$F27 -> 2790.547282 | DG27: =DG$2*$F27*Main!$C$4*$E27+Main!$C$5*DG$2*$F27 -> 1418.155315 | DH27: =DH$2*$F27*Main!$C$4*$E27+Main!$C$5*DH$2*$F27 -> 1771.295819 | DI27: =DI$2*$F27*Main!$C$4*$E27+Main!$C$5*DI$2*$F27 -> 2124.436323 | DJ27: =DJ$2*$F27*Main!$C$4*$E27+Main!$C$5*DJ$2*$F27 -> 2477.576828 | DK27: =DK$2*$F27*Main!$C$4*$E27+Main!$C$5*DK$2*$F27 -> 2830.717332 | DL27: =DL$2*$F27*Main!$C$4*$E27+Main!$C$5*DL$2*$F27 -> 1535.360335 | DM27: =DM$2*$F27*Main!$C$4*$E27+Main!$C$5*DM$2*$F27 -> 1905.280733 | DN27: =DN$2*$F27*Main!$C$4*$E27+Main!$C$5*DN$2*$F27 -> 2275.201132 | DO27: =DO$2*$F27*Main!$C$4*$E27+Main!$C$5*DO$2*$F27 -> 2645.375771 | DP27: =DP$2*$F27*Main!$C$4*$E27+Main!$C$5*DP$2*$F27 -> 3015.29617 | DQ27: =DQ$2*$F27*Main!$C$4*$E27+Main!$C$5*DQ$2*$F27 -> 1259.763282 | DR27: =DR$2*$F27*Main!$C$4*$E27+Main!$C$5*DR$2*$F27 -> 1674.684306 | DS27: =DS$2*$F27*Main!$C$4*$E27+Main!$C$5*DS$2*$F27 -> 2089.859571 | DT27: =DT$2*$F27*Main!$C$4*$E27+Main!$C$5*DT$2*$F27 -> 2504.780596 | DU27: =DU$2*$F27*Main!$C$4*$E27+Main!$C$5*DU$2*$F27 -> 2919.955861 | DV27: =DV$2*$F27*Main!$C$4*$E27+Main!$C$5*DV$2*$F27 -> 1461.376255 | DW27: =DW$2*$F27*Main!$C$4*$E27+Main!$C$5*DW$2*$F27 -> 1836.127229 | DX27: =DX$2*$F27*Main!$C$4*$E27+Main!$C$5*DX$2*$F27 -> 2210.623963 | DY27: =DY$2*$F27*Main!$C$4*$E27+Main!$C$5*DY$2*$F27 -> 2585.374937 | DZ27: =DZ$2*$F27*Main!$C$4*$E27+Main!$C$5*DZ$2*$F27 -> 2960.125911 | EA27: =EA$2*$F27*Main!$C$4*$E27+Main!$C$5*EA$2*$F27 -> 1578.327034 | EB27: =EB$2*$F27*Main!$C$4*$E27+Main!$C$5*EB$2*$F27 -> 1969.857903 | EC27: =EC$2*$F27*Main!$C$4*$E27+Main!$C$5*EC$2*$F27 -> 2361.388771 | ED27: =ED$2*$F27*Main!$C$4*$E27+Main!$C$5*ED$2*$F27 -> 2753.173881 | EE27: =EE$2*$F27*Main!$C$4*$E27+Main!$C$5*EE$2*$F27 -> 3144.704749 | EF27: =EF$2*$F27*Main!$C$4*$E27+Main!$C$5*EF$2*$F27 -> 1561.038658 | EG27: =EG$2*$F27*Main!$C$4*$E27+Main!$C$5*EG$2*$F27 -> 2021.977271 | EH27: =EH$2*$F27*Main!$C$4*$E27+Main!$C$5*EH$2*$F27 -> 2482.661644 | EI27: =EI$2*$F27*Main!$C$4*$E27+Main!$C$5*EI$2*$F27 -> 2943.600258 | EJ27: =EJ$2*$F27*Main!$C$4*$E27+Main!$C$5*EJ$2*$F27 -> 3404.538871 | EK27: =EK$2*$F27*Main!$C$4*$E27+Main!$C$5*EK$2*$F27 -> 1762.651631 | EL27: =EL$2*$F27*Main!$C$4*$E27+Main!$C$5*EL$2*$F27 -> 2183.165954 | EM27: =EM$2*$F27*Main!$C$4*$E27+Main!$C$5*EM$2*$F27 -> 2603.680276 | EN27: =EN$2*$F27*Main!$C$4*$E27+Main!$C$5*EN$2*$F27 -> 3024.194599 | EO27: =EO$2*$F27*Main!$C$4*$E27+Main!$C$5*EO$2*$F27 -> 3444.708921 | EP27: =EP$2*$F27*Main!$C$4*$E27+Main!$C$5*EP$2*$F27 -> 1879.60241 | EQ27: =EQ$2*$F27*Main!$C$4*$E27+Main!$C$5*EQ$2*$F27 -> 2317.150868 | ER27: =ER$2*$F27*Main!$C$4*$E27+Main!$C$5*ER$2*$F27 -> 2754.445085 | ES27: =ES$2*$F27*Main!$C$4*$E27+Main!$C$5*ES$2*$F27 -> 3191.739302 | ET27: =ET$2*$F27*Main!$C$4*$E27+Main!$C$5*ET$2*$F27 -> 3629.287759 | EU27: =EU$2*$F27*Main!$C$4*$E27+Main!$C$5*EU$2*$F27 -> 4462.434939 | EV27: =EV$2*$F27*Main!$C$4*$E27+Main!$C$5*EV$2*$F27 -> 4583.962053 | EW27: =EW$2*$F27*Main!$C$4*$E27+Main!$C$5*EW$2*$F27 -> 4741.082882 | EX27: =EX$2*$F27*Main!$C$4*$E27+Main!$C$5*EX$2*$F27 -> 4725.828432 | EY27: =EY$2*$F27*Main!$C$4*$E27+Main!$C$5*EY$2*$F27 -> 4847.609787 | EZ27: =EZ$2*$F27*Main!$C$4*$E27+Main!$C$5*EZ$2*$F27 -> 5004.476375 | FA27: =FA$2*$F27*Main!$C$4*$E27+Main!$C$5*FA$2*$F27 -> 5343.125152 | FB27: =FB$2*$F27*Main!$C$4*$E27+Main!$C$5*FB$2*$F27 -> 5464.906507 | FC27: =FC$2*$F27*Main!$C$4*$E27+Main!$C$5*FC$2*$F27 -> 5621.773095 | FD27: =IF($D27<100,(FD$2*(1+Main!$C$3)*$E27*Main!$C$4)+(FD$2*(1+Main!$C$3)*Main!$C$5),(FD$2*$E27*Main!$C$4)+(FD$2*Main!$C$5)) -> 120.6082952 | FE27: =IF($D27<100,(FE$2*(1+Main!$C$3)*$E27*Main!$C$4)+(FE$2*(1+Main!$C$3)*Main!$C$5),(FE$2*$E27*Main!$C$4)+(FE$2*Main!$C$5)) -> 131.8409206 | FF27: =IF($D27<100,(FF$2*(1+Main!$C$3)*$E27*Main!$C$4)+(FF$2*(1+Main!$C$3)*Main!$C$5),(FF$2*$E27*Main!$C$4)+(FF$2*Main!$C$5)) -> 132.7422516 | FG27: =IF($D27<100,(FG$2*(1+Main!$C$3)*$E27*Main!$C$4)+(FG$2*(1+Main!$C$3)*Main!$C$5),(FG$2*$E27*Main!$C$4)+(FG$2*Main!$C$5)) -> 143.2946271 | FH27: =IF($D27<100,(FH$2*(1+Main!$C$3)*$E27*Main!$C$4)+(FH$2*(1+Main!$C$3)*Main!$C$5),(FH$2*$E27*Main!$C$4)+(FH$2*Main!$C$5)) -> 193.3270023 | FI27: =IF($D27<100,(FI$2*(1+Main!$C$3)*$E27*Main!$C$4)+(FI$2*(1+Main!$C$3)*Main!$C$5),(FI$2*$E27*Main!$C$4)+(FI$2*Main!$C$5)) -> 54.61555839
A28: AR | B28: 32820 | C28: (Crittenden County, Memphis) | D28: 32820 | E28: 0.8791 | F28: =IF($D28<100,Main!$C$2*(1+Main!$C$3),Main!$C$2) -> 2989.97 | G28: =G$2*$F28*Main!$C$4*$E28+Main!$C$5*G$2*$F28 -> 1584.94865 | H28: =H$2*$F28*Main!$C$4*$E28+Main!$C$5*H$2*$F28 -> 1939.715199 | I28: =I$2*$F28*Main!$C$4*$E28+Main!$C$5*I$2*$F28 -> 2294.481748 | J28: =J$2*$F28*Main!$C$4*$E28+Main!$C$5*J$2*$F28 -> 2649.248298 | K28: =K$2*$F28*Main!$C$4*$E28+Main!$C$5*K$2*$F28 -> 3003.74424 | L28: =L$2*$F28*Main!$C$4*$E28+Main!$C$5*L$2*$F28 -> 1866.109935 | M28: =M$2*$F28*Main!$C$4*$E28+Main!$C$5*M$2*$F28 -> 2172.978941 | N28: =N$2*$F28*Main!$C$4*$E28+Main!$C$5*N$2*$F28 -> 2479.847947 | O28: =O$2*$F28*Main!$C$4*$E28+Main!$C$5*O$2*$F28 -> 2786.716953 | P28: =P$2*$F28*Main!$C$4*$E28+Main!$C$5*P$2*$F28 -> 3093.856567 | Q28: =Q$2*$F28*Main!$C$4*$E28+Main!$C$5*Q$2*$F28 -> 2018.732615 | R28: =R$2*$F28*Main!$C$4*$E28+Main!$C$5*R$2*$F28 -> 2335.343494 | S28: =S$2*$F28*Main!$C$4*$E28+Main!$C$5*S$2*$F28 -> 2651.954374 | T28: =T$2*$F28*Main!$C$4*$E28+Main!$C$5*T$2*$F28 -> 2968.565253 | U28: =U$2*$F28*Main!$C$4*$E28+Main!$C$5*U$2*$F28 -> 3285.176132 | V28: =V$2*$F28*Main!$C$4*$E28+Main!$C$5*V$2*$F28 -> 1675.8728 | W28: =W$2*$F28*Main!$C$4*$E28+Main!$C$5*W$2*$F28 -> 2036.592716 | X28: =X$2*$F28*Main!$C$4*$E28+Main!$C$5*X$2*$F28 -> 2397.58324 | Y28: =Y$2*$F28*Main!$C$4*$E28+Main!$C$5*Y$2*$F28 -> 2758.303156 | Z28: =Z$2*$F28*Main!$C$4*$E28+Main!$C$5*Z$2*$F28 -> 3119.023073 | AA28: =AA$2*$F28*Main!$C$4*$E28+Main!$C$5*AA$2*$F28 -> 1957.034085 | AB28: =AB$2*$F28*Main!$C$4*$E28+Main!$C$5*AB$2*$F28 -> 2270.127065 | AC28: =AC$2*$F28*Main!$C$4*$E28+Main!$C$5*AC$2*$F28 -> 2582.949439 | AD28: =AD$2*$F28*Main!$C$4*$E28+Main!$C$5*AD$2*$F28 -> 2896.042419 | AE28: =AE$2*$F28*Main!$C$4*$E28+Main!$C$5*AE$2*$F28 -> 3208.864792 | AF28: =AF$2*$F28*Main!$C$4*$E28+Main!$C$5*AF$2*$F28 -> 2109.656765 | AG28: =AG$2*$F28*Main!$C$4*$E28+Main!$C$5*AG$2*$F28 -> 2432.221011 | AH28: =AH$2*$F28*Main!$C$4*$E28+Main!$C$5*AH$2*$F28 -> 2755.055865 | AI28: =AI$2*$F28*Main!$C$4*$E28+Main!$C$5*AI$2*$F28 -> 3077.620112 | AJ28: =AJ$2*$F28*Main!$C$4*$E28+Main!$C$5*AJ$2*$F28 -> 3400.184358 | AK28: =AK$2*$F28*Main!$C$4*$E28+Main!$C$5*AK$2*$F28 -> 1797.646215 | AL28: =AL$2*$F28*Main!$C$4*$E28+Main!$C$5*AL$2*$F28 -> 2220.064661 | AM28: =AM$2*$F28*Main!$C$4*$E28+Main!$C$5*AM$2*$F28 -> 2642.483108 | AN28: =AN$2*$F28*Main!$C$4*$E28+Main!$C$5*AN$2*$F28 -> 3064.630947 | AO28: =AO$2*$F28*Main!$C$4*$E28+Main!$C$5*AO$2*$F28 -> 3487.049394 | AP28: =AP$2*$F28*Main!$C$4*$E28+Main!$C$5*AP$2*$F28 -> 2078.8075 | AQ28: =AQ$2*$F28*Main!$C$4*$E28+Main!$C$5*AQ$2*$F28 -> 2453.328403 | AR28: =AR$2*$F28*Main!$C$4*$E28+Main!$C$5*AR$2*$F28 -> 2827.849307 | AS28: =AS$2*$F28*Main!$C$4*$E28+Main!$C$5*AS$2*$F28 -> 3202.37021 | AT28: =AT$2*$F28*Main!$C$4*$E28+Main!$C$5*AT$2*$F28 -> 3576.891114 | AU28: =AU$2*$F28*Main!$C$4*$E28+Main!$C$5*AU$2*$F28 -> 2231.43018 | AV28: =AV$2*$F28*Main!$C$4*$E28+Main!$C$5*AV$2*$F28 -> 2615.692957 | AW28: =AW$2*$F28*Main!$C$4*$E28+Main!$C$5*AW$2*$F28 -> 2999.955733 | AX28: =AX$2*$F28*Main!$C$4*$E28+Main!$C$5*AX$2*$F28 -> 3383.947902 | AY28: =AY$2*$F28*Main!$C$4*$E28+Main!$C$5*AY$2*$F28 -> 3768.210679 | AZ28: =AZ$2*$F28*Main!$C$4*$E28+Main!$C$5*AZ$2*$F28 -> 3358.510789 | BA28: =BA$2*$F28*Main!$C$4*$E28+Main!$C$5*BA$2*$F28 -> 3822.332197 | BB28: =BB$2*$F28*Main!$C$4*$E28+Main!$C$5*BB$2*$F28 -> 4285.882997 | BC28: =BC$2*$F28*Main!$C$4*$E28+Main!$C$5*BC$2*$F28 -> 3400.725573 | BD28: =BD$2*$F28*Main!$C$4*$E28+Main!$C$5*BD$2*$F28 -> 3893.501993 | BE28: =BE$2*$F28*Main!$C$4*$E28+Main!$C$5*BE$2*$F28 -> 4386.278413 | BF28: =BF$2*$F28*Main!$C$4*$E28+Main!$C$5*BF$2*$F28 -> 3601.787012 | BG28: =BG$2*$F28*Main!$C$4*$E28+Main!$C$5*BG$2*$F28 -> 4083.197913 | BH28: =BH$2*$F28*Main!$C$4*$E28+Main!$C$5*BH$2*$F28 -> 4564.608814 | BI28: =BI$2*$F28*Main!$C$4*$E28+Main!$C$5*BI$2*$F28 -> 3479.742989 | BJ28: =BJ$2*$F28*Main!$C$4*$E28+Main!$C$5*BJ$2*$F28 -> 3996.603484 | BK28: =BK$2*$F28*Main!$C$4*$E28+Main!$C$5*BK$2*$F28 -> 4513.46398 | BL28: =BL$2*$F28*Main!$C$4*$E28+Main!$C$5*BL$2*$F28 -> 3521.687165 | BM28: =BM$2*$F28*Main!$C$4*$E28+Main!$C$5*BM$2*$F28 -> 4067.77328 | BN28: =BN$2*$F28*Main!$C$4*$E28+Main!$C$5*BN$2*$F28 -> 4613.588788 | BO28: =BO$2*$F28*Main!$C$4*$E28+Main!$C$5*BO$2*$F28 -> 3722.748604 | BP28: =BP$2*$F28*Main!$C$4*$E28+Main!$C$5*BP$2*$F28 -> 4257.4692 | BQ28: =BQ$2*$F28*Main!$C$4*$E28+Main!$C$5*BQ$2*$F28 -> 4791.919189 | BR28: =BR$2*$F28*Main!$C$4*$E28+Main!$C$5*BR$2*$F28 -> 3909.197233 | BS28: =BS$2*$F28*Main!$C$4*$E28+Main!$C$5*BS$2*$F28 -> 4501.827853 | BT28: =BT$2*$F28*Main!$C$4*$E28+Main!$C$5*BT$2*$F28 -> 5094.458474 | BU28: =BU$2*$F28*Main!$C$4*$E28+Main!$C$5*BU$2*$F28 -> 3951.412017 | BV28: =BV$2*$F28*Main!$C$4*$E28+Main!$C$5*BV$2*$F28 -> 4572.997649 | BW28: =BW$2*$F28*Main!$C$4*$E28+Main!$C$5*BW$2*$F28 -> 5194.853889 | BX28: =BX$2*$F28*Main!$C$4*$E28+Main!$C$5*BX$2*$F28 -> 4152.473456 | BY28: =BY$2*$F28*Main!$C$4*$E28+Main!$C$5*BY$2*$F28 -> 4762.964177 | BZ28: =BZ$2*$F28*Main!$C$4*$E28+Main!$C$5*BZ$2*$F28 -> 5373.18429 | CA28: =CA$2*$F28*Main!$C$4*$E28+Main!$C$5*CA$2*$F28 -> 3388.818839 | CB28: =CB$2*$F28*Main!$C$4*$E28+Main!$C$5*CB$2*$F28 -> 3842.627766 | CC28: =CC$2*$F28*Main!$C$4*$E28+Main!$C$5*CC$2*$F28 -> 4296.166086 | CD28: =CD$2*$F28*Main!$C$4*$E28+Main!$C$5*CD$2*$F28 -> 3388.818839 | CE28: =CE$2*$F28*Main!$C$4*$E28+Main!$C$5*CE$2*$F28 -> 3885.654373 | CF28: =CF$2*$F28*Main!$C$4*$E28+Main!$C$5*CF$2*$F28 -> 4382.489906 | CG28: =CG$2*$F28*Main!$C$4*$E28+Main!$C$5*CG$2*$F28 -> 3603.14005 | CH28: =CH$2*$F28*Main!$C$4*$E28+Main!$C$5*CH$2*$F28 -> 4084.280343 | CI28: =CI$2*$F28*Main!$C$4*$E28+Main!$C$5*CI$2*$F28 -> 4565.150029 | CJ28: =CJ$2*$F28*Main!$C$4*$E28+Main!$C$5*CJ$2*$F28 -> 3549.559747 | CK28: =CK$2*$F28*Main!$C$4*$E28+Main!$C$5*CK$2*$F28 -> 4043.14799 | CL28: =CL$2*$F28*Main!$C$4*$E28+Main!$C$5*CL$2*$F28 -> 4536.736232 | CM28: =CM$2*$F28*Main!$C$4*$E28+Main!$C$5*CM$2*$F28 -> 3549.559747 | CN28: =CN$2*$F28*Main!$C$4*$E28+Main!$C$5*CN$2*$F28 -> 4086.174596 | CO28: =CO$2*$F28*Main!$C$4*$E28+Main!$C$5*CO$2*$F28 -> 4622.789446 | CP28: =CP$2*$F28*Main!$C$4*$E28+Main!$C$5*CP$2*$F28 -> 3763.880958 | CQ28: =CQ$2*$F28*Main!$C$4*$E28+Main!$C$5*CQ$2*$F28 -> 4284.800567 | CR28: =CR$2*$F28*Main!$C$4*$E28+Main!$C$5*CR$2*$F28 -> 4805.720176 | CS28: =CS$2*$F28*Main!$C$4*$E28+Main!$C$5*CS$2*$F28 -> 4114.047178 | CT28: =CT$2*$F28*Main!$C$4*$E28+Main!$C$5*CT$2*$F28 -> 4638.484686 | CU28: =CU$2*$F28*Main!$C$4*$E28+Main!$C$5*CU$2*$F28 -> 5162.922194 | CV28: =CV$2*$F28*Main!$C$4*$E28+Main!$C$5*CV$2*$F28 -> 4114.047178 | CW28: =CW$2*$F28*Main!$C$4*$E28+Main!$C$5*CW$2*$F28 -> 4681.511292 | CX28: =CX$2*$F28*Main!$C$4*$E28+Main!$C$5*CX$2*$F28 -> 5249.246015 | CY28: =CY$2*$F28*Main!$C$4*$E28+Main!$C$5*CY$2*$F28 -> 4328.368389 | CZ28: =CZ$2*$F28*Main!$C$4*$E28+Main!$C$5*CZ$2*$F28 -> 4880.137263 | DA28: =DA$2*$F28*Main!$C$4*$E28+Main!$C$5*DA$2*$F28 -> 5431.906137 | DB28: =DB$2*$F28*Main!$C$4*$E28+Main!$C$5*DB$2*$F28 -> 1294.857314 | DC28: =DC$2*$F28*Main!$C$4*$E28+Main!$C$5*DC$2*$F28 -> 1713.757862 | DD28: =DD$2*$F28*Main!$C$4*$E28+Main!$C$5*DD$2*$F28 -> 2132.387803 | DE28: =DE$2*$F28*Main!$C$4*$E28+Main!$C$5*DE$2*$F28 -> 2551.288351 | DF28: =DF$2*$F28*Main!$C$4*$E28+Main!$C$5*DF$2*$F28 -> 2970.188899 | DG28: =DG$2*$F28*Main!$C$4*$E28+Main!$C$5*DG$2*$F28 -> 1509.449132 | DH28: =DH$2*$F28*Main!$C$4*$E28+Main!$C$5*DH$2*$F28 -> 1885.323074 | DI28: =DI$2*$F28*Main!$C$4*$E28+Main!$C$5*DI$2*$F28 -> 2261.197015 | DJ28: =DJ$2*$F28*Main!$C$4*$E28+Main!$C$5*DJ$2*$F28 -> 2637.070956 | DK28: =DK$2*$F28*Main!$C$4*$E28+Main!$C$5*DK$2*$F28 -> 3012.944898 | DL28: =DL$2*$F28*Main!$C$4*$E28+Main!$C$5*DL$2*$F28 -> 1634.199231 | DM28: =DM$2*$F28*Main!$C$4*$E28+Main!$C$5*DM$2*$F28 -> 2027.933273 | DN28: =DN$2*$F28*Main!$C$4*$E28+Main!$C$5*DN$2*$F28 -> 2421.667315 | DO28: =DO$2*$F28*Main!$C$4*$E28+Main!$C$5*DO$2*$F28 -> 2815.671965 | DP28: =DP$2*$F28*Main!$C$4*$E28+Main!$C$5*DP$2*$F28 -> 3209.406007 | DQ28: =DQ$2*$F28*Main!$C$4*$E28+Main!$C$5*DQ$2*$F28 -> 1340.860604 | DR28: =DR$2*$F28*Main!$C$4*$E28+Main!$C$5*DR$2*$F28 -> 1782.49219 | DS28: =DS$2*$F28*Main!$C$4*$E28+Main!$C$5*DS$2*$F28 -> 2224.394383 | DT28: =DT$2*$F28*Main!$C$4*$E28+Main!$C$5*DT$2*$F28 -> 2666.025968 | DU28: =DU$2*$F28*Main!$C$4*$E28+Main!$C$5*DU$2*$F28 -> 3107.928162 | DV28: =DV$2*$F28*Main!$C$4*$E28+Main!$C$5*DV$2*$F28 -> 1555.452422 | DW28: =DW$2*$F28*Main!$C$4*$E28+Main!$C$5*DW$2*$F28 -> 1954.328009 | DX28: =DX$2*$F28*Main!$C$4*$E28+Main!$C$5*DX$2*$F28 -> 2352.932988 | DY28: =DY$2*$F28*Main!$C$4*$E28+Main!$C$5*DY$2*$F28 -> 2751.808574 | DZ28: =DZ$2*$F28*Main!$C$4*$E28+Main!$C$5*DZ$2*$F28 -> 3150.684161 | EA28: =EA$2*$F28*Main!$C$4*$E28+Main!$C$5*EA$2*$F28 -> 1679.931914 | EB28: =EB$2*$F28*Main!$C$4*$E28+Main!$C$5*EB$2*$F28 -> 2096.667601 | EC28: =EC$2*$F28*Main!$C$4*$E28+Main!$C$5*EC$2*$F28 -> 2513.403288 | ED28: =ED$2*$F28*Main!$C$4*$E28+Main!$C$5*ED$2*$F28 -> 2930.409583 | EE28: =EE$2*$F28*Main!$C$4*$E28+Main!$C$5*EE$2*$F28 -> 3347.14527 | EF28: =EF$2*$F28*Main!$C$4*$E28+Main!$C$5*EF$2*$F28 -> 1661.530597 | EG28: =EG$2*$F28*Main!$C$4*$E28+Main!$C$5*EG$2*$F28 -> 2152.142157 | EH28: =EH$2*$F28*Main!$C$4*$E28+Main!$C$5*EH$2*$F28 -> 2642.483108 | EI28: =EI$2*$F28*Main!$C$4*$E28+Main!$C$5*EI$2*$F28 -> 3133.094667 | EJ28: =EJ$2*$F28*Main!$C$4*$E28+Main!$C$5*EJ$2*$F28 -> 3623.706226 | EK28: =EK$2*$F28*Main!$C$4*$E28+Main!$C$5*EK$2*$F28 -> 1876.122416 | EL28: =EL$2*$F28*Main!$C$4*$E28+Main!$C$5*EL$2*$F28 -> 2323.707368 | EM28: =EM$2*$F28*Main!$C$4*$E28+Main!$C$5*EM$2*$F28 -> 2771.292321 | EN28: =EN$2*$F28*Main!$C$4*$E28+Main!$C$5*EN$2*$F28 -> 3218.877273 | EO28: =EO$2*$F28*Main!$C$4*$E28+Main!$C$5*EO$2*$F28 -> 3666.462226 | EP28: =EP$2*$F28*Main!$C$4*$E28+Main!$C$5*EP$2*$F28 -> 2000.601907 | EQ28: =EQ$2*$F28*Main!$C$4*$E28+Main!$C$5*EQ$2*$F28 -> 2466.317568 | ER28: =ER$2*$F28*Main!$C$4*$E28+Main!$C$5*ER$2*$F28 -> 2931.762621 | ES28: =ES$2*$F28*Main!$C$4*$E28+Main!$C$5*ES$2*$F28 -> 3397.207674 | ET28: =ET$2*$F28*Main!$C$4*$E28+Main!$C$5*ET$2*$F28 -> 3862.923335 | EU28: =EU$2*$F28*Main!$C$4*$E28+Main!$C$5*EU$2*$F28 -> 4749.704405 | EV28: =EV$2*$F28*Main!$C$4*$E28+Main!$C$5*EV$2*$F28 -> 4879.054833 | EW28: =EW$2*$F28*Main!$C$4*$E28+Main!$C$5*EW$2*$F28 -> 5046.290323 | EX28: =EX$2*$F28*Main!$C$4*$E28+Main!$C$5*EX$2*$F28 -> 5030.053867 | EY28: =EY$2*$F28*Main!$C$4*$E28+Main!$C$5*EY$2*$F28 -> 5159.674903 | EZ28: =EZ$2*$F28*Main!$C$4*$E28+Main!$C$5*EZ$2*$F28 -> 5326.639785 | FA28: =FA$2*$F28*Main!$C$4*$E28+Main!$C$5*FA$2*$F28 -> 5687.089094 | FB28: =FB$2*$F28*Main!$C$4*$E28+Main!$C$5*FB$2*$F28 -> 5816.710129 | FC28: =FC$2*$F28*Main!$C$4*$E28+Main!$C$5*FC$2*$F28 -> 5983.675012 | FD28: =IF($D28<100,(FD$2*(1+Main!$C$3)*$E28*Main!$C$4)+(FD$2*(1+Main!$C$3)*Main!$C$5),(FD$2*$E28*Main!$C$4)+(FD$2*Main!$C$5)) -> 128.3724601 | FE28: =IF($D28<100,(FE$2*(1+Main!$C$3)*$E28*Main!$C$4)+(FE$2*(1+Main!$C$3)*Main!$C$5),(FE$2*$E28*Main!$C$4)+(FE$2*Main!$C$5)) -> 140.3281862 | FF28: =IF($D28<100,(FF$2*(1+Main!$C$3)*$E28*Main!$C$4)+(FF$2*(1+Main!$C$3)*Main!$C$5),(FF$2*$E28*Main!$C$4)+(FF$2*Main!$C$5)) -> 141.2875405 | FG28: =IF($D28<100,(FG$2*(1+Main!$C$3)*$E28*Main!$C$4)+(FG$2*(1+Main!$C$3)*Main!$C$5),(FG$2*$E28*Main!$C$4)+(FG$2*Main!$C$5)) -> 152.5192257 | FH28: =IF($D28<100,(FH$2*(1+Main!$C$3)*$E28*Main!$C$4)+(FH$2*(1+Main!$C$3)*Main!$C$5),(FH$2*$E28*Main!$C$4)+(FH$2*Main!$C$5)) -> 205.7724374 | FI28: =IF($D28<100,(FI$2*(1+Main!$C$3)*$E28*Main!$C$4)+(FI$2*(1+Main!$C$3)*Main!$C$5),(FI$2*$E28*Main!$C$4)+(FI$2*Main!$C$5)) -> 58.13143761
A29: AR | B29: 38220 | C29: (Cleveland County, Jefferson County, Lincoln County, Pine Bluff) | D29: 38220 | E29: 0.7931 | F29: =IF($D29<100,Main!$C$2*(1+Main!$C$3),Main!$C$2) -> 2989.97 | G29: =G$2*$F29*Main!$C$4*$E29+Main!$C$5*G$2*$F29 -> 1466.670709 | H29: =H$2*$F29*Main!$C$4*$E29+Main!$C$5*H$2*$F29 -> 1794.962548 | I29: =I$2*$F29*Main!$C$4*$E29+Main!$C$5*I$2*$F29 -> 2123.254387 | J29: =J$2*$F29*Main!$C$4*$E29+Main!$C$5*J$2*$F29 -> 2451.546225 | K29: =K$2*$F29*Main!$C$4*$E29+Main!$C$5*K$2*$F29 -> 2779.587651 | L29: =L$2*$F29*Main!$C$4*$E29+Main!$C$5*L$2*$F29 -> 1726.85013 | M29: =M$2*$F29*Main!$C$4*$E29+Main!$C$5*M$2*$F29 -> 2010.818814 | N29: =N$2*$F29*Main!$C$4*$E29+Main!$C$5*N$2*$F29 -> 2294.787498 | O29: =O$2*$F29*Main!$C$4*$E29+Main!$C$5*O$2*$F29 -> 2578.756183 | P29: =P$2*$F29*Main!$C$4*$E29+Main!$C$5*P$2*$F29 -> 2862.97528 | Q29: =Q$2*$F29*Main!$C$4*$E29+Main!$C$5*Q$2*$F29 -> 1868.083232 | R29: =R$2*$F29*Main!$C$4*$E29+Main!$C$5*R$2*$F29 -> 2161.066795 | S29: =S$2*$F29*Main!$C$4*$E29+Main!$C$5*S$2*$F29 -> 2454.050358 | T29: =T$2*$F29*Main!$C$4*$E29+Main!$C$5*T$2*$F29 -> 2747.033922 | U29: =U$2*$F29*Main!$C$4*$E29+Main!$C$5*U$2*$F29 -> 3040.017485 | V29: =V$2*$F29*Main!$C$4*$E29+Main!$C$5*V$2*$F29 -> 1550.809579 | W29: =W$2*$F29*Main!$C$4*$E29+Main!$C$5*W$2*$F29 -> 1884.61051 | X29: =X$2*$F29*Main!$C$4*$E29+Main!$C$5*X$2*$F29 -> 2218.661855 | Y29: =Y$2*$F29*Main!$C$4*$E29+Main!$C$5*Y$2*$F29 -> 2552.462786 | Z29: =Z$2*$F29*Main!$C$4*$E29+Main!$C$5*Z$2*$F29 -> 2886.263717 | AA29: =AA$2*$F29*Main!$C$4*$E29+Main!$C$5*AA$2*$F29 -> 1810.988999 | AB29: =AB$2*$F29*Main!$C$4*$E29+Main!$C$5*AB$2*$F29 -> 2100.717189 | AC29: =AC$2*$F29*Main!$C$4*$E29+Main!$C$5*AC$2*$F29 -> 2390.194966 | AD29: =AD$2*$F29*Main!$C$4*$E29+Main!$C$5*AD$2*$F29 -> 2679.923157 | AE29: =AE$2*$F29*Main!$C$4*$E29+Main!$C$5*AE$2*$F29 -> 2969.400934 | AF29: =AF$2*$F29*Main!$C$4*$E29+Main!$C$5*AF$2*$F29 -> 1952.222101 | AG29: =AG$2*$F29*Main!$C$4*$E29+Main!$C$5*AG$2*$F29 -> 2250.714757 | AH29: =AH$2*$F29*Main!$C$4*$E29+Main!$C$5*AH$2*$F29 -> 2549.457826 | AI29: =AI$2*$F29*Main!$C$4*$E29+Main!$C$5*AI$2*$F29 -> 2847.950482 | AJ29: =AJ$2*$F29*Main!$C$4*$E29+Main!$C$5*AJ$2*$F29 -> 3146.443138 | AK29: =AK$2*$F29*Main!$C$4*$E29+Main!$C$5*AK$2*$F29 -> 1663.495564 | AL29: =AL$2*$F29*Main!$C$4*$E29+Main!$C$5*AL$2*$F29 -> 2054.390729 | AM29: =AM$2*$F29*Main!$C$4*$E29+Main!$C$5*AM$2*$F29 -> 2445.285893 | AN29: =AN$2*$F29*Main!$C$4*$E29+Main!$C$5*AN$2*$F29 -> 2835.930644 | AO29: =AO$2*$F29*Main!$C$4*$E29+Main!$C$5*AO$2*$F29 -> 3226.825808 | AP29: =AP$2*$F29*Main!$C$4*$E29+Main!$C$5*AP$2*$F29 -> 1923.674985 | AQ29: =AQ$2*$F29*Main!$C$4*$E29+Main!$C$5*AQ$2*$F29 -> 2270.246995 | AR29: =AR$2*$F29*Main!$C$4*$E29+Main!$C$5*AR$2*$F29 -> 2616.819005 | AS29: =AS$2*$F29*Main!$C$4*$E29+Main!$C$5*AS$2*$F29 -> 2963.391014 | AT29: =AT$2*$F29*Main!$C$4*$E29+Main!$C$5*AT$2*$F29 -> 3309.963024 | AU29: =AU$2*$F29*Main!$C$4*$E29+Main!$C$5*AU$2*$F29 -> 2064.908087 | AV29: =AV$2*$F29*Main!$C$4*$E29+Main!$C$5*AV$2*$F29 -> 2420.494976 | AW29: =AW$2*$F29*Main!$C$4*$E29+Main!$C$5*AW$2*$F29 -> 2776.081865 | AX29: =AX$2*$F29*Main!$C$4*$E29+Main!$C$5*AX$2*$F29 -> 3131.41834 | AY29: =AY$2*$F29*Main!$C$4*$E29+Main!$C$5*AY$2*$F29 -> 3487.005229 | AZ29: =AZ$2*$F29*Main!$C$4*$E29+Main!$C$5*AZ$2*$F29 -> 3107.87949 | BA29: =BA$2*$F29*Main!$C$4*$E29+Main!$C$5*BA$2*$F29 -> 3537.087889 | BB29: =BB$2*$F29*Main!$C$4*$E29+Main!$C$5*BB$2*$F29 -> 3966.045875 | BC29: =BC$2*$F29*Main!$C$4*$E29+Main!$C$5*BC$2*$F29 -> 3146.943965 | BD29: =BD$2*$F29*Main!$C$4*$E29+Main!$C$5*BD$2*$F29 -> 3602.946587 | BE29: =BE$2*$F29*Main!$C$4*$E29+Main!$C$5*BE$2*$F29 -> 4058.94921 | BF29: =BF$2*$F29*Main!$C$4*$E29+Main!$C$5*BF$2*$F29 -> 3333.001048 | BG29: =BG$2*$F29*Main!$C$4*$E29+Main!$C$5*BG$2*$F29 -> 3778.486312 | BH29: =BH$2*$F29*Main!$C$4*$E29+Main!$C$5*BH$2*$F29 -> 4223.971576 | BI29: =BI$2*$F29*Main!$C$4*$E29+Main!$C$5*BI$2*$F29 -> 3220.064649 | BJ29: =BJ$2*$F29*Main!$C$4*$E29+Main!$C$5*BJ$2*$F29 -> 3698.354055 | BK29: =BK$2*$F29*Main!$C$4*$E29+Main!$C$5*BK$2*$F29 -> 4176.643462 | BL29: =BL$2*$F29*Main!$C$4*$E29+Main!$C$5*BL$2*$F29 -> 3258.878711 | BM29: =BM$2*$F29*Main!$C$4*$E29+Main!$C$5*BM$2*$F29 -> 3764.212754 | BN29: =BN$2*$F29*Main!$C$4*$E29+Main!$C$5*BN$2*$F29 -> 4269.296384 | BO29: =BO$2*$F29*Main!$C$4*$E29+Main!$C$5*BO$2*$F29 -> 3444.935794 | BP29: =BP$2*$F29*Main!$C$4*$E29+Main!$C$5*BP$2*$F29 -> 3939.752479 | BQ29: =BQ$2*$F29*Main!$C$4*$E29+Main!$C$5*BQ$2*$F29 -> 4434.31875 | BR29: =BR$2*$F29*Main!$C$4*$E29+Main!$C$5*BR$2*$F29 -> 3617.470559 | BS29: =BS$2*$F29*Main!$C$4*$E29+Main!$C$5*BS$2*$F29 -> 4165.87569 | BT29: =BT$2*$F29*Main!$C$4*$E29+Main!$C$5*BT$2*$F29 -> 4714.280821 | BU29: =BU$2*$F29*Main!$C$4*$E29+Main!$C$5*BU$2*$F29 -> 3656.535034 | BV29: =BV$2*$F29*Main!$C$4*$E29+Main!$C$5*BV$2*$F29 -> 4231.734388 | BW29: =BW$2*$F29*Main!$C$4*$E29+Main!$C$5*BW$2*$F29 -> 4807.184156 | BX29: =BX$2*$F29*Main!$C$4*$E29+Main!$C$5*BX$2*$F29 -> 3842.592117 | BY29: =BY$2*$F29*Main!$C$4*$E29+Main!$C$5*BY$2*$F29 -> 4407.524526 | BZ29: =BZ$2*$F29*Main!$C$4*$E29+Main!$C$5*BZ$2*$F29 -> 4972.206522 | CA29: =CA$2*$F29*Main!$C$4*$E29+Main!$C$5*CA$2*$F29 -> 3135.925779 | CB29: =CB$2*$F29*Main!$C$4*$E29+Main!$C$5*CB$2*$F29 -> 3555.868887 | CC29: =CC$2*$F29*Main!$C$4*$E29+Main!$C$5*CC$2*$F29 -> 3975.561581 | CD29: =CD$2*$F29*Main!$C$4*$E29+Main!$C$5*CD$2*$F29 -> 3135.925779 | CE29: =CE$2*$F29*Main!$C$4*$E29+Main!$C$5*CE$2*$F29 -> 3595.684602 | CF29: =CF$2*$F29*Main!$C$4*$E29+Main!$C$5*CF$2*$F29 -> 4055.443424 | CG29: =CG$2*$F29*Main!$C$4*$E29+Main!$C$5*CG$2*$F29 -> 3334.253115 | CH29: =CH$2*$F29*Main!$C$4*$E29+Main!$C$5*CH$2*$F29 -> 3779.487965 | CI29: =CI$2*$F29*Main!$C$4*$E29+Main!$C$5*CI$2*$F29 -> 4224.472403 | CJ29: =CJ$2*$F29*Main!$C$4*$E29+Main!$C$5*CJ$2*$F29 -> 3284.671281 | CK29: =CK$2*$F29*Main!$C$4*$E29+Main!$C$5*CK$2*$F29 -> 3741.425143 | CL29: =CL$2*$F29*Main!$C$4*$E29+Main!$C$5*CL$2*$F29 -> 4198.179006 | CM29: =CM$2*$F29*Main!$C$4*$E29+Main!$C$5*CM$2*$F29 -> 3284.671281 | CN29: =CN$2*$F29*Main!$C$4*$E29+Main!$C$5*CN$2*$F29 -> 3781.240858 | CO29: =CO$2*$F29*Main!$C$4*$E29+Main!$C$5*CO$2*$F29 -> 4277.810436 | CP29: =CP$2*$F29*Main!$C$4*$E29+Main!$C$5*CP$2*$F29 -> 3482.998616 | CQ29: =CQ$2*$F29*Main!$C$4*$E29+Main!$C$5*CQ$2*$F29 -> 3965.044222 | CR29: =CR$2*$F29*Main!$C$4*$E29+Main!$C$5*CR$2*$F29 -> 4447.089828 | CS29: =CS$2*$F29*Main!$C$4*$E29+Main!$C$5*CS$2*$F29 -> 3807.033429 | CT29: =CT$2*$F29*Main!$C$4*$E29+Main!$C$5*CT$2*$F29 -> 4292.334408 | CU29: =CU$2*$F29*Main!$C$4*$E29+Main!$C$5*CU$2*$F29 -> 4777.635387 | CV29: =CV$2*$F29*Main!$C$4*$E29+Main!$C$5*CV$2*$F29 -> 3807.033429 | CW29: =CW$2*$F29*Main!$C$4*$E29+Main!$C$5*CW$2*$F29 -> 4332.150123 | CX29: =CX$2*$F29*Main!$C$4*$E29+Main!$C$5*CX$2*$F29 -> 4857.51723 | CY29: =CY$2*$F29*Main!$C$4*$E29+Main!$C$5*CY$2*$F29 -> 4005.360764 | CZ29: =CZ$2*$F29*Main!$C$4*$E29+Main!$C$5*CZ$2*$F29 -> 4515.953486 | DA29: =DA$2*$F29*Main!$C$4*$E29+Main!$C$5*DA$2*$F29 -> 5026.546209 | DB29: =DB$2*$F29*Main!$C$4*$E29+Main!$C$5*DB$2*$F29 -> 1198.22765 | DC29: =DC$2*$F29*Main!$C$4*$E29+Main!$C$5*DC$2*$F29 -> 1585.867441 | DD29: =DD$2*$F29*Main!$C$4*$E29+Main!$C$5*DD$2*$F29 -> 1973.256819 | DE29: =DE$2*$F29*Main!$C$4*$E29+Main!$C$5*DE$2*$F29 -> 2360.89661 | DF29: =DF$2*$F29*Main!$C$4*$E29+Main!$C$5*DF$2*$F29 -> 2748.536401 | DG29: =DG$2*$F29*Main!$C$4*$E29+Main!$C$5*DG$2*$F29 -> 1396.805398 | DH29: =DH$2*$F29*Main!$C$4*$E29+Main!$C$5*DH$2*$F29 -> 1744.629474 | DI29: =DI$2*$F29*Main!$C$4*$E29+Main!$C$5*DI$2*$F29 -> 2092.453551 | DJ29: =DJ$2*$F29*Main!$C$4*$E29+Main!$C$5*DJ$2*$F29 -> 2440.277627 | DK29: =DK$2*$F29*Main!$C$4*$E29+Main!$C$5*DK$2*$F29 -> 2788.101703 | DL29: =DL$2*$F29*Main!$C$4*$E29+Main!$C$5*DL$2*$F29 -> 1512.24593 | DM29: =DM$2*$F29*Main!$C$4*$E29+Main!$C$5*DM$2*$F29 -> 1876.597284 | DN29: =DN$2*$F29*Main!$C$4*$E29+Main!$C$5*DN$2*$F29 -> 2240.948639 | DO29: =DO$2*$F29*Main!$C$4*$E29+Main!$C$5*DO$2*$F29 -> 2605.550406 | DP29: =DP$2*$F29*Main!$C$4*$E29+Main!$C$5*DP$2*$F29 -> 2969.90176 | DQ29: =DQ$2*$F29*Main!$C$4*$E29+Main!$C$5*DQ$2*$F29 -> 1240.797911 | DR29: =DR$2*$F29*Main!$C$4*$E29+Main!$C$5*DR$2*$F29 -> 1649.472419 | DS29: =DS$2*$F29*Main!$C$4*$E29+Main!$C$5*DS$2*$F29 -> 2058.397341 | DT29: =DT$2*$F29*Main!$C$4*$E29+Main!$C$5*DT$2*$F29 -> 2467.07185 | DU29: =DU$2*$F29*Main!$C$4*$E29+Main!$C$5*DU$2*$F29 -> 2875.996772 | DV29: =DV$2*$F29*Main!$C$4*$E29+Main!$C$5*DV$2*$F29 -> 1439.375659 | DW29: =DW$2*$F29*Main!$C$4*$E29+Main!$C$5*DW$2*$F29 -> 1808.484866 | DX29: =DX$2*$F29*Main!$C$4*$E29+Main!$C$5*DX$2*$F29 -> 2177.34366 | DY29: =DY$2*$F29*Main!$C$4*$E29+Main!$C$5*DY$2*$F29 -> 2546.452867 | DZ29: =DZ$2*$F29*Main!$C$4*$E29+Main!$C$5*DZ$2*$F29 -> 2915.562074 | EA29: =EA$2*$F29*Main!$C$4*$E29+Main!$C$5*EA$2*$F29 -> 1554.565778 | EB29: =EB$2*$F29*Main!$C$4*$E29+Main!$C$5*EB$2*$F29 -> 1940.202263 | EC29: =EC$2*$F29*Main!$C$4*$E29+Main!$C$5*EC$2*$F29 -> 2325.838748 | ED29: =ED$2*$F29*Main!$C$4*$E29+Main!$C$5*ED$2*$F29 -> 2711.725646 | EE29: =EE$2*$F29*Main!$C$4*$E29+Main!$C$5*EE$2*$F29 -> 3097.362131 | EF29: =EF$2*$F29*Main!$C$4*$E29+Main!$C$5*EF$2*$F29 -> 1537.537674 | EG29: =EG$2*$F29*Main!$C$4*$E29+Main!$C$5*EG$2*$F29 -> 1991.53699 | EH29: =EH$2*$F29*Main!$C$4*$E29+Main!$C$5*EH$2*$F29 -> 2445.285893 | EI29: =EI$2*$F29*Main!$C$4*$E29+Main!$C$5*EI$2*$F29 -> 2899.285209 | EJ29: =EJ$2*$F29*Main!$C$4*$E29+Main!$C$5*EJ$2*$F29 -> 3353.284525 | EK29: =EK$2*$F29*Main!$C$4*$E29+Main!$C$5*EK$2*$F29 -> 1736.115422 | EL29: =EL$2*$F29*Main!$C$4*$E29+Main!$C$5*EL$2*$F29 -> 2150.299023 | EM29: =EM$2*$F29*Main!$C$4*$E29+Main!$C$5*EM$2*$F29 -> 2564.482625 | EN29: =EN$2*$F29*Main!$C$4*$E29+Main!$C$5*EN$2*$F29 -> 2978.666226 | EO29: =EO$2*$F29*Main!$C$4*$E29+Main!$C$5*EO$2*$F29 -> 3392.849827 | EP29: =EP$2*$F29*Main!$C$4*$E29+Main!$C$5*EP$2*$F29 -> 1851.305541 | EQ29: =EQ$2*$F29*Main!$C$4*$E29+Main!$C$5*EQ$2*$F29 -> 2282.266833 | ER29: =ER$2*$F29*Main!$C$4*$E29+Main!$C$5*ER$2*$F29 -> 2712.977713 | ES29: =ES$2*$F29*Main!$C$4*$E29+Main!$C$5*ES$2*$F29 -> 3143.688592 | ET29: =ET$2*$F29*Main!$C$4*$E29+Main!$C$5*ET$2*$F29 -> 3574.649884 | EU29: =EU$2*$F29*Main!$C$4*$E29+Main!$C$5*EU$2*$F29 -> 4395.254275 | EV29: =EV$2*$F29*Main!$C$4*$E29+Main!$C$5*EV$2*$F29 -> 4514.951833 | EW29: =EW$2*$F29*Main!$C$4*$E29+Main!$C$5*EW$2*$F29 -> 4669.707253 | EX29: =EX$2*$F29*Main!$C$4*$E29+Main!$C$5*EX$2*$F29 -> 4654.682455 | EY29: =EY$2*$F29*Main!$C$4*$E29+Main!$C$5*EY$2*$F29 -> 4774.630427 | EZ29: =EZ$2*$F29*Main!$C$4*$E29+Main!$C$5*EZ$2*$F29 -> 4929.135434 | FA29: =FA$2*$F29*Main!$C$4*$E29+Main!$C$5*FA$2*$F29 -> 5262.685952 | FB29: =FB$2*$F29*Main!$C$4*$E29+Main!$C$5*FB$2*$F29 -> 5382.633924 | FC29: =FC$2*$F29*Main!$C$4*$E29+Main!$C$5*FC$2*$F29 -> 5537.138931 | FD29: =IF($D29<100,(FD$2*(1+Main!$C$3)*$E29*Main!$C$4)+(FD$2*(1+Main!$C$3)*Main!$C$5),(FD$2*$E29*Main!$C$4)+(FD$2*Main!$C$5)) -> 118.7925723 | FE29: =IF($D29<100,(FE$2*(1+Main!$C$3)*$E29*Main!$C$4)+(FE$2*(1+Main!$C$3)*Main!$C$5),(FE$2*$E29*Main!$C$4)+(FE$2*Main!$C$5)) -> 129.8560937 | FF29: =IF($D29<100,(FF$2*(1+Main!$C$3)*$E29*Main!$C$4)+(FF$2*(1+Main!$C$3)*Main!$C$5),(FF$2*$E29*Main!$C$4)+(FF$2*Main!$C$5)) -> 130.7438555 | FG29: =IF($D29<100,(FG$2*(1+Main!$C$3)*$E29*Main!$C$4)+(FG$2*(1+Main!$C$3)*Main!$C$5),(FG$2*$E29*Main!$C$4)+(FG$2*Main!$C$5)) -> 141.137368 | FH29: =IF($D29<100,(FH$2*(1+Main!$C$3)*$E29*Main!$C$4)+(FH$2*(1+Main!$C$3)*Main!$C$5),(FH$2*$E29*Main!$C$4)+(FH$2*Main!$C$5)) -> 190.4165203 | FI29: =IF($D29<100,(FI$2*(1+Main!$C$3)*$E29*Main!$C$4)+(FI$2*(1+Main!$C$3)*Main!$C$5),(FI$2*$E29*Main!$C$4)+(FI$2*Main!$C$5)) -> 53.79333699
